Workbook

Sheet Personalize (hidden)
D1: FORM RESULTS | F1: 0 | G1: MockDraftCentral | H1: RotoChamp | I1: CAIRO | J1: Teams | K1: Starters | L1: More Starters | N1: 2 | R1: Cairo | S1: 25 | T1: 25 | U1: LAA | V1: TRUE | W1: C
D2: AB | E2: 0 | F2: 1 | G2: Yahoo | H2: Yahoo Staff | I2: Steamer | J2: 6 | K2: 0 | L2: 0 | M2: ADP | R2: Steamer | S2: 25 | T2: 25 | U2: ARI | V2: TRUE | W2: 1B
B3: Team 1 | D3: Single | E3: 1 | F3: 2 | G3: CBS (Point Leagues) | H3: Fox Sports Staff | I3: Steamer 600 | J3: 7 | K3: 1 | L3: 1 | M3: Proj. Points | R3: Fangraphs | S3: 25 | T3: 25 | U3: ATL | V3: TRUE | W3: 2B
B4: Team 2 | D4: Double | E4: 2 | F4: 3 | G4: ESPN | H4: ESPN (Point Leagues) | I4: Fangraphs | J4: 8 | K4: 2 | L4: 2 | M4: Exp. Rank | R4: ZiPS | S4: 25 | T4: 25 | U4: BAL | V4: TRUE | W4: 3B
B5: Team 3 | D5: Triple | E5: 3 | F5: 4 | I5: ZiPS | J5: 9 | K5: 3 | L5: 3 | M5: StDev Rank | S5: 0 | T5: 0 | U5: BOS | V5: TRUE | W5: SS
B6: Team 4 | D6: HR | E6: 4 | F6: 5 | G6: Fantasy Pros Avg | H6: Yahoo - A. Behrens | J6: 10 | K6: 4 | L6: 4 | M6: By Position | S6: 0 | T6: 0 | U6: CHC | V6: TRUE | W6: OF
B7: Team 5 | D7: BB | E7: 1 | F7: 6 | G7: NFBC | H7: Rotographs | J7: 11 | K7: 5 | L7: 5 | M7: By Team | S7: 0 | T7: 0 | U7: CWS | V7: TRUE | W7: SP
B8: Team 6 | D8: SB | E8: 1 | F8: 7 | G8: Avg of ADP Sources | H8: Fantasy Pros Avg | I8: MORPS | J8: 12 | L8: 6 | M8: Pts. Per IP | R8: MORPS | S8: 0 | T8: 0 | U8: CIN | V8: TRUE | W8: RP
B9: Team 7 | D9: CS | E9: -1 | F9: 8 | G9: Imported ADP | I9: Clay Davenport | J9: 13 | L9: 7 | M9: Pts. Per PA | R9: Clay Davenport | S9: 0 | T9: 0 | U9: CLE | V9: TRUE
B10: Team 8 | D10: K | E10: -1 | F10: 9 | I10: Weighted Projections | J10: 14 | L10: 8 | M10: AVG | R10: Steamer 600 | S10: 0 | T10: 0 | U10: COL | V10: TRUE
B11: Team 9 | D11: R | E11: 1 | F11: 10 | I11: Mr. Cheatsheet's Special Blend | J11: 15 | L11: 9 | M11: HR | U11: DET | V11: TRUE
B12: Team 10 | D12: RBI | E12: 1 | F12: 11 | I12: Imported Projections | J12: 16 | M12: Runs | U12: HOU | V12: TRUE
B13: Team 11 | D13: W | E13: 4 | F13: 12 | J13: 17 | M13: RBI | U13: KC | V13: TRUE
B14: Team 12 | D14: L | E14: -2 | F14: 13 | J14: 18 | M14: SB | U14: LAD | V14: TRUE
B15: Team 13 | D15: IP | E15: 1 | F15: 14 | J15: 19 | M15: ERA | U15: MIA | V15: TRUE
A16: =IF((Personalize!$E$18+1)<14,"","Team 14") ->  | B16: Team 14 | D16: Hit Allowed | E16: -1 | F16: 15 | J16: 20 | M16: WHIP | U16: MIL | V16: TRUE
A17: =IF((Personalize!$E$18+1)<15,"","Team 15") ->  | B17: Team 15 | D17: BB | E17: -1 | F17: 16 | J17: 21 | M17: K's | U17: MIN | V17: TRUE
A18: =IF((Personalize!$E$18+1)<16,"","Team 16") ->  | B18: Team 16 | D18: K | E18: 2.5 | F18: 17 | J18: 22 | M18: Wins | U18: NYM | V18: TRUE
B19: Team 17 | D19: ER | E19: -1 | F19: 18 | J19: 23 | M19: Saves | U19: NYY | V19: TRUE
B20: Team 18 | D20: S | E20: 10 | F20: 19 | J20: 24 | U20: OAK | V20: TRUE
B21: Team 19 | D21: QS | E21: 0 | F21: 20 | U21: PHI | V21: TRUE
B22: Team 20 | D22: # of Teams | E22: 12 | F22: 21 | U22: PIT | V22: TRUE
B23: Team 21 | D23: C | E23: 1 | F23: 22 | U23: SD | V23: TRUE
B24: Team 22 | D24: 1B | E24: 1 | F24: 23 | U24: SEA | V24: TRUE
B25: Team 23 | D25: 2B | E25: 1 | F25: 24 | U25: SF | V25: TRUE
B26: Team 24 | D26: 3B | E26: 1 | U26: STL | V26: TRUE
D27: SS | E27: 1 | U27: TB | V27: TRUE
B28: TRUE | D28: CI | E28: 0 | U28: TEX | V28: TRUE
B29: TRUE | D29: MI | E29: 0 | U29: TOR | V29: TRUE
B30: FALSE | D30: OF | E30: 3 | U30: WSH | V30: TRUE
D31: LF | E31: 0 | U31: All Players
D32: CF | E32: 0 | U32: NL-Only
D33: RF | E33: 0 | U33: AL-Only
D34: DH | E34: 2 | U34: Custom
D35: SP | E35: 4
D36: RP | E36: 1
D37: P | E37: 1
D38: ADP Site: | E38: =IF(F38=G1,1,IF(F38=G2,2,IF(F38=G3,3,IF(F38=G4,4,IF(F38=G5,5,IF(F38=G6,6,IF(F38=G7,7,0))))))) -> 3 | F38: CBS (Point Leagues)
D39: Rankings: | E39: =IF(F39=H1,1,IF(F39=H2,2,IF(F39=H3,3,IF(F39=H4,4,IF(F39=H5,5,IF(F39=H6,6,IF(F39=H7,7,IF(F39=H8,8,0)))))))) -> 4 | F39: ESPN (Point Leagues)
D40: Projections: | E40: =IF(F40=I1,1,IF(F40=I2,2,IF(F40=I3,10,IF(F40=I4,3,IF(F40=I5,4,IF(F40=I6,5,IF(F40=I7,6,IF(F40=I9,9,IF(F40=I10,7,IF(F40=I8,8,IF(F40=I11,11,IF(F40=I12,12,0)))))))))))) -> 11 | F40: Mr. Cheatsheet's Special Blend
E41: 1
D42: CG | E42: 5
D43: Shutout | E43: 5
D44: Holds | E44: 0
D45: IF | E45: 0
D46: Errors | E46: -1
D47: Game Started | E47: 0
D48: GIDP | E48: -1
D49: HRA | E49: 0

Sheet Draft Central
Z1: Sort by:
A3: ="Current Pick: "&(COUNTA($A$6:$A$745)+1) -> Current Pick: 1 | B3: Player Info | G3: Draft Data | K3: Point Projections | P3: Projected Stats | Z3: Draft Odds | AD3: 135 | AE3: 2
A4: Drafted By (click box to select team) | B4: Name | C4: Pos | D4: OF Elig | E4: Tm | F4: Age | G4: ADP | H4: ADP Rd | I4: Exp Rank | J4: SDAA Rank | K4: Projected Points | L4: Pos Avg | M4: Std Devs Above Avg | N4: Pts Per PA | O4: Pts Per IP | P4: W | Q4: S | R4: K | S4: ERA | T4: WHIP | U4: AVG | V4: HR | W4: RBI | X4: R | Y4: SB | Z4: Odds Curr Avail | AA4: In One Round | AB4: In Two Rounds | AC4: Your Player Notes: | AD4: Early | AE4: Late | AF4: Drafted | AG4: No Proj | AH4: Team | AI4: Post | AJ4: Starter
B6: Clayton Kershaw | C6: SP | D6: =IFERROR(IF(VLOOKUP(B6,'Starter Calc'!$B$2:$E$700,4,FALSE)="","",VLOOKUP(B6,'Starter Calc'!$B$2:$E$700,4,FALSE)),"") -> ,, | E6: =IFERROR(VLOOKUP($B6,'ADP-Rank'!$A$2:$G$620,5,FALSE),"") -> LAD | F6: =IFERROR(VLOOKUP($B6,'ADP-Rank'!$A$2:$W$620,6,FALSE),"") -> 27 | G6: =IFERROR(CHOOSE(Personalize!$E$38,VLOOKUP($B6,'ADP-Rank'!$A$2:$CD$620,7,FALSE),VLOOKUP($B6,'ADP-Rank'!$A$2:$CD$620,10,FALSE),VLOOKUP($B6,'ADP-Rank'!$A$2:$CD$620,13,FALSE),VLOOKUP($B6,'ADP-Rank'!$A$2:$CD$620,16,FALSE),VLOOKUP($B6,'ADP-Rank'!$A$2:$CD$620,19,FALSE),VLOOKUP($B6,'ADP-Rank'!$A$2:$CD$620,22,FALSE),VLOOKUP($B6,'ADP-Rank'!$A$2:$CD$620,25,FALSE),VLOOKUP($B6,'ADP-Rank'!$A$2:$CD$620,28,FALSE),VLOOKUP($B6,'ADP-Rank'!$A$2:$CD$620,45,FALSE)),"") -> 1.35 | H6: =IFERROR(ROUNDDOWN(VLOOKUP($B6,'ADP-Rank'!$A$2:$BC$674,44,FALSE),0),"") -> 1 | I6: =VLOOKUP($B6,'ADP-Rank'!$A$2:$AP$674,42,FALSE) -> 1 | J6: =IFERROR(RANK($M6,$M$6:$M$745,0),"") -> 3 | K6: =IFERROR(IF((OR($C6="RP",$C6="SP")),VLOOKUP($B6,'Filtered-P'!$A$1:$AB$700,12,FALSE),(VLOOKUP($B6,Filtered!$A$1:$AB$700,18,FALSE))),"") -> 556.0324476 | L6: =IFERROR(IF((OR($C6="RP",$C6="SP")),VLOOKUP($C6,'Filtered-P'!$U$3:$X$4,4,FALSE), VLOOKUP($C6,Filtered!$U$3:$X$14,4,FALSE)),"") -> 262.4844351 | M6: =IFERROR(($K6-$L6)/IF(OR($C6="SP",$C6="RP"),VLOOKUP($C6,'Filtered-P'!$U$3:$AB$4,8,FALSE),VLOOKUP($C6,Filtered!$U$3:$AB$10,8,FALSE)),"") -> 3.221405588 | N6: =IFERROR(IF((OR($C6="RP",$C6="SP")),"",(VLOOKUP($B6,Filtered!$A$1:$AB$700,18,FALSE)/VLOOKUP($B6,Filtered!$A$1:$AB$700,2,FALSE))),"") ->  | O6: =IFERROR(IF((OR($C6="RP",$C6="SP")),VLOOKUP($B6,'Filtered-P'!$A$1:$AB$700,12,FALSE)/VLOOKUP($B6,'Filtered-P'!$A$1:$AB$700,4,FALSE),""),"") -> 2.671532992 | P6: =IFERROR(IF((OR($C6="RP",$C6="SP")),VLOOKUP($B6,'Filtered-P'!$A$1:$X$700,2,FALSE),""),"") -> 15.7444248 | Q6: =IFERROR(IF((OR($C6="RP",$C6="SP")),VLOOKUP($B6,'Filtered-P'!$A$1:$X$700,9,FALSE),""),"") -> 0 | R6: =IFERROR(IF((OR($C6="RP",$C6="SP")),VLOOKUP($B6,'Filtered-P'!$A$1:$X$700,7,FALSE),""),"") -> 229.550233 | S6: =IFERROR(IF((OR($C6="RP",$C6="SP")),VLOOKUP($B6,'Filtered-P'!$A$1:$AD$700,13,FALSE),""),"") -> 2.479290152 | T6: =IFERROR(IF((OR($C6="RP",$C6="SP")),VLOOKUP($B6,'Filtered-P'!$A$1:$X$700,14,FALSE),""),"") -> 1.015555718 | U6: =IFERROR(IF((OR($C6="RP",$C6="SP")),"",VLOOKUP($B6,Filtered!$A$1:$AJ$700,20,FALSE)),"") ->  | V6: =IFERROR(IF((OR($C6="RP",$C6="SP")),"",VLOOKUP($B6,Filtered!$A$1:$AJ$700,9,FALSE)),"") ->  | W6: =IFERROR(IF((OR($C6="RP",$C6="SP")),"",VLOOKUP($B6,Filtered!$A$1:$AJ$700,10,FALSE)),"") ->  | X6: =IFERROR(IF((OR($C6="RP",$C6="SP")),"",VLOOKUP($B6,Filtered!$A$1:$AJ$700,4,FALSE)),"") ->  | Y6: =IFERROR(IF((OR($C6="RP",$C6="SP")),"",VLOOKUP($B6,Filtered!$A$1:$AJ$700,11,FALSE)),"") ->  | Z6: =IFERROR(IF(ISTEXT($A6),"",(1-NORMDIST((COUNTA($A$6:$A$745)),($G6),((AE6-AD6)/6),TRUE))),"") -> 0.9999743912 | AA6: =IFERROR(IF(ISTEXT($A6),"",(1-NORMDIST((COUNTA($A$6:$A$745))+(Personalize!$E$18+1),$G6,((AE6-AD6)/6),TRUE))),"") -> 5.592504237e-11 | AB6: =IFERROR(IF(ISTEXT($A6),"",(1-NORMDIST((COUNTA($A$6:$A$745))+((Personalize!$E$18+1)*2),$G6,((AE6-AD6)/6),TRUE))),"") -> 0 | AD6: =CHOOSE(Personalize!$E$38,VLOOKUP($B6,'ADP-Rank'!$A$2:$AJ$620,8,FALSE),VLOOKUP($B6,'ADP-Rank'!$A$2:$AJ$620,11,FALSE),VLOOKUP($B6,'ADP-Rank'!$A$2:$AO$620,14,FALSE),VLOOKUP($B6,'ADP-Rank'!$A$2:$BD$620,17,FALSE),VLOOKUP($B6,'ADP-Rank'!$A$2:$BD$620,20,FALSE),VLOOKUP($B6,'ADP-Rank'!$A$2:$BD$620,23,FALSE),VLOOKUP($B6,'ADP-Rank'!$A$2:$BD$620,26,FALSE),VLOOKUP($B6,'ADP-Rank'!$A$2:$BD$620,29,FALSE),VLOOKUP($B6,'ADP-Rank'!$A$2:$BD$620,46,FALSE)) -> 1 | AE6: =CHOOSE(Personalize!$E$38,VLOOKUP($B6,'ADP-Rank'!$A$2:$AJ$620,9,FALSE),VLOOKUP($B6,'ADP-Rank'!$A$2:$AJ$620,12,FALSE),VLOOKUP($B6,'ADP-Rank'!$A$2:$AO$620,15,FALSE),VLOOKUP($B6,'ADP-Rank'!$A$2:$BD$620,18,FALSE),VLOOKUP($B6,'ADP-Rank'!$A$2:$BD$620,21,FALSE),VLOOKUP($B6,'ADP-Rank'!$A$2:$BD$620,24,FALSE),VLOOKUP($B6,'ADP-Rank'!$A$2:$BD$620,27,FALSE),VLOOKUP($B6,'ADP-Rank'!$A$2:$BD$620,30,FALSE),VLOOKUP($B6,'ADP-Rank'!$A$2:$BD$620,47,FALSE)) -> 3 | AF6: =IF(ISBLANK(A6),0,1) -> 0 | AG6: =IF(K6="",0,1) -> 1 | AH6: =A6 -> 0 | AI6: =IF(C6="C",1,IF(C6="1B",2,IF(C6="2B",3,IF(C6="3B",4,IF(C6="SS",5,IF(C6="CI",6,IF(C6="MI",7,IF(C6="OF",11,IF(C6="LF",8,IF(C6="CF",9,IF(C6="RF",10,IF(C6="DH",12,IF(C6="SP",13,IF(C6="RP",14,IF(C6="P",15,16))))))))))))))) -> 13 | AJ6: =VLOOKUP(B6,'Starter Calc'!$B$2:$BR$700,69,FALSE) -> Starter | AK6: =IFERROR(VLOOKUP($B6,'ADP-Rank'!$A$2:$AZ$620,40,FALSE),TRUE) -> TRUE | AL6: =IF(O6="",0,1) -> 1
B7: Mike Trout | C7: OF | D7: =IFERROR(IF(VLOOKUP(B7,'Starter Calc'!$B$2:$E$700,4,FALSE)="","",VLOOKUP(B7,'Starter Calc'!$B$2:$E$700,4,FALSE)),"") -> LF,,CF | E7: =IFERROR(VLOOKUP($B7,'ADP-Rank'!$A$2:$G$620,5,FALSE),"") -> LAA | F7: =IFERROR(VLOOKUP($B7,'ADP-Rank'!$A$2:$W$620,6,FALSE),"") -> 23 | G7: =IFERROR(CHOOSE(Personalize!$E$38,VLOOKUP($B7,'ADP-Rank'!$A$2:$CD$620,7,FALSE),VLOOKUP($B7,'ADP-Rank'!$A$2:$CD$620,10,FALSE),VLOOKUP($B7,'ADP-Rank'!$A$2:$CD$620,13,FALSE),VLOOKUP($B7,'ADP-Rank'!$A$2:$CD$620,16,FALSE),VLOOKUP($B7,'ADP-Rank'!$A$2:$CD$620,19,FALSE),VLOOKUP($B7,'ADP-Rank'!$A$2:$CD$620,22,FALSE),VLOOKUP($B7,'ADP-Rank'!$A$2:$CD$620,25,FALSE),VLOOKUP($B7,'ADP-Rank'!$A$2:$CD$620,28,FALSE),VLOOKUP($B7,'ADP-Rank'!$A$2:$CD$620,45,FALSE)),"") -> 1.97 | H7: =IFERROR(ROUNDDOWN(VLOOKUP($B7,'ADP-Rank'!$A$2:$BC$674,44,FALSE),0),"") -> 1 | I7: =VLOOKUP($B7,'ADP-Rank'!$A$2:$AP$674,42,FALSE) -> 2 | J7: =IFERROR(RANK($M7,$M$6:$M$745,0),"") -> 8 | K7: =IFERROR(IF((OR($C7="RP",$C7="SP")),VLOOKUP($B7,'Filtered-P'!$A$1:$AB$700,12,FALSE),(VLOOKUP($B7,Filtered!$A$1:$AB$700,18,FALSE))),"") -> 434.1368472 | L7: =IFERROR(IF((OR($C7="RP",$C7="SP")),VLOOKUP($C7,'Filtered-P'!$U$3:$X$4,4,FALSE), VLOOKUP($C7,Filtered!$U$3:$X$14,4,FALSE)),"") -> 287.0213782 | M7: =IFERROR(($K7-$L7)/IF(OR($C7="SP",$C7="RP"),VLOOKUP($C7,'Filtered-P'!$U$3:$AB$4,8,FALSE),VLOOKUP($C7,Filtered!$U$3:$AB$10,8,FALSE)),"") -> 2.422264317 | N7: =IFERROR(IF((OR($C7="RP",$C7="SP")),"",(VLOOKUP($B7,Filtered!$A$1:$AB$700,18,FALSE)/VLOOKUP($B7,Filtered!$A$1:$AB$700,2,FALSE))),"") -> 0.6692298755 | O7: =IFERROR(IF((OR($C7="RP",$C7="SP")),VLOOKUP($B7,'Filtered-P'!$A$1:$AB$700,12,FALSE)/VLOOKUP($B7,'Filtered-P'!$A$1:$AB$700,4,FALSE),""),"") ->  | P7: =IFERROR(IF((OR($C7="RP",$C7="SP")),VLOOKUP($B7,'Filtered-P'!$A$1:$X$700,2,FALSE),""),"") ->  | Q7: =IFERROR(IF((OR($C7="RP",$C7="SP")),VLOOKUP($B7,'Filtered-P'!$A$1:$X$700,9,FALSE),""),"") ->  | R7: =IFERROR(IF((OR($C7="RP",$C7="SP")),VLOOKUP($B7,'Filtered-P'!$A$1:$X$700,7,FALSE),""),"") ->  | S7: =IFERROR(IF((OR($C7="RP",$C7="SP")),VLOOKUP($B7,'Filtered-P'!$A$1:$AD$700,13,FALSE),""),"") ->  | T7: =IFERROR(IF((OR($C7="RP",$C7="SP")),VLOOKUP($B7,'Filtered-P'!$A$1:$X$700,14,FALSE),""),"") ->  | U7: =IFERROR(IF((OR($C7="RP",$C7="SP")),"",VLOOKUP($B7,Filtered!$A$1:$AJ$700,20,FALSE)),"") -> 0.2913171503 | V7: =IFERROR(IF((OR($C7="RP",$C7="SP")),"",VLOOKUP($B7,Filtered!$A$1:$AJ$700,9,FALSE)),"") -> 30.52867107 | W7: =IFERROR(IF((OR($C7="RP",$C7="SP")),"",VLOOKUP($B7,Filtered!$A$1:$AJ$700,10,FALSE)),"") -> 90.33738801 | X7: =IFERROR(IF((OR($C7="RP",$C7="SP")),"",VLOOKUP($B7,Filtered!$A$1:$AJ$700,4,FALSE)),"") -> 102.2217926 | Y7: =IFERROR(IF((OR($C7="RP",$C7="SP")),"",VLOOKUP($B7,Filtered!$A$1:$AJ$700,11,FALSE)),"") -> 21.06897916 | Z7: =IFERROR(IF(ISTEXT($A7),"",(1-NORMDIST((COUNTA($A$6:$A$745)),($G7),((AE7-AD7)/6),TRUE))),"") -> 0.9909605937 | AA7: =IFERROR(IF(ISTEXT($A7),"",(1-NORMDIST((COUNTA($A$6:$A$745))+(Personalize!$E$18+1),$G7,((AE7-AD7)/6),TRUE))),"") -> 0.03317882833 | AB7: =IFERROR(IF(ISTEXT($A7),"",(1-NORMDIST((COUNTA($A$6:$A$745))+((Personalize!$E$18+1)*2),$G7,((AE7-AD7)/6),TRUE))),"") -> 7.899062515e-10 | AD7: =CHOOSE(Personalize!$E$38,VLOOKUP($B7,'ADP-Rank'!$A$2:$AJ$620,8,FALSE),VLOOKUP($B7,'ADP-Rank'!$A$2:$AJ$620,11,FALSE),VLOOKUP($B7,'ADP-Rank'!$A$2:$AO$620,14,FALSE),VLOOKUP($B7,'ADP-Rank'!$A$2:$BD$620,17,FALSE),VLOOKUP($B7,'ADP-Rank'!$A$2:$BD$620,20,FALSE),VLOOKUP($B7,'ADP-Rank'!$A$2:$BD$620,23,FALSE),VLOOKUP($B7,'ADP-Rank'!$A$2:$BD$620,26,FALSE),VLOOKUP($B7,'ADP-Rank'!$A$2:$BD$620,29,FALSE),VLOOKUP($B7,'ADP-Rank'!$A$2:$BD$620,46,FALSE)) -> 1 | AE7: =CHOOSE(Personalize!$E$38,VLOOKUP($B7,'ADP-Rank'!$A$2:$AJ$620,9,FALSE),VLOOKUP($B7,'ADP-Rank'!$A$2:$AJ$620,12,FALSE),VLOOKUP($B7,'ADP-Rank'!$A$2:$AO$620,15,FALSE),VLOOKUP($B7,'ADP-Rank'!$A$2:$BD$620,18,FALSE),VLOOKUP($B7,'ADP-Rank'!$A$2:$BD$620,21,FALSE),VLOOKUP($B7,'ADP-Rank'!$A$2:$BD$620,24,FALSE),VLOOKUP($B7,'ADP-Rank'!$A$2:$BD$620,27,FALSE),VLOOKUP($B7,'ADP-Rank'!$A$2:$BD$620,30,FALSE),VLOOKUP($B7,'ADP-Rank'!$A$2:$BD$620,47,FALSE)) -> 6 | AF7: =IF(ISBLANK(A7),0,1) -> 0 | AG7: =IF(K7="",0,1) -> 1 | AH7: =A7 -> 0 | AI7: =IF(C7="C",1,IF(C7="1B",2,IF(C7="2B",3,IF(C7="3B",4,IF(C7="SS",5,IF(C7="CI",6,IF(C7="MI",7,IF(C7="OF",11,IF(C7="LF",8,IF(C7="CF",9,IF(C7="RF",10,IF(C7="DH",12,IF(C7="SP",13,IF(C7="RP",14,IF(C7="P",15,16))))))))))))))) -> 11 | AJ7: =VLOOKUP(B7,'Starter Calc'!$B$2:$BR$700,69,FALSE) -> Bench | AK7: =IFERROR(VLOOKUP($B7,'ADP-Rank'!$A$2:$AZ$620,40,FALSE),TRUE) -> TRUE | AL7: =IF(O7="",0,1) -> 0
B8: Felix Hernandez | C8: SP | D8: =IFERROR(IF(VLOOKUP(B8,'Starter Calc'!$B$2:$E$700,4,FALSE)="","",VLOOKUP(B8,'Starter Calc'!$B$2:$E$700,4,FALSE)),"") -> ,, | E8: =IFERROR(VLOOKUP($B8,'ADP-Rank'!$A$2:$G$620,5,FALSE),"") -> SEA | F8: =IFERROR(VLOOKUP($B8,'ADP-Rank'!$A$2:$W$620,6,FALSE),"") -> 29 | G8: =IFERROR(CHOOSE(Personalize!$E$38,VLOOKUP($B8,'ADP-Rank'!$A$2:$CD$620,7,FALSE),VLOOKUP($B8,'ADP-Rank'!$A$2:$CD$620,10,FALSE),VLOOKUP($B8,'ADP-Rank'!$A$2:$CD$620,13,FALSE),VLOOKUP($B8,'ADP-Rank'!$A$2:$CD$620,16,FALSE),VLOOKUP($B8,'ADP-Rank'!$A$2:$CD$620,19,FALSE),VLOOKUP($B8,'ADP-Rank'!$A$2:$CD$620,22,FALSE),VLOOKUP($B8,'ADP-Rank'!$A$2:$CD$620,25,FALSE),VLOOKUP($B8,'ADP-Rank'!$A$2:$CD$620,28,FALSE),VLOOKUP($B8,'ADP-Rank'!$A$2:$CD$620,45,FALSE)),"") -> 5.36 | H8: =IFERROR(ROUNDDOWN(VLOOKUP($B8,'ADP-Rank'!$A$2:$BC$674,44,FALSE),0),"") -> 1 | I8: =VLOOKUP($B8,'ADP-Rank'!$A$2:$AP$674,42,FALSE) -> 4 | J8: =IFERROR(RANK($M8,$M$6:$M$745,0),"") -> 6 | K8: =IFERROR(IF((OR($C8="RP",$C8="SP")),VLOOKUP($B8,'Filtered-P'!$A$1:$AB$700,12,FALSE),(VLOOKUP($B8,Filtered!$A$1:$AB$700,18,FALSE))),"") -> 495.0016522 | L8: =IFERROR(IF((OR($C8="RP",$C8="SP")),VLOOKUP($C8,'Filtered-P'!$U$3:$X$4,4,FALSE), VLOOKUP($C8,Filtered!$U$3:$X$14,4,FALSE)),"") -> 262.4844351 | M8: =IFERROR(($K8-$L8)/IF(OR($C8="SP",$C8="RP"),VLOOKUP($C8,'Filtered-P'!$U$3:$AB$4,8,FALSE),VLOOKUP($C8,Filtered!$U$3:$AB$10,8,FALSE)),"") -> 2.551651624 | N8: =IFERROR(IF((OR($C8="RP",$C8="SP")),"",(VLOOKUP($B8,Filtered!$A$1:$AB$700,18,FALSE)/VLOOKUP($B8,Filtered!$A$1:$AB$700,2,FALSE))),"") ->  | O8: =IFERROR(IF((OR($C8="RP",$C8="SP")),VLOOKUP($B8,'Filtered-P'!$A$1:$AB$700,12,FALSE)/VLOOKUP($B8,'Filtered-P'!$A$1:$AB$700,4,FALSE),""),"") -> 2.367579348 | P8: =IFERROR(IF((OR($C8="RP",$C8="SP")),VLOOKUP($B8,'Filtered-P'!$A$1:$X$700,2,FALSE),""),"") -> 13.84487436 | Q8: =IFERROR(IF((OR($C8="RP",$C8="SP")),VLOOKUP($B8,'Filtered-P'!$A$1:$X$700,9,FALSE),""),"") -> 0 | R8: =IFERROR(IF((OR($C8="RP",$C8="SP")),VLOOKUP($B8,'Filtered-P'!$A$1:$X$700,7,FALSE),""),"") -> 216.6477909 | S8: =IFERROR(IF((OR($C8="RP",$C8="SP")),VLOOKUP($B8,'Filtered-P'!$A$1:$AD$700,13,FALSE),""),"") -> 2.773522539 | T8: =IFERROR(IF((OR($C8="RP",$C8="SP")),VLOOKUP($B8,'Filtered-P'!$A$1:$X$700,14,FALSE),""),"") -> 1.065309108 | U8: =IFERROR(IF((OR($C8="RP",$C8="SP")),"",VLOOKUP($B8,Filtered!$A$1:$AJ$700,20,FALSE)),"") ->  | V8: =IFERROR(IF((OR($C8="RP",$C8="SP")),"",VLOOKUP($B8,Filtered!$A$1:$AJ$700,9,FALSE)),"") ->  | W8: =IFERROR(IF((OR($C8="RP",$C8="SP")),"",VLOOKUP($B8,Filtered!$A$1:$AJ$700,10,FALSE)),"") ->  | X8: =IFERROR(IF((OR($C8="RP",$C8="SP")),"",VLOOKUP($B8,Filtered!$A$1:$AJ$700,4,FALSE)),"") ->  | Y8: =IFERROR(IF((OR($C8="RP",$C8="SP")),"",VLOOKUP($B8,Filtered!$A$1:$AJ$700,11,FALSE)),"") ->  | Z8: =IFERROR(IF(ISTEXT($A8),"",(1-NORMDIST((COUNTA($A$6:$A$745)),($G8),((AE8-AD8)/6),TRUE))),"") -> 0.9998237672 | AA8: =IFERROR(IF(ISTEXT($A8),"",(1-NORMDIST((COUNTA($A$6:$A$745))+(Personalize!$E$18+1),$G8,((AE8-AD8)/6),TRUE))),"") -> 0.8925123029 | AB8: =IFERROR(IF(ISTEXT($A8),"",(1-NORMDIST((COUNTA($A$6:$A$745))+((Personalize!$E$18+1)*2),$G8,((AE8-AD8)/6),TRUE))),"") -> 0.1371237363 | AD8: =CHOOSE(Personalize!$E$38,VLOOKUP($B8,'ADP-Rank'!$A$2:$AJ$620,8,FALSE),VLOOKUP($B8,'ADP-Rank'!$A$2:$AJ$620,11,FALSE),VLOOKUP($B8,'ADP-Rank'!$A$2:$AO$620,14,FALSE),VLOOKUP($B8,'ADP-Rank'!$A$2:$BD$620,17,FALSE),VLOOKUP($B8,'ADP-Rank'!$A$2:$BD$620,20,FALSE),VLOOKUP($B8,'ADP-Rank'!$A$2:$BD$620,23,FALSE),VLOOKUP($B8,'ADP-Rank'!$A$2:$BD$620,26,FALSE),VLOOKUP($B8,'ADP-Rank'!$A$2:$BD$620,29,FALSE),VLOOKUP($B8,'ADP-Rank'!$A$2:$BD$620,46,FALSE)) -> 2 | AE8: =CHOOSE(Personalize!$E$38,VLOOKUP($B8,'ADP-Rank'!$A$2:$AJ$620,9,FALSE),VLOOKUP($B8,'ADP-Rank'!$A$2:$AJ$620,12,FALSE),VLOOKUP($B8,'ADP-Rank'!$A$2:$AO$620,15,FALSE),VLOOKUP($B8,'ADP-Rank'!$A$2:$BD$620,18,FALSE),VLOOKUP($B8,'ADP-Rank'!$A$2:$BD$620,21,FALSE),VLOOKUP($B8,'ADP-Rank'!$A$2:$BD$620,24,FALSE),VLOOKUP($B8,'ADP-Rank'!$A$2:$BD$620,27,FALSE),VLOOKUP($B8,'ADP-Rank'!$A$2:$BD$620,30,FALSE),VLOOKUP($B8,'ADP-Rank'!$A$2:$BD$620,47,FALSE)) -> 11 | AF8: =IF(ISBLANK(A8),0,1) -> 0 | AG8: =IF(K8="",0,1) -> 1 | AH8: =A8 -> 0 | AI8: =IF(C8="C",1,IF(C8="1B",2,IF(C8="2B",3,IF(C8="3B",4,IF(C8="SS",5,IF(C8="CI",6,IF(C8="MI",7,IF(C8="OF",11,IF(C8="LF",8,IF(C8="CF",9,IF(C8="RF",10,IF(C8="DH",12,IF(C8="SP",13,IF(C8="RP",14,IF(C8="P",15,16))))))))))))))) -> 13 | AJ8: =VLOOKUP(B8,'Starter Calc'!$B$2:$BR$700,69,FALSE) -> Starter | AK8: =IFERROR(VLOOKUP($B8,'ADP-Rank'!$A$2:$AZ$620,40,FALSE),TRUE) -> TRUE | AL8: 1
B9: David Price | C9: SP | D9: =IFERROR(IF(VLOOKUP(B9,'Starter Calc'!$B$2:$E$700,4,FALSE)="","",VLOOKUP(B9,'Starter Calc'!$B$2:$E$700,4,FALSE)),"") -> ,,CF | E9: =IFERROR(VLOOKUP($B9,'ADP-Rank'!$A$2:$G$620,5,FALSE),"") -> DET | F9: =IFERROR(VLOOKUP($B9,'ADP-Rank'!$A$2:$W$620,6,FALSE),"") -> 29 | G9: =IFERROR(CHOOSE(Personalize!$E$38,VLOOKUP($B9,'ADP-Rank'!$A$2:$CD$620,7,FALSE),VLOOKUP($B9,'ADP-Rank'!$A$2:$CD$620,10,FALSE),VLOOKUP($B9,'ADP-Rank'!$A$2:$CD$620,13,FALSE),VLOOKUP($B9,'ADP-Rank'!$A$2:$CD$620,16,FALSE),VLOOKUP($B9,'ADP-Rank'!$A$2:$CD$620,19,FALSE),VLOOKUP($B9,'ADP-Rank'!$A$2:$CD$620,22,FALSE),VLOOKUP($B9,'ADP-Rank'!$A$2:$CD$620,25,FALSE),VLOOKUP($B9,'ADP-Rank'!$A$2:$CD$620,28,FALSE),VLOOKUP($B9,'ADP-Rank'!$A$2:$CD$620,45,FALSE)),"") -> 6.15 | H9: =IFERROR(ROUNDDOWN(VLOOKUP($B9,'ADP-Rank'!$A$2:$BC$674,44,FALSE),0),"") -> 1 | I9: =VLOOKUP($B9,'ADP-Rank'!$A$2:$AP$674,42,FALSE) -> 13 | J9: =IFERROR(RANK($M9,$M$6:$M$745,0),"") -> 12 | K9: =IFERROR(IF((OR($C9="RP",$C9="SP")),VLOOKUP($B9,'Filtered-P'!$A$1:$AB$700,12,FALSE),(VLOOKUP($B9,Filtered!$A$1:$AB$700,18,FALSE))),"") -> 458.5351783 | L9: =IFERROR(IF((OR($C9="RP",$C9="SP")),VLOOKUP($C9,'Filtered-P'!$U$3:$X$4,4,FALSE), VLOOKUP($C9,Filtered!$U$3:$X$14,4,FALSE)),"") -> 262.4844351 | M9: =IFERROR(($K9-$L9)/IF(OR($C9="SP",$C9="RP"),VLOOKUP($C9,'Filtered-P'!$U$3:$AB$4,8,FALSE),VLOOKUP($C9,Filtered!$U$3:$AB$10,8,FALSE)),"") -> 2.151467334 | N9: =IFERROR(IF((OR($C9="RP",$C9="SP")),"",(VLOOKUP($B9,Filtered!$A$1:$AB$700,18,FALSE)/VLOOKUP($B9,Filtered!$A$1:$AB$700,2,FALSE))),"") ->  | O9: =IFERROR(IF((OR($C9="RP",$C9="SP")),VLOOKUP($B9,'Filtered-P'!$A$1:$AB$700,12,FALSE)/VLOOKUP($B9,'Filtered-P'!$A$1:$AB$700,4,FALSE),""),"") -> 2.171487717 | P9: =IFERROR(IF((OR($C9="RP",$C9="SP")),VLOOKUP($B9,'Filtered-P'!$A$1:$X$700,2,FALSE),""),"") -> 13.9798577 | Q9: =IFERROR(IF((OR($C9="RP",$C9="SP")),VLOOKUP($B9,'Filtered-P'!$A$1:$X$700,9,FALSE),""),"") -> 0 | R9: =IFERROR(IF((OR($C9="RP",$C9="SP")),VLOOKUP($B9,'Filtered-P'!$A$1:$X$700,7,FALSE),""),"") -> 208.2080969 | S9: =IFERROR(IF((OR($C9="RP",$C9="SP")),VLOOKUP($B9,'Filtered-P'!$A$1:$AD$700,13,FALSE),""),"") -> 3.202722966 | T9: =IFERROR(IF((OR($C9="RP",$C9="SP")),VLOOKUP($B9,'Filtered-P'!$A$1:$X$700,14,FALSE),""),"") -> 1.074255473 | U9: =IFERROR(IF((OR($C9="RP",$C9="SP")),"",VLOOKUP($B9,Filtered!$A$1:$AJ$700,20,FALSE)),"") ->  | V9: =IFERROR(IF((OR($C9="RP",$C9="SP")),"",VLOOKUP($B9,Filtered!$A$1:$AJ$700,9,FALSE)),"") ->  | W9: =IFERROR(IF((OR($C9="RP",$C9="SP")),"",VLOOKUP($B9,Filtered!$A$1:$AJ$700,10,FALSE)),"") ->  | X9: =IFERROR(IF((OR($C9="RP",$C9="SP")),"",VLOOKUP($B9,Filtered!$A$1:$AJ$700,4,FALSE)),"") ->  | Y9: =IFERROR(IF((OR($C9="RP",$C9="SP")),"",VLOOKUP($B9,Filtered!$A$1:$AJ$700,11,FALSE)),"") ->  | Z9: =IFERROR(IF(ISTEXT($A9),"",(1-NORMDIST((COUNTA($A$6:$A$745)),($G9),((AE9-AD9)/6),TRUE))),"") -> 0.9989474872 | AA9: =IFERROR(IF(ISTEXT($A9),"",(1-NORMDIST((COUNTA($A$6:$A$745))+(Personalize!$E$18+1),$G9,((AE9-AD9)/6),TRUE))),"") -> 0.9074144243 | AB9: =IFERROR(IF(ISTEXT($A9),"",(1-NORMDIST((COUNTA($A$6:$A$745))+((Personalize!$E$18+1)*2),$G9,((AE9-AD9)/6),TRUE))),"") -> 0.3354183374 | AD9: =CHOOSE(Personalize!$E$38,VLOOKUP($B9,'ADP-Rank'!$A$2:$AJ$620,8,FALSE),VLOOKUP($B9,'ADP-Rank'!$A$2:$AJ$620,11,FALSE),VLOOKUP($B9,'ADP-Rank'!$A$2:$AO$620,14,FALSE),VLOOKUP($B9,'ADP-Rank'!$A$2:$BD$620,17,FALSE),VLOOKUP($B9,'ADP-Rank'!$A$2:$BD$620,20,FALSE),VLOOKUP($B9,'ADP-Rank'!$A$2:$BD$620,23,FALSE),VLOOKUP($B9,'ADP-Rank'!$A$2:$BD$620,26,FALSE),VLOOKUP($B9,'ADP-Rank'!$A$2:$BD$620,29,FALSE),VLOOKUP($B9,'ADP-Rank'!$A$2:$BD$620,46,FALSE)) -> 2 | AE9: =CHOOSE(Personalize!$E$38,VLOOKUP($B9,'ADP-Rank'!$A$2:$AJ$620,9,FALSE),VLOOKUP($B9,'ADP-Rank'!$A$2:$AJ$620,12,FALSE),VLOOKUP($B9,'ADP-Rank'!$A$2:$AO$620,15,FALSE),VLOOKUP($B9,'ADP-Rank'!$A$2:$BD$620,18,FALSE),VLOOKUP($B9,'ADP-Rank'!$A$2:$BD$620,21,FALSE),VLOOKUP($B9,'ADP-Rank'!$A$2:$BD$620,24,FALSE),VLOOKUP($B9,'ADP-Rank'!$A$2:$BD$620,27,FALSE),VLOOKUP($B9,'ADP-Rank'!$A$2:$BD$620,30,FALSE),VLOOKUP($B9,'ADP-Rank'!$A$2:$BD$620,47,FALSE)) -> 14 | AF9: =IF(ISBLANK(A9),0,1) -> 0 | AG9: =IF(K9="",0,1) -> 1 | AH9: =A9 -> 0 | AI9: =IF(C9="C",1,IF(C9="1B",2,IF(C9="2B",3,IF(C9="3B",4,IF(C9="SS",5,IF(C9="CI",6,IF(C9="MI",7,IF(C9="OF",11,IF(C9="LF",8,IF(C9="CF",9,IF(C9="RF",10,IF(C9="DH",12,IF(C9="SP",13,IF(C9="RP",14,IF(C9="P",15,16))))))))))))))) -> 13 | AJ9: =VLOOKUP(B9,'Starter Calc'!$B$2:$BR$700,69,FALSE) -> Starter | AK9: =IFERROR(VLOOKUP($B9,'ADP-Rank'!$A$2:$AZ$620,40,FALSE),TRUE) -> TRUE | AL9: 1
B10: Miguel Cabrera | C10: 1B | D10: =IFERROR(IF(VLOOKUP(B10,'Starter Calc'!$B$2:$E$700,4,FALSE)="","",VLOOKUP(B10,'Starter Calc'!$B$2:$E$700,4,FALSE)),"") -> ,, | E10: =IFERROR(VLOOKUP($B10,'ADP-Rank'!$A$2:$G$620,5,FALSE),"") -> DET | F10: =IFERROR(VLOOKUP($B10,'ADP-Rank'!$A$2:$W$620,6,FALSE),"") -> 31 | G10: =IFERROR(CHOOSE(Personalize!$E$38,VLOOKUP($B10,'ADP-Rank'!$A$2:$CD$620,7,FALSE),VLOOKUP($B10,'ADP-Rank'!$A$2:$CD$620,10,FALSE),VLOOKUP($B10,'ADP-Rank'!$A$2:$CD$620,13,FALSE),VLOOKUP($B10,'ADP-Rank'!$A$2:$CD$620,16,FALSE),VLOOKUP($B10,'ADP-Rank'!$A$2:$CD$620,19,FALSE),VLOOKUP($B10,'ADP-Rank'!$A$2:$CD$620,22,FALSE),VLOOKUP($B10,'ADP-Rank'!$A$2:$CD$620,25,FALSE),VLOOKUP($B10,'ADP-Rank'!$A$2:$CD$620,28,FALSE),VLOOKUP($B10,'ADP-Rank'!$A$2:$CD$620,45,FALSE)),"") -> 7.19 | H10: =IFERROR(ROUNDDOWN(VLOOKUP($B10,'ADP-Rank'!$A$2:$BC$674,44,FALSE),0),"") -> 1 | I10: =VLOOKUP($B10,'ADP-Rank'!$A$2:$AP$674,42,FALSE) -> 12 | J10: =IFERROR(RANK($M10,$M$6:$M$745,0),"") -> 18 | K10: =IFERROR(IF((OR($C10="RP",$C10="SP")),VLOOKUP($B10,'Filtered-P'!$A$1:$AB$700,12,FALSE),(VLOOKUP($B10,Filtered!$A$1:$AB$700,18,FALSE))),"") -> 430.5939652 | L10: =IFERROR(IF((OR($C10="RP",$C10="SP")),VLOOKUP($C10,'Filtered-P'!$U$3:$X$4,4,FALSE), VLOOKUP($C10,Filtered!$U$3:$X$14,4,FALSE)),"") -> 341.0043912 | M10: =IFERROR(($K10-$L10)/IF(OR($C10="SP",$C10="RP"),VLOOKUP($C10,'Filtered-P'!$U$3:$AB$4,8,FALSE),VLOOKUP($C10,Filtered!$U$3:$AB$10,8,FALSE)),"") -> 1.709339541 | N10: =IFERROR(IF((OR($C10="RP",$C10="SP")),"",(VLOOKUP($B10,Filtered!$A$1:$AB$700,18,FALSE)/VLOOKUP($B10,Filtered!$A$1:$AB$700,2,FALSE))),"") -> 0.684786589 | O10: =IFERROR(IF((OR($C10="RP",$C10="SP")),VLOOKUP($B10,'Filtered-P'!$A$1:$AB$700,12,FALSE)/VLOOKUP($B10,'Filtered-P'!$A$1:$AB$700,4,FALSE),""),"") ->  | P10: =IFERROR(IF((OR($C10="RP",$C10="SP")),VLOOKUP($B10,'Filtered-P'!$A$1:$X$700,2,FALSE),""),"") ->  | Q10: =IFERROR(IF((OR($C10="RP",$C10="SP")),VLOOKUP($B10,'Filtered-P'!$A$1:$X$700,9,FALSE),""),"") ->  | R10: =IFERROR(IF((OR($C10="RP",$C10="SP")),VLOOKUP($B10,'Filtered-P'!$A$1:$X$700,7,FALSE),""),"") ->  | S10: =IFERROR(IF((OR($C10="RP",$C10="SP")),VLOOKUP($B10,'Filtered-P'!$A$1:$AD$700,13,FALSE),""),"") ->  | T10: =IFERROR(IF((OR($C10="RP",$C10="SP")),VLOOKUP($B10,'Filtered-P'!$A$1:$X$700,14,FALSE),""),"") ->  | U10: =IFERROR(IF((OR($C10="RP",$C10="SP")),"",VLOOKUP($B10,Filtered!$A$1:$AJ$700,20,FALSE)),"") -> 0.303238257 | V10: =IFERROR(IF((OR($C10="RP",$C10="SP")),"",VLOOKUP($B10,Filtered!$A$1:$AJ$700,9,FALSE)),"") -> 29.82967685 | W10: =IFERROR(IF((OR($C10="RP",$C10="SP")),"",VLOOKUP($B10,Filtered!$A$1:$AJ$700,10,FALSE)),"") -> 102.7163086 | X10: =IFERROR(IF((OR($C10="RP",$C10="SP")),"",VLOOKUP($B10,Filtered!$A$1:$AJ$700,4,FALSE)),"") -> 89.65075333 | Y10: =IFERROR(IF((OR($C10="RP",$C10="SP")),"",VLOOKUP($B10,Filtered!$A$1:$AJ$700,11,FALSE)),"") -> 2.37858317 | Z10: =IFERROR(IF(ISTEXT($A10),"",(1-NORMDIST((COUNTA($A$6:$A$745)),($G10),((AE10-AD10)/6),TRUE))),"") -> 0.9998378042 | AA10: =IFERROR(IF(ISTEXT($A10),"",(1-NORMDIST((COUNTA($A$6:$A$745))+(Personalize!$E$18+1),$G10,((AE10-AD10)/6),TRUE))),"") -> 0.9674812307 | AB10: =IFERROR(IF(ISTEXT($A10),"",(1-NORMDIST((COUNTA($A$6:$A$745))+((Personalize!$E$18+1)*2),$G10,((AE10-AD10)/6),TRUE))),"") -> 0.5378425865 | AD10: =CHOOSE(Personalize!$E$38,VLOOKUP($B10,'ADP-Rank'!$A$2:$AJ$620,8,FALSE),VLOOKUP($B10,'ADP-Rank'!$A$2:$AJ$620,11,FALSE),VLOOKUP($B10,'ADP-Rank'!$A$2:$AO$620,14,FALSE),VLOOKUP($B10,'ADP-Rank'!$A$2:$BD$620,17,FALSE),VLOOKUP($B10,'ADP-Rank'!$A$2:$BD$620,20,FALSE),VLOOKUP($B10,'ADP-Rank'!$A$2:$BD$620,23,FALSE),VLOOKUP($B10,'ADP-Rank'!$A$2:$BD$620,26,FALSE),VLOOKUP($B10,'ADP-Rank'!$A$2:$BD$620,29,FALSE),VLOOKUP($B10,'ADP-Rank'!$A$2:$BD$620,46,FALSE)) -> 3 | AE10: =CHOOSE(Personalize!$E$38,VLOOKUP($B10,'ADP-Rank'!$A$2:$AJ$620,9,FALSE),VLOOKUP($B10,'ADP-Rank'!$A$2:$AJ$620,12,FALSE),VLOOKUP($B10,'ADP-Rank'!$A$2:$AO$620,15,FALSE),VLOOKUP($B10,'ADP-Rank'!$A$2:$BD$620,18,FALSE),VLOOKUP($B10,'ADP-Rank'!$A$2:$BD$620,21,FALSE),VLOOKUP($B10,'ADP-Rank'!$A$2:$BD$620,24,FALSE),VLOOKUP($B10,'ADP-Rank'!$A$2:$BD$620,27,FALSE),VLOOKUP($B10,'ADP-Rank'!$A$2:$BD$620,30,FALSE),VLOOKUP($B10,'ADP-Rank'!$A$2:$BD$620,47,FALSE)) -> 15 | AF10: =IF(ISBLANK(A10),0,1) -> 0 | AG10: =IF(K10="",0,1) -> 1 | AH10: =A10 -> 0 | AI10: =IF(C10="C",1,IF(C10="1B",2,IF(C10="2B",3,IF(C10="3B",4,IF(C10="SS",5,IF(C10="CI",6,IF(C10="MI",7,IF(C10="OF",11,IF(C10="LF",8,IF(C10="CF",9,IF(C10="RF",10,IF(C10="DH",12,IF(C10="SP",13,IF(C10="RP",14,IF(C10="P",15,16))))))))))))))) -> 2 | AJ10: =VLOOKUP(B10,'Starter Calc'!$B$2:$BR$700,69,FALSE) -> Starter | AK10: =IFERROR(VLOOKUP($B10,'ADP-Rank'!$A$2:$AZ$620,40,FALSE),TRUE) -> TRUE | AL10: 0
B11: Giancarlo Stanton | C11: OF | D11: =IFERROR(IF(VLOOKUP(B11,'Starter Calc'!$B$2:$E$700,4,FALSE)="","",VLOOKUP(B11,'Starter Calc'!$B$2:$E$700,4,FALSE)),"") -> ,,CF | E11: =IFERROR(VLOOKUP($B11,'ADP-Rank'!$A$2:$G$620,5,FALSE),"") -> MIA | F11: =IFERROR(VLOOKUP($B11,'ADP-Rank'!$A$2:$W$620,6,FALSE),"") -> 25 | G11: =IFERROR(CHOOSE(Personalize!$E$38,VLOOKUP($B11,'ADP-Rank'!$A$2:$CD$620,7,FALSE),VLOOKUP($B11,'ADP-Rank'!$A$2:$CD$620,10,FALSE),VLOOKUP($B11,'ADP-Rank'!$A$2:$CD$620,13,FALSE),VLOOKUP($B11,'ADP-Rank'!$A$2:$CD$620,16,FALSE),VLOOKUP($B11,'ADP-Rank'!$A$2:$CD$620,19,FALSE),VLOOKUP($B11,'ADP-Rank'!$A$2:$CD$620,22,FALSE),VLOOKUP($B11,'ADP-Rank'!$A$2:$CD$620,25,FALSE),VLOOKUP($B11,'ADP-Rank'!$A$2:$CD$620,28,FALSE),VLOOKUP($B11,'ADP-Rank'!$A$2:$CD$620,45,FALSE)),"") -> 7.22 | H11: =IFERROR(ROUNDDOWN(VLOOKUP($B11,'ADP-Rank'!$A$2:$BC$674,44,FALSE),0),"") -> 1 | I11: =VLOOKUP($B11,'ADP-Rank'!$A$2:$AP$674,42,FALSE) -> 11 | J11: =IFERROR(RANK($M11,$M$6:$M$745,0),"") -> 32 | K11: =IFERROR(IF((OR($C11="RP",$C11="SP")),VLOOKUP($B11,'Filtered-P'!$A$1:$AB$700,12,FALSE),(VLOOKUP($B11,Filtered!$A$1:$AB$700,18,FALSE))),"") -> 370.8304509 | L11: =IFERROR(IF((OR($C11="RP",$C11="SP")),VLOOKUP($C11,'Filtered-P'!$U$3:$X$4,4,FALSE), VLOOKUP($C11,Filtered!$U$3:$X$14,4,FALSE)),"") -> 287.0213782 | M11: =IFERROR(($K11-$L11)/IF(OR($C11="SP",$C11="RP"),VLOOKUP($C11,'Filtered-P'!$U$3:$AB$4,8,FALSE),VLOOKUP($C11,Filtered!$U$3:$AB$10,8,FALSE)),"") -> 1.379921008 | N11: =IFERROR(IF((OR($C11="RP",$C11="SP")),"",(VLOOKUP($B11,Filtered!$A$1:$AB$700,18,FALSE)/VLOOKUP($B11,Filtered!$A$1:$AB$700,2,FALSE))),"") -> 0.6150826872 | O11: =IFERROR(IF((OR($C11="RP",$C11="SP")),VLOOKUP($B11,'Filtered-P'!$A$1:$AB$700,12,FALSE)/VLOOKUP($B11,'Filtered-P'!$A$1:$AB$700,4,FALSE),""),"") ->  | P11: =IFERROR(IF((OR($C11="RP",$C11="SP")),VLOOKUP($B11,'Filtered-P'!$A$1:$X$700,2,FALSE),""),"") ->  | Q11: =IFERROR(IF((OR($C11="RP",$C11="SP")),VLOOKUP($B11,'Filtered-P'!$A$1:$X$700,9,FALSE),""),"") ->  | R11: =IFERROR(IF((OR($C11="RP",$C11="SP")),VLOOKUP($B11,'Filtered-P'!$A$1:$X$700,7,FALSE),""),"") ->  | S11: =IFERROR(IF((OR($C11="RP",$C11="SP")),VLOOKUP($B11,'Filtered-P'!$A$1:$AD$700,13,FALSE),""),"") ->  | T11: =IFERROR(IF((OR($C11="RP",$C11="SP")),VLOOKUP($B11,'Filtered-P'!$A$1:$X$700,14,FALSE),""),"") ->  | U11: =IFERROR(IF((OR($C11="RP",$C11="SP")),"",VLOOKUP($B11,Filtered!$A$1:$AJ$700,20,FALSE)),"") -> 0.2717372319 | V11: =IFERROR(IF((OR($C11="RP",$C11="SP")),"",VLOOKUP($B11,Filtered!$A$1:$AJ$700,9,FALSE)),"") -> 36.41595429 | W11: =IFERROR(IF((OR($C11="RP",$C11="SP")),"",VLOOKUP($B11,Filtered!$A$1:$AJ$700,10,FALSE)),"") -> 93.02021219 | X11: =IFERROR(IF((OR($C11="RP",$C11="SP")),"",VLOOKUP($B11,Filtered!$A$1:$AJ$700,4,FALSE)),"") -> 86.71342931 | Y11: =IFERROR(IF((OR($C11="RP",$C11="SP")),"",VLOOKUP($B11,Filtered!$A$1:$AJ$700,11,FALSE)),"") -> 7.89652613 | Z11: =IFERROR(IF(ISTEXT($A11),"",(1-NORMDIST((COUNTA($A$6:$A$745)),($G11),((AE11-AD11)/6),TRUE))),"") -> 0.9995693551 | AA11: =IFERROR(IF(ISTEXT($A11),"",(1-NORMDIST((COUNTA($A$6:$A$745))+(Personalize!$E$18+1),$G11,((AE11-AD11)/6),TRUE))),"") -> 0.9570033861 | AB11: =IFERROR(IF(ISTEXT($A11),"",(1-NORMDIST((COUNTA($A$6:$A$745))+((Personalize!$E$18+1)*2),$G11,((AE11-AD11)/6),TRUE))),"") -> 0.5404384863 | AD11: =CHOOSE(Personalize!$E$38,VLOOKUP($B11,'ADP-Rank'!$A$2:$AJ$620,8,FALSE),VLOOKUP($B11,'ADP-Rank'!$A$2:$AJ$620,11,FALSE),VLOOKUP($B11,'ADP-Rank'!$A$2:$AO$620,14,FALSE),VLOOKUP($B11,'ADP-Rank'!$A$2:$BD$620,17,FALSE),VLOOKUP($B11,'ADP-Rank'!$A$2:$BD$620,20,FALSE),VLOOKUP($B11,'ADP-Rank'!$A$2:$BD$620,23,FALSE),VLOOKUP($B11,'ADP-Rank'!$A$2:$BD$620,26,FALSE),VLOOKUP($B11,'ADP-Rank'!$A$2:$BD$620,29,FALSE),VLOOKUP($B11,'ADP-Rank'!$A$2:$BD$620,46,FALSE)) -> 3 | AE11: =CHOOSE(Personalize!$E$38,VLOOKUP($B11,'ADP-Rank'!$A$2:$AJ$620,9,FALSE),VLOOKUP($B11,'ADP-Rank'!$A$2:$AJ$620,12,FALSE),VLOOKUP($B11,'ADP-Rank'!$A$2:$AO$620,15,FALSE),VLOOKUP($B11,'ADP-Rank'!$A$2:$BD$620,18,FALSE),VLOOKUP($B11,'ADP-Rank'!$A$2:$BD$620,21,FALSE),VLOOKUP($B11,'ADP-Rank'!$A$2:$BD$620,24,FALSE),VLOOKUP($B11,'ADP-Rank'!$A$2:$BD$620,27,FALSE),VLOOKUP($B11,'ADP-Rank'!$A$2:$BD$620,30,FALSE),VLOOKUP($B11,'ADP-Rank'!$A$2:$BD$620,47,FALSE)) -> 16 | AF11: =IF(ISBLANK(A11),0,1) -> 0 | AG11: =IF(K11="",0,1) -> 1 | AH11: =A11 -> 0 | AI11: =IF(C11="C",1,IF(C11="1B",2,IF(C11="2B",3,IF(C11="3B",4,IF(C11="SS",5,IF(C11="CI",6,IF(C11="MI",7,IF(C11="OF",11,IF(C11="LF",8,IF(C11="CF",9,IF(C11="RF",10,IF(C11="DH",12,IF(C11="SP",13,IF(C11="RP",14,IF(C11="P",15,16))))))))))))))) -> 11 | AJ11: =VLOOKUP(B11,'Starter Calc'!$B$2:$BR$700,69,FALSE) -> Bench | AK11: =IFERROR(VLOOKUP($B11,'ADP-Rank'!$A$2:$AZ$620,40,FALSE),TRUE) -> TRUE | AL11: 0
B12: Max Scherzer | C12: SP | D12: =IFERROR(IF(VLOOKUP(B12,'Starter Calc'!$B$2:$E$700,4,FALSE)="","",VLOOKUP(B12,'Starter Calc'!$B$2:$E$700,4,FALSE)),"") -> ,, | E12: =IFERROR(VLOOKUP($B12,'ADP-Rank'!$A$2:$G$620,5,FALSE),"") -> WSH | F12: =IFERROR(VLOOKUP($B12,'ADP-Rank'!$A$2:$W$620,6,FALSE),"") -> 30 | G12: =IFERROR(CHOOSE(Personalize!$E$38,VLOOKUP($B12,'ADP-Rank'!$A$2:$CD$620,7,FALSE),VLOOKUP($B12,'ADP-Rank'!$A$2:$CD$620,10,FALSE),VLOOKUP($B12,'ADP-Rank'!$A$2:$CD$620,13,FALSE),VLOOKUP($B12,'ADP-Rank'!$A$2:$CD$620,16,FALSE),VLOOKUP($B12,'ADP-Rank'!$A$2:$CD$620,19,FALSE),VLOOKUP($B12,'ADP-Rank'!$A$2:$CD$620,22,FALSE),VLOOKUP($B12,'ADP-Rank'!$A$2:$CD$620,25,FALSE),VLOOKUP($B12,'ADP-Rank'!$A$2:$CD$620,28,FALSE),VLOOKUP($B12,'ADP-Rank'!$A$2:$CD$620,45,FALSE)),"") -> 7.41 | H12: =IFERROR(ROUNDDOWN(VLOOKUP($B12,'ADP-Rank'!$A$2:$BC$674,44,FALSE),0),"") -> 1 | I12: =VLOOKUP($B12,'ADP-Rank'!$A$2:$AP$674,42,FALSE) -> 8 | J12: =IFERROR(RANK($M12,$M$6:$M$745,0),"") -> 5 | K12: =IFERROR(IF((OR($C12="RP",$C12="SP")),VLOOKUP($B12,'Filtered-P'!$A$1:$AB$700,12,FALSE),(VLOOKUP($B12,Filtered!$A$1:$AB$700,18,FALSE))),"") -> 534.9649882 | L12: =IFERROR(IF((OR($C12="RP",$C12="SP")),VLOOKUP($C12,'Filtered-P'!$U$3:$X$4,4,FALSE), VLOOKUP($C12,Filtered!$U$3:$X$14,4,FALSE)),"") -> 262.4844351 | M12: =IFERROR(($K12-$L12)/IF(OR($C12="SP",$C12="RP"),VLOOKUP($C12,'Filtered-P'!$U$3:$AB$4,8,FALSE),VLOOKUP($C12,Filtered!$U$3:$AB$10,8,FALSE)),"") -> 2.990210593 | N12: =IFERROR(IF((OR($C12="RP",$C12="SP")),"",(VLOOKUP($B12,Filtered!$A$1:$AB$700,18,FALSE)/VLOOKUP($B12,Filtered!$A$1:$AB$700,2,FALSE))),"") ->  | O12: =IFERROR(IF((OR($C12="RP",$C12="SP")),VLOOKUP($B12,'Filtered-P'!$A$1:$AB$700,12,FALSE)/VLOOKUP($B12,'Filtered-P'!$A$1:$AB$700,4,FALSE),""),"") -> 2.640268486 | P12: =IFERROR(IF((OR($C12="RP",$C12="SP")),VLOOKUP($B12,'Filtered-P'!$A$1:$X$700,2,FALSE),""),"") -> 14.53389807 | Q12: =IFERROR(IF((OR($C12="RP",$C12="SP")),VLOOKUP($B12,'Filtered-P'!$A$1:$X$700,9,FALSE),""),"") -> 0 | R12: =IFERROR(IF((OR($C12="RP",$C12="SP")),VLOOKUP($B12,'Filtered-P'!$A$1:$X$700,7,FALSE),""),"") -> 232.2115165 | S12: =IFERROR(IF((OR($C12="RP",$C12="SP")),VLOOKUP($B12,'Filtered-P'!$A$1:$AD$700,13,FALSE),""),"") -> 2.80790821 | T12: =IFERROR(IF((OR($C12="RP",$C12="SP")),VLOOKUP($B12,'Filtered-P'!$A$1:$X$700,14,FALSE),""),"") -> 1.091731036 | U12: =IFERROR(IF((OR($C12="RP",$C12="SP")),"",VLOOKUP($B12,Filtered!$A$1:$AJ$700,20,FALSE)),"") ->  | V12: =IFERROR(IF((OR($C12="RP",$C12="SP")),"",VLOOKUP($B12,Filtered!$A$1:$AJ$700,9,FALSE)),"") ->  | W12: =IFERROR(IF((OR($C12="RP",$C12="SP")),"",VLOOKUP($B12,Filtered!$A$1:$AJ$700,10,FALSE)),"") ->  | X12: =IFERROR(IF((OR($C12="RP",$C12="SP")),"",VLOOKUP($B12,Filtered!$A$1:$AJ$700,4,FALSE)),"") ->  | Y12: =IFERROR(IF((OR($C12="RP",$C12="SP")),"",VLOOKUP($B12,Filtered!$A$1:$AJ$700,11,FALSE)),"") ->  | Z12: =IFERROR(IF(ISTEXT($A12),"",(1-NORMDIST((COUNTA($A$6:$A$745)),($G12),((AE12-AD12)/6),TRUE))),"") -> 0.9996868943 | AA12: =IFERROR(IF(ISTEXT($A12),"",(1-NORMDIST((COUNTA($A$6:$A$745))+(Personalize!$E$18+1),$G12,((AE12-AD12)/6),TRUE))),"") -> 0.9644325555 | AB12: =IFERROR(IF(ISTEXT($A12),"",(1-NORMDIST((COUNTA($A$6:$A$745))+((Personalize!$E$18+1)*2),$G12,((AE12-AD12)/6),TRUE))),"") -> 0.5750440235 | AD12: =CHOOSE(Personalize!$E$38,VLOOKUP($B12,'ADP-Rank'!$A$2:$AJ$620,8,FALSE),VLOOKUP($B12,'ADP-Rank'!$A$2:$AJ$620,11,FALSE),VLOOKUP($B12,'ADP-Rank'!$A$2:$AO$620,14,FALSE),VLOOKUP($B12,'ADP-Rank'!$A$2:$BD$620,17,FALSE),VLOOKUP($B12,'ADP-Rank'!$A$2:$BD$620,20,FALSE),VLOOKUP($B12,'ADP-Rank'!$A$2:$BD$620,23,FALSE),VLOOKUP($B12,'ADP-Rank'!$A$2:$BD$620,26,FALSE),VLOOKUP($B12,'ADP-Rank'!$A$2:$BD$620,29,FALSE),VLOOKUP($B12,'ADP-Rank'!$A$2:$BD$620,46,FALSE)) -> 3 | AE12: =CHOOSE(Personalize!$E$38,VLOOKUP($B12,'ADP-Rank'!$A$2:$AJ$620,9,FALSE),VLOOKUP($B12,'ADP-Rank'!$A$2:$AJ$620,12,FALSE),VLOOKUP($B12,'ADP-Rank'!$A$2:$AO$620,15,FALSE),VLOOKUP($B12,'ADP-Rank'!$A$2:$BD$620,18,FALSE),VLOOKUP($B12,'ADP-Rank'!$A$2:$BD$620,21,FALSE),VLOOKUP($B12,'ADP-Rank'!$A$2:$BD$620,24,FALSE),VLOOKUP($B12,'ADP-Rank'!$A$2:$BD$620,27,FALSE),VLOOKUP($B12,'ADP-Rank'!$A$2:$BD$620,30,FALSE),VLOOKUP($B12,'ADP-Rank'!$A$2:$BD$620,47,FALSE)) -> 16 | AF12: =IF(ISBLANK(A12),0,1) -> 0 | AG12: =IF(K12="",0,1) -> 1 | AH12: =A12 -> 0 | AI12: =IF(C12="C",1,IF(C12="1B",2,IF(C12="2B",3,IF(C12="3B",4,IF(C12="SS",5,IF(C12="CI",6,IF(C12="MI",7,IF(C12="OF",11,IF(C12="LF",8,IF(C12="CF",9,IF(C12="RF",10,IF(C12="DH",12,IF(C12="SP",13,IF(C12="RP",14,IF(C12="P",15,16))))))))))))))) -> 13 | AJ12: =VLOOKUP(B12,'Starter Calc'!$B$2:$BR$700,69,FALSE) -> Starter | AK12: =IFERROR(VLOOKUP($B12,'ADP-Rank'!$A$2:$AZ$620,40,FALSE),TRUE) -> TRUE | AL12: 1
B13: Chris Sale | C13: SP | D13: =IFERROR(IF(VLOOKUP(B13,'Starter Calc'!$B$2:$E$700,4,FALSE)="","",VLOOKUP(B13,'Starter Calc'!$B$2:$E$700,4,FALSE)),"") -> ,, | E13: =IFERROR(VLOOKUP($B13,'ADP-Rank'!$A$2:$G$620,5,FALSE),"") -> CWS | F13: =IFERROR(VLOOKUP($B13,'ADP-Rank'!$A$2:$W$620,6,FALSE),"") -> 26 | G13: =IFERROR(CHOOSE(Personalize!$E$38,VLOOKUP($B13,'ADP-Rank'!$A$2:$CD$620,7,FALSE),VLOOKUP($B13,'ADP-Rank'!$A$2:$CD$620,10,FALSE),VLOOKUP($B13,'ADP-Rank'!$A$2:$CD$620,13,FALSE),VLOOKUP($B13,'ADP-Rank'!$A$2:$CD$620,16,FALSE),VLOOKUP($B13,'ADP-Rank'!$A$2:$CD$620,19,FALSE),VLOOKUP($B13,'ADP-Rank'!$A$2:$CD$620,22,FALSE),VLOOKUP($B13,'ADP-Rank'!$A$2:$CD$620,25,FALSE),VLOOKUP($B13,'ADP-Rank'!$A$2:$CD$620,28,FALSE),VLOOKUP($B13,'ADP-Rank'!$A$2:$CD$620,45,FALSE)),"") -> 7.71 | H13: =IFERROR(ROUNDDOWN(VLOOKUP($B13,'ADP-Rank'!$A$2:$BC$674,44,FALSE),0),"") -> 1 | I13: =VLOOKUP($B13,'ADP-Rank'!$A$2:$AP$674,42,FALSE) -> 6 | J13: =IFERROR(RANK($M13,$M$6:$M$745,0),"") -> 7 | K13: =IFERROR(IF((OR($C13="RP",$C13="SP")),VLOOKUP($B13,'Filtered-P'!$A$1:$AB$700,12,FALSE),(VLOOKUP($B13,Filtered!$A$1:$AB$700,18,FALSE))),"") -> 483.9197705 | L13: =IFERROR(IF((OR($C13="RP",$C13="SP")),VLOOKUP($C13,'Filtered-P'!$U$3:$X$4,4,FALSE), VLOOKUP($C13,Filtered!$U$3:$X$14,4,FALSE)),"") -> 262.4844351 | M13: =IFERROR(($K13-$L13)/IF(OR($C13="SP",$C13="RP"),VLOOKUP($C13,'Filtered-P'!$U$3:$AB$4,8,FALSE),VLOOKUP($C13,Filtered!$U$3:$AB$10,8,FALSE)),"") -> 2.430038687 | N13: =IFERROR(IF((OR($C13="RP",$C13="SP")),"",(VLOOKUP($B13,Filtered!$A$1:$AB$700,18,FALSE)/VLOOKUP($B13,Filtered!$A$1:$AB$700,2,FALSE))),"") ->  | O13: =IFERROR(IF((OR($C13="RP",$C13="SP")),VLOOKUP($B13,'Filtered-P'!$A$1:$AB$700,12,FALSE)/VLOOKUP($B13,'Filtered-P'!$A$1:$AB$700,4,FALSE),""),"") -> 2.568015014 | P13: =IFERROR(IF((OR($C13="RP",$C13="SP")),VLOOKUP($B13,'Filtered-P'!$A$1:$X$700,2,FALSE),""),"") -> 12.31091627 | Q13: =IFERROR(IF((OR($C13="RP",$C13="SP")),VLOOKUP($B13,'Filtered-P'!$A$1:$X$700,9,FALSE),""),"") -> 0 | R13: =IFERROR(IF((OR($C13="RP",$C13="SP")),VLOOKUP($B13,'Filtered-P'!$A$1:$X$700,7,FALSE),""),"") -> 211.9130239 | S13: =IFERROR(IF((OR($C13="RP",$C13="SP")),VLOOKUP($B13,'Filtered-P'!$A$1:$AD$700,13,FALSE),""),"") -> 3.060746173 | T13: =IFERROR(IF((OR($C13="RP",$C13="SP")),VLOOKUP($B13,'Filtered-P'!$A$1:$X$700,14,FALSE),""),"") -> 1.044655602 | U13: =IFERROR(IF((OR($C13="RP",$C13="SP")),"",VLOOKUP($B13,Filtered!$A$1:$AJ$700,20,FALSE)),"") ->  | V13: =IFERROR(IF((OR($C13="RP",$C13="SP")),"",VLOOKUP($B13,Filtered!$A$1:$AJ$700,9,FALSE)),"") ->  | W13: =IFERROR(IF((OR($C13="RP",$C13="SP")),"",VLOOKUP($B13,Filtered!$A$1:$AJ$700,10,FALSE)),"") ->  | X13: =IFERROR(IF((OR($C13="RP",$C13="SP")),"",VLOOKUP($B13,Filtered!$A$1:$AJ$700,4,FALSE)),"") ->  | Y13: =IFERROR(IF((OR($C13="RP",$C13="SP")),"",VLOOKUP($B13,Filtered!$A$1:$AJ$700,11,FALSE)),"") ->  | Z13: =IFERROR(IF(ISTEXT($A13),"",(1-NORMDIST((COUNTA($A$6:$A$745)),($G13),((AE13-AD13)/6),TRUE))),"") -> 0.998978812 | AA13: =IFERROR(IF(ISTEXT($A13),"",(1-NORMDIST((COUNTA($A$6:$A$745))+(Personalize!$E$18+1),$G13,((AE13-AD13)/6),TRUE))),"") -> 0.9539091656 | AB13: =IFERROR(IF(ISTEXT($A13),"",(1-NORMDIST((COUNTA($A$6:$A$745))+((Personalize!$E$18+1)*2),$G13,((AE13-AD13)/6),TRUE))),"") -> 0.6117948097 | AD13: =CHOOSE(Personalize!$E$38,VLOOKUP($B13,'ADP-Rank'!$A$2:$AJ$620,8,FALSE),VLOOKUP($B13,'ADP-Rank'!$A$2:$AJ$620,11,FALSE),VLOOKUP($B13,'ADP-Rank'!$A$2:$AO$620,14,FALSE),VLOOKUP($B13,'ADP-Rank'!$A$2:$BD$620,17,FALSE),VLOOKUP($B13,'ADP-Rank'!$A$2:$BD$620,20,FALSE),VLOOKUP($B13,'ADP-Rank'!$A$2:$BD$620,23,FALSE),VLOOKUP($B13,'ADP-Rank'!$A$2:$BD$620,26,FALSE),VLOOKUP($B13,'ADP-Rank'!$A$2:$BD$620,29,FALSE),VLOOKUP($B13,'ADP-Rank'!$A$2:$BD$620,46,FALSE)) -> 3 | AE13: =CHOOSE(Personalize!$E$38,VLOOKUP($B13,'ADP-Rank'!$A$2:$AJ$620,9,FALSE),VLOOKUP($B13,'ADP-Rank'!$A$2:$AJ$620,12,FALSE),VLOOKUP($B13,'ADP-Rank'!$A$2:$AO$620,15,FALSE),VLOOKUP($B13,'ADP-Rank'!$A$2:$BD$620,18,FALSE),VLOOKUP($B13,'ADP-Rank'!$A$2:$BD$620,21,FALSE),VLOOKUP($B13,'ADP-Rank'!$A$2:$BD$620,24,FALSE),VLOOKUP($B13,'ADP-Rank'!$A$2:$BD$620,27,FALSE),VLOOKUP($B13,'ADP-Rank'!$A$2:$BD$620,30,FALSE),VLOOKUP($B13,'ADP-Rank'!$A$2:$BD$620,47,FALSE)) -> 18 | AF13: =IF(ISBLANK(A13),0,1) -> 0 | AG13: =IF(K13="",0,1) -> 1 | AH13: =A13 -> 0 | AI13: =IF(C13="C",1,IF(C13="1B",2,IF(C13="2B",3,IF(C13="3B",4,IF(C13="SS",5,IF(C13="CI",6,IF(C13="MI",7,IF(C13="OF",11,IF(C13="LF",8,IF(C13="CF",9,IF(C13="RF",10,IF(C13="DH",12,IF(C13="SP",13,IF(C13="RP",14,IF(C13="P",15,16))))))))))))))) -> 13 | AJ13: =VLOOKUP(B13,'Starter Calc'!$B$2:$BR$700,69,FALSE) -> Starter | AK13: =IFERROR(VLOOKUP($B13,'ADP-Rank'!$A$2:$AZ$620,40,FALSE),TRUE) -> TRUE | AL13: 1
B14: Andrew McCutchen | C14: OF | D14: =IFERROR(IF(VLOOKUP(B14,'Starter Calc'!$B$2:$E$700,4,FALSE)="","",VLOOKUP(B14,'Starter Calc'!$B$2:$E$700,4,FALSE)),"") -> ,,CF | E14: =IFERROR(VLOOKUP($B14,'ADP-Rank'!$A$2:$G$620,5,FALSE),"") -> PIT | F14: =IFERROR(VLOOKUP($B14,'ADP-Rank'!$A$2:$W$620,6,FALSE),"") -> 28 | G14: =IFERROR(CHOOSE(Personalize!$E$38,VLOOKUP($B14,'ADP-Rank'!$A$2:$CD$620,7,FALSE),VLOOKUP($B14,'ADP-Rank'!$A$2:$CD$620,10,FALSE),VLOOKUP($B14,'ADP-Rank'!$A$2:$CD$620,13,FALSE),VLOOKUP($B14,'ADP-Rank'!$A$2:$CD$620,16,FALSE),VLOOKUP($B14,'ADP-Rank'!$A$2:$CD$620,19,FALSE),VLOOKUP($B14,'ADP-Rank'!$A$2:$CD$620,22,FALSE),VLOOKUP($B14,'ADP-Rank'!$A$2:$CD$620,25,FALSE),VLOOKUP($B14,'ADP-Rank'!$A$2:$CD$620,28,FALSE),VLOOKUP($B14,'ADP-Rank'!$A$2:$CD$620,45,FALSE)),"") -> 8.5 | H14: =IFERROR(ROUNDDOWN(VLOOKUP($B14,'ADP-Rank'!$A$2:$BC$674,44,FALSE),0),"") -> 1 | I14: =VLOOKUP($B14,'ADP-Rank'!$A$2:$AP$674,42,FALSE) -> 3 | J14: =IFERROR(RANK($M14,$M$6:$M$745,0),"") -> 16 | K14: =IFERROR(IF((OR($C14="RP",$C14="SP")),VLOOKUP($B14,'Filtered-P'!$A$1:$AB$700,12,FALSE),(VLOOKUP($B14,Filtered!$A$1:$AB$700,18,FALSE))),"") -> 405.3632575 | L14: =IFERROR(IF((OR($C14="RP",$C14="SP")),VLOOKUP($C14,'Filtered-P'!$U$3:$X$4,4,FALSE), VLOOKUP($C14,Filtered!$U$3:$X$14,4,FALSE)),"") -> 287.0213782 | M14: =IFERROR(($K14-$L14)/IF(OR($C14="SP",$C14="RP"),VLOOKUP($C14,'Filtered-P'!$U$3:$AB$4,8,FALSE),VLOOKUP($C14,Filtered!$U$3:$AB$10,8,FALSE)),"") -> 1.948505574 | N14: =IFERROR(IF((OR($C14="RP",$C14="SP")),"",(VLOOKUP($B14,Filtered!$A$1:$AB$700,18,FALSE)/VLOOKUP($B14,Filtered!$A$1:$AB$700,2,FALSE))),"") -> 0.6463154528 | O14: =IFERROR(IF((OR($C14="RP",$C14="SP")),VLOOKUP($B14,'Filtered-P'!$A$1:$AB$700,12,FALSE)/VLOOKUP($B14,'Filtered-P'!$A$1:$AB$700,4,FALSE),""),"") ->  | P14: =IFERROR(IF((OR($C14="RP",$C14="SP")),VLOOKUP($B14,'Filtered-P'!$A$1:$X$700,2,FALSE),""),"") ->  | Q14: =IFERROR(IF((OR($C14="RP",$C14="SP")),VLOOKUP($B14,'Filtered-P'!$A$1:$X$700,9,FALSE),""),"") ->  | R14: =IFERROR(IF((OR($C14="RP",$C14="SP")),VLOOKUP($B14,'Filtered-P'!$A$1:$X$700,7,FALSE),""),"") ->  | S14: =IFERROR(IF((OR($C14="RP",$C14="SP")),VLOOKUP($B14,'Filtered-P'!$A$1:$AD$700,13,FALSE),""),"") ->  | T14: =IFERROR(IF((OR($C14="RP",$C14="SP")),VLOOKUP($B14,'Filtered-P'!$A$1:$X$700,14,FALSE),""),"") ->  | U14: =IFERROR(IF((OR($C14="RP",$C14="SP")),"",VLOOKUP($B14,Filtered!$A$1:$AJ$700,20,FALSE)),"") -> 0.2943637073 | V14: =IFERROR(IF((OR($C14="RP",$C14="SP")),"",VLOOKUP($B14,Filtered!$A$1:$AJ$700,9,FALSE)),"") -> 22.62690084 | W14: =IFERROR(IF((OR($C14="RP",$C14="SP")),"",VLOOKUP($B14,Filtered!$A$1:$AJ$700,10,FALSE)),"") -> 82.53059477 | X14: =IFERROR(IF((OR($C14="RP",$C14="SP")),"",VLOOKUP($B14,Filtered!$A$1:$AJ$700,4,FALSE)),"") -> 85.28150377 | Y14: =IFERROR(IF((OR($C14="RP",$C14="SP")),"",VLOOKUP($B14,Filtered!$A$1:$AJ$700,11,FALSE)),"") -> 18.70190983 | Z14: =IFERROR(IF(ISTEXT($A14),"",(1-NORMDIST((COUNTA($A$6:$A$745)),($G14),((AE14-AD14)/6),TRUE))),"") -> 0.9996630707 | AA14: =IFERROR(IF(ISTEXT($A14),"",(1-NORMDIST((COUNTA($A$6:$A$745))+(Personalize!$E$18+1),$G14,((AE14-AD14)/6),TRUE))),"") -> 0.9772498681 | AB14: =IFERROR(IF(ISTEXT($A14),"",(1-NORMDIST((COUNTA($A$6:$A$745))+((Personalize!$E$18+1)*2),$G14,((AE14-AD14)/6),TRUE))),"") -> 0.7257468822 | AD14: =CHOOSE(Personalize!$E$38,VLOOKUP($B14,'ADP-Rank'!$A$2:$AJ$620,8,FALSE),VLOOKUP($B14,'ADP-Rank'!$A$2:$AJ$620,11,FALSE),VLOOKUP($B14,'ADP-Rank'!$A$2:$AO$620,14,FALSE),VLOOKUP($B14,'ADP-Rank'!$A$2:$BD$620,17,FALSE),VLOOKUP($B14,'ADP-Rank'!$A$2:$BD$620,20,FALSE),VLOOKUP($B14,'ADP-Rank'!$A$2:$BD$620,23,FALSE),VLOOKUP($B14,'ADP-Rank'!$A$2:$BD$620,26,FALSE),VLOOKUP($B14,'ADP-Rank'!$A$2:$BD$620,29,FALSE),VLOOKUP($B14,'ADP-Rank'!$A$2:$BD$620,46,FALSE)) -> 3 | AE14: =CHOOSE(Personalize!$E$38,VLOOKUP($B14,'ADP-Rank'!$A$2:$AJ$620,9,FALSE),VLOOKUP($B14,'ADP-Rank'!$A$2:$AJ$620,12,FALSE),VLOOKUP($B14,'ADP-Rank'!$A$2:$AO$620,15,FALSE),VLOOKUP($B14,'ADP-Rank'!$A$2:$BD$620,18,FALSE),VLOOKUP($B14,'ADP-Rank'!$A$2:$BD$620,21,FALSE),VLOOKUP($B14,'ADP-Rank'!$A$2:$BD$620,24,FALSE),VLOOKUP($B14,'ADP-Rank'!$A$2:$BD$620,27,FALSE),VLOOKUP($B14,'ADP-Rank'!$A$2:$BD$620,30,FALSE),VLOOKUP($B14,'ADP-Rank'!$A$2:$BD$620,47,FALSE)) -> 18 | AF14: =IF(ISBLANK(A14),0,1) -> 0 | AG14: =IF(K14="",0,1) -> 1 | AH14: =A14 -> 0 | AI14: =IF(C14="C",1,IF(C14="1B",2,IF(C14="2B",3,IF(C14="3B",4,IF(C14="SS",5,IF(C14="CI",6,IF(C14="MI",7,IF(C14="OF",11,IF(C14="LF",8,IF(C14="CF",9,IF(C14="RF",10,IF(C14="DH",12,IF(C14="SP",13,IF(C14="RP",14,IF(C14="P",15,16))))))))))))))) -> 11 | AJ14: =VLOOKUP(B14,'Starter Calc'!$B$2:$BR$700,69,FALSE) -> Bench | AK14: =IFERROR(VLOOKUP($B14,'ADP-Rank'!$A$2:$AZ$620,40,FALSE),TRUE) -> TRUE | AL14: 0
B15: Paul Goldschmidt | C15: 1B | D15: =IFERROR(IF(VLOOKUP(B15,'Starter Calc'!$B$2:$E$700,4,FALSE)="","",VLOOKUP(B15,'Starter Calc'!$B$2:$E$700,4,FALSE)),"") -> ,, | E15: =IFERROR(VLOOKUP($B15,'ADP-Rank'!$A$2:$G$620,5,FALSE),"") -> ARI | F15: =IFERROR(VLOOKUP($B15,'ADP-Rank'!$A$2:$W$620,6,FALSE),"") -> 27 | G15: =IFERROR(CHOOSE(Personalize!$E$38,VLOOKUP($B15,'ADP-Rank'!$A$2:$CD$620,7,FALSE),VLOOKUP($B15,'ADP-Rank'!$A$2:$CD$620,10,FALSE),VLOOKUP($B15,'ADP-Rank'!$A$2:$CD$620,13,FALSE),VLOOKUP($B15,'ADP-Rank'!$A$2:$CD$620,16,FALSE),VLOOKUP($B15,'ADP-Rank'!$A$2:$CD$620,19,FALSE),VLOOKUP($B15,'ADP-Rank'!$A$2:$CD$620,22,FALSE),VLOOKUP($B15,'ADP-Rank'!$A$2:$CD$620,25,FALSE),VLOOKUP($B15,'ADP-Rank'!$A$2:$CD$620,28,FALSE),VLOOKUP($B15,'ADP-Rank'!$A$2:$CD$620,45,FALSE)),"") -> 9.8 | H15: =IFERROR(ROUNDDOWN(VLOOKUP($B15,'ADP-Rank'!$A$2:$BC$674,44,FALSE),0),"") -> 1 | I15: =VLOOKUP($B15,'ADP-Rank'!$A$2:$AP$674,42,FALSE) -> 19 | J15: =IFERROR(RANK($M15,$M$6:$M$745,0),"") -> 91 | K15: =IFERROR(IF((OR($C15="RP",$C15="SP")),VLOOKUP($B15,'Filtered-P'!$A$1:$AB$700,12,FALSE),(VLOOKUP($B15,Filtered!$A$1:$AB$700,18,FALSE))),"") -> 370.2938524 | L15: =IFERROR(IF((OR($C15="RP",$C15="SP")),VLOOKUP($C15,'Filtered-P'!$U$3:$X$4,4,FALSE), VLOOKUP($C15,Filtered!$U$3:$X$14,4,FALSE)),"") -> 341.0043912 | M15: =IFERROR(($K15-$L15)/IF(OR($C15="SP",$C15="RP"),VLOOKUP($C15,'Filtered-P'!$U$3:$AB$4,8,FALSE),VLOOKUP($C15,Filtered!$U$3:$AB$10,8,FALSE)),"") -> 0.5588332654 | N15: =IFERROR(IF((OR($C15="RP",$C15="SP")),"",(VLOOKUP($B15,Filtered!$A$1:$AB$700,18,FALSE)/VLOOKUP($B15,Filtered!$A$1:$AB$700,2,FALSE))),"") -> 0.6251065701 | O15: =IFERROR(IF((OR($C15="RP",$C15="SP")),VLOOKUP($B15,'Filtered-P'!$A$1:$AB$700,12,FALSE)/VLOOKUP($B15,'Filtered-P'!$A$1:$AB$700,4,FALSE),""),"") ->  | P15: =IFERROR(IF((OR($C15="RP",$C15="SP")),VLOOKUP($B15,'Filtered-P'!$A$1:$X$700,2,FALSE),""),"") ->  | Q15: =IFERROR(IF((OR($C15="RP",$C15="SP")),VLOOKUP($B15,'Filtered-P'!$A$1:$X$700,9,FALSE),""),"") ->  | R15: =IFERROR(IF((OR($C15="RP",$C15="SP")),VLOOKUP($B15,'Filtered-P'!$A$1:$X$700,7,FALSE),""),"") ->  | S15: =IFERROR(IF((OR($C15="RP",$C15="SP")),VLOOKUP($B15,'Filtered-P'!$A$1:$AD$700,13,FALSE),""),"") ->  | T15: =IFERROR(IF((OR($C15="RP",$C15="SP")),VLOOKUP($B15,'Filtered-P'!$A$1:$X$700,14,FALSE),""),"") ->  | U15: =IFERROR(IF((OR($C15="RP",$C15="SP")),"",VLOOKUP($B15,Filtered!$A$1:$AJ$700,20,FALSE)),"") -> 0.2793318467 | V15: =IFERROR(IF((OR($C15="RP",$C15="SP")),"",VLOOKUP($B15,Filtered!$A$1:$AJ$700,9,FALSE)),"") -> 26.87099932 | W15: =IFERROR(IF((OR($C15="RP",$C15="SP")),"",VLOOKUP($B15,Filtered!$A$1:$AJ$700,10,FALSE)),"") -> 86.64273248 | X15: =IFERROR(IF((OR($C15="RP",$C15="SP")),"",VLOOKUP($B15,Filtered!$A$1:$AJ$700,4,FALSE)),"") -> 82.6574093 | Y15: =IFERROR(IF((OR($C15="RP",$C15="SP")),"",VLOOKUP($B15,Filtered!$A$1:$AJ$700,11,FALSE)),"") -> 12.29776711 | Z15: =IFERROR(IF(ISTEXT($A15),"",(1-NORMDIST((COUNTA($A$6:$A$745)),($G15),((AE15-AD15)/6),TRUE))),"") -> 0.9999557255 | AA15: =IFERROR(IF(ISTEXT($A15),"",(1-NORMDIST((COUNTA($A$6:$A$745))+(Personalize!$E$18+1),$G15,((AE15-AD15)/6),TRUE))),"") -> 0.9941322583 | AB15: =IFERROR(IF(ISTEXT($A15),"",(1-NORMDIST((COUNTA($A$6:$A$745))+((Personalize!$E$18+1)*2),$G15,((AE15-AD15)/6),TRUE))),"") -> 0.868643119 | AD15: =CHOOSE(Personalize!$E$38,VLOOKUP($B15,'ADP-Rank'!$A$2:$AJ$620,8,FALSE),VLOOKUP($B15,'ADP-Rank'!$A$2:$AJ$620,11,FALSE),VLOOKUP($B15,'ADP-Rank'!$A$2:$AO$620,14,FALSE),VLOOKUP($B15,'ADP-Rank'!$A$2:$BD$620,17,FALSE),VLOOKUP($B15,'ADP-Rank'!$A$2:$BD$620,20,FALSE),VLOOKUP($B15,'ADP-Rank'!$A$2:$BD$620,23,FALSE),VLOOKUP($B15,'ADP-Rank'!$A$2:$BD$620,26,FALSE),VLOOKUP($B15,'ADP-Rank'!$A$2:$BD$620,29,FALSE),VLOOKUP($B15,'ADP-Rank'!$A$2:$BD$620,46,FALSE)) -> 3 | AE15: =CHOOSE(Personalize!$E$38,VLOOKUP($B15,'ADP-Rank'!$A$2:$AJ$620,9,FALSE),VLOOKUP($B15,'ADP-Rank'!$A$2:$AJ$620,12,FALSE),VLOOKUP($B15,'ADP-Rank'!$A$2:$AO$620,15,FALSE),VLOOKUP($B15,'ADP-Rank'!$A$2:$BD$620,18,FALSE),VLOOKUP($B15,'ADP-Rank'!$A$2:$BD$620,21,FALSE),VLOOKUP($B15,'ADP-Rank'!$A$2:$BD$620,24,FALSE),VLOOKUP($B15,'ADP-Rank'!$A$2:$BD$620,27,FALSE),VLOOKUP($B15,'ADP-Rank'!$A$2:$BD$620,30,FALSE),VLOOKUP($B15,'ADP-Rank'!$A$2:$BD$620,47,FALSE)) -> 18 | AF15: =IF(ISBLANK(A15),0,1) -> 0 | AG15: =IF(K15="",0,1) -> 1 | AH15: =A15 -> 0 | AI15: =IF(C15="C",1,IF(C15="1B",2,IF(C15="2B",3,IF(C15="3B",4,IF(C15="SS",5,IF(C15="CI",6,IF(C15="MI",7,IF(C15="OF",11,IF(C15="LF",8,IF(C15="CF",9,IF(C15="RF",10,IF(C15="DH",12,IF(C15="SP",13,IF(C15="RP",14,IF(C15="P",15,16))))))))))))))) -> 2 | AJ15: =VLOOKUP(B15,'Starter Calc'!$B$2:$BR$700,69,FALSE) -> Bench | AK15: =IFERROR(VLOOKUP($B15,'ADP-Rank'!$A$2:$AZ$620,40,FALSE),TRUE) -> TRUE | AL15: 0
B16: Corey Kluber | C16: SP | D16: =IFERROR(IF(VLOOKUP(B16,'Starter Calc'!$B$2:$E$700,4,FALSE)="","",VLOOKUP(B16,'Starter Calc'!$B$2:$E$700,4,FALSE)),"") -> ,, | E16: =IFERROR(VLOOKUP($B16,'ADP-Rank'!$A$2:$G$620,5,FALSE),"") -> CLE | F16: =IFERROR(VLOOKUP($B16,'ADP-Rank'!$A$2:$W$620,6,FALSE),"") -> 28 | G16: =IFERROR(CHOOSE(Personalize!$E$38,VLOOKUP($B16,'ADP-Rank'!$A$2:$CD$620,7,FALSE),VLOOKUP($B16,'ADP-Rank'!$A$2:$CD$620,10,FALSE),VLOOKUP($B16,'ADP-Rank'!$A$2:$CD$620,13,FALSE),VLOOKUP($B16,'ADP-Rank'!$A$2:$CD$620,16,FALSE),VLOOKUP($B16,'ADP-Rank'!$A$2:$CD$620,19,FALSE),VLOOKUP($B16,'ADP-Rank'!$A$2:$CD$620,22,FALSE),VLOOKUP($B16,'ADP-Rank'!$A$2:$CD$620,25,FALSE),VLOOKUP($B16,'ADP-Rank'!$A$2:$CD$620,28,FALSE),VLOOKUP($B16,'ADP-Rank'!$A$2:$CD$620,45,FALSE)),"") -> 12.98 | H16: =IFERROR(ROUNDDOWN(VLOOKUP($B16,'ADP-Rank'!$A$2:$BC$674,44,FALSE),0),"") -> 1 | I16: =VLOOKUP($B16,'ADP-Rank'!$A$2:$AP$674,42,FALSE) -> 17 | J16: =IFERROR(RANK($M16,$M$6:$M$745,0),"") -> 11 | K16: =IFERROR(IF((OR($C16="RP",$C16="SP")),VLOOKUP($B16,'Filtered-P'!$A$1:$AB$700,12,FALSE),(VLOOKUP($B16,Filtered!$A$1:$AB$700,18,FALSE))),"") -> 463.9099756 | L16: =IFERROR(IF((OR($C16="RP",$C16="SP")),VLOOKUP($C16,'Filtered-P'!$U$3:$X$4,4,FALSE), VLOOKUP($C16,Filtered!$U$3:$X$14,4,FALSE)),"") -> 262.4844351 | M16: =IFERROR(($K16-$L16)/IF(OR($C16="SP",$C16="RP"),VLOOKUP($C16,'Filtered-P'!$U$3:$AB$4,8,FALSE),VLOOKUP($C16,Filtered!$U$3:$AB$10,8,FALSE)),"") -> 2.210450537 | N16: =IFERROR(IF((OR($C16="RP",$C16="SP")),"",(VLOOKUP($B16,Filtered!$A$1:$AB$700,18,FALSE)/VLOOKUP($B16,Filtered!$A$1:$AB$700,2,FALSE))),"") ->  | O16: =IFERROR(IF((OR($C16="RP",$C16="SP")),VLOOKUP($B16,'Filtered-P'!$A$1:$AB$700,12,FALSE)/VLOOKUP($B16,'Filtered-P'!$A$1:$AB$700,4,FALSE),""),"") -> 2.313222534 | P16: =IFERROR(IF((OR($C16="RP",$C16="SP")),VLOOKUP($B16,'Filtered-P'!$A$1:$X$700,2,FALSE),""),"") -> 13.5064895 | Q16: =IFERROR(IF((OR($C16="RP",$C16="SP")),VLOOKUP($B16,'Filtered-P'!$A$1:$X$700,9,FALSE),""),"") -> 0 | R16: =IFERROR(IF((OR($C16="RP",$C16="SP")),VLOOKUP($B16,'Filtered-P'!$A$1:$X$700,7,FALSE),""),"") -> 211.4265429 | S16: =IFERROR(IF((OR($C16="RP",$C16="SP")),VLOOKUP($B16,'Filtered-P'!$A$1:$AD$700,13,FALSE),""),"") -> 3.140840857 | T16: =IFERROR(IF((OR($C16="RP",$C16="SP")),VLOOKUP($B16,'Filtered-P'!$A$1:$X$700,14,FALSE),""),"") -> 1.120933234 | U16: =IFERROR(IF((OR($C16="RP",$C16="SP")),"",VLOOKUP($B16,Filtered!$A$1:$AJ$700,20,FALSE)),"") ->  | V16: =IFERROR(IF((OR($C16="RP",$C16="SP")),"",VLOOKUP($B16,Filtered!$A$1:$AJ$700,9,FALSE)),"") ->  | W16: =IFERROR(IF((OR($C16="RP",$C16="SP")),"",VLOOKUP($B16,Filtered!$A$1:$AJ$700,10,FALSE)),"") ->  | X16: =IFERROR(IF((OR($C16="RP",$C16="SP")),"",VLOOKUP($B16,Filtered!$A$1:$AJ$700,4,FALSE)),"") ->  | Y16: =IFERROR(IF((OR($C16="RP",$C16="SP")),"",VLOOKUP($B16,Filtered!$A$1:$AJ$700,11,FALSE)),"") ->  | Z16: =IFERROR(IF(ISTEXT($A16),"",(1-NORMDIST((COUNTA($A$6:$A$745)),($G16),((AE16-AD16)/6),TRUE))),"") -> 0.9999792483 | AA16: =IFERROR(IF(ISTEXT($A16),"",(1-NORMDIST((COUNTA($A$6:$A$745))+(Personalize!$E$18+1),$G16,((AE16-AD16)/6),TRUE))),"") -> 0.9986218447 | AB16: =IFERROR(IF(ISTEXT($A16),"",(1-NORMDIST((COUNTA($A$6:$A$745))+((Personalize!$E$18+1)*2),$G16,((AE16-AD16)/6),TRUE))),"") -> 0.9705152764 | AD16: =CHOOSE(Personalize!$E$38,VLOOKUP($B16,'ADP-Rank'!$A$2:$AJ$620,8,FALSE),VLOOKUP($B16,'ADP-Rank'!$A$2:$AJ$620,11,FALSE),VLOOKUP($B16,'ADP-Rank'!$A$2:$AO$620,14,FALSE),VLOOKUP($B16,'ADP-Rank'!$A$2:$BD$620,17,FALSE),VLOOKUP($B16,'ADP-Rank'!$A$2:$BD$620,20,FALSE),VLOOKUP($B16,'ADP-Rank'!$A$2:$BD$620,23,FALSE),VLOOKUP($B16,'ADP-Rank'!$A$2:$BD$620,26,FALSE),VLOOKUP($B16,'ADP-Rank'!$A$2:$BD$620,29,FALSE),VLOOKUP($B16,'ADP-Rank'!$A$2:$BD$620,46,FALSE)) -> 7 | AE16: =CHOOSE(Personalize!$E$38,VLOOKUP($B16,'ADP-Rank'!$A$2:$AJ$620,9,FALSE),VLOOKUP($B16,'ADP-Rank'!$A$2:$AJ$620,12,FALSE),VLOOKUP($B16,'ADP-Rank'!$A$2:$AO$620,15,FALSE),VLOOKUP($B16,'ADP-Rank'!$A$2:$BD$620,18,FALSE),VLOOKUP($B16,'ADP-Rank'!$A$2:$BD$620,21,FALSE),VLOOKUP($B16,'ADP-Rank'!$A$2:$BD$620,24,FALSE),VLOOKUP($B16,'ADP-Rank'!$A$2:$BD$620,27,FALSE),VLOOKUP($B16,'ADP-Rank'!$A$2:$BD$620,30,FALSE),VLOOKUP($B16,'ADP-Rank'!$A$2:$BD$620,47,FALSE)) -> 26 | AF16: =IF(ISBLANK(A16),0,1) -> 0 | AG16: =IF(K16="",0,1) -> 1 | AH16: =A16 -> 0 | AI16: =IF(C16="C",1,IF(C16="1B",2,IF(C16="2B",3,IF(C16="3B",4,IF(C16="SS",5,IF(C16="CI",6,IF(C16="MI",7,IF(C16="OF",11,IF(C16="LF",8,IF(C16="CF",9,IF(C16="RF",10,IF(C16="DH",12,IF(C16="SP",13,IF(C16="RP",14,IF(C16="P",15,16))))))))))))))) -> 13 | AJ16: =VLOOKUP(B16,'Starter Calc'!$B$2:$BR$700,69,FALSE) -> Starter | AK16: =IFERROR(VLOOKUP($B16,'ADP-Rank'!$A$2:$AZ$620,40,FALSE),TRUE) -> TRUE | AL16: 1
B17: Stephen Strasburg | C17: SP | D17: =IFERROR(IF(VLOOKUP(B17,'Starter Calc'!$B$2:$E$700,4,FALSE)="","",VLOOKUP(B17,'Starter Calc'!$B$2:$E$700,4,FALSE)),"") -> ,, | E17: =IFERROR(VLOOKUP($B17,'ADP-Rank'!$A$2:$G$620,5,FALSE),"") -> WSH | F17: =IFERROR(VLOOKUP($B17,'ADP-Rank'!$A$2:$W$620,6,FALSE),"") -> 26 | G17: =IFERROR(CHOOSE(Personalize!$E$38,VLOOKUP($B17,'ADP-Rank'!$A$2:$CD$620,7,FALSE),VLOOKUP($B17,'ADP-Rank'!$A$2:$CD$620,10,FALSE),VLOOKUP($B17,'ADP-Rank'!$A$2:$CD$620,13,FALSE),VLOOKUP($B17,'ADP-Rank'!$A$2:$CD$620,16,FALSE),VLOOKUP($B17,'ADP-Rank'!$A$2:$CD$620,19,FALSE),VLOOKUP($B17,'ADP-Rank'!$A$2:$CD$620,22,FALSE),VLOOKUP($B17,'ADP-Rank'!$A$2:$CD$620,25,FALSE),VLOOKUP($B17,'ADP-Rank'!$A$2:$CD$620,28,FALSE),VLOOKUP($B17,'ADP-Rank'!$A$2:$CD$620,45,FALSE)),"") -> 13.22 | H17: =IFERROR(ROUNDDOWN(VLOOKUP($B17,'ADP-Rank'!$A$2:$BC$674,44,FALSE),0),"") -> 1 | I17: =VLOOKUP($B17,'ADP-Rank'!$A$2:$AP$674,42,FALSE) -> 10 | J17: =IFERROR(RANK($M17,$M$6:$M$745,0),"") -> 9 | K17: =IFERROR(IF((OR($C17="RP",$C17="SP")),VLOOKUP($B17,'Filtered-P'!$A$1:$AB$700,12,FALSE),(VLOOKUP($B17,Filtered!$A$1:$AB$700,18,FALSE))),"") -> 483.0839019 | L17: =IFERROR(IF((OR($C17="RP",$C17="SP")),VLOOKUP($C17,'Filtered-P'!$U$3:$X$4,4,FALSE), VLOOKUP($C17,Filtered!$U$3:$X$14,4,FALSE)),"") -> 262.4844351 | M17: =IFERROR(($K17-$L17)/IF(OR($C17="SP",$C17="RP"),VLOOKUP($C17,'Filtered-P'!$U$3:$AB$4,8,FALSE),VLOOKUP($C17,Filtered!$U$3:$AB$10,8,FALSE)),"") -> 2.420865838 | N17: =IFERROR(IF((OR($C17="RP",$C17="SP")),"",(VLOOKUP($B17,Filtered!$A$1:$AB$700,18,FALSE)/VLOOKUP($B17,Filtered!$A$1:$AB$700,2,FALSE))),"") ->  | O17: =IFERROR(IF((OR($C17="RP",$C17="SP")),VLOOKUP($B17,'Filtered-P'!$A$1:$AB$700,12,FALSE)/VLOOKUP($B17,'Filtered-P'!$A$1:$AB$700,4,FALSE),""),"") -> 2.521043831 | P17: =IFERROR(IF((OR($C17="RP",$C17="SP")),VLOOKUP($B17,'Filtered-P'!$A$1:$X$700,2,FALSE),""),"") -> 13.052945 | Q17: =IFERROR(IF((OR($C17="RP",$C17="SP")),VLOOKUP($B17,'Filtered-P'!$A$1:$X$700,9,FALSE),""),"") -> 0 | R17: =IFERROR(IF((OR($C17="RP",$C17="SP")),VLOOKUP($B17,'Filtered-P'!$A$1:$X$700,7,FALSE),""),"") -> 214.079215 | S17: =IFERROR(IF((OR($C17="RP",$C17="SP")),VLOOKUP($B17,'Filtered-P'!$A$1:$AD$700,13,FALSE),""),"") -> 3.085607807 | T17: =IFERROR(IF((OR($C17="RP",$C17="SP")),VLOOKUP($B17,'Filtered-P'!$A$1:$X$700,14,FALSE),""),"") -> 1.078560952 | U17: =IFERROR(IF((OR($C17="RP",$C17="SP")),"",VLOOKUP($B17,Filtered!$A$1:$AJ$700,20,FALSE)),"") ->  | V17: =IFERROR(IF((OR($C17="RP",$C17="SP")),"",VLOOKUP($B17,Filtered!$A$1:$AJ$700,9,FALSE)),"") ->  | W17: =IFERROR(IF((OR($C17="RP",$C17="SP")),"",VLOOKUP($B17,Filtered!$A$1:$AJ$700,10,FALSE)),"") ->  | X17: =IFERROR(IF((OR($C17="RP",$C17="SP")),"",VLOOKUP($B17,Filtered!$A$1:$AJ$700,4,FALSE)),"") ->  | Y17: =IFERROR(IF((OR($C17="RP",$C17="SP")),"",VLOOKUP($B17,Filtered!$A$1:$AJ$700,11,FALSE)),"") ->  | Z17: =IFERROR(IF(ISTEXT($A17),"",(1-NORMDIST((COUNTA($A$6:$A$745)),($G17),((AE17-AD17)/6),TRUE))),"") -> 0.9999999382 | AA17: =IFERROR(IF(ISTEXT($A17),"",(1-NORMDIST((COUNTA($A$6:$A$745))+(Personalize!$E$18+1),$G17,((AE17-AD17)/6),TRUE))),"") -> 0.9999494632 | AB17: =IFERROR(IF(ISTEXT($A17),"",(1-NORMDIST((COUNTA($A$6:$A$745))+((Personalize!$E$18+1)*2),$G17,((AE17-AD17)/6),TRUE))),"") -> 0.9935768133 | AD17: =CHOOSE(Personalize!$E$38,VLOOKUP($B17,'ADP-Rank'!$A$2:$AJ$620,8,FALSE),VLOOKUP($B17,'ADP-Rank'!$A$2:$AJ$620,11,FALSE),VLOOKUP($B17,'ADP-Rank'!$A$2:$AO$620,14,FALSE),VLOOKUP($B17,'ADP-Rank'!$A$2:$BD$620,17,FALSE),VLOOKUP($B17,'ADP-Rank'!$A$2:$BD$620,20,FALSE),VLOOKUP($B17,'ADP-Rank'!$A$2:$BD$620,23,FALSE),VLOOKUP($B17,'ADP-Rank'!$A$2:$BD$620,26,FALSE),VLOOKUP($B17,'ADP-Rank'!$A$2:$BD$620,29,FALSE),VLOOKUP($B17,'ADP-Rank'!$A$2:$BD$620,46,FALSE)) -> 7 | AE17: =CHOOSE(Personalize!$E$38,VLOOKUP($B17,'ADP-Rank'!$A$2:$AJ$620,9,FALSE),VLOOKUP($B17,'ADP-Rank'!$A$2:$AJ$620,12,FALSE),VLOOKUP($B17,'ADP-Rank'!$A$2:$AO$620,15,FALSE),VLOOKUP($B17,'ADP-Rank'!$A$2:$BD$620,18,FALSE),VLOOKUP($B17,'ADP-Rank'!$A$2:$BD$620,21,FALSE),VLOOKUP($B17,'ADP-Rank'!$A$2:$BD$620,24,FALSE),VLOOKUP($B17,'ADP-Rank'!$A$2:$BD$620,27,FALSE),VLOOKUP($B17,'ADP-Rank'!$A$2:$BD$620,30,FALSE),VLOOKUP($B17,'ADP-Rank'!$A$2:$BD$620,47,FALSE)) -> 22 | AF17: =IF(ISBLANK(A17),0,1) -> 0 | AG17: =IF(K17="",0,1) -> 1 | AH17: =A17 -> 0 | AI17: =IF(C17="C",1,IF(C17="1B",2,IF(C17="2B",3,IF(C17="3B",4,IF(C17="SS",5,IF(C17="CI",6,IF(C17="MI",7,IF(C17="OF",11,IF(C17="LF",8,IF(C17="CF",9,IF(C17="RF",10,IF(C17="DH",12,IF(C17="SP",13,IF(C17="RP",14,IF(C17="P",15,16))))))))))))))) -> 13 | AJ17: =VLOOKUP(B17,'Starter Calc'!$B$2:$BR$700,69,FALSE) -> Starter | AK17: =IFERROR(VLOOKUP($B17,'ADP-Rank'!$A$2:$AZ$620,40,FALSE),TRUE) -> TRUE | AL17: 1
B18: Johnny Cueto | C18: SP | D18: =IFERROR(IF(VLOOKUP(B18,'Starter Calc'!$B$2:$E$700,4,FALSE)="","",VLOOKUP(B18,'Starter Calc'!$B$2:$E$700,4,FALSE)),"") -> ,RF, | E18: =IFERROR(VLOOKUP($B18,'ADP-Rank'!$A$2:$G$620,5,FALSE),"") -> CIN | F18: =IFERROR(VLOOKUP($B18,'ADP-Rank'!$A$2:$W$620,6,FALSE),"") -> 29 | G18: =IFERROR(CHOOSE(Personalize!$E$38,VLOOKUP($B18,'ADP-Rank'!$A$2:$CD$620,7,FALSE),VLOOKUP($B18,'ADP-Rank'!$A$2:$CD$620,10,FALSE),VLOOKUP($B18,'ADP-Rank'!$A$2:$CD$620,13,FALSE),VLOOKUP($B18,'ADP-Rank'!$A$2:$CD$620,16,FALSE),VLOOKUP($B18,'ADP-Rank'!$A$2:$CD$620,19,FALSE),VLOOKUP($B18,'ADP-Rank'!$A$2:$CD$620,22,FALSE),VLOOKUP($B18,'ADP-Rank'!$A$2:$CD$620,25,FALSE),VLOOKUP($B18,'ADP-Rank'!$A$2:$CD$620,28,FALSE),VLOOKUP($B18,'ADP-Rank'!$A$2:$CD$620,45,FALSE)),"") -> 14.06 | H18: =IFERROR(ROUNDDOWN(VLOOKUP($B18,'ADP-Rank'!$A$2:$BC$674,44,FALSE),0),"") -> 2 | I18: =VLOOKUP($B18,'ADP-Rank'!$A$2:$AP$674,42,FALSE) -> 20 | J18: =IFERROR(RANK($M18,$M$6:$M$745,0),"") -> 40 | K18: =IFERROR(IF((OR($C18="RP",$C18="SP")),VLOOKUP($B18,'Filtered-P'!$A$1:$AB$700,12,FALSE),(VLOOKUP($B18,Filtered!$A$1:$AB$700,18,FALSE))),"") -> 369.7380937 | L18: =IFERROR(IF((OR($C18="RP",$C18="SP")),VLOOKUP($C18,'Filtered-P'!$U$3:$X$4,4,FALSE), VLOOKUP($C18,Filtered!$U$3:$X$14,4,FALSE)),"") -> 262.4844351 | M18: =IFERROR(($K18-$L18)/IF(OR($C18="SP",$C18="RP"),VLOOKUP($C18,'Filtered-P'!$U$3:$AB$4,8,FALSE),VLOOKUP($C18,Filtered!$U$3:$AB$10,8,FALSE)),"") -> 1.177005194 | N18: =IFERROR(IF((OR($C18="RP",$C18="SP")),"",(VLOOKUP($B18,Filtered!$A$1:$AB$700,18,FALSE)/VLOOKUP($B18,Filtered!$A$1:$AB$700,2,FALSE))),"") ->  | O18: =IFERROR(IF((OR($C18="RP",$C18="SP")),VLOOKUP($B18,'Filtered-P'!$A$1:$AB$700,12,FALSE)/VLOOKUP($B18,'Filtered-P'!$A$1:$AB$700,4,FALSE),""),"") -> 1.942681995 | P18: =IFERROR(IF((OR($C18="RP",$C18="SP")),VLOOKUP($B18,'Filtered-P'!$A$1:$X$700,2,FALSE),""),"") -> 13.73291301 | Q18: =IFERROR(IF((OR($C18="RP",$C18="SP")),VLOOKUP($B18,'Filtered-P'!$A$1:$X$700,9,FALSE),""),"") -> 0 | R18: =IFERROR(IF((OR($C18="RP",$C18="SP")),VLOOKUP($B18,'Filtered-P'!$A$1:$X$700,7,FALSE),""),"") -> 174.3246843 | S18: =IFERROR(IF((OR($C18="RP",$C18="SP")),VLOOKUP($B18,'Filtered-P'!$A$1:$AD$700,13,FALSE),""),"") -> 3.228021978 | T18: =IFERROR(IF((OR($C18="RP",$C18="SP")),VLOOKUP($B18,'Filtered-P'!$A$1:$X$700,14,FALSE),""),"") -> 1.141970794 | U18: =IFERROR(IF((OR($C18="RP",$C18="SP")),"",VLOOKUP($B18,Filtered!$A$1:$AJ$700,20,FALSE)),"") ->  | V18: =IFERROR(IF((OR($C18="RP",$C18="SP")),"",VLOOKUP($B18,Filtered!$A$1:$AJ$700,9,FALSE)),"") ->  | W18: =IFERROR(IF((OR($C18="RP",$C18="SP")),"",VLOOKUP($B18,Filtered!$A$1:$AJ$700,10,FALSE)),"") ->  | X18: =IFERROR(IF((OR($C18="RP",$C18="SP")),"",VLOOKUP($B18,Filtered!$A$1:$AJ$700,4,FALSE)),"") ->  | Y18: =IFERROR(IF((OR($C18="RP",$C18="SP")),"",VLOOKUP($B18,Filtered!$A$1:$AJ$700,11,FALSE)),"") ->  | Z18: =IFERROR(IF(ISTEXT($A18),"",(1-NORMDIST((COUNTA($A$6:$A$745)),($G18),((AE18-AD18)/6),TRUE))),"") -> 0.9999999327 | AA18: =IFERROR(IF(ISTEXT($A18),"",(1-NORMDIST((COUNTA($A$6:$A$745))+(Personalize!$E$18+1),$G18,((AE18-AD18)/6),TRUE))),"") -> 0.9999625251 | AB18: =IFERROR(IF(ISTEXT($A18),"",(1-NORMDIST((COUNTA($A$6:$A$745))+((Personalize!$E$18+1)*2),$G18,((AE18-AD18)/6),TRUE))),"") -> 0.995945532 | AD18: =CHOOSE(Personalize!$E$38,VLOOKUP($B18,'ADP-Rank'!$A$2:$AJ$620,8,FALSE),VLOOKUP($B18,'ADP-Rank'!$A$2:$AJ$620,11,FALSE),VLOOKUP($B18,'ADP-Rank'!$A$2:$AO$620,14,FALSE),VLOOKUP($B18,'ADP-Rank'!$A$2:$BD$620,17,FALSE),VLOOKUP($B18,'ADP-Rank'!$A$2:$BD$620,20,FALSE),VLOOKUP($B18,'ADP-Rank'!$A$2:$BD$620,23,FALSE),VLOOKUP($B18,'ADP-Rank'!$A$2:$BD$620,26,FALSE),VLOOKUP($B18,'ADP-Rank'!$A$2:$BD$620,29,FALSE),VLOOKUP($B18,'ADP-Rank'!$A$2:$BD$620,46,FALSE)) -> 7 | AE18: =CHOOSE(Personalize!$E$38,VLOOKUP($B18,'ADP-Rank'!$A$2:$AJ$620,9,FALSE),VLOOKUP($B18,'ADP-Rank'!$A$2:$AJ$620,12,FALSE),VLOOKUP($B18,'ADP-Rank'!$A$2:$AO$620,15,FALSE),VLOOKUP($B18,'ADP-Rank'!$A$2:$BD$620,18,FALSE),VLOOKUP($B18,'ADP-Rank'!$A$2:$BD$620,21,FALSE),VLOOKUP($B18,'ADP-Rank'!$A$2:$BD$620,24,FALSE),VLOOKUP($B18,'ADP-Rank'!$A$2:$BD$620,27,FALSE),VLOOKUP($B18,'ADP-Rank'!$A$2:$BD$620,30,FALSE),VLOOKUP($B18,'ADP-Rank'!$A$2:$BD$620,47,FALSE)) -> 23 | AF18: =IF(ISBLANK(A18),0,1) -> 0 | AG18: =IF(K18="",0,1) -> 1 | AH18: =A18 -> 0 | AI18: =IF(C18="C",1,IF(C18="1B",2,IF(C18="2B",3,IF(C18="3B",4,IF(C18="SS",5,IF(C18="CI",6,IF(C18="MI",7,IF(C18="OF",11,IF(C18="LF",8,IF(C18="CF",9,IF(C18="RF",10,IF(C18="DH",12,IF(C18="SP",13,IF(C18="RP",14,IF(C18="P",15,16))))))))))))))) -> 13 | AJ18: =VLOOKUP(B18,'Starter Calc'!$B$2:$BR$700,69,FALSE) -> Starter | AK18: =IFERROR(VLOOKUP($B18,'ADP-Rank'!$A$2:$AZ$620,40,FALSE),TRUE) -> TRUE | AL18: 1
B19: Madison Bumgarner | C19: SP | D19: =IFERROR(IF(VLOOKUP(B19,'Starter Calc'!$B$2:$E$700,4,FALSE)="","",VLOOKUP(B19,'Starter Calc'!$B$2:$E$700,4,FALSE)),"") -> ,, | E19: =IFERROR(VLOOKUP($B19,'ADP-Rank'!$A$2:$G$620,5,FALSE),"") -> SF | F19: =IFERROR(VLOOKUP($B19,'ADP-Rank'!$A$2:$W$620,6,FALSE),"") -> 25 | G19: =IFERROR(CHOOSE(Personalize!$E$38,VLOOKUP($B19,'ADP-Rank'!$A$2:$CD$620,7,FALSE),VLOOKUP($B19,'ADP-Rank'!$A$2:$CD$620,10,FALSE),VLOOKUP($B19,'ADP-Rank'!$A$2:$CD$620,13,FALSE),VLOOKUP($B19,'ADP-Rank'!$A$2:$CD$620,16,FALSE),VLOOKUP($B19,'ADP-Rank'!$A$2:$CD$620,19,FALSE),VLOOKUP($B19,'ADP-Rank'!$A$2:$CD$620,22,FALSE),VLOOKUP($B19,'ADP-Rank'!$A$2:$CD$620,25,FALSE),VLOOKUP($B19,'ADP-Rank'!$A$2:$CD$620,28,FALSE),VLOOKUP($B19,'ADP-Rank'!$A$2:$CD$620,45,FALSE)),"") -> 16.23 | H19: =IFERROR(ROUNDDOWN(VLOOKUP($B19,'ADP-Rank'!$A$2:$BC$674,44,FALSE),0),"") -> 2 | I19: =VLOOKUP($B19,'ADP-Rank'!$A$2:$AP$674,42,FALSE) -> 14 | J19: =IFERROR(RANK($M19,$M$6:$M$745,0),"") -> 14 | K19: =IFERROR(IF((OR($C19="RP",$C19="SP")),VLOOKUP($B19,'Filtered-P'!$A$1:$AB$700,12,FALSE),(VLOOKUP($B19,Filtered!$A$1:$AB$700,18,FALSE))),"") -> 452.9158352 | L19: =IFERROR(IF((OR($C19="RP",$C19="SP")),VLOOKUP($C19,'Filtered-P'!$U$3:$X$4,4,FALSE), VLOOKUP($C19,Filtered!$U$3:$X$14,4,FALSE)),"") -> 262.4844351 | M19: =IFERROR(($K19-$L19)/IF(OR($C19="SP",$C19="RP"),VLOOKUP($C19,'Filtered-P'!$U$3:$AB$4,8,FALSE),VLOOKUP($C19,Filtered!$U$3:$AB$10,8,FALSE)),"") -> 2.089800477 | N19: =IFERROR(IF((OR($C19="RP",$C19="SP")),"",(VLOOKUP($B19,Filtered!$A$1:$AB$700,18,FALSE)/VLOOKUP($B19,Filtered!$A$1:$AB$700,2,FALSE))),"") ->  | O19: =IFERROR(IF((OR($C19="RP",$C19="SP")),VLOOKUP($B19,'Filtered-P'!$A$1:$AB$700,12,FALSE)/VLOOKUP($B19,'Filtered-P'!$A$1:$AB$700,4,FALSE),""),"") -> 2.212043151 | P19: =IFERROR(IF((OR($C19="RP",$C19="SP")),VLOOKUP($B19,'Filtered-P'!$A$1:$X$700,2,FALSE),""),"") -> 14.10166668 | Q19: =IFERROR(IF((OR($C19="RP",$C19="SP")),VLOOKUP($B19,'Filtered-P'!$A$1:$X$700,9,FALSE),""),"") -> 0 | R19: =IFERROR(IF((OR($C19="RP",$C19="SP")),VLOOKUP($B19,'Filtered-P'!$A$1:$X$700,7,FALSE),""),"") -> 205.672217 | S19: =IFERROR(IF((OR($C19="RP",$C19="SP")),VLOOKUP($B19,'Filtered-P'!$A$1:$AD$700,13,FALSE),""),"") -> 3.010056129 | T19: =IFERROR(IF((OR($C19="RP",$C19="SP")),VLOOKUP($B19,'Filtered-P'!$A$1:$X$700,14,FALSE),""),"") -> 1.101762321 | U19: =IFERROR(IF((OR($C19="RP",$C19="SP")),"",VLOOKUP($B19,Filtered!$A$1:$AJ$700,20,FALSE)),"") ->  | V19: =IFERROR(IF((OR($C19="RP",$C19="SP")),"",VLOOKUP($B19,Filtered!$A$1:$AJ$700,9,FALSE)),"") ->  | W19: =IFERROR(IF((OR($C19="RP",$C19="SP")),"",VLOOKUP($B19,Filtered!$A$1:$AJ$700,10,FALSE)),"") ->  | X19: =IFERROR(IF((OR($C19="RP",$C19="SP")),"",VLOOKUP($B19,Filtered!$A$1:$AJ$700,4,FALSE)),"") ->  | Y19: =IFERROR(IF((OR($C19="RP",$C19="SP")),"",VLOOKUP($B19,Filtered!$A$1:$AJ$700,11,FALSE)),"") ->  | Z19: =IFERROR(IF(ISTEXT($A19),"",(1-NORMDIST((COUNTA($A$6:$A$745)),($G19),((AE19-AD19)/6),TRUE))),"") -> 0.9999998514 | AA19: =IFERROR(IF(ISTEXT($A19),"",(1-NORMDIST((COUNTA($A$6:$A$745))+(Personalize!$E$18+1),$G19,((AE19-AD19)/6),TRUE))),"") -> 0.9999709009 | AB19: =IFERROR(IF(ISTEXT($A19),"",(1-NORMDIST((COUNTA($A$6:$A$745))+((Personalize!$E$18+1)*2),$G19,((AE19-AD19)/6),TRUE))),"") -> 0.9982200571 | AD19: =CHOOSE(Personalize!$E$38,VLOOKUP($B19,'ADP-Rank'!$A$2:$AJ$620,8,FALSE),VLOOKUP($B19,'ADP-Rank'!$A$2:$AJ$620,11,FALSE),VLOOKUP($B19,'ADP-Rank'!$A$2:$AO$620,14,FALSE),VLOOKUP($B19,'ADP-Rank'!$A$2:$BD$620,17,FALSE),VLOOKUP($B19,'ADP-Rank'!$A$2:$BD$620,20,FALSE),VLOOKUP($B19,'ADP-Rank'!$A$2:$BD$620,23,FALSE),VLOOKUP($B19,'ADP-Rank'!$A$2:$BD$620,26,FALSE),VLOOKUP($B19,'ADP-Rank'!$A$2:$BD$620,29,FALSE),VLOOKUP($B19,'ADP-Rank'!$A$2:$BD$620,46,FALSE)) -> 9 | AE19: =CHOOSE(Personalize!$E$38,VLOOKUP($B19,'ADP-Rank'!$A$2:$AJ$620,9,FALSE),VLOOKUP($B19,'ADP-Rank'!$A$2:$AJ$620,12,FALSE),VLOOKUP($B19,'ADP-Rank'!$A$2:$AO$620,15,FALSE),VLOOKUP($B19,'ADP-Rank'!$A$2:$BD$620,18,FALSE),VLOOKUP($B19,'ADP-Rank'!$A$2:$BD$620,21,FALSE),VLOOKUP($B19,'ADP-Rank'!$A$2:$BD$620,24,FALSE),VLOOKUP($B19,'ADP-Rank'!$A$2:$BD$620,27,FALSE),VLOOKUP($B19,'ADP-Rank'!$A$2:$BD$620,30,FALSE),VLOOKUP($B19,'ADP-Rank'!$A$2:$BD$620,47,FALSE)) -> 28 | AF19: =IF(ISBLANK(A19),0,1) -> 0 | AG19: =IF(K19="",0,1) -> 1 | AH19: =A19 -> 0 | AI19: =IF(C19="C",1,IF(C19="1B",2,IF(C19="2B",3,IF(C19="3B",4,IF(C19="SS",5,IF(C19="CI",6,IF(C19="MI",7,IF(C19="OF",11,IF(C19="LF",8,IF(C19="CF",9,IF(C19="RF",10,IF(C19="DH",12,IF(C19="SP",13,IF(C19="RP",14,IF(C19="P",15,16))))))))))))))) -> 13 | AJ19: =VLOOKUP(B19,'Starter Calc'!$B$2:$BR$700,69,FALSE) -> Starter | AK19: =IFERROR(VLOOKUP($B19,'ADP-Rank'!$A$2:$AZ$620,40,FALSE),TRUE) -> TRUE | AL19: 1
B20: Jose Abreu | C20: 1B | D20: =IFERROR(IF(VLOOKUP(B20,'Starter Calc'!$B$2:$E$700,4,FALSE)="","",VLOOKUP(B20,'Starter Calc'!$B$2:$E$700,4,FALSE)),"") -> ,, | E20: =IFERROR(VLOOKUP($B20,'ADP-Rank'!$A$2:$G$620,5,FALSE),"") -> CWS | F20: =IFERROR(VLOOKUP($B20,'ADP-Rank'!$A$2:$W$620,6,FALSE),"") -> 28 | G20: =IFERROR(CHOOSE(Personalize!$E$38,VLOOKUP($B20,'ADP-Rank'!$A$2:$CD$620,7,FALSE),VLOOKUP($B20,'ADP-Rank'!$A$2:$CD$620,10,FALSE),VLOOKUP($B20,'ADP-Rank'!$A$2:$CD$620,13,FALSE),VLOOKUP($B20,'ADP-Rank'!$A$2:$CD$620,16,FALSE),VLOOKUP($B20,'ADP-Rank'!$A$2:$CD$620,19,FALSE),VLOOKUP($B20,'ADP-Rank'!$A$2:$CD$620,22,FALSE),VLOOKUP($B20,'ADP-Rank'!$A$2:$CD$620,25,FALSE),VLOOKUP($B20,'ADP-Rank'!$A$2:$CD$620,28,FALSE),VLOOKUP($B20,'ADP-Rank'!$A$2:$CD$620,45,FALSE)),"") -> 16.53 | H20: =IFERROR(ROUNDDOWN(VLOOKUP($B20,'ADP-Rank'!$A$2:$BC$674,44,FALSE),0),"") -> 2 | I20: =VLOOKUP($B20,'ADP-Rank'!$A$2:$AP$674,42,FALSE) -> 55 | J20: =IFERROR(RANK($M20,$M$6:$M$745,0),"") -> 68 | K20: =IFERROR(IF((OR($C20="RP",$C20="SP")),VLOOKUP($B20,'Filtered-P'!$A$1:$AB$700,12,FALSE),(VLOOKUP($B20,Filtered!$A$1:$AB$700,18,FALSE))),"") -> 384.1769296 | L20: =IFERROR(IF((OR($C20="RP",$C20="SP")),VLOOKUP($C20,'Filtered-P'!$U$3:$X$4,4,FALSE), VLOOKUP($C20,Filtered!$U$3:$X$14,4,FALSE)),"") -> 341.0043912 | M20: =IFERROR(($K20-$L20)/IF(OR($C20="SP",$C20="RP"),VLOOKUP($C20,'Filtered-P'!$U$3:$AB$4,8,FALSE),VLOOKUP($C20,Filtered!$U$3:$AB$10,8,FALSE)),"") -> 0.8237178024 | N20: =IFERROR(IF((OR($C20="RP",$C20="SP")),"",(VLOOKUP($B20,Filtered!$A$1:$AB$700,18,FALSE)/VLOOKUP($B20,Filtered!$A$1:$AB$700,2,FALSE))),"") -> 0.6417242834 | O20: =IFERROR(IF((OR($C20="RP",$C20="SP")),VLOOKUP($B20,'Filtered-P'!$A$1:$AB$700,12,FALSE)/VLOOKUP($B20,'Filtered-P'!$A$1:$AB$700,4,FALSE),""),"") ->  | P20: =IFERROR(IF((OR($C20="RP",$C20="SP")),VLOOKUP($B20,'Filtered-P'!$A$1:$X$700,2,FALSE),""),"") ->  | Q20: =IFERROR(IF((OR($C20="RP",$C20="SP")),VLOOKUP($B20,'Filtered-P'!$A$1:$X$700,9,FALSE),""),"") ->  | R20: =IFERROR(IF((OR($C20="RP",$C20="SP")),VLOOKUP($B20,'Filtered-P'!$A$1:$X$700,7,FALSE),""),"") ->  | S20: =IFERROR(IF((OR($C20="RP",$C20="SP")),VLOOKUP($B20,'Filtered-P'!$A$1:$AD$700,13,FALSE),""),"") ->  | T20: =IFERROR(IF((OR($C20="RP",$C20="SP")),VLOOKUP($B20,'Filtered-P'!$A$1:$X$700,14,FALSE),""),"") ->  | U20: =IFERROR(IF((OR($C20="RP",$C20="SP")),"",VLOOKUP($B20,Filtered!$A$1:$AJ$700,20,FALSE)),"") -> 0.2835016145 | V20: =IFERROR(IF((OR($C20="RP",$C20="SP")),"",VLOOKUP($B20,Filtered!$A$1:$AJ$700,9,FALSE)),"") -> 33.58456264 | W20: =IFERROR(IF((OR($C20="RP",$C20="SP")),"",VLOOKUP($B20,Filtered!$A$1:$AJ$700,10,FALSE)),"") -> 96.82628716 | X20: =IFERROR(IF((OR($C20="RP",$C20="SP")),"",VLOOKUP($B20,Filtered!$A$1:$AJ$700,4,FALSE)),"") -> 86.67455174 | Y20: =IFERROR(IF((OR($C20="RP",$C20="SP")),"",VLOOKUP($B20,Filtered!$A$1:$AJ$700,11,FALSE)),"") -> 3.277468063 | Z20: =IFERROR(IF(ISTEXT($A20),"",(1-NORMDIST((COUNTA($A$6:$A$745)),($G20),((AE20-AD20)/6),TRUE))),"") -> 0.9999318024 | AA20: =IFERROR(IF(ISTEXT($A20),"",(1-NORMDIST((COUNTA($A$6:$A$745))+(Personalize!$E$18+1),$G20,((AE20-AD20)/6),TRUE))),"") -> 0.9986804673 | AB20: =IFERROR(IF(ISTEXT($A20),"",(1-NORMDIST((COUNTA($A$6:$A$745))+((Personalize!$E$18+1)*2),$G20,((AE20-AD20)/6),TRUE))),"") -> 0.9860692412 | AD20: =CHOOSE(Personalize!$E$38,VLOOKUP($B20,'ADP-Rank'!$A$2:$AJ$620,8,FALSE),VLOOKUP($B20,'ADP-Rank'!$A$2:$AJ$620,11,FALSE),VLOOKUP($B20,'ADP-Rank'!$A$2:$AO$620,14,FALSE),VLOOKUP($B20,'ADP-Rank'!$A$2:$BD$620,17,FALSE),VLOOKUP($B20,'ADP-Rank'!$A$2:$BD$620,20,FALSE),VLOOKUP($B20,'ADP-Rank'!$A$2:$BD$620,23,FALSE),VLOOKUP($B20,'ADP-Rank'!$A$2:$BD$620,26,FALSE),VLOOKUP($B20,'ADP-Rank'!$A$2:$BD$620,29,FALSE),VLOOKUP($B20,'ADP-Rank'!$A$2:$BD$620,46,FALSE)) -> 7 | AE20: =CHOOSE(Personalize!$E$38,VLOOKUP($B20,'ADP-Rank'!$A$2:$AJ$620,9,FALSE),VLOOKUP($B20,'ADP-Rank'!$A$2:$AJ$620,12,FALSE),VLOOKUP($B20,'ADP-Rank'!$A$2:$AO$620,15,FALSE),VLOOKUP($B20,'ADP-Rank'!$A$2:$BD$620,18,FALSE),VLOOKUP($B20,'ADP-Rank'!$A$2:$BD$620,21,FALSE),VLOOKUP($B20,'ADP-Rank'!$A$2:$BD$620,24,FALSE),VLOOKUP($B20,'ADP-Rank'!$A$2:$BD$620,27,FALSE),VLOOKUP($B20,'ADP-Rank'!$A$2:$BD$620,30,FALSE),VLOOKUP($B20,'ADP-Rank'!$A$2:$BD$620,47,FALSE)) -> 33 | AF20: =IF(ISBLANK(A20),0,1) -> 0 | AG20: =IF(K20="",0,1) -> 1 | AH20: =A20 -> 0 | AI20: =IF(C20="C",1,IF(C20="1B",2,IF(C20="2B",3,IF(C20="3B",4,IF(C20="SS",5,IF(C20="CI",6,IF(C20="MI",7,IF(C20="OF",11,IF(C20="LF",8,IF(C20="CF",9,IF(C20="RF",10,IF(C20="DH",12,IF(C20="SP",13,IF(C20="RP",14,IF(C20="P",15,16))))))))))))))) -> 2 | AJ20: =VLOOKUP(B20,'Starter Calc'!$B$2:$BR$700,69,FALSE) -> Bench | AK20: =IFERROR(VLOOKUP($B20,'ADP-Rank'!$A$2:$AZ$620,40,FALSE),TRUE) -> TRUE | AL20: 0
B21: Jose Bautista | C21: OF | D21: =IFERROR(IF(VLOOKUP(B21,'Starter Calc'!$B$2:$E$700,4,FALSE)="","",VLOOKUP(B21,'Starter Calc'!$B$2:$E$700,4,FALSE)),"") -> ,, | E21: =IFERROR(VLOOKUP($B21,'ADP-Rank'!$A$2:$G$620,5,FALSE),"") -> TOR | F21: =IFERROR(VLOOKUP($B21,'ADP-Rank'!$A$2:$W$620,6,FALSE),"") -> 34 | G21: =IFERROR(CHOOSE(Personalize!$E$38,VLOOKUP($B21,'ADP-Rank'!$A$2:$CD$620,7,FALSE),VLOOKUP($B21,'ADP-Rank'!$A$2:$CD$620,10,FALSE),VLOOKUP($B21,'ADP-Rank'!$A$2:$CD$620,13,FALSE),VLOOKUP($B21,'ADP-Rank'!$A$2:$CD$620,16,FALSE),VLOOKUP($B21,'ADP-Rank'!$A$2:$CD$620,19,FALSE),VLOOKUP($B21,'ADP-Rank'!$A$2:$CD$620,22,FALSE),VLOOKUP($B21,'ADP-Rank'!$A$2:$CD$620,25,FALSE),VLOOKUP($B21,'ADP-Rank'!$A$2:$CD$620,28,FALSE),VLOOKUP($B21,'ADP-Rank'!$A$2:$CD$620,45,FALSE)),"") -> 18.91 | H21: =IFERROR(ROUNDDOWN(VLOOKUP($B21,'ADP-Rank'!$A$2:$BC$674,44,FALSE),0),"") -> 2 | I21: =VLOOKUP($B21,'ADP-Rank'!$A$2:$AP$674,42,FALSE) -> 5 | J21: =IFERROR(RANK($M21,$M$6:$M$745,0),"") -> 13 | K21: =IFERROR(IF((OR($C21="RP",$C21="SP")),VLOOKUP($B21,'Filtered-P'!$A$1:$AB$700,12,FALSE),(VLOOKUP($B21,Filtered!$A$1:$AB$700,18,FALSE))),"") -> 415.0051953 | L21: =IFERROR(IF((OR($C21="RP",$C21="SP")),VLOOKUP($C21,'Filtered-P'!$U$3:$X$4,4,FALSE), VLOOKUP($C21,Filtered!$U$3:$X$14,4,FALSE)),"") -> 287.0213782 | M21: =IFERROR(($K21-$L21)/IF(OR($C21="SP",$C21="RP"),VLOOKUP($C21,'Filtered-P'!$U$3:$AB$4,8,FALSE),VLOOKUP($C21,Filtered!$U$3:$AB$10,8,FALSE)),"") -> 2.107260613 | N21: =IFERROR(IF((OR($C21="RP",$C21="SP")),"",(VLOOKUP($B21,Filtered!$A$1:$AB$700,18,FALSE)/VLOOKUP($B21,Filtered!$A$1:$AB$700,2,FALSE))),"") -> 0.6915211395 | O21: =IFERROR(IF((OR($C21="RP",$C21="SP")),VLOOKUP($B21,'Filtered-P'!$A$1:$AB$700,12,FALSE)/VLOOKUP($B21,'Filtered-P'!$A$1:$AB$700,4,FALSE),""),"") ->  | P21: =IFERROR(IF((OR($C21="RP",$C21="SP")),VLOOKUP($B21,'Filtered-P'!$A$1:$X$700,2,FALSE),""),"") ->  | Q21: =IFERROR(IF((OR($C21="RP",$C21="SP")),VLOOKUP($B21,'Filtered-P'!$A$1:$X$700,9,FALSE),""),"") ->  | R21: =IFERROR(IF((OR($C21="RP",$C21="SP")),VLOOKUP($B21,'Filtered-P'!$A$1:$X$700,7,FALSE),""),"") ->  | S21: =IFERROR(IF((OR($C21="RP",$C21="SP")),VLOOKUP($B21,'Filtered-P'!$A$1:$AD$700,13,FALSE),""),"") ->  | T21: =IFERROR(IF((OR($C21="RP",$C21="SP")),VLOOKUP($B21,'Filtered-P'!$A$1:$X$700,14,FALSE),""),"") ->  | U21: =IFERROR(IF((OR($C21="RP",$C21="SP")),"",VLOOKUP($B21,Filtered!$A$1:$AJ$700,20,FALSE)),"") -> 0.2624572364 | V21: =IFERROR(IF((OR($C21="RP",$C21="SP")),"",VLOOKUP($B21,Filtered!$A$1:$AJ$700,9,FALSE)),"") -> 31.33276874 | W21: =IFERROR(IF((OR($C21="RP",$C21="SP")),"",VLOOKUP($B21,Filtered!$A$1:$AJ$700,10,FALSE)),"") -> 90.97482498 | X21: =IFERROR(IF((OR($C21="RP",$C21="SP")),"",VLOOKUP($B21,Filtered!$A$1:$AJ$700,4,FALSE)),"") -> 88.54045764 | Y21: =IFERROR(IF((OR($C21="RP",$C21="SP")),"",VLOOKUP($B21,Filtered!$A$1:$AJ$700,11,FALSE)),"") -> 6.329677213 | Z21: =IFERROR(IF(ISTEXT($A21),"",(1-NORMDIST((COUNTA($A$6:$A$745)),($G21),((AE21-AD21)/6),TRUE))),"") -> 0.9999999988 | AA21: =IFERROR(IF(ISTEXT($A21),"",(1-NORMDIST((COUNTA($A$6:$A$745))+(Personalize!$E$18+1),$G21,((AE21-AD21)/6),TRUE))),"") -> 0.9999994315 | AB21: =IFERROR(IF(ISTEXT($A21),"",(1-NORMDIST((COUNTA($A$6:$A$745))+((Personalize!$E$18+1)*2),$G21,((AE21-AD21)/6),TRUE))),"") -> 0.9999154001 | AD21: =CHOOSE(Personalize!$E$38,VLOOKUP($B21,'ADP-Rank'!$A$2:$AJ$620,8,FALSE),VLOOKUP($B21,'ADP-Rank'!$A$2:$AJ$620,11,FALSE),VLOOKUP($B21,'ADP-Rank'!$A$2:$AO$620,14,FALSE),VLOOKUP($B21,'ADP-Rank'!$A$2:$BD$620,17,FALSE),VLOOKUP($B21,'ADP-Rank'!$A$2:$BD$620,20,FALSE),VLOOKUP($B21,'ADP-Rank'!$A$2:$BD$620,23,FALSE),VLOOKUP($B21,'ADP-Rank'!$A$2:$BD$620,26,FALSE),VLOOKUP($B21,'ADP-Rank'!$A$2:$BD$620,29,FALSE),VLOOKUP($B21,'ADP-Rank'!$A$2:$BD$620,46,FALSE)) -> 10 | AE21: =CHOOSE(Personalize!$E$38,VLOOKUP($B21,'ADP-Rank'!$A$2:$AJ$620,9,FALSE),VLOOKUP($B21,'ADP-Rank'!$A$2:$AJ$620,12,FALSE),VLOOKUP($B21,'ADP-Rank'!$A$2:$AO$620,15,FALSE),VLOOKUP($B21,'ADP-Rank'!$A$2:$BD$620,18,FALSE),VLOOKUP($B21,'ADP-Rank'!$A$2:$BD$620,21,FALSE),VLOOKUP($B21,'ADP-Rank'!$A$2:$BD$620,24,FALSE),VLOOKUP($B21,'ADP-Rank'!$A$2:$BD$620,27,FALSE),VLOOKUP($B21,'ADP-Rank'!$A$2:$BD$620,30,FALSE),VLOOKUP($B21,'ADP-Rank'!$A$2:$BD$620,47,FALSE)) -> 29 | AF21: =IF(ISBLANK(A21),0,1) -> 0 | AG21: =IF(K21="",0,1) -> 1 | AH21: =A21 -> 0 | AI21: =IF(C21="C",1,IF(C21="1B",2,IF(C21="2B",3,IF(C21="3B",4,IF(C21="SS",5,IF(C21="CI",6,IF(C21="MI",7,IF(C21="OF",11,IF(C21="LF",8,IF(C21="CF",9,IF(C21="RF",10,IF(C21="DH",12,IF(C21="SP",13,IF(C21="RP",14,IF(C21="P",15,16))))))))))))))) -> 11 | AJ21: =VLOOKUP(B21,'Starter Calc'!$B$2:$BR$700,69,FALSE) -> Bench | AK21: =IFERROR(VLOOKUP($B21,'ADP-Rank'!$A$2:$AZ$620,40,FALSE),TRUE) -> TRUE | AL21: 0
B22: Adam Wainwright | C22: SP | D22: =IFERROR(IF(VLOOKUP(B22,'Starter Calc'!$B$2:$E$700,4,FALSE)="","",VLOOKUP(B22,'Starter Calc'!$B$2:$E$700,4,FALSE)),"") -> ,, | E22: =IFERROR(VLOOKUP($B22,'ADP-Rank'!$A$2:$G$620,5,FALSE),"") -> STL | F22: =IFERROR(VLOOKUP($B22,'ADP-Rank'!$A$2:$W$620,6,FALSE),"") -> 33 | G22: =IFERROR(CHOOSE(Personalize!$E$38,VLOOKUP($B22,'ADP-Rank'!$A$2:$CD$620,7,FALSE),VLOOKUP($B22,'ADP-Rank'!$A$2:$CD$620,10,FALSE),VLOOKUP($B22,'ADP-Rank'!$A$2:$CD$620,13,FALSE),VLOOKUP($B22,'ADP-Rank'!$A$2:$CD$620,16,FALSE),VLOOKUP($B22,'ADP-Rank'!$A$2:$CD$620,19,FALSE),VLOOKUP($B22,'ADP-Rank'!$A$2:$CD$620,22,FALSE),VLOOKUP($B22,'ADP-Rank'!$A$2:$CD$620,25,FALSE),VLOOKUP($B22,'ADP-Rank'!$A$2:$CD$620,28,FALSE),VLOOKUP($B22,'ADP-Rank'!$A$2:$CD$620,45,FALSE)),"") -> 20.59 | H22: =IFERROR(ROUNDDOWN(VLOOKUP($B22,'ADP-Rank'!$A$2:$BC$674,44,FALSE),0),"") -> 2 | I22: =VLOOKUP($B22,'ADP-Rank'!$A$2:$AP$674,42,FALSE) -> 48 | J22: =IFERROR(RANK($M22,$M$6:$M$745,0),"") -> 57 | K22: =IFERROR(IF((OR($C22="RP",$C22="SP")),VLOOKUP($B22,'Filtered-P'!$A$1:$AB$700,12,FALSE),(VLOOKUP($B22,Filtered!$A$1:$AB$700,18,FALSE))),"") -> 346.9439572 | L22: =IFERROR(IF((OR($C22="RP",$C22="SP")),VLOOKUP($C22,'Filtered-P'!$U$3:$X$4,4,FALSE), VLOOKUP($C22,Filtered!$U$3:$X$14,4,FALSE)),"") -> 262.4844351 | M22: =IFERROR(($K22-$L22)/IF(OR($C22="SP",$C22="RP"),VLOOKUP($C22,'Filtered-P'!$U$3:$AB$4,8,FALSE),VLOOKUP($C22,Filtered!$U$3:$AB$10,8,FALSE)),"") -> 0.9268615857 | N22: =IFERROR(IF((OR($C22="RP",$C22="SP")),"",(VLOOKUP($B22,Filtered!$A$1:$AB$700,18,FALSE)/VLOOKUP($B22,Filtered!$A$1:$AB$700,2,FALSE))),"") ->  | O22: =IFERROR(IF((OR($C22="RP",$C22="SP")),VLOOKUP($B22,'Filtered-P'!$A$1:$AB$700,12,FALSE)/VLOOKUP($B22,'Filtered-P'!$A$1:$AB$700,4,FALSE),""),"") -> 1.746179086 | P22: =IFERROR(IF((OR($C22="RP",$C22="SP")),VLOOKUP($B22,'Filtered-P'!$A$1:$X$700,2,FALSE),""),"") -> 14.41275114 | Q22: =IFERROR(IF((OR($C22="RP",$C22="SP")),VLOOKUP($B22,'Filtered-P'!$A$1:$X$700,9,FALSE),""),"") -> 0 | R22: =IFERROR(IF((OR($C22="RP",$C22="SP")),VLOOKUP($B22,'Filtered-P'!$A$1:$X$700,7,FALSE),""),"") -> 166.4725882 | S22: =IFERROR(IF((OR($C22="RP",$C22="SP")),VLOOKUP($B22,'Filtered-P'!$A$1:$AD$700,13,FALSE),""),"") -> 3.1363473 | T22: =IFERROR(IF((OR($C22="RP",$C22="SP")),VLOOKUP($B22,'Filtered-P'!$A$1:$X$700,14,FALSE),""),"") -> 1.157175129 | U22: =IFERROR(IF((OR($C22="RP",$C22="SP")),"",VLOOKUP($B22,Filtered!$A$1:$AJ$700,20,FALSE)),"") ->  | V22: =IFERROR(IF((OR($C22="RP",$C22="SP")),"",VLOOKUP($B22,Filtered!$A$1:$AJ$700,9,FALSE)),"") ->  | W22: =IFERROR(IF((OR($C22="RP",$C22="SP")),"",VLOOKUP($B22,Filtered!$A$1:$AJ$700,10,FALSE)),"") ->  | X22: =IFERROR(IF((OR($C22="RP",$C22="SP")),"",VLOOKUP($B22,Filtered!$A$1:$AJ$700,4,FALSE)),"") ->  | Y22: =IFERROR(IF((OR($C22="RP",$C22="SP")),"",VLOOKUP($B22,Filtered!$A$1:$AJ$700,11,FALSE)),"") ->  | Z22: =IFERROR(IF(ISTEXT($A22),"",(1-NORMDIST((COUNTA($A$6:$A$745)),($G22),((AE22-AD22)/6),TRUE))),"") -> 0.9999996126 | AA22: =IFERROR(IF(ISTEXT($A22),"",(1-NORMDIST((COUNTA($A$6:$A$745))+(Personalize!$E$18+1),$G22,((AE22-AD22)/6),TRUE))),"") -> 0.9999794848 | AB22: =IFERROR(IF(ISTEXT($A22),"",(1-NORMDIST((COUNTA($A$6:$A$745))+((Personalize!$E$18+1)*2),$G22,((AE22-AD22)/6),TRUE))),"") -> 0.9994460733 | AD22: =CHOOSE(Personalize!$E$38,VLOOKUP($B22,'ADP-Rank'!$A$2:$AJ$620,8,FALSE),VLOOKUP($B22,'ADP-Rank'!$A$2:$AJ$620,11,FALSE),VLOOKUP($B22,'ADP-Rank'!$A$2:$AO$620,14,FALSE),VLOOKUP($B22,'ADP-Rank'!$A$2:$BD$620,17,FALSE),VLOOKUP($B22,'ADP-Rank'!$A$2:$BD$620,20,FALSE),VLOOKUP($B22,'ADP-Rank'!$A$2:$BD$620,23,FALSE),VLOOKUP($B22,'ADP-Rank'!$A$2:$BD$620,26,FALSE),VLOOKUP($B22,'ADP-Rank'!$A$2:$BD$620,29,FALSE),VLOOKUP($B22,'ADP-Rank'!$A$2:$BD$620,46,FALSE)) -> 11 | AE22: =CHOOSE(Personalize!$E$38,VLOOKUP($B22,'ADP-Rank'!$A$2:$AJ$620,9,FALSE),VLOOKUP($B22,'ADP-Rank'!$A$2:$AJ$620,12,FALSE),VLOOKUP($B22,'ADP-Rank'!$A$2:$AO$620,15,FALSE),VLOOKUP($B22,'ADP-Rank'!$A$2:$BD$620,18,FALSE),VLOOKUP($B22,'ADP-Rank'!$A$2:$BD$620,21,FALSE),VLOOKUP($B22,'ADP-Rank'!$A$2:$BD$620,24,FALSE),VLOOKUP($B22,'ADP-Rank'!$A$2:$BD$620,27,FALSE),VLOOKUP($B22,'ADP-Rank'!$A$2:$BD$620,30,FALSE),VLOOKUP($B22,'ADP-Rank'!$A$2:$BD$620,47,FALSE)) -> 36 | AF22: =IF(ISBLANK(A22),0,1) -> 0 | AG22: =IF(K22="",0,1) -> 1 | AH22: =A22 -> 0 | AI22: =IF(C22="C",1,IF(C22="1B",2,IF(C22="2B",3,IF(C22="3B",4,IF(C22="SS",5,IF(C22="CI",6,IF(C22="MI",7,IF(C22="OF",11,IF(C22="LF",8,IF(C22="CF",9,IF(C22="RF",10,IF(C22="DH",12,IF(C22="SP",13,IF(C22="RP",14,IF(C22="P",15,16))))))))))))))) -> 13 | AJ22: =VLOOKUP(B22,'Starter Calc'!$B$2:$BR$700,69,FALSE) -> Starter | AK22: =IFERROR(VLOOKUP($B22,'ADP-Rank'!$A$2:$AZ$620,40,FALSE),TRUE) -> TRUE | AL22: 1
B23: Jordan Zimmermann | C23: SP | D23: =IFERROR(IF(VLOOKUP(B23,'Starter Calc'!$B$2:$E$700,4,FALSE)="","",VLOOKUP(B23,'Starter Calc'!$B$2:$E$700,4,FALSE)),"") -> ,, | E23: =IFERROR(VLOOKUP($B23,'ADP-Rank'!$A$2:$G$620,5,FALSE),"") -> WSH | F23: =IFERROR(VLOOKUP($B23,'ADP-Rank'!$A$2:$W$620,6,FALSE),"") -> 28 | G23: =IFERROR(CHOOSE(Personalize!$E$38,VLOOKUP($B23,'ADP-Rank'!$A$2:$CD$620,7,FALSE),VLOOKUP($B23,'ADP-Rank'!$A$2:$CD$620,10,FALSE),VLOOKUP($B23,'ADP-Rank'!$A$2:$CD$620,13,FALSE),VLOOKUP($B23,'ADP-Rank'!$A$2:$CD$620,16,FALSE),VLOOKUP($B23,'ADP-Rank'!$A$2:$CD$620,19,FALSE),VLOOKUP($B23,'ADP-Rank'!$A$2:$CD$620,22,FALSE),VLOOKUP($B23,'ADP-Rank'!$A$2:$CD$620,25,FALSE),VLOOKUP($B23,'ADP-Rank'!$A$2:$CD$620,28,FALSE),VLOOKUP($B23,'ADP-Rank'!$A$2:$CD$620,45,FALSE)),"") -> 20.66 | H23: =IFERROR(ROUNDDOWN(VLOOKUP($B23,'ADP-Rank'!$A$2:$BC$674,44,FALSE),0),"") -> 2 | I23: =VLOOKUP($B23,'ADP-Rank'!$A$2:$AP$674,42,FALSE) -> 36 | J23: =IFERROR(RANK($M23,$M$6:$M$745,0),"") -> 49 | K23: =IFERROR(IF((OR($C23="RP",$C23="SP")),VLOOKUP($B23,'Filtered-P'!$A$1:$AB$700,12,FALSE),(VLOOKUP($B23,Filtered!$A$1:$AB$700,18,FALSE))),"") -> 356.9473529 | L23: =IFERROR(IF((OR($C23="RP",$C23="SP")),VLOOKUP($C23,'Filtered-P'!$U$3:$X$4,4,FALSE), VLOOKUP($C23,Filtered!$U$3:$X$14,4,FALSE)),"") -> 262.4844351 | M23: =IFERROR(($K23-$L23)/IF(OR($C23="SP",$C23="RP"),VLOOKUP($C23,'Filtered-P'!$U$3:$AB$4,8,FALSE),VLOOKUP($C23,Filtered!$U$3:$AB$10,8,FALSE)),"") -> 1.03663918 | N23: =IFERROR(IF((OR($C23="RP",$C23="SP")),"",(VLOOKUP($B23,Filtered!$A$1:$AB$700,18,FALSE)/VLOOKUP($B23,Filtered!$A$1:$AB$700,2,FALSE))),"") ->  | O23: =IFERROR(IF((OR($C23="RP",$C23="SP")),VLOOKUP($B23,'Filtered-P'!$A$1:$AB$700,12,FALSE)/VLOOKUP($B23,'Filtered-P'!$A$1:$AB$700,4,FALSE),""),"") -> 1.845236086 | P23: =IFERROR(IF((OR($C23="RP",$C23="SP")),VLOOKUP($B23,'Filtered-P'!$A$1:$X$700,2,FALSE),""),"") -> 13.10424535 | Q23: =IFERROR(IF((OR($C23="RP",$C23="SP")),VLOOKUP($B23,'Filtered-P'!$A$1:$X$700,9,FALSE),""),"") -> 0 | R23: =IFERROR(IF((OR($C23="RP",$C23="SP")),VLOOKUP($B23,'Filtered-P'!$A$1:$X$700,7,FALSE),""),"") -> 166.7002247 | S23: =IFERROR(IF((OR($C23="RP",$C23="SP")),VLOOKUP($B23,'Filtered-P'!$A$1:$AD$700,13,FALSE),""),"") -> 3.142518461 | T23: =IFERROR(IF((OR($C23="RP",$C23="SP")),VLOOKUP($B23,'Filtered-P'!$A$1:$X$700,14,FALSE),""),"") -> 1.113676273 | U23: =IFERROR(IF((OR($C23="RP",$C23="SP")),"",VLOOKUP($B23,Filtered!$A$1:$AJ$700,20,FALSE)),"") ->  | V23: =IFERROR(IF((OR($C23="RP",$C23="SP")),"",VLOOKUP($B23,Filtered!$A$1:$AJ$700,9,FALSE)),"") ->  | W23: =IFERROR(IF((OR($C23="RP",$C23="SP")),"",VLOOKUP($B23,Filtered!$A$1:$AJ$700,10,FALSE)),"") ->  | X23: =IFERROR(IF((OR($C23="RP",$C23="SP")),"",VLOOKUP($B23,Filtered!$A$1:$AJ$700,4,FALSE)),"") ->  | Y23: =IFERROR(IF((OR($C23="RP",$C23="SP")),"",VLOOKUP($B23,Filtered!$A$1:$AJ$700,11,FALSE)),"") ->  | Z23: =IFERROR(IF(ISTEXT($A23),"",(1-NORMDIST((COUNTA($A$6:$A$745)),($G23),((AE23-AD23)/6),TRUE))),"") -> 0.9999904209 | AA23: =IFERROR(IF(ISTEXT($A23),"",(1-NORMDIST((COUNTA($A$6:$A$745))+(Personalize!$E$18+1),$G23,((AE23-AD23)/6),TRUE))),"") -> 0.9998076366 | AB23: =IFERROR(IF(ISTEXT($A23),"",(1-NORMDIST((COUNTA($A$6:$A$745))+((Personalize!$E$18+1)*2),$G23,((AE23-AD23)/6),TRUE))),"") -> 0.9976448585 | AD23: =CHOOSE(Personalize!$E$38,VLOOKUP($B23,'ADP-Rank'!$A$2:$AJ$620,8,FALSE),VLOOKUP($B23,'ADP-Rank'!$A$2:$AJ$620,11,FALSE),VLOOKUP($B23,'ADP-Rank'!$A$2:$AO$620,14,FALSE),VLOOKUP($B23,'ADP-Rank'!$A$2:$BD$620,17,FALSE),VLOOKUP($B23,'ADP-Rank'!$A$2:$BD$620,20,FALSE),VLOOKUP($B23,'ADP-Rank'!$A$2:$BD$620,23,FALSE),VLOOKUP($B23,'ADP-Rank'!$A$2:$BD$620,26,FALSE),VLOOKUP($B23,'ADP-Rank'!$A$2:$BD$620,29,FALSE),VLOOKUP($B23,'ADP-Rank'!$A$2:$BD$620,46,FALSE)) -> 10 | AE23: =CHOOSE(Personalize!$E$38,VLOOKUP($B23,'ADP-Rank'!$A$2:$AJ$620,9,FALSE),VLOOKUP($B23,'ADP-Rank'!$A$2:$AJ$620,12,FALSE),VLOOKUP($B23,'ADP-Rank'!$A$2:$AO$620,15,FALSE),VLOOKUP($B23,'ADP-Rank'!$A$2:$BD$620,18,FALSE),VLOOKUP($B23,'ADP-Rank'!$A$2:$BD$620,21,FALSE),VLOOKUP($B23,'ADP-Rank'!$A$2:$BD$620,24,FALSE),VLOOKUP($B23,'ADP-Rank'!$A$2:$BD$620,27,FALSE),VLOOKUP($B23,'ADP-Rank'!$A$2:$BD$620,30,FALSE),VLOOKUP($B23,'ADP-Rank'!$A$2:$BD$620,47,FALSE)) -> 39 | AF23: =IF(ISBLANK(A23),0,1) -> 0 | AG23: =IF(K23="",0,1) -> 1 | AH23: =A23 -> 0 | AI23: =IF(C23="C",1,IF(C23="1B",2,IF(C23="2B",3,IF(C23="3B",4,IF(C23="SS",5,IF(C23="CI",6,IF(C23="MI",7,IF(C23="OF",11,IF(C23="LF",8,IF(C23="CF",9,IF(C23="RF",10,IF(C23="DH",12,IF(C23="SP",13,IF(C23="RP",14,IF(C23="P",15,16))))))))))))))) -> 13 | AJ23: =VLOOKUP(B23,'Starter Calc'!$B$2:$BR$700,69,FALSE) -> Starter | AK23: =IFERROR(VLOOKUP($B23,'ADP-Rank'!$A$2:$AZ$620,40,FALSE),TRUE) -> TRUE | AL23: 1
B24: Jon Lester | C24: SP | D24: =IFERROR(IF(VLOOKUP(B24,'Starter Calc'!$B$2:$E$700,4,FALSE)="","",VLOOKUP(B24,'Starter Calc'!$B$2:$E$700,4,FALSE)),"") -> ,, | E24: =IFERROR(VLOOKUP($B24,'ADP-Rank'!$A$2:$G$620,5,FALSE),"") -> CHC | F24: =IFERROR(VLOOKUP($B24,'ADP-Rank'!$A$2:$W$620,6,FALSE),"") -> 31 | G24: =IFERROR(CHOOSE(Personalize!$E$38,VLOOKUP($B24,'ADP-Rank'!$A$2:$CD$620,7,FALSE),VLOOKUP($B24,'ADP-Rank'!$A$2:$CD$620,10,FALSE),VLOOKUP($B24,'ADP-Rank'!$A$2:$CD$620,13,FALSE),VLOOKUP($B24,'ADP-Rank'!$A$2:$CD$620,16,FALSE),VLOOKUP($B24,'ADP-Rank'!$A$2:$CD$620,19,FALSE),VLOOKUP($B24,'ADP-Rank'!$A$2:$CD$620,22,FALSE),VLOOKUP($B24,'ADP-Rank'!$A$2:$CD$620,25,FALSE),VLOOKUP($B24,'ADP-Rank'!$A$2:$CD$620,28,FALSE),VLOOKUP($B24,'ADP-Rank'!$A$2:$CD$620,45,FALSE)),"") -> 20.87 | H24: =IFERROR(ROUNDDOWN(VLOOKUP($B24,'ADP-Rank'!$A$2:$BC$674,44,FALSE),0),"") -> 2 | I24: =VLOOKUP($B24,'ADP-Rank'!$A$2:$AP$674,42,FALSE) -> 42 | J24: =IFERROR(RANK($M24,$M$6:$M$745,0),"") -> 28 | K24: =IFERROR(IF((OR($C24="RP",$C24="SP")),VLOOKUP($B24,'Filtered-P'!$A$1:$AB$700,12,FALSE),(VLOOKUP($B24,Filtered!$A$1:$AB$700,18,FALSE))),"") -> 399.4533961 | L24: =IFERROR(IF((OR($C24="RP",$C24="SP")),VLOOKUP($C24,'Filtered-P'!$U$3:$X$4,4,FALSE), VLOOKUP($C24,Filtered!$U$3:$X$14,4,FALSE)),"") -> 262.4844351 | M24: =IFERROR(($K24-$L24)/IF(OR($C24="SP",$C24="RP"),VLOOKUP($C24,'Filtered-P'!$U$3:$AB$4,8,FALSE),VLOOKUP($C24,Filtered!$U$3:$AB$10,8,FALSE)),"") -> 1.503101904 | N24: =IFERROR(IF((OR($C24="RP",$C24="SP")),"",(VLOOKUP($B24,Filtered!$A$1:$AB$700,18,FALSE)/VLOOKUP($B24,Filtered!$A$1:$AB$700,2,FALSE))),"") ->  | O24: =IFERROR(IF((OR($C24="RP",$C24="SP")),VLOOKUP($B24,'Filtered-P'!$A$1:$AB$700,12,FALSE)/VLOOKUP($B24,'Filtered-P'!$A$1:$AB$700,4,FALSE),""),"") -> 1.969148696 | P24: =IFERROR(IF((OR($C24="RP",$C24="SP")),VLOOKUP($B24,'Filtered-P'!$A$1:$X$700,2,FALSE),""),"") -> 13.38067839 | Q24: =IFERROR(IF((OR($C24="RP",$C24="SP")),VLOOKUP($B24,'Filtered-P'!$A$1:$X$700,9,FALSE),""),"") -> 0 | R24: =IFERROR(IF((OR($C24="RP",$C24="SP")),VLOOKUP($B24,'Filtered-P'!$A$1:$X$700,7,FALSE),""),"") -> 191.4087073 | S24: =IFERROR(IF((OR($C24="RP",$C24="SP")),VLOOKUP($B24,'Filtered-P'!$A$1:$AD$700,13,FALSE),""),"") -> 3.245412494 | T24: =IFERROR(IF((OR($C24="RP",$C24="SP")),VLOOKUP($B24,'Filtered-P'!$A$1:$X$700,14,FALSE),""),"") -> 1.16075532 | U24: =IFERROR(IF((OR($C24="RP",$C24="SP")),"",VLOOKUP($B24,Filtered!$A$1:$AJ$700,20,FALSE)),"") ->  | V24: =IFERROR(IF((OR($C24="RP",$C24="SP")),"",VLOOKUP($B24,Filtered!$A$1:$AJ$700,9,FALSE)),"") ->  | W24: =IFERROR(IF((OR($C24="RP",$C24="SP")),"",VLOOKUP($B24,Filtered!$A$1:$AJ$700,10,FALSE)),"") ->  | X24: =IFERROR(IF((OR($C24="RP",$C24="SP")),"",VLOOKUP($B24,Filtered!$A$1:$AJ$700,4,FALSE)),"") ->  | Y24: =IFERROR(IF((OR($C24="RP",$C24="SP")),"",VLOOKUP($B24,Filtered!$A$1:$AJ$700,11,FALSE)),"") ->  | Z24: =IFERROR(IF(ISTEXT($A24),"",(1-NORMDIST((COUNTA($A$6:$A$745)),($G24),((AE24-AD24)/6),TRUE))),"") -> 0.9999992682 | AA24: =IFERROR(IF(ISTEXT($A24),"",(1-NORMDIST((COUNTA($A$6:$A$745))+(Personalize!$E$18+1),$G24,((AE24-AD24)/6),TRUE))),"") -> 0.9999694422 | AB24: =IFERROR(IF(ISTEXT($A24),"",(1-NORMDIST((COUNTA($A$6:$A$745))+((Personalize!$E$18+1)*2),$G24,((AE24-AD24)/6),TRUE))),"") -> 0.9993146937 | AD24: =CHOOSE(Personalize!$E$38,VLOOKUP($B24,'ADP-Rank'!$A$2:$AJ$620,8,FALSE),VLOOKUP($B24,'ADP-Rank'!$A$2:$AJ$620,11,FALSE),VLOOKUP($B24,'ADP-Rank'!$A$2:$AO$620,14,FALSE),VLOOKUP($B24,'ADP-Rank'!$A$2:$BD$620,17,FALSE),VLOOKUP($B24,'ADP-Rank'!$A$2:$BD$620,20,FALSE),VLOOKUP($B24,'ADP-Rank'!$A$2:$BD$620,23,FALSE),VLOOKUP($B24,'ADP-Rank'!$A$2:$BD$620,26,FALSE),VLOOKUP($B24,'ADP-Rank'!$A$2:$BD$620,29,FALSE),VLOOKUP($B24,'ADP-Rank'!$A$2:$BD$620,46,FALSE)) -> 11 | AE24: =CHOOSE(Personalize!$E$38,VLOOKUP($B24,'ADP-Rank'!$A$2:$AJ$620,9,FALSE),VLOOKUP($B24,'ADP-Rank'!$A$2:$AJ$620,12,FALSE),VLOOKUP($B24,'ADP-Rank'!$A$2:$AO$620,15,FALSE),VLOOKUP($B24,'ADP-Rank'!$A$2:$BD$620,18,FALSE),VLOOKUP($B24,'ADP-Rank'!$A$2:$BD$620,21,FALSE),VLOOKUP($B24,'ADP-Rank'!$A$2:$BD$620,24,FALSE),VLOOKUP($B24,'ADP-Rank'!$A$2:$BD$620,27,FALSE),VLOOKUP($B24,'ADP-Rank'!$A$2:$BD$620,30,FALSE),VLOOKUP($B24,'ADP-Rank'!$A$2:$BD$620,47,FALSE)) -> 37 | AF24: =IF(ISBLANK(A24),0,1) -> 0 | AG24: =IF(K24="",0,1) -> 1 | AH24: =A24 -> 0 | AI24: =IF(C24="C",1,IF(C24="1B",2,IF(C24="2B",3,IF(C24="3B",4,IF(C24="SS",5,IF(C24="CI",6,IF(C24="MI",7,IF(C24="OF",11,IF(C24="LF",8,IF(C24="CF",9,IF(C24="RF",10,IF(C24="DH",12,IF(C24="SP",13,IF(C24="RP",14,IF(C24="P",15,16))))))))))))))) -> 13 | AJ24: =VLOOKUP(B24,'Starter Calc'!$B$2:$BR$700,69,FALSE) -> Starter | AK24: =IFERROR(VLOOKUP($B24,'ADP-Rank'!$A$2:$AZ$620,40,FALSE),TRUE) -> TRUE | AL24: 1
B25: Troy Tulowitzki | C25: SS | D25: =IFERROR(IF(VLOOKUP(B25,'Starter Calc'!$B$2:$E$700,4,FALSE)="","",VLOOKUP(B25,'Starter Calc'!$B$2:$E$700,4,FALSE)),"") -> ,, | E25: =IFERROR(VLOOKUP($B25,'ADP-Rank'!$A$2:$G$620,5,FALSE),"") -> COL | F25: =IFERROR(VLOOKUP($B25,'ADP-Rank'!$A$2:$W$620,6,FALSE),"") -> 30 | G25: =IFERROR(CHOOSE(Personalize!$E$38,VLOOKUP($B25,'ADP-Rank'!$A$2:$CD$620,7,FALSE),VLOOKUP($B25,'ADP-Rank'!$A$2:$CD$620,10,FALSE),VLOOKUP($B25,'ADP-Rank'!$A$2:$CD$620,13,FALSE),VLOOKUP($B25,'ADP-Rank'!$A$2:$CD$620,16,FALSE),VLOOKUP($B25,'ADP-Rank'!$A$2:$CD$620,19,FALSE),VLOOKUP($B25,'ADP-Rank'!$A$2:$CD$620,22,FALSE),VLOOKUP($B25,'ADP-Rank'!$A$2:$CD$620,25,FALSE),VLOOKUP($B25,'ADP-Rank'!$A$2:$CD$620,28,FALSE),VLOOKUP($B25,'ADP-Rank'!$A$2:$CD$620,45,FALSE)),"") -> 22.66 | H25: =IFERROR(ROUNDDOWN(VLOOKUP($B25,'ADP-Rank'!$A$2:$BC$674,44,FALSE),0),"") -> 2 | I25: =VLOOKUP($B25,'ADP-Rank'!$A$2:$AP$674,42,FALSE) -> 16 | J25: =IFERROR(RANK($M25,$M$6:$M$745,0),"") -> 1 | K25: =IFERROR(IF((OR($C25="RP",$C25="SP")),VLOOKUP($B25,'Filtered-P'!$A$1:$AB$700,12,FALSE),(VLOOKUP($B25,Filtered!$A$1:$AB$700,18,FALSE))),"") -> 343.9904716 | L25: =IFERROR(IF((OR($C25="RP",$C25="SP")),VLOOKUP($C25,'Filtered-P'!$U$3:$X$4,4,FALSE), VLOOKUP($C25,Filtered!$U$3:$X$14,4,FALSE)),"") -> 244.1329542 | M25: =IFERROR(($K25-$L25)/IF(OR($C25="SP",$C25="RP"),VLOOKUP($C25,'Filtered-P'!$U$3:$AB$4,8,FALSE),VLOOKUP($C25,Filtered!$U$3:$AB$10,8,FALSE)),"") -> 4.727638516 | N25: =IFERROR(IF((OR($C25="RP",$C25="SP")),"",(VLOOKUP($B25,Filtered!$A$1:$AB$700,18,FALSE)/VLOOKUP($B25,Filtered!$A$1:$AB$700,2,FALSE))),"") -> 0.6933050315 | O25: =IFERROR(IF((OR($C25="RP",$C25="SP")),VLOOKUP($B25,'Filtered-P'!$A$1:$AB$700,12,FALSE)/VLOOKUP($B25,'Filtered-P'!$A$1:$AB$700,4,FALSE),""),"") ->  | P25: =IFERROR(IF((OR($C25="RP",$C25="SP")),VLOOKUP($B25,'Filtered-P'!$A$1:$X$700,2,FALSE),""),"") ->  | Q25: =IFERROR(IF((OR($C25="RP",$C25="SP")),VLOOKUP($B25,'Filtered-P'!$A$1:$X$700,9,FALSE),""),"") ->  | R25: =IFERROR(IF((OR($C25="RP",$C25="SP")),VLOOKUP($B25,'Filtered-P'!$A$1:$X$700,7,FALSE),""),"") ->  | S25: =IFERROR(IF((OR($C25="RP",$C25="SP")),VLOOKUP($B25,'Filtered-P'!$A$1:$AD$700,13,FALSE),""),"") ->  | T25: =IFERROR(IF((OR($C25="RP",$C25="SP")),VLOOKUP($B25,'Filtered-P'!$A$1:$X$700,14,FALSE),""),"") ->  | U25: =IFERROR(IF((OR($C25="RP",$C25="SP")),"",VLOOKUP($B25,Filtered!$A$1:$AJ$700,20,FALSE)),"") -> 0.2983486226 | V25: =IFERROR(IF((OR($C25="RP",$C25="SP")),"",VLOOKUP($B25,Filtered!$A$1:$AJ$700,9,FALSE)),"") -> 23.6764031 | W25: =IFERROR(IF((OR($C25="RP",$C25="SP")),"",VLOOKUP($B25,Filtered!$A$1:$AJ$700,10,FALSE)),"") -> 74.37657621 | X25: =IFERROR(IF((OR($C25="RP",$C25="SP")),"",VLOOKUP($B25,Filtered!$A$1:$AJ$700,4,FALSE)),"") -> 73.43398562 | Y25: =IFERROR(IF((OR($C25="RP",$C25="SP")),"",VLOOKUP($B25,Filtered!$A$1:$AJ$700,11,FALSE)),"") -> 3.184331137 | Z25: =IFERROR(IF(ISTEXT($A25),"",(1-NORMDIST((COUNTA($A$6:$A$745)),($G25),((AE25-AD25)/6),TRUE))),"") -> 0.9996618364 | AA25: =IFERROR(IF(ISTEXT($A25),"",(1-NORMDIST((COUNTA($A$6:$A$745))+(Personalize!$E$18+1),$G25,((AE25-AD25)/6),TRUE))),"") -> 0.9979734552 | AB25: =IFERROR(IF(ISTEXT($A25),"",(1-NORMDIST((COUNTA($A$6:$A$745))+((Personalize!$E$18+1)*2),$G25,((AE25-AD25)/6),TRUE))),"") -> 0.9905880466 | AD25: =CHOOSE(Personalize!$E$38,VLOOKUP($B25,'ADP-Rank'!$A$2:$AJ$620,8,FALSE),VLOOKUP($B25,'ADP-Rank'!$A$2:$AJ$620,11,FALSE),VLOOKUP($B25,'ADP-Rank'!$A$2:$AO$620,14,FALSE),VLOOKUP($B25,'ADP-Rank'!$A$2:$BD$620,17,FALSE),VLOOKUP($B25,'ADP-Rank'!$A$2:$BD$620,20,FALSE),VLOOKUP($B25,'ADP-Rank'!$A$2:$BD$620,23,FALSE),VLOOKUP($B25,'ADP-Rank'!$A$2:$BD$620,26,FALSE),VLOOKUP($B25,'ADP-Rank'!$A$2:$BD$620,29,FALSE),VLOOKUP($B25,'ADP-Rank'!$A$2:$BD$620,46,FALSE)) -> 8 | AE25: =CHOOSE(Personalize!$E$38,VLOOKUP($B25,'ADP-Rank'!$A$2:$AJ$620,9,FALSE),VLOOKUP($B25,'ADP-Rank'!$A$2:$AJ$620,12,FALSE),VLOOKUP($B25,'ADP-Rank'!$A$2:$AO$620,15,FALSE),VLOOKUP($B25,'ADP-Rank'!$A$2:$BD$620,18,FALSE),VLOOKUP($B25,'ADP-Rank'!$A$2:$BD$620,21,FALSE),VLOOKUP($B25,'ADP-Rank'!$A$2:$BD$620,24,FALSE),VLOOKUP($B25,'ADP-Rank'!$A$2:$BD$620,27,FALSE),VLOOKUP($B25,'ADP-Rank'!$A$2:$BD$620,30,FALSE),VLOOKUP($B25,'ADP-Rank'!$A$2:$BD$620,47,FALSE)) -> 48 | AF25: =IF(ISBLANK(A25),0,1) -> 0 | AG25: =IF(K25="",0,1) -> 1 | AH25: =A25 -> 0 | AI25: =IF(C25="C",1,IF(C25="1B",2,IF(C25="2B",3,IF(C25="3B",4,IF(C25="SS",5,IF(C25="CI",6,IF(C25="MI",7,IF(C25="OF",11,IF(C25="LF",8,IF(C25="CF",9,IF(C25="RF",10,IF(C25="DH",12,IF(C25="SP",13,IF(C25="RP",14,IF(C25="P",15,16))))))))))))))) -> 5 | AJ25: =VLOOKUP(B25,'Starter Calc'!$B$2:$BR$700,69,FALSE) -> Bench | AK25: =IFERROR(VLOOKUP($B25,'ADP-Rank'!$A$2:$AZ$620,40,FALSE),TRUE) -> TRUE | AL25: 0
B26: Josh Donaldson | C26: 3B | D26: =IFERROR(IF(VLOOKUP(B26,'Starter Calc'!$B$2:$E$700,4,FALSE)="","",VLOOKUP(B26,'Starter Calc'!$B$2:$E$700,4,FALSE)),"") -> ,, | E26: =IFERROR(VLOOKUP($B26,'ADP-Rank'!$A$2:$G$620,5,FALSE),"") -> TOR | F26: =IFERROR(VLOOKUP($B26,'ADP-Rank'!$A$2:$W$620,6,FALSE),"") -> 29 | G26: =IFERROR(CHOOSE(Personalize!$E$38,VLOOKUP($B26,'ADP-Rank'!$A$2:$CD$620,7,FALSE),VLOOKUP($B26,'ADP-Rank'!$A$2:$CD$620,10,FALSE),VLOOKUP($B26,'ADP-Rank'!$A$2:$CD$620,13,FALSE),VLOOKUP($B26,'ADP-Rank'!$A$2:$CD$620,16,FALSE),VLOOKUP($B26,'ADP-Rank'!$A$2:$CD$620,19,FALSE),VLOOKUP($B26,'ADP-Rank'!$A$2:$CD$620,22,FALSE),VLOOKUP($B26,'ADP-Rank'!$A$2:$CD$620,25,FALSE),VLOOKUP($B26,'ADP-Rank'!$A$2:$CD$620,28,FALSE),VLOOKUP($B26,'ADP-Rank'!$A$2:$CD$620,45,FALSE)),"") -> 23.44 | H26: =IFERROR(ROUNDDOWN(VLOOKUP($B26,'ADP-Rank'!$A$2:$BC$674,44,FALSE),0),"") -> 2 | I26: =VLOOKUP($B26,'ADP-Rank'!$A$2:$AP$674,42,FALSE) -> 45 | J26: =IFERROR(RANK($M26,$M$6:$M$745,0),"") -> 45 | K26: =IFERROR(IF((OR($C26="RP",$C26="SP")),VLOOKUP($B26,'Filtered-P'!$A$1:$AB$700,12,FALSE),(VLOOKUP($B26,Filtered!$A$1:$AB$700,18,FALSE))),"") -> 344.5514041 | L26: =IFERROR(IF((OR($C26="RP",$C26="SP")),VLOOKUP($C26,'Filtered-P'!$U$3:$X$4,4,FALSE), VLOOKUP($C26,Filtered!$U$3:$X$14,4,FALSE)),"") -> 297.570217 | M26: =IFERROR(($K26-$L26)/IF(OR($C26="SP",$C26="RP"),VLOOKUP($C26,'Filtered-P'!$U$3:$AB$4,8,FALSE),VLOOKUP($C26,Filtered!$U$3:$AB$10,8,FALSE)),"") -> 1.068912544 | N26: =IFERROR(IF((OR($C26="RP",$C26="SP")),"",(VLOOKUP($B26,Filtered!$A$1:$AB$700,18,FALSE)/VLOOKUP($B26,Filtered!$A$1:$AB$700,2,FALSE))),"") -> 0.55562468 | O26: =IFERROR(IF((OR($C26="RP",$C26="SP")),VLOOKUP($B26,'Filtered-P'!$A$1:$AB$700,12,FALSE)/VLOOKUP($B26,'Filtered-P'!$A$1:$AB$700,4,FALSE),""),"") ->  | P26: =IFERROR(IF((OR($C26="RP",$C26="SP")),VLOOKUP($B26,'Filtered-P'!$A$1:$X$700,2,FALSE),""),"") ->  | Q26: =IFERROR(IF((OR($C26="RP",$C26="SP")),VLOOKUP($B26,'Filtered-P'!$A$1:$X$700,9,FALSE),""),"") ->  | R26: =IFERROR(IF((OR($C26="RP",$C26="SP")),VLOOKUP($B26,'Filtered-P'!$A$1:$X$700,7,FALSE),""),"") ->  | S26: =IFERROR(IF((OR($C26="RP",$C26="SP")),VLOOKUP($B26,'Filtered-P'!$A$1:$AD$700,13,FALSE),""),"") ->  | T26: =IFERROR(IF((OR($C26="RP",$C26="SP")),VLOOKUP($B26,'Filtered-P'!$A$1:$X$700,14,FALSE),""),"") ->  | U26: =IFERROR(IF((OR($C26="RP",$C26="SP")),"",VLOOKUP($B26,Filtered!$A$1:$AJ$700,20,FALSE)),"") -> 0.2637197986 | V26: =IFERROR(IF((OR($C26="RP",$C26="SP")),"",VLOOKUP($B26,Filtered!$A$1:$AJ$700,9,FALSE)),"") -> 26.22485219 | W26: =IFERROR(IF((OR($C26="RP",$C26="SP")),"",VLOOKUP($B26,Filtered!$A$1:$AJ$700,10,FALSE)),"") -> 85.26298858 | X26: =IFERROR(IF((OR($C26="RP",$C26="SP")),"",VLOOKUP($B26,Filtered!$A$1:$AJ$700,4,FALSE)),"") -> 81.97684133 | Y26: =IFERROR(IF((OR($C26="RP",$C26="SP")),"",VLOOKUP($B26,Filtered!$A$1:$AJ$700,11,FALSE)),"") -> 5.851614937 | Z26: =IFERROR(IF(ISTEXT($A26),"",(1-NORMDIST((COUNTA($A$6:$A$745)),($G26),((AE26-AD26)/6),TRUE))),"") -> 0.9999997455 | AA26: =IFERROR(IF(ISTEXT($A26),"",(1-NORMDIST((COUNTA($A$6:$A$745))+(Personalize!$E$18+1),$G26,((AE26-AD26)/6),TRUE))),"") -> 0.9999903508 | AB26: =IFERROR(IF(ISTEXT($A26),"",(1-NORMDIST((COUNTA($A$6:$A$745))+((Personalize!$E$18+1)*2),$G26,((AE26-AD26)/6),TRUE))),"") -> 0.9997865393 | AD26: =CHOOSE(Personalize!$E$38,VLOOKUP($B26,'ADP-Rank'!$A$2:$AJ$620,8,FALSE),VLOOKUP($B26,'ADP-Rank'!$A$2:$AJ$620,11,FALSE),VLOOKUP($B26,'ADP-Rank'!$A$2:$AO$620,14,FALSE),VLOOKUP($B26,'ADP-Rank'!$A$2:$BD$620,17,FALSE),VLOOKUP($B26,'ADP-Rank'!$A$2:$BD$620,20,FALSE),VLOOKUP($B26,'ADP-Rank'!$A$2:$BD$620,23,FALSE),VLOOKUP($B26,'ADP-Rank'!$A$2:$BD$620,26,FALSE),VLOOKUP($B26,'ADP-Rank'!$A$2:$BD$620,29,FALSE),VLOOKUP($B26,'ADP-Rank'!$A$2:$BD$620,46,FALSE)) -> 10 | AE26: =CHOOSE(Personalize!$E$38,VLOOKUP($B26,'ADP-Rank'!$A$2:$AJ$620,9,FALSE),VLOOKUP($B26,'ADP-Rank'!$A$2:$AJ$620,12,FALSE),VLOOKUP($B26,'ADP-Rank'!$A$2:$AO$620,15,FALSE),VLOOKUP($B26,'ADP-Rank'!$A$2:$BD$620,18,FALSE),VLOOKUP($B26,'ADP-Rank'!$A$2:$BD$620,21,FALSE),VLOOKUP($B26,'ADP-Rank'!$A$2:$BD$620,24,FALSE),VLOOKUP($B26,'ADP-Rank'!$A$2:$BD$620,27,FALSE),VLOOKUP($B26,'ADP-Rank'!$A$2:$BD$620,30,FALSE),VLOOKUP($B26,'ADP-Rank'!$A$2:$BD$620,47,FALSE)) -> 38 | AF26: =IF(ISBLANK(A26),0,1) -> 0 | AG26: =IF(K26="",0,1) -> 1 | AH26: =A26 -> 0 | AI26: =IF(C26="C",1,IF(C26="1B",2,IF(C26="2B",3,IF(C26="3B",4,IF(C26="SS",5,IF(C26="CI",6,IF(C26="MI",7,IF(C26="OF",11,IF(C26="LF",8,IF(C26="CF",9,IF(C26="RF",10,IF(C26="DH",12,IF(C26="SP",13,IF(C26="RP",14,IF(C26="P",15,16))))))))))))))) -> 4 | AJ26: =VLOOKUP(B26,'Starter Calc'!$B$2:$BR$700,69,FALSE) -> Bench | AK26: =IFERROR(VLOOKUP($B26,'ADP-Rank'!$A$2:$AZ$620,40,FALSE),TRUE) -> TRUE | AL26: 0
B27: Jose Altuve | C27: 2B | D27: =IFERROR(IF(VLOOKUP(B27,'Starter Calc'!$B$2:$E$700,4,FALSE)="","",VLOOKUP(B27,'Starter Calc'!$B$2:$E$700,4,FALSE)),"") -> ,, | E27: =IFERROR(VLOOKUP($B27,'ADP-Rank'!$A$2:$G$620,5,FALSE),"") -> HOU | F27: =IFERROR(VLOOKUP($B27,'ADP-Rank'!$A$2:$W$620,6,FALSE),"") -> 24 | G27: =IFERROR(CHOOSE(Personalize!$E$38,VLOOKUP($B27,'ADP-Rank'!$A$2:$CD$620,7,FALSE),VLOOKUP($B27,'ADP-Rank'!$A$2:$CD$620,10,FALSE),VLOOKUP($B27,'ADP-Rank'!$A$2:$CD$620,13,FALSE),VLOOKUP($B27,'ADP-Rank'!$A$2:$CD$620,16,FALSE),VLOOKUP($B27,'ADP-Rank'!$A$2:$CD$620,19,FALSE),VLOOKUP($B27,'ADP-Rank'!$A$2:$CD$620,22,FALSE),VLOOKUP($B27,'ADP-Rank'!$A$2:$CD$620,25,FALSE),VLOOKUP($B27,'ADP-Rank'!$A$2:$CD$620,28,FALSE),VLOOKUP($B27,'ADP-Rank'!$A$2:$CD$620,45,FALSE)),"") -> 24.02 | H27: =IFERROR(ROUNDDOWN(VLOOKUP($B27,'ADP-Rank'!$A$2:$BC$674,44,FALSE),0),"") -> 2 | I27: =VLOOKUP($B27,'ADP-Rank'!$A$2:$AP$674,42,FALSE) -> 28 | J27: =IFERROR(RANK($M27,$M$6:$M$745,0),"") -> 30 | K27: =IFERROR(IF((OR($C27="RP",$C27="SP")),VLOOKUP($B27,'Filtered-P'!$A$1:$AB$700,12,FALSE),(VLOOKUP($B27,Filtered!$A$1:$AB$700,18,FALSE))),"") -> 363.4517804 | L27: =IFERROR(IF((OR($C27="RP",$C27="SP")),VLOOKUP($C27,'Filtered-P'!$U$3:$X$4,4,FALSE), VLOOKUP($C27,Filtered!$U$3:$X$14,4,FALSE)),"") -> 275.8634602 | M27: =IFERROR(($K27-$L27)/IF(OR($C27="SP",$C27="RP"),VLOOKUP($C27,'Filtered-P'!$U$3:$AB$4,8,FALSE),VLOOKUP($C27,Filtered!$U$3:$AB$10,8,FALSE)),"") -> 1.411847934 | N27: =IFERROR(IF((OR($C27="RP",$C27="SP")),"",(VLOOKUP($B27,Filtered!$A$1:$AB$700,18,FALSE)/VLOOKUP($B27,Filtered!$A$1:$AB$700,2,FALSE))),"") -> 0.549464286 | O27: =IFERROR(IF((OR($C27="RP",$C27="SP")),VLOOKUP($B27,'Filtered-P'!$A$1:$AB$700,12,FALSE)/VLOOKUP($B27,'Filtered-P'!$A$1:$AB$700,4,FALSE),""),"") ->  | P27: =IFERROR(IF((OR($C27="RP",$C27="SP")),VLOOKUP($B27,'Filtered-P'!$A$1:$X$700,2,FALSE),""),"") ->  | Q27: =IFERROR(IF((OR($C27="RP",$C27="SP")),VLOOKUP($B27,'Filtered-P'!$A$1:$X$700,9,FALSE),""),"") ->  | R27: =IFERROR(IF((OR($C27="RP",$C27="SP")),VLOOKUP($B27,'Filtered-P'!$A$1:$X$700,7,FALSE),""),"") ->  | S27: =IFERROR(IF((OR($C27="RP",$C27="SP")),VLOOKUP($B27,'Filtered-P'!$A$1:$AD$700,13,FALSE),""),"") ->  | T27: =IFERROR(IF((OR($C27="RP",$C27="SP")),VLOOKUP($B27,'Filtered-P'!$A$1:$X$700,14,FALSE),""),"") ->  | U27: =IFERROR(IF((OR($C27="RP",$C27="SP")),"",VLOOKUP($B27,Filtered!$A$1:$AJ$700,20,FALSE)),"") -> 0.2958462496 | V27: =IFERROR(IF((OR($C27="RP",$C27="SP")),"",VLOOKUP($B27,Filtered!$A$1:$AJ$700,9,FALSE)),"") -> 7.866308698 | W27: =IFERROR(IF((OR($C27="RP",$C27="SP")),"",VLOOKUP($B27,Filtered!$A$1:$AJ$700,10,FALSE)),"") -> 56.02674588 | X27: =IFERROR(IF((OR($C27="RP",$C27="SP")),"",VLOOKUP($B27,Filtered!$A$1:$AJ$700,4,FALSE)),"") -> 83.43957489 | Y27: =IFERROR(IF((OR($C27="RP",$C27="SP")),"",VLOOKUP($B27,Filtered!$A$1:$AJ$700,11,FALSE)),"") -> 40.38326873 | Z27: =IFERROR(IF(ISTEXT($A27),"",(1-NORMDIST((COUNTA($A$6:$A$745)),($G27),((AE27-AD27)/6),TRUE))),"") -> 0.9999992224 | AA27: =IFERROR(IF(ISTEXT($A27),"",(1-NORMDIST((COUNTA($A$6:$A$745))+(Personalize!$E$18+1),$G27,((AE27-AD27)/6),TRUE))),"") -> 0.9999796966 | AB27: =IFERROR(IF(ISTEXT($A27),"",(1-NORMDIST((COUNTA($A$6:$A$745))+((Personalize!$E$18+1)*2),$G27,((AE27-AD27)/6),TRUE))),"") -> 0.9996679662 | AD27: =CHOOSE(Personalize!$E$38,VLOOKUP($B27,'ADP-Rank'!$A$2:$AJ$620,8,FALSE),VLOOKUP($B27,'ADP-Rank'!$A$2:$AJ$620,11,FALSE),VLOOKUP($B27,'ADP-Rank'!$A$2:$AO$620,14,FALSE),VLOOKUP($B27,'ADP-Rank'!$A$2:$BD$620,17,FALSE),VLOOKUP($B27,'ADP-Rank'!$A$2:$BD$620,20,FALSE),VLOOKUP($B27,'ADP-Rank'!$A$2:$BD$620,23,FALSE),VLOOKUP($B27,'ADP-Rank'!$A$2:$BD$620,26,FALSE),VLOOKUP($B27,'ADP-Rank'!$A$2:$BD$620,29,FALSE),VLOOKUP($B27,'ADP-Rank'!$A$2:$BD$620,46,FALSE)) -> 8 | AE27: =CHOOSE(Personalize!$E$38,VLOOKUP($B27,'ADP-Rank'!$A$2:$AJ$620,9,FALSE),VLOOKUP($B27,'ADP-Rank'!$A$2:$AJ$620,12,FALSE),VLOOKUP($B27,'ADP-Rank'!$A$2:$AO$620,15,FALSE),VLOOKUP($B27,'ADP-Rank'!$A$2:$BD$620,18,FALSE),VLOOKUP($B27,'ADP-Rank'!$A$2:$BD$620,21,FALSE),VLOOKUP($B27,'ADP-Rank'!$A$2:$BD$620,24,FALSE),VLOOKUP($B27,'ADP-Rank'!$A$2:$BD$620,27,FALSE),VLOOKUP($B27,'ADP-Rank'!$A$2:$BD$620,30,FALSE),VLOOKUP($B27,'ADP-Rank'!$A$2:$BD$620,47,FALSE)) -> 38 | AF27: =IF(ISBLANK(A27),0,1) -> 0 | AG27: =IF(K27="",0,1) -> 1 | AH27: =A27 -> 0 | AI27: =IF(C27="C",1,IF(C27="1B",2,IF(C27="2B",3,IF(C27="3B",4,IF(C27="SS",5,IF(C27="CI",6,IF(C27="MI",7,IF(C27="OF",11,IF(C27="LF",8,IF(C27="CF",9,IF(C27="RF",10,IF(C27="DH",12,IF(C27="SP",13,IF(C27="RP",14,IF(C27="P",15,16))))))))))))))) -> 3 | AJ27: =VLOOKUP(B27,'Starter Calc'!$B$2:$BR$700,69,FALSE) -> Bench | AK27: =IFERROR(VLOOKUP($B27,'ADP-Rank'!$A$2:$AZ$620,40,FALSE),TRUE) -> TRUE | AL27: 0
B28: Anthony Rizzo | C28: 1B | D28: =IFERROR(IF(VLOOKUP(B28,'Starter Calc'!$B$2:$E$700,4,FALSE)="","",VLOOKUP(B28,'Starter Calc'!$B$2:$E$700,4,FALSE)),"") -> ,RF, | E28: =IFERROR(VLOOKUP($B28,'ADP-Rank'!$A$2:$G$620,5,FALSE),"") -> CHC | F28: =IFERROR(VLOOKUP($B28,'ADP-Rank'!$A$2:$W$620,6,FALSE),"") -> 25 | G28: =IFERROR(CHOOSE(Personalize!$E$38,VLOOKUP($B28,'ADP-Rank'!$A$2:$CD$620,7,FALSE),VLOOKUP($B28,'ADP-Rank'!$A$2:$CD$620,10,FALSE),VLOOKUP($B28,'ADP-Rank'!$A$2:$CD$620,13,FALSE),VLOOKUP($B28,'ADP-Rank'!$A$2:$CD$620,16,FALSE),VLOOKUP($B28,'ADP-Rank'!$A$2:$CD$620,19,FALSE),VLOOKUP($B28,'ADP-Rank'!$A$2:$CD$620,22,FALSE),VLOOKUP($B28,'ADP-Rank'!$A$2:$CD$620,25,FALSE),VLOOKUP($B28,'ADP-Rank'!$A$2:$CD$620,28,FALSE),VLOOKUP($B28,'ADP-Rank'!$A$2:$CD$620,45,FALSE)),"") -> 24.51 | H28: =IFERROR(ROUNDDOWN(VLOOKUP($B28,'ADP-Rank'!$A$2:$BC$674,44,FALSE),0),"") -> 2 | I28: =VLOOKUP($B28,'ADP-Rank'!$A$2:$AP$674,42,FALSE) -> 34 | J28: =IFERROR(RANK($M28,$M$6:$M$745,0),"") -> 50 | K28: =IFERROR(IF((OR($C28="RP",$C28="SP")),VLOOKUP($B28,'Filtered-P'!$A$1:$AB$700,12,FALSE),(VLOOKUP($B28,Filtered!$A$1:$AB$700,18,FALSE))),"") -> 393.6073515 | L28: =IFERROR(IF((OR($C28="RP",$C28="SP")),VLOOKUP($C28,'Filtered-P'!$U$3:$X$4,4,FALSE), VLOOKUP($C28,Filtered!$U$3:$X$14,4,FALSE)),"") -> 341.0043912 | M28: =IFERROR(($K28-$L28)/IF(OR($C28="SP",$C28="RP"),VLOOKUP($C28,'Filtered-P'!$U$3:$AB$4,8,FALSE),VLOOKUP($C28,Filtered!$U$3:$AB$10,8,FALSE)),"") -> 1.003647145 | N28: =IFERROR(IF((OR($C28="RP",$C28="SP")),"",(VLOOKUP($B28,Filtered!$A$1:$AB$700,18,FALSE)/VLOOKUP($B28,Filtered!$A$1:$AB$700,2,FALSE))),"") -> 0.6277116694 | O28: =IFERROR(IF((OR($C28="RP",$C28="SP")),VLOOKUP($B28,'Filtered-P'!$A$1:$AB$700,12,FALSE)/VLOOKUP($B28,'Filtered-P'!$A$1:$AB$700,4,FALSE),""),"") ->  | P28: =IFERROR(IF((OR($C28="RP",$C28="SP")),VLOOKUP($B28,'Filtered-P'!$A$1:$X$700,2,FALSE),""),"") ->  | Q28: =IFERROR(IF((OR($C28="RP",$C28="SP")),VLOOKUP($B28,'Filtered-P'!$A$1:$X$700,9,FALSE),""),"") ->  | R28: =IFERROR(IF((OR($C28="RP",$C28="SP")),VLOOKUP($B28,'Filtered-P'!$A$1:$X$700,7,FALSE),""),"") ->  | S28: =IFERROR(IF((OR($C28="RP",$C28="SP")),VLOOKUP($B28,'Filtered-P'!$A$1:$AD$700,13,FALSE),""),"") ->  | T28: =IFERROR(IF((OR($C28="RP",$C28="SP")),VLOOKUP($B28,'Filtered-P'!$A$1:$X$700,14,FALSE),""),"") ->  | U28: =IFERROR(IF((OR($C28="RP",$C28="SP")),"",VLOOKUP($B28,Filtered!$A$1:$AJ$700,20,FALSE)),"") -> 0.2688367275 | V28: =IFERROR(IF((OR($C28="RP",$C28="SP")),"",VLOOKUP($B28,Filtered!$A$1:$AJ$700,9,FALSE)),"") -> 30.5624841 | W28: =IFERROR(IF((OR($C28="RP",$C28="SP")),"",VLOOKUP($B28,Filtered!$A$1:$AJ$700,10,FALSE)),"") -> 88.06121645 | X28: =IFERROR(IF((OR($C28="RP",$C28="SP")),"",VLOOKUP($B28,Filtered!$A$1:$AJ$700,4,FALSE)),"") -> 86.80446881 | Y28: =IFERROR(IF((OR($C28="RP",$C28="SP")),"",VLOOKUP($B28,Filtered!$A$1:$AJ$700,11,FALSE)),"") -> 5.131627921 | Z28: =IFERROR(IF(ISTEXT($A28),"",(1-NORMDIST((COUNTA($A$6:$A$745)),($G28),((AE28-AD28)/6),TRUE))),"") -> 0.9999999248 | AA28: =IFERROR(IF(ISTEXT($A28),"",(1-NORMDIST((COUNTA($A$6:$A$745))+(Personalize!$E$18+1),$G28,((AE28-AD28)/6),TRUE))),"") -> 0.9999966364 | AB28: =IFERROR(IF(ISTEXT($A28),"",(1-NORMDIST((COUNTA($A$6:$A$745))+((Personalize!$E$18+1)*2),$G28,((AE28-AD28)/6),TRUE))),"") -> 0.9999123352 | AD28: =CHOOSE(Personalize!$E$38,VLOOKUP($B28,'ADP-Rank'!$A$2:$AJ$620,8,FALSE),VLOOKUP($B28,'ADP-Rank'!$A$2:$AJ$620,11,FALSE),VLOOKUP($B28,'ADP-Rank'!$A$2:$AO$620,14,FALSE),VLOOKUP($B28,'ADP-Rank'!$A$2:$BD$620,17,FALSE),VLOOKUP($B28,'ADP-Rank'!$A$2:$BD$620,20,FALSE),VLOOKUP($B28,'ADP-Rank'!$A$2:$BD$620,23,FALSE),VLOOKUP($B28,'ADP-Rank'!$A$2:$BD$620,26,FALSE),VLOOKUP($B28,'ADP-Rank'!$A$2:$BD$620,29,FALSE),VLOOKUP($B28,'ADP-Rank'!$A$2:$BD$620,46,FALSE)) -> 11 | AE28: =CHOOSE(Personalize!$E$38,VLOOKUP($B28,'ADP-Rank'!$A$2:$AJ$620,9,FALSE),VLOOKUP($B28,'ADP-Rank'!$A$2:$AJ$620,12,FALSE),VLOOKUP($B28,'ADP-Rank'!$A$2:$AO$620,15,FALSE),VLOOKUP($B28,'ADP-Rank'!$A$2:$BD$620,18,FALSE),VLOOKUP($B28,'ADP-Rank'!$A$2:$BD$620,21,FALSE),VLOOKUP($B28,'ADP-Rank'!$A$2:$BD$620,24,FALSE),VLOOKUP($B28,'ADP-Rank'!$A$2:$BD$620,27,FALSE),VLOOKUP($B28,'ADP-Rank'!$A$2:$BD$620,30,FALSE),VLOOKUP($B28,'ADP-Rank'!$A$2:$BD$620,47,FALSE)) -> 39 | AF28: =IF(ISBLANK(A28),0,1) -> 0 | AG28: =IF(K28="",0,1) -> 1 | AH28: =A28 -> 0 | AI28: =IF(C28="C",1,IF(C28="1B",2,IF(C28="2B",3,IF(C28="3B",4,IF(C28="SS",5,IF(C28="CI",6,IF(C28="MI",7,IF(C28="OF",11,IF(C28="LF",8,IF(C28="CF",9,IF(C28="RF",10,IF(C28="DH",12,IF(C28="SP",13,IF(C28="RP",14,IF(C28="P",15,16))))))))))))))) -> 2 | AJ28: =VLOOKUP(B28,'Starter Calc'!$B$2:$BR$700,69,FALSE) -> Bench | AK28: =IFERROR(VLOOKUP($B28,'ADP-Rank'!$A$2:$AZ$620,40,FALSE),TRUE) -> TRUE | AL28: 0
B29: Cole Hamels | C29: SP | D29: =IFERROR(IF(VLOOKUP(B29,'Starter Calc'!$B$2:$E$700,4,FALSE)="","",VLOOKUP(B29,'Starter Calc'!$B$2:$E$700,4,FALSE)),"") -> ,, | E29: =IFERROR(VLOOKUP($B29,'ADP-Rank'!$A$2:$G$620,5,FALSE),"") -> PHI | F29: =IFERROR(VLOOKUP($B29,'ADP-Rank'!$A$2:$W$620,6,FALSE),"") -> 31 | G29: =IFERROR(CHOOSE(Personalize!$E$38,VLOOKUP($B29,'ADP-Rank'!$A$2:$CD$620,7,FALSE),VLOOKUP($B29,'ADP-Rank'!$A$2:$CD$620,10,FALSE),VLOOKUP($B29,'ADP-Rank'!$A$2:$CD$620,13,FALSE),VLOOKUP($B29,'ADP-Rank'!$A$2:$CD$620,16,FALSE),VLOOKUP($B29,'ADP-Rank'!$A$2:$CD$620,19,FALSE),VLOOKUP($B29,'ADP-Rank'!$A$2:$CD$620,22,FALSE),VLOOKUP($B29,'ADP-Rank'!$A$2:$CD$620,25,FALSE),VLOOKUP($B29,'ADP-Rank'!$A$2:$CD$620,28,FALSE),VLOOKUP($B29,'ADP-Rank'!$A$2:$CD$620,45,FALSE)),"") -> 26.29 | H29: =IFERROR(ROUNDDOWN(VLOOKUP($B29,'ADP-Rank'!$A$2:$BC$674,44,FALSE),0),"") -> 2 | I29: =VLOOKUP($B29,'ADP-Rank'!$A$2:$AP$674,42,FALSE) -> 27 | J29: =IFERROR(RANK($M29,$M$6:$M$745,0),"") -> 31 | K29: =IFERROR(IF((OR($C29="RP",$C29="SP")),VLOOKUP($B29,'Filtered-P'!$A$1:$AB$700,12,FALSE),(VLOOKUP($B29,Filtered!$A$1:$AB$700,18,FALSE))),"") -> 389.4974439 | L29: =IFERROR(IF((OR($C29="RP",$C29="SP")),VLOOKUP($C29,'Filtered-P'!$U$3:$X$4,4,FALSE), VLOOKUP($C29,Filtered!$U$3:$X$14,4,FALSE)),"") -> 262.4844351 | M29: =IFERROR(($K29-$L29)/IF(OR($C29="SP",$C29="RP"),VLOOKUP($C29,'Filtered-P'!$U$3:$AB$4,8,FALSE),VLOOKUP($C29,Filtered!$U$3:$AB$10,8,FALSE)),"") -> 1.393844955 | N29: =IFERROR(IF((OR($C29="RP",$C29="SP")),"",(VLOOKUP($B29,Filtered!$A$1:$AB$700,18,FALSE)/VLOOKUP($B29,Filtered!$A$1:$AB$700,2,FALSE))),"") ->  | O29: =IFERROR(IF((OR($C29="RP",$C29="SP")),VLOOKUP($B29,'Filtered-P'!$A$1:$AB$700,12,FALSE)/VLOOKUP($B29,'Filtered-P'!$A$1:$AB$700,4,FALSE),""),"") -> 1.930735252 | P29: =IFERROR(IF((OR($C29="RP",$C29="SP")),VLOOKUP($B29,'Filtered-P'!$A$1:$X$700,2,FALSE),""),"") -> 11.37872361 | Q29: =IFERROR(IF((OR($C29="RP",$C29="SP")),VLOOKUP($B29,'Filtered-P'!$A$1:$X$700,9,FALSE),""),"") -> 0 | R29: =IFERROR(IF((OR($C29="RP",$C29="SP")),VLOOKUP($B29,'Filtered-P'!$A$1:$X$700,7,FALSE),""),"") -> 193.3448779 | S29: =IFERROR(IF((OR($C29="RP",$C29="SP")),VLOOKUP($B29,'Filtered-P'!$A$1:$AD$700,13,FALSE),""),"") -> 3.476029572 | T29: =IFERROR(IF((OR($C29="RP",$C29="SP")),VLOOKUP($B29,'Filtered-P'!$A$1:$X$700,14,FALSE),""),"") -> 1.149287517 | U29: =IFERROR(IF((OR($C29="RP",$C29="SP")),"",VLOOKUP($B29,Filtered!$A$1:$AJ$700,20,FALSE)),"") ->  | V29: =IFERROR(IF((OR($C29="RP",$C29="SP")),"",VLOOKUP($B29,Filtered!$A$1:$AJ$700,9,FALSE)),"") ->  | W29: =IFERROR(IF((OR($C29="RP",$C29="SP")),"",VLOOKUP($B29,Filtered!$A$1:$AJ$700,10,FALSE)),"") ->  | X29: =IFERROR(IF((OR($C29="RP",$C29="SP")),"",VLOOKUP($B29,Filtered!$A$1:$AJ$700,4,FALSE)),"") ->  | Y29: =IFERROR(IF((OR($C29="RP",$C29="SP")),"",VLOOKUP($B29,Filtered!$A$1:$AJ$700,11,FALSE)),"") ->  | Z29: =IFERROR(IF(ISTEXT($A29),"",(1-NORMDIST((COUNTA($A$6:$A$745)),($G29),((AE29-AD29)/6),TRUE))),"") -> 0.9999999993 | AA29: =IFERROR(IF(ISTEXT($A29),"",(1-NORMDIST((COUNTA($A$6:$A$745))+(Personalize!$E$18+1),$G29,((AE29-AD29)/6),TRUE))),"") -> 0.9999999277 | AB29: =IFERROR(IF(ISTEXT($A29),"",(1-NORMDIST((COUNTA($A$6:$A$745))+((Personalize!$E$18+1)*2),$G29,((AE29-AD29)/6),TRUE))),"") -> 0.9999957371 | AD29: =CHOOSE(Personalize!$E$38,VLOOKUP($B29,'ADP-Rank'!$A$2:$AJ$620,8,FALSE),VLOOKUP($B29,'ADP-Rank'!$A$2:$AJ$620,11,FALSE),VLOOKUP($B29,'ADP-Rank'!$A$2:$AO$620,14,FALSE),VLOOKUP($B29,'ADP-Rank'!$A$2:$BD$620,17,FALSE),VLOOKUP($B29,'ADP-Rank'!$A$2:$BD$620,20,FALSE),VLOOKUP($B29,'ADP-Rank'!$A$2:$BD$620,23,FALSE),VLOOKUP($B29,'ADP-Rank'!$A$2:$BD$620,26,FALSE),VLOOKUP($B29,'ADP-Rank'!$A$2:$BD$620,29,FALSE),VLOOKUP($B29,'ADP-Rank'!$A$2:$BD$620,46,FALSE)) -> 15 | AE29: =CHOOSE(Personalize!$E$38,VLOOKUP($B29,'ADP-Rank'!$A$2:$AJ$620,9,FALSE),VLOOKUP($B29,'ADP-Rank'!$A$2:$AJ$620,12,FALSE),VLOOKUP($B29,'ADP-Rank'!$A$2:$AO$620,15,FALSE),VLOOKUP($B29,'ADP-Rank'!$A$2:$BD$620,18,FALSE),VLOOKUP($B29,'ADP-Rank'!$A$2:$BD$620,21,FALSE),VLOOKUP($B29,'ADP-Rank'!$A$2:$BD$620,24,FALSE),VLOOKUP($B29,'ADP-Rank'!$A$2:$BD$620,27,FALSE),VLOOKUP($B29,'ADP-Rank'!$A$2:$BD$620,30,FALSE),VLOOKUP($B29,'ADP-Rank'!$A$2:$BD$620,47,FALSE)) -> 41 | AF29: =IF(ISBLANK(A29),0,1) -> 0 | AG29: =IF(K29="",0,1) -> 1 | AH29: =A29 -> 0 | AI29: =IF(C29="C",1,IF(C29="1B",2,IF(C29="2B",3,IF(C29="3B",4,IF(C29="SS",5,IF(C29="CI",6,IF(C29="MI",7,IF(C29="OF",11,IF(C29="LF",8,IF(C29="CF",9,IF(C29="RF",10,IF(C29="DH",12,IF(C29="SP",13,IF(C29="RP",14,IF(C29="P",15,16))))))))))))))) -> 13 | AJ29: =VLOOKUP(B29,'Starter Calc'!$B$2:$BR$700,69,FALSE) -> Starter | AK29: =IFERROR(VLOOKUP($B29,'ADP-Rank'!$A$2:$AZ$620,40,FALSE),TRUE) -> TRUE | AL29: 1
B30: Yu Darvish | C30: SP | D30: =IFERROR(IF(VLOOKUP(B30,'Starter Calc'!$B$2:$E$700,4,FALSE)="","",VLOOKUP(B30,'Starter Calc'!$B$2:$E$700,4,FALSE)),"") -> ,, | E30: =IFERROR(VLOOKUP($B30,'ADP-Rank'!$A$2:$G$620,5,FALSE),"") -> TEX | F30: =IFERROR(VLOOKUP($B30,'ADP-Rank'!$A$2:$W$620,6,FALSE),"") -> 28 | G30: =IFERROR(CHOOSE(Personalize!$E$38,VLOOKUP($B30,'ADP-Rank'!$A$2:$CD$620,7,FALSE),VLOOKUP($B30,'ADP-Rank'!$A$2:$CD$620,10,FALSE),VLOOKUP($B30,'ADP-Rank'!$A$2:$CD$620,13,FALSE),VLOOKUP($B30,'ADP-Rank'!$A$2:$CD$620,16,FALSE),VLOOKUP($B30,'ADP-Rank'!$A$2:$CD$620,19,FALSE),VLOOKUP($B30,'ADP-Rank'!$A$2:$CD$620,22,FALSE),VLOOKUP($B30,'ADP-Rank'!$A$2:$CD$620,25,FALSE),VLOOKUP($B30,'ADP-Rank'!$A$2:$CD$620,28,FALSE),VLOOKUP($B30,'ADP-Rank'!$A$2:$CD$620,45,FALSE)),"") -> 26.31 | H30: =IFERROR(ROUNDDOWN(VLOOKUP($B30,'ADP-Rank'!$A$2:$BC$674,44,FALSE),0),"") -> 2 | I30: =VLOOKUP($B30,'ADP-Rank'!$A$2:$AP$674,42,FALSE) -> 43 | J30: =IFERROR(RANK($M30,$M$6:$M$745,0),"") -> 10 | K30: =IFERROR(IF((OR($C30="RP",$C30="SP")),VLOOKUP($B30,'Filtered-P'!$A$1:$AB$700,12,FALSE),(VLOOKUP($B30,Filtered!$A$1:$AB$700,18,FALSE))),"") -> 475.5971636 | L30: =IFERROR(IF((OR($C30="RP",$C30="SP")),VLOOKUP($C30,'Filtered-P'!$U$3:$X$4,4,FALSE), VLOOKUP($C30,Filtered!$U$3:$X$14,4,FALSE)),"") -> 262.4844351 | M30: =IFERROR(($K30-$L30)/IF(OR($C30="SP",$C30="RP"),VLOOKUP($C30,'Filtered-P'!$U$3:$AB$4,8,FALSE),VLOOKUP($C30,Filtered!$U$3:$AB$10,8,FALSE)),"") -> 2.338706124 | N30: =IFERROR(IF((OR($C30="RP",$C30="SP")),"",(VLOOKUP($B30,Filtered!$A$1:$AB$700,18,FALSE)/VLOOKUP($B30,Filtered!$A$1:$AB$700,2,FALSE))),"") ->  | O30: =IFERROR(IF((OR($C30="RP",$C30="SP")),VLOOKUP($B30,'Filtered-P'!$A$1:$AB$700,12,FALSE)/VLOOKUP($B30,'Filtered-P'!$A$1:$AB$700,4,FALSE),""),"") -> 2.680175619 | P30: =IFERROR(IF((OR($C30="RP",$C30="SP")),VLOOKUP($B30,'Filtered-P'!$A$1:$X$700,2,FALSE),""),"") -> 12.14204958 | Q30: =IFERROR(IF((OR($C30="RP",$C30="SP")),VLOOKUP($B30,'Filtered-P'!$A$1:$X$700,9,FALSE),""),"") -> 0 | R30: =IFERROR(IF((OR($C30="RP",$C30="SP")),VLOOKUP($B30,'Filtered-P'!$A$1:$X$700,7,FALSE),""),"") -> 216.6487675 | S30: =IFERROR(IF((OR($C30="RP",$C30="SP")),VLOOKUP($B30,'Filtered-P'!$A$1:$AD$700,13,FALSE),""),"") -> 3.378389996 | T30: =IFERROR(IF((OR($C30="RP",$C30="SP")),VLOOKUP($B30,'Filtered-P'!$A$1:$X$700,14,FALSE),""),"") -> 1.144596066 | U30: =IFERROR(IF((OR($C30="RP",$C30="SP")),"",VLOOKUP($B30,Filtered!$A$1:$AJ$700,20,FALSE)),"") ->  | V30: =IFERROR(IF((OR($C30="RP",$C30="SP")),"",VLOOKUP($B30,Filtered!$A$1:$AJ$700,9,FALSE)),"") ->  | W30: =IFERROR(IF((OR($C30="RP",$C30="SP")),"",VLOOKUP($B30,Filtered!$A$1:$AJ$700,10,FALSE)),"") ->  | X30: =IFERROR(IF((OR($C30="RP",$C30="SP")),"",VLOOKUP($B30,Filtered!$A$1:$AJ$700,4,FALSE)),"") ->  | Y30: =IFERROR(IF((OR($C30="RP",$C30="SP")),"",VLOOKUP($B30,Filtered!$A$1:$AJ$700,11,FALSE)),"") ->  | Z30: =IFERROR(IF(ISTEXT($A30),"",(1-NORMDIST((COUNTA($A$6:$A$745)),($G30),((AE30-AD30)/6),TRUE))),"") -> 1 | AA30: =IFERROR(IF(ISTEXT($A30),"",(1-NORMDIST((COUNTA($A$6:$A$745))+(Personalize!$E$18+1),$G30,((AE30-AD30)/6),TRUE))),"") -> 0.9999999941 | AB30: =IFERROR(IF(ISTEXT($A30),"",(1-NORMDIST((COUNTA($A$6:$A$745))+((Personalize!$E$18+1)*2),$G30,((AE30-AD30)/6),TRUE))),"") -> 0.9999993087 | AD30: =CHOOSE(Personalize!$E$38,VLOOKUP($B30,'ADP-Rank'!$A$2:$AJ$620,8,FALSE),VLOOKUP($B30,'ADP-Rank'!$A$2:$AJ$620,11,FALSE),VLOOKUP($B30,'ADP-Rank'!$A$2:$AO$620,14,FALSE),VLOOKUP($B30,'ADP-Rank'!$A$2:$BD$620,17,FALSE),VLOOKUP($B30,'ADP-Rank'!$A$2:$BD$620,20,FALSE),VLOOKUP($B30,'ADP-Rank'!$A$2:$BD$620,23,FALSE),VLOOKUP($B30,'ADP-Rank'!$A$2:$BD$620,26,FALSE),VLOOKUP($B30,'ADP-Rank'!$A$2:$BD$620,29,FALSE),VLOOKUP($B30,'ADP-Rank'!$A$2:$BD$620,46,FALSE)) -> 16 | AE30: =CHOOSE(Personalize!$E$38,VLOOKUP($B30,'ADP-Rank'!$A$2:$AJ$620,9,FALSE),VLOOKUP($B30,'ADP-Rank'!$A$2:$AJ$620,12,FALSE),VLOOKUP($B30,'ADP-Rank'!$A$2:$AO$620,15,FALSE),VLOOKUP($B30,'ADP-Rank'!$A$2:$BD$620,18,FALSE),VLOOKUP($B30,'ADP-Rank'!$A$2:$BD$620,21,FALSE),VLOOKUP($B30,'ADP-Rank'!$A$2:$BD$620,24,FALSE),VLOOKUP($B30,'ADP-Rank'!$A$2:$BD$620,27,FALSE),VLOOKUP($B30,'ADP-Rank'!$A$2:$BD$620,30,FALSE),VLOOKUP($B30,'ADP-Rank'!$A$2:$BD$620,47,FALSE)) -> 40 | AF30: =IF(ISBLANK(A30),0,1) -> 0 | AG30: =IF(K30="",0,1) -> 1 | AH30: =A30 -> 0 | AI30: =IF(C30="C",1,IF(C30="1B",2,IF(C30="2B",3,IF(C30="3B",4,IF(C30="SS",5,IF(C30="CI",6,IF(C30="MI",7,IF(C30="OF",11,IF(C30="LF",8,IF(C30="CF",9,IF(C30="RF",10,IF(C30="DH",12,IF(C30="SP",13,IF(C30="RP",14,IF(C30="P",15,16))))))))))))))) -> 13 | AJ30: =VLOOKUP(B30,'Starter Calc'!$B$2:$BR$700,69,FALSE) -> Starter | AK30: =IFERROR(VLOOKUP($B30,'ADP-Rank'!$A$2:$AZ$620,40,FALSE),TRUE) -> TRUE | AL30: 1
B31: Edwin Encarnacion | C31: 1B | D31: =IFERROR(IF(VLOOKUP(B31,'Starter Calc'!$B$2:$E$700,4,FALSE)="","",VLOOKUP(B31,'Starter Calc'!$B$2:$E$700,4,FALSE)),"") -> ,, | E31: =IFERROR(VLOOKUP($B31,'ADP-Rank'!$A$2:$G$620,5,FALSE),"") -> TOR | F31: =IFERROR(VLOOKUP($B31,'ADP-Rank'!$A$2:$W$620,6,FALSE),"") -> 32 | G31: =IFERROR(CHOOSE(Personalize!$E$38,VLOOKUP($B31,'ADP-Rank'!$A$2:$CD$620,7,FALSE),VLOOKUP($B31,'ADP-Rank'!$A$2:$CD$620,10,FALSE),VLOOKUP($B31,'ADP-Rank'!$A$2:$CD$620,13,FALSE),VLOOKUP($B31,'ADP-Rank'!$A$2:$CD$620,16,FALSE),VLOOKUP($B31,'ADP-Rank'!$A$2:$CD$620,19,FALSE),VLOOKUP($B31,'ADP-Rank'!$A$2:$CD$620,22,FALSE),VLOOKUP($B31,'ADP-Rank'!$A$2:$CD$620,25,FALSE),VLOOKUP($B31,'ADP-Rank'!$A$2:$CD$620,28,FALSE),VLOOKUP($B31,'ADP-Rank'!$A$2:$CD$620,45,FALSE)),"") -> 26.53 | H31: =IFERROR(ROUNDDOWN(VLOOKUP($B31,'ADP-Rank'!$A$2:$BC$674,44,FALSE),0),"") -> 3 | I31: =VLOOKUP($B31,'ADP-Rank'!$A$2:$AP$674,42,FALSE) -> 7 | J31: =IFERROR(RANK($M31,$M$6:$M$745,0),"") -> 35 | K31: =IFERROR(IF((OR($C31="RP",$C31="SP")),VLOOKUP($B31,'Filtered-P'!$A$1:$AB$700,12,FALSE),(VLOOKUP($B31,Filtered!$A$1:$AB$700,18,FALSE))),"") -> 409.3479103 | L31: =IFERROR(IF((OR($C31="RP",$C31="SP")),VLOOKUP($C31,'Filtered-P'!$U$3:$X$4,4,FALSE), VLOOKUP($C31,Filtered!$U$3:$X$14,4,FALSE)),"") -> 341.0043912 | M31: =IFERROR(($K31-$L31)/IF(OR($C31="SP",$C31="RP"),VLOOKUP($C31,'Filtered-P'!$U$3:$AB$4,8,FALSE),VLOOKUP($C31,Filtered!$U$3:$AB$10,8,FALSE)),"") -> 1.303971818 | N31: =IFERROR(IF((OR($C31="RP",$C31="SP")),"",(VLOOKUP($B31,Filtered!$A$1:$AB$700,18,FALSE)/VLOOKUP($B31,Filtered!$A$1:$AB$700,2,FALSE))),"") -> 0.7022983381 | O31: =IFERROR(IF((OR($C31="RP",$C31="SP")),VLOOKUP($B31,'Filtered-P'!$A$1:$AB$700,12,FALSE)/VLOOKUP($B31,'Filtered-P'!$A$1:$AB$700,4,FALSE),""),"") ->  | P31: =IFERROR(IF((OR($C31="RP",$C31="SP")),VLOOKUP($B31,'Filtered-P'!$A$1:$X$700,2,FALSE),""),"") ->  | Q31: =IFERROR(IF((OR($C31="RP",$C31="SP")),VLOOKUP($B31,'Filtered-P'!$A$1:$X$700,9,FALSE),""),"") ->  | R31: =IFERROR(IF((OR($C31="RP",$C31="SP")),VLOOKUP($B31,'Filtered-P'!$A$1:$X$700,7,FALSE),""),"") ->  | S31: =IFERROR(IF((OR($C31="RP",$C31="SP")),VLOOKUP($B31,'Filtered-P'!$A$1:$AD$700,13,FALSE),""),"") ->  | T31: =IFERROR(IF((OR($C31="RP",$C31="SP")),VLOOKUP($B31,'Filtered-P'!$A$1:$X$700,14,FALSE),""),"") ->  | U31: =IFERROR(IF((OR($C31="RP",$C31="SP")),"",VLOOKUP($B31,Filtered!$A$1:$AJ$700,20,FALSE)),"") -> 0.2695951867 | V31: =IFERROR(IF((OR($C31="RP",$C31="SP")),"",VLOOKUP($B31,Filtered!$A$1:$AJ$700,9,FALSE)),"") -> 32.44508068 | W31: =IFERROR(IF((OR($C31="RP",$C31="SP")),"",VLOOKUP($B31,Filtered!$A$1:$AJ$700,10,FALSE)),"") -> 94.38117847 | X31: =IFERROR(IF((OR($C31="RP",$C31="SP")),"",VLOOKUP($B31,Filtered!$A$1:$AJ$700,4,FALSE)),"") -> 82.47241308 | Y31: =IFERROR(IF((OR($C31="RP",$C31="SP")),"",VLOOKUP($B31,Filtered!$A$1:$AJ$700,11,FALSE)),"") -> 5.324700094 | Z31: =IFERROR(IF(ISTEXT($A31),"",(1-NORMDIST((COUNTA($A$6:$A$745)),($G31),((AE31-AD31)/6),TRUE))),"") -> 0.9999992952 | AA31: =IFERROR(IF(ISTEXT($A31),"",(1-NORMDIST((COUNTA($A$6:$A$745))+(Personalize!$E$18+1),$G31,((AE31-AD31)/6),TRUE))),"") -> 0.9999858837 | AB31: =IFERROR(IF(ISTEXT($A31),"",(1-NORMDIST((COUNTA($A$6:$A$745))+((Personalize!$E$18+1)*2),$G31,((AE31-AD31)/6),TRUE))),"") -> 0.9998080485 | AD31: =CHOOSE(Personalize!$E$38,VLOOKUP($B31,'ADP-Rank'!$A$2:$AJ$620,8,FALSE),VLOOKUP($B31,'ADP-Rank'!$A$2:$AJ$620,11,FALSE),VLOOKUP($B31,'ADP-Rank'!$A$2:$AO$620,14,FALSE),VLOOKUP($B31,'ADP-Rank'!$A$2:$BD$620,17,FALSE),VLOOKUP($B31,'ADP-Rank'!$A$2:$BD$620,20,FALSE),VLOOKUP($B31,'ADP-Rank'!$A$2:$BD$620,23,FALSE),VLOOKUP($B31,'ADP-Rank'!$A$2:$BD$620,26,FALSE),VLOOKUP($B31,'ADP-Rank'!$A$2:$BD$620,29,FALSE),VLOOKUP($B31,'ADP-Rank'!$A$2:$BD$620,46,FALSE)) -> 13 | AE31: =CHOOSE(Personalize!$E$38,VLOOKUP($B31,'ADP-Rank'!$A$2:$AJ$620,9,FALSE),VLOOKUP($B31,'ADP-Rank'!$A$2:$AJ$620,12,FALSE),VLOOKUP($B31,'ADP-Rank'!$A$2:$AO$620,15,FALSE),VLOOKUP($B31,'ADP-Rank'!$A$2:$BD$620,18,FALSE),VLOOKUP($B31,'ADP-Rank'!$A$2:$BD$620,21,FALSE),VLOOKUP($B31,'ADP-Rank'!$A$2:$BD$620,24,FALSE),VLOOKUP($B31,'ADP-Rank'!$A$2:$BD$620,27,FALSE),VLOOKUP($B31,'ADP-Rank'!$A$2:$BD$620,30,FALSE),VLOOKUP($B31,'ADP-Rank'!$A$2:$BD$620,47,FALSE)) -> 46 | AF31: =IF(ISBLANK(A31),0,1) -> 0 | AG31: =IF(K31="",0,1) -> 1 | AH31: =A31 -> 0 | AI31: =IF(C31="C",1,IF(C31="1B",2,IF(C31="2B",3,IF(C31="3B",4,IF(C31="SS",5,IF(C31="CI",6,IF(C31="MI",7,IF(C31="OF",11,IF(C31="LF",8,IF(C31="CF",9,IF(C31="RF",10,IF(C31="DH",12,IF(C31="SP",13,IF(C31="RP",14,IF(C31="P",15,16))))))))))))))) -> 2 | AJ31: =VLOOKUP(B31,'Starter Calc'!$B$2:$BR$700,69,FALSE) -> Bench | AK31: =IFERROR(VLOOKUP($B31,'ADP-Rank'!$A$2:$AZ$620,40,FALSE),TRUE) -> TRUE | AL31: 0
B32: Robinson Cano | C32: 2B | D32: =IFERROR(IF(VLOOKUP(B32,'Starter Calc'!$B$2:$E$700,4,FALSE)="","",VLOOKUP(B32,'Starter Calc'!$B$2:$E$700,4,FALSE)),"") -> ,, | E32: =IFERROR(VLOOKUP($B32,'ADP-Rank'!$A$2:$G$620,5,FALSE),"") -> SEA | F32: =IFERROR(VLOOKUP($B32,'ADP-Rank'!$A$2:$W$620,6,FALSE),"") -> 32 | G32: =IFERROR(CHOOSE(Personalize!$E$38,VLOOKUP($B32,'ADP-Rank'!$A$2:$CD$620,7,FALSE),VLOOKUP($B32,'ADP-Rank'!$A$2:$CD$620,10,FALSE),VLOOKUP($B32,'ADP-Rank'!$A$2:$CD$620,13,FALSE),VLOOKUP($B32,'ADP-Rank'!$A$2:$CD$620,16,FALSE),VLOOKUP($B32,'ADP-Rank'!$A$2:$CD$620,19,FALSE),VLOOKUP($B32,'ADP-Rank'!$A$2:$CD$620,22,FALSE),VLOOKUP($B32,'ADP-Rank'!$A$2:$CD$620,25,FALSE),VLOOKUP($B32,'ADP-Rank'!$A$2:$CD$620,28,FALSE),VLOOKUP($B32,'ADP-Rank'!$A$2:$CD$620,45,FALSE)),"") -> 26.66 | H32: =IFERROR(ROUNDDOWN(VLOOKUP($B32,'ADP-Rank'!$A$2:$BC$674,44,FALSE),0),"") -> 3 | I32: =VLOOKUP($B32,'ADP-Rank'!$A$2:$AP$674,42,FALSE) -> 9 | J32: =IFERROR(RANK($M32,$M$6:$M$745,0),"") -> 21 | K32: =IFERROR(IF((OR($C32="RP",$C32="SP")),VLOOKUP($B32,'Filtered-P'!$A$1:$AB$700,12,FALSE),(VLOOKUP($B32,Filtered!$A$1:$AB$700,18,FALSE))),"") -> 376.5550421 | L32: =IFERROR(IF((OR($C32="RP",$C32="SP")),VLOOKUP($C32,'Filtered-P'!$U$3:$X$4,4,FALSE), VLOOKUP($C32,Filtered!$U$3:$X$14,4,FALSE)),"") -> 275.8634602 | M32: =IFERROR(($K32-$L32)/IF(OR($C32="SP",$C32="RP"),VLOOKUP($C32,'Filtered-P'!$U$3:$AB$4,8,FALSE),VLOOKUP($C32,Filtered!$U$3:$AB$10,8,FALSE)),"") -> 1.623061174 | N32: =IFERROR(IF((OR($C32="RP",$C32="SP")),"",(VLOOKUP($B32,Filtered!$A$1:$AB$700,18,FALSE)/VLOOKUP($B32,Filtered!$A$1:$AB$700,2,FALSE))),"") -> 0.5902768067 | O32: =IFERROR(IF((OR($C32="RP",$C32="SP")),VLOOKUP($B32,'Filtered-P'!$A$1:$AB$700,12,FALSE)/VLOOKUP($B32,'Filtered-P'!$A$1:$AB$700,4,FALSE),""),"") ->  | P32: =IFERROR(IF((OR($C32="RP",$C32="SP")),VLOOKUP($B32,'Filtered-P'!$A$1:$X$700,2,FALSE),""),"") ->  | Q32: =IFERROR(IF((OR($C32="RP",$C32="SP")),VLOOKUP($B32,'Filtered-P'!$A$1:$X$700,9,FALSE),""),"") ->  | R32: =IFERROR(IF((OR($C32="RP",$C32="SP")),VLOOKUP($B32,'Filtered-P'!$A$1:$X$700,7,FALSE),""),"") ->  | S32: =IFERROR(IF((OR($C32="RP",$C32="SP")),VLOOKUP($B32,'Filtered-P'!$A$1:$AD$700,13,FALSE),""),"") ->  | T32: =IFERROR(IF((OR($C32="RP",$C32="SP")),VLOOKUP($B32,'Filtered-P'!$A$1:$X$700,14,FALSE),""),"") ->  | U32: =IFERROR(IF((OR($C32="RP",$C32="SP")),"",VLOOKUP($B32,Filtered!$A$1:$AJ$700,20,FALSE)),"") -> 0.2889618591 | V32: =IFERROR(IF((OR($C32="RP",$C32="SP")),"",VLOOKUP($B32,Filtered!$A$1:$AJ$700,9,FALSE)),"") -> 17.28927811 | W32: =IFERROR(IF((OR($C32="RP",$C32="SP")),"",VLOOKUP($B32,Filtered!$A$1:$AJ$700,10,FALSE)),"") -> 81.66154027 | X32: =IFERROR(IF((OR($C32="RP",$C32="SP")),"",VLOOKUP($B32,Filtered!$A$1:$AJ$700,4,FALSE)),"") -> 77.32739283 | Y32: =IFERROR(IF((OR($C32="RP",$C32="SP")),"",VLOOKUP($B32,Filtered!$A$1:$AJ$700,11,FALSE)),"") -> 6.455542539 | Z32: =IFERROR(IF(ISTEXT($A32),"",(1-NORMDIST((COUNTA($A$6:$A$745)),($G32),((AE32-AD32)/6),TRUE))),"") -> 0.9999955712 | AA32: =IFERROR(IF(ISTEXT($A32),"",(1-NORMDIST((COUNTA($A$6:$A$745))+(Personalize!$E$18+1),$G32,((AE32-AD32)/6),TRUE))),"") -> 0.9999433065 | AB32: =IFERROR(IF(ISTEXT($A32),"",(1-NORMDIST((COUNTA($A$6:$A$745))+((Personalize!$E$18+1)*2),$G32,((AE32-AD32)/6),TRUE))),"") -> 0.9994747985 | AD32: =CHOOSE(Personalize!$E$38,VLOOKUP($B32,'ADP-Rank'!$A$2:$AJ$620,8,FALSE),VLOOKUP($B32,'ADP-Rank'!$A$2:$AJ$620,11,FALSE),VLOOKUP($B32,'ADP-Rank'!$A$2:$AO$620,14,FALSE),VLOOKUP($B32,'ADP-Rank'!$A$2:$BD$620,17,FALSE),VLOOKUP($B32,'ADP-Rank'!$A$2:$BD$620,20,FALSE),VLOOKUP($B32,'ADP-Rank'!$A$2:$BD$620,23,FALSE),VLOOKUP($B32,'ADP-Rank'!$A$2:$BD$620,26,FALSE),VLOOKUP($B32,'ADP-Rank'!$A$2:$BD$620,29,FALSE),VLOOKUP($B32,'ADP-Rank'!$A$2:$BD$620,46,FALSE)) -> 14 | AE32: =CHOOSE(Personalize!$E$38,VLOOKUP($B32,'ADP-Rank'!$A$2:$AJ$620,9,FALSE),VLOOKUP($B32,'ADP-Rank'!$A$2:$AJ$620,12,FALSE),VLOOKUP($B32,'ADP-Rank'!$A$2:$AO$620,15,FALSE),VLOOKUP($B32,'ADP-Rank'!$A$2:$BD$620,18,FALSE),VLOOKUP($B32,'ADP-Rank'!$A$2:$BD$620,21,FALSE),VLOOKUP($B32,'ADP-Rank'!$A$2:$BD$620,24,FALSE),VLOOKUP($B32,'ADP-Rank'!$A$2:$BD$620,27,FALSE),VLOOKUP($B32,'ADP-Rank'!$A$2:$BD$620,30,FALSE),VLOOKUP($B32,'ADP-Rank'!$A$2:$BD$620,47,FALSE)) -> 50 | AF32: =IF(ISBLANK(A32),0,1) -> 0 | AG32: =IF(K32="",0,1) -> 1 | AH32: =A32 -> 0 | AI32: =IF(C32="C",1,IF(C32="1B",2,IF(C32="2B",3,IF(C32="3B",4,IF(C32="SS",5,IF(C32="CI",6,IF(C32="MI",7,IF(C32="OF",11,IF(C32="LF",8,IF(C32="CF",9,IF(C32="RF",10,IF(C32="DH",12,IF(C32="SP",13,IF(C32="RP",14,IF(C32="P",15,16))))))))))))))) -> 3 | AJ32: =VLOOKUP(B32,'Starter Calc'!$B$2:$BR$700,69,FALSE) -> Bench | AK32: =IFERROR(VLOOKUP($B32,'ADP-Rank'!$A$2:$AZ$620,40,FALSE),TRUE) -> TRUE | AL32: 0
B33: Anthony Rendon | C33: 3B | D33: =IFERROR(IF(VLOOKUP(B33,'Starter Calc'!$B$2:$E$700,4,FALSE)="","",VLOOKUP(B33,'Starter Calc'!$B$2:$E$700,4,FALSE)),"") -> ,, | E33: =IFERROR(VLOOKUP($B33,'ADP-Rank'!$A$2:$G$620,5,FALSE),"") -> WSH | F33: =IFERROR(VLOOKUP($B33,'ADP-Rank'!$A$2:$W$620,6,FALSE),"") -> 24 | G33: =IFERROR(CHOOSE(Personalize!$E$38,VLOOKUP($B33,'ADP-Rank'!$A$2:$CD$620,7,FALSE),VLOOKUP($B33,'ADP-Rank'!$A$2:$CD$620,10,FALSE),VLOOKUP($B33,'ADP-Rank'!$A$2:$CD$620,13,FALSE),VLOOKUP($B33,'ADP-Rank'!$A$2:$CD$620,16,FALSE),VLOOKUP($B33,'ADP-Rank'!$A$2:$CD$620,19,FALSE),VLOOKUP($B33,'ADP-Rank'!$A$2:$CD$620,22,FALSE),VLOOKUP($B33,'ADP-Rank'!$A$2:$CD$620,25,FALSE),VLOOKUP($B33,'ADP-Rank'!$A$2:$CD$620,28,FALSE),VLOOKUP($B33,'ADP-Rank'!$A$2:$CD$620,45,FALSE)),"") -> 28.73 | H33: =IFERROR(ROUNDDOWN(VLOOKUP($B33,'ADP-Rank'!$A$2:$BC$674,44,FALSE),0),"") -> 3 | I33: =VLOOKUP($B33,'ADP-Rank'!$A$2:$AP$674,42,FALSE) -> 33 | J33: =IFERROR(RANK($M33,$M$6:$M$745,0),"") -> 34 | K33: =IFERROR(IF((OR($C33="RP",$C33="SP")),VLOOKUP($B33,'Filtered-P'!$A$1:$AB$700,12,FALSE),(VLOOKUP($B33,Filtered!$A$1:$AB$700,18,FALSE))),"") -> 355.0747168 | L33: =IFERROR(IF((OR($C33="RP",$C33="SP")),VLOOKUP($C33,'Filtered-P'!$U$3:$X$4,4,FALSE), VLOOKUP($C33,Filtered!$U$3:$X$14,4,FALSE)),"") -> 297.570217 | M33: =IFERROR(($K33-$L33)/IF(OR($C33="SP",$C33="RP"),VLOOKUP($C33,'Filtered-P'!$U$3:$AB$4,8,FALSE),VLOOKUP($C33,Filtered!$U$3:$AB$10,8,FALSE)),"") -> 1.308338189 | N33: =IFERROR(IF((OR($C33="RP",$C33="SP")),"",(VLOOKUP($B33,Filtered!$A$1:$AB$700,18,FALSE)/VLOOKUP($B33,Filtered!$A$1:$AB$700,2,FALSE))),"") -> 0.5649131256 | O33: =IFERROR(IF((OR($C33="RP",$C33="SP")),VLOOKUP($B33,'Filtered-P'!$A$1:$AB$700,12,FALSE)/VLOOKUP($B33,'Filtered-P'!$A$1:$AB$700,4,FALSE),""),"") ->  | P33: =IFERROR(IF((OR($C33="RP",$C33="SP")),VLOOKUP($B33,'Filtered-P'!$A$1:$X$700,2,FALSE),""),"") ->  | Q33: =IFERROR(IF((OR($C33="RP",$C33="SP")),VLOOKUP($B33,'Filtered-P'!$A$1:$X$700,9,FALSE),""),"") ->  | R33: =IFERROR(IF((OR($C33="RP",$C33="SP")),VLOOKUP($B33,'Filtered-P'!$A$1:$X$700,7,FALSE),""),"") ->  | S33: =IFERROR(IF((OR($C33="RP",$C33="SP")),VLOOKUP($B33,'Filtered-P'!$A$1:$AD$700,13,FALSE),""),"") ->  | T33: =IFERROR(IF((OR($C33="RP",$C33="SP")),VLOOKUP($B33,'Filtered-P'!$A$1:$X$700,14,FALSE),""),"") ->  | U33: =IFERROR(IF((OR($C33="RP",$C33="SP")),"",VLOOKUP($B33,Filtered!$A$1:$AJ$700,20,FALSE)),"") -> 0.2717811013 | V33: =IFERROR(IF((OR($C33="RP",$C33="SP")),"",VLOOKUP($B33,Filtered!$A$1:$AJ$700,9,FALSE)),"") -> 19.27056415 | W33: =IFERROR(IF((OR($C33="RP",$C33="SP")),"",VLOOKUP($B33,Filtered!$A$1:$AJ$700,10,FALSE)),"") -> 74.24538453 | X33: =IFERROR(IF((OR($C33="RP",$C33="SP")),"",VLOOKUP($B33,Filtered!$A$1:$AJ$700,4,FALSE)),"") -> 86.3355384 | Y33: =IFERROR(IF((OR($C33="RP",$C33="SP")),"",VLOOKUP($B33,Filtered!$A$1:$AJ$700,11,FALSE)),"") -> 11.22148046 | Z33: =IFERROR(IF(ISTEXT($A33),"",(1-NORMDIST((COUNTA($A$6:$A$745)),($G33),((AE33-AD33)/6),TRUE))),"") -> 0.9999999642 | AA33: =IFERROR(IF(ISTEXT($A33),"",(1-NORMDIST((COUNTA($A$6:$A$745))+(Personalize!$E$18+1),$G33,((AE33-AD33)/6),TRUE))),"") -> 0.9999988809 | AB33: =IFERROR(IF(ISTEXT($A33),"",(1-NORMDIST((COUNTA($A$6:$A$745))+((Personalize!$E$18+1)*2),$G33,((AE33-AD33)/6),TRUE))),"") -> 0.999976931 | AD33: =CHOOSE(Personalize!$E$38,VLOOKUP($B33,'ADP-Rank'!$A$2:$AJ$620,8,FALSE),VLOOKUP($B33,'ADP-Rank'!$A$2:$AJ$620,11,FALSE),VLOOKUP($B33,'ADP-Rank'!$A$2:$AO$620,14,FALSE),VLOOKUP($B33,'ADP-Rank'!$A$2:$BD$620,17,FALSE),VLOOKUP($B33,'ADP-Rank'!$A$2:$BD$620,20,FALSE),VLOOKUP($B33,'ADP-Rank'!$A$2:$BD$620,23,FALSE),VLOOKUP($B33,'ADP-Rank'!$A$2:$BD$620,26,FALSE),VLOOKUP($B33,'ADP-Rank'!$A$2:$BD$620,29,FALSE),VLOOKUP($B33,'ADP-Rank'!$A$2:$BD$620,46,FALSE)) -> 15 | AE33: =CHOOSE(Personalize!$E$38,VLOOKUP($B33,'ADP-Rank'!$A$2:$AJ$620,9,FALSE),VLOOKUP($B33,'ADP-Rank'!$A$2:$AJ$620,12,FALSE),VLOOKUP($B33,'ADP-Rank'!$A$2:$AO$620,15,FALSE),VLOOKUP($B33,'ADP-Rank'!$A$2:$BD$620,18,FALSE),VLOOKUP($B33,'ADP-Rank'!$A$2:$BD$620,21,FALSE),VLOOKUP($B33,'ADP-Rank'!$A$2:$BD$620,24,FALSE),VLOOKUP($B33,'ADP-Rank'!$A$2:$BD$620,27,FALSE),VLOOKUP($B33,'ADP-Rank'!$A$2:$BD$620,30,FALSE),VLOOKUP($B33,'ADP-Rank'!$A$2:$BD$620,47,FALSE)) -> 47 | AF33: =IF(ISBLANK(A33),0,1) -> 0 | AG33: =IF(K33="",0,1) -> 1 | AH33: =A33 -> 0 | AI33: =IF(C33="C",1,IF(C33="1B",2,IF(C33="2B",3,IF(C33="3B",4,IF(C33="SS",5,IF(C33="CI",6,IF(C33="MI",7,IF(C33="OF",11,IF(C33="LF",8,IF(C33="CF",9,IF(C33="RF",10,IF(C33="DH",12,IF(C33="SP",13,IF(C33="RP",14,IF(C33="P",15,16))))))))))))))) -> 4 | AJ33: =VLOOKUP(B33,'Starter Calc'!$B$2:$BR$700,69,FALSE) -> Bench | AK33: =IFERROR(VLOOKUP($B33,'ADP-Rank'!$A$2:$AZ$620,40,FALSE),TRUE) -> TRUE | AL33: 0
B34: Yasiel Puig | C34: OF | D34: =IFERROR(IF(VLOOKUP(B34,'Starter Calc'!$B$2:$E$700,4,FALSE)="","",VLOOKUP(B34,'Starter Calc'!$B$2:$E$700,4,FALSE)),"") -> ,, | E34: =IFERROR(VLOOKUP($B34,'ADP-Rank'!$A$2:$G$620,5,FALSE),"") -> LAD | F34: =IFERROR(VLOOKUP($B34,'ADP-Rank'!$A$2:$W$620,6,FALSE),"") -> 24 | G34: =IFERROR(CHOOSE(Personalize!$E$38,VLOOKUP($B34,'ADP-Rank'!$A$2:$CD$620,7,FALSE),VLOOKUP($B34,'ADP-Rank'!$A$2:$CD$620,10,FALSE),VLOOKUP($B34,'ADP-Rank'!$A$2:$CD$620,13,FALSE),VLOOKUP($B34,'ADP-Rank'!$A$2:$CD$620,16,FALSE),VLOOKUP($B34,'ADP-Rank'!$A$2:$CD$620,19,FALSE),VLOOKUP($B34,'ADP-Rank'!$A$2:$CD$620,22,FALSE),VLOOKUP($B34,'ADP-Rank'!$A$2:$CD$620,25,FALSE),VLOOKUP($B34,'ADP-Rank'!$A$2:$CD$620,28,FALSE),VLOOKUP($B34,'ADP-Rank'!$A$2:$CD$620,45,FALSE)),"") -> 30.74 | H34: =IFERROR(ROUNDDOWN(VLOOKUP($B34,'ADP-Rank'!$A$2:$BC$674,44,FALSE),0),"") -> 3 | I34: =VLOOKUP($B34,'ADP-Rank'!$A$2:$AP$674,42,FALSE) -> 23 | J34: =IFERROR(RANK($M34,$M$6:$M$745,0),"") -> 51 | K34: =IFERROR(IF((OR($C34="RP",$C34="SP")),VLOOKUP($B34,'Filtered-P'!$A$1:$AB$700,12,FALSE),(VLOOKUP($B34,Filtered!$A$1:$AB$700,18,FALSE))),"") -> 347.4624931 | L34: =IFERROR(IF((OR($C34="RP",$C34="SP")),VLOOKUP($C34,'Filtered-P'!$U$3:$X$4,4,FALSE), VLOOKUP($C34,Filtered!$U$3:$X$14,4,FALSE)),"") -> 287.0213782 | M34: =IFERROR(($K34-$L34)/IF(OR($C34="SP",$C34="RP"),VLOOKUP($C34,'Filtered-P'!$U$3:$AB$4,8,FALSE),VLOOKUP($C34,Filtered!$U$3:$AB$10,8,FALSE)),"") -> 0.9951662925 | N34: =IFERROR(IF((OR($C34="RP",$C34="SP")),"",(VLOOKUP($B34,Filtered!$A$1:$AB$700,18,FALSE)/VLOOKUP($B34,Filtered!$A$1:$AB$700,2,FALSE))),"") -> 0.5823664431 | O34: =IFERROR(IF((OR($C34="RP",$C34="SP")),VLOOKUP($B34,'Filtered-P'!$A$1:$AB$700,12,FALSE)/VLOOKUP($B34,'Filtered-P'!$A$1:$AB$700,4,FALSE),""),"") ->  | P34: =IFERROR(IF((OR($C34="RP",$C34="SP")),VLOOKUP($B34,'Filtered-P'!$A$1:$X$700,2,FALSE),""),"") ->  | Q34: =IFERROR(IF((OR($C34="RP",$C34="SP")),VLOOKUP($B34,'Filtered-P'!$A$1:$X$700,9,FALSE),""),"") ->  | R34: =IFERROR(IF((OR($C34="RP",$C34="SP")),VLOOKUP($B34,'Filtered-P'!$A$1:$X$700,7,FALSE),""),"") ->  | S34: =IFERROR(IF((OR($C34="RP",$C34="SP")),VLOOKUP($B34,'Filtered-P'!$A$1:$AD$700,13,FALSE),""),"") ->  | T34: =IFERROR(IF((OR($C34="RP",$C34="SP")),VLOOKUP($B34,'Filtered-P'!$A$1:$X$700,14,FALSE),""),"") ->  | U34: =IFERROR(IF((OR($C34="RP",$C34="SP")),"",VLOOKUP($B34,Filtered!$A$1:$AJ$700,20,FALSE)),"") -> 0.2843141446 | V34: =IFERROR(IF((OR($C34="RP",$C34="SP")),"",VLOOKUP($B34,Filtered!$A$1:$AJ$700,9,FALSE)),"") -> 20.26269486 | W34: =IFERROR(IF((OR($C34="RP",$C34="SP")),"",VLOOKUP($B34,Filtered!$A$1:$AJ$700,10,FALSE)),"") -> 71.89901236 | X34: =IFERROR(IF((OR($C34="RP",$C34="SP")),"",VLOOKUP($B34,Filtered!$A$1:$AJ$700,4,FALSE)),"") -> 84.17942761 | Y34: =IFERROR(IF((OR($C34="RP",$C34="SP")),"",VLOOKUP($B34,Filtered!$A$1:$AJ$700,11,FALSE)),"") -> 13.30181685 | Z34: =IFERROR(IF(ISTEXT($A34),"",(1-NORMDIST((COUNTA($A$6:$A$745)),($G34),((AE34-AD34)/6),TRUE))),"") -> 0.99999969 | AA34: =IFERROR(IF(ISTEXT($A34),"",(1-NORMDIST((COUNTA($A$6:$A$745))+(Personalize!$E$18+1),$G34,((AE34-AD34)/6),TRUE))),"") -> 0.9999950029 | AB34: =IFERROR(IF(ISTEXT($A34),"",(1-NORMDIST((COUNTA($A$6:$A$745))+((Personalize!$E$18+1)*2),$G34,((AE34-AD34)/6),TRUE))),"") -> 0.9999408759 | AD34: =CHOOSE(Personalize!$E$38,VLOOKUP($B34,'ADP-Rank'!$A$2:$AJ$620,8,FALSE),VLOOKUP($B34,'ADP-Rank'!$A$2:$AJ$620,11,FALSE),VLOOKUP($B34,'ADP-Rank'!$A$2:$AO$620,14,FALSE),VLOOKUP($B34,'ADP-Rank'!$A$2:$BD$620,17,FALSE),VLOOKUP($B34,'ADP-Rank'!$A$2:$BD$620,20,FALSE),VLOOKUP($B34,'ADP-Rank'!$A$2:$BD$620,23,FALSE),VLOOKUP($B34,'ADP-Rank'!$A$2:$BD$620,26,FALSE),VLOOKUP($B34,'ADP-Rank'!$A$2:$BD$620,29,FALSE),VLOOKUP($B34,'ADP-Rank'!$A$2:$BD$620,46,FALSE)) -> 14 | AE34: =CHOOSE(Personalize!$E$38,VLOOKUP($B34,'ADP-Rank'!$A$2:$AJ$620,9,FALSE),VLOOKUP($B34,'ADP-Rank'!$A$2:$AJ$620,12,FALSE),VLOOKUP($B34,'ADP-Rank'!$A$2:$AO$620,15,FALSE),VLOOKUP($B34,'ADP-Rank'!$A$2:$BD$620,18,FALSE),VLOOKUP($B34,'ADP-Rank'!$A$2:$BD$620,21,FALSE),VLOOKUP($B34,'ADP-Rank'!$A$2:$BD$620,24,FALSE),VLOOKUP($B34,'ADP-Rank'!$A$2:$BD$620,27,FALSE),VLOOKUP($B34,'ADP-Rank'!$A$2:$BD$620,30,FALSE),VLOOKUP($B34,'ADP-Rank'!$A$2:$BD$620,47,FALSE)) -> 51 | AF34: =IF(ISBLANK(A34),0,1) -> 0 | AG34: =IF(K34="",0,1) -> 1 | AH34: =A34 -> 0 | AI34: =IF(C34="C",1,IF(C34="1B",2,IF(C34="2B",3,IF(C34="3B",4,IF(C34="SS",5,IF(C34="CI",6,IF(C34="MI",7,IF(C34="OF",11,IF(C34="LF",8,IF(C34="CF",9,IF(C34="RF",10,IF(C34="DH",12,IF(C34="SP",13,IF(C34="RP",14,IF(C34="P",15,16))))))))))))))) -> 11 | AJ34: =VLOOKUP(B34,'Starter Calc'!$B$2:$BR$700,69,FALSE) -> Bench | AK34: =IFERROR(VLOOKUP($B34,'ADP-Rank'!$A$2:$AZ$620,40,FALSE),TRUE) -> TRUE | AL34: 0
B35: Jeff Samardzija | C35: SP | D35: =IFERROR(IF(VLOOKUP(B35,'Starter Calc'!$B$2:$E$700,4,FALSE)="","",VLOOKUP(B35,'Starter Calc'!$B$2:$E$700,4,FALSE)),"") -> ,, | E35: =IFERROR(VLOOKUP($B35,'ADP-Rank'!$A$2:$G$620,5,FALSE),"") -> CWS | F35: =IFERROR(VLOOKUP($B35,'ADP-Rank'!$A$2:$W$620,6,FALSE),"") -> 30 | G35: =IFERROR(CHOOSE(Personalize!$E$38,VLOOKUP($B35,'ADP-Rank'!$A$2:$CD$620,7,FALSE),VLOOKUP($B35,'ADP-Rank'!$A$2:$CD$620,10,FALSE),VLOOKUP($B35,'ADP-Rank'!$A$2:$CD$620,13,FALSE),VLOOKUP($B35,'ADP-Rank'!$A$2:$CD$620,16,FALSE),VLOOKUP($B35,'ADP-Rank'!$A$2:$CD$620,19,FALSE),VLOOKUP($B35,'ADP-Rank'!$A$2:$CD$620,22,FALSE),VLOOKUP($B35,'ADP-Rank'!$A$2:$CD$620,25,FALSE),VLOOKUP($B35,'ADP-Rank'!$A$2:$CD$620,28,FALSE),VLOOKUP($B35,'ADP-Rank'!$A$2:$CD$620,45,FALSE)),"") -> 32.88 | H35: =IFERROR(ROUNDDOWN(VLOOKUP($B35,'ADP-Rank'!$A$2:$BC$674,44,FALSE),0),"") -> 3 | I35: =VLOOKUP($B35,'ADP-Rank'!$A$2:$AP$674,42,FALSE) -> 52 | J35: =IFERROR(RANK($M35,$M$6:$M$745,0),"") -> 56 | K35: =IFERROR(IF((OR($C35="RP",$C35="SP")),VLOOKUP($B35,'Filtered-P'!$A$1:$AB$700,12,FALSE),(VLOOKUP($B35,Filtered!$A$1:$AB$700,18,FALSE))),"") -> 347.6147859 | L35: =IFERROR(IF((OR($C35="RP",$C35="SP")),VLOOKUP($C35,'Filtered-P'!$U$3:$X$4,4,FALSE), VLOOKUP($C35,Filtered!$U$3:$X$14,4,FALSE)),"") -> 262.4844351 | M35: =IFERROR(($K35-$L35)/IF(OR($C35="SP",$C35="RP"),VLOOKUP($C35,'Filtered-P'!$U$3:$AB$4,8,FALSE),VLOOKUP($C35,Filtered!$U$3:$AB$10,8,FALSE)),"") -> 0.9342232823 | N35: =IFERROR(IF((OR($C35="RP",$C35="SP")),"",(VLOOKUP($B35,Filtered!$A$1:$AB$700,18,FALSE)/VLOOKUP($B35,Filtered!$A$1:$AB$700,2,FALSE))),"") ->  | O35: =IFERROR(IF((OR($C35="RP",$C35="SP")),VLOOKUP($B35,'Filtered-P'!$A$1:$AB$700,12,FALSE)/VLOOKUP($B35,'Filtered-P'!$A$1:$AB$700,4,FALSE),""),"") -> 1.747298638 | P35: =IFERROR(IF((OR($C35="RP",$C35="SP")),VLOOKUP($B35,'Filtered-P'!$A$1:$X$700,2,FALSE),""),"") -> 10.71487734 | Q35: =IFERROR(IF((OR($C35="RP",$C35="SP")),VLOOKUP($B35,'Filtered-P'!$A$1:$X$700,9,FALSE),""),"") -> 0 | R35: =IFERROR(IF((OR($C35="RP",$C35="SP")),VLOOKUP($B35,'Filtered-P'!$A$1:$X$700,7,FALSE),""),"") -> 184.8207816 | S35: =IFERROR(IF((OR($C35="RP",$C35="SP")),VLOOKUP($B35,'Filtered-P'!$A$1:$AD$700,13,FALSE),""),"") -> 3.871038029 | T35: =IFERROR(IF((OR($C35="RP",$C35="SP")),VLOOKUP($B35,'Filtered-P'!$A$1:$X$700,14,FALSE),""),"") -> 1.213554649 | U35: =IFERROR(IF((OR($C35="RP",$C35="SP")),"",VLOOKUP($B35,Filtered!$A$1:$AJ$700,20,FALSE)),"") ->  | V35: =IFERROR(IF((OR($C35="RP",$C35="SP")),"",VLOOKUP($B35,Filtered!$A$1:$AJ$700,9,FALSE)),"") ->  | W35: =IFERROR(IF((OR($C35="RP",$C35="SP")),"",VLOOKUP($B35,Filtered!$A$1:$AJ$700,10,FALSE)),"") ->  | X35: =IFERROR(IF((OR($C35="RP",$C35="SP")),"",VLOOKUP($B35,Filtered!$A$1:$AJ$700,4,FALSE)),"") ->  | Y35: =IFERROR(IF((OR($C35="RP",$C35="SP")),"",VLOOKUP($B35,Filtered!$A$1:$AJ$700,11,FALSE)),"") ->  | Z35: =IFERROR(IF(ISTEXT($A35),"",(1-NORMDIST((COUNTA($A$6:$A$745)),($G35),((AE35-AD35)/6),TRUE))),"") -> 0.9999998957 | AA35: =IFERROR(IF(ISTEXT($A35),"",(1-NORMDIST((COUNTA($A$6:$A$745))+(Personalize!$E$18+1),$G35,((AE35-AD35)/6),TRUE))),"") -> 0.9999982491 | AB35: =IFERROR(IF(ISTEXT($A35),"",(1-NORMDIST((COUNTA($A$6:$A$745))+((Personalize!$E$18+1)*2),$G35,((AE35-AD35)/6),TRUE))),"") -> 0.9999780861 | AD35: =CHOOSE(Personalize!$E$38,VLOOKUP($B35,'ADP-Rank'!$A$2:$AJ$620,8,FALSE),VLOOKUP($B35,'ADP-Rank'!$A$2:$AJ$620,11,FALSE),VLOOKUP($B35,'ADP-Rank'!$A$2:$AO$620,14,FALSE),VLOOKUP($B35,'ADP-Rank'!$A$2:$BD$620,17,FALSE),VLOOKUP($B35,'ADP-Rank'!$A$2:$BD$620,20,FALSE),VLOOKUP($B35,'ADP-Rank'!$A$2:$BD$620,23,FALSE),VLOOKUP($B35,'ADP-Rank'!$A$2:$BD$620,26,FALSE),VLOOKUP($B35,'ADP-Rank'!$A$2:$BD$620,29,FALSE),VLOOKUP($B35,'ADP-Rank'!$A$2:$BD$620,46,FALSE)) -> 17 | AE35: =CHOOSE(Personalize!$E$38,VLOOKUP($B35,'ADP-Rank'!$A$2:$AJ$620,9,FALSE),VLOOKUP($B35,'ADP-Rank'!$A$2:$AJ$620,12,FALSE),VLOOKUP($B35,'ADP-Rank'!$A$2:$AO$620,15,FALSE),VLOOKUP($B35,'ADP-Rank'!$A$2:$BD$620,18,FALSE),VLOOKUP($B35,'ADP-Rank'!$A$2:$BD$620,21,FALSE),VLOOKUP($B35,'ADP-Rank'!$A$2:$BD$620,24,FALSE),VLOOKUP($B35,'ADP-Rank'!$A$2:$BD$620,27,FALSE),VLOOKUP($B35,'ADP-Rank'!$A$2:$BD$620,30,FALSE),VLOOKUP($B35,'ADP-Rank'!$A$2:$BD$620,47,FALSE)) -> 55 | AF35: =IF(ISBLANK(A35),0,1) -> 0 | AG35: =IF(K35="",0,1) -> 1 | AH35: =A35 -> 0 | AI35: =IF(C35="C",1,IF(C35="1B",2,IF(C35="2B",3,IF(C35="3B",4,IF(C35="SS",5,IF(C35="CI",6,IF(C35="MI",7,IF(C35="OF",11,IF(C35="LF",8,IF(C35="CF",9,IF(C35="RF",10,IF(C35="DH",12,IF(C35="SP",13,IF(C35="RP",14,IF(C35="P",15,16))))))))))))))) -> 13 | AJ35: =VLOOKUP(B35,'Starter Calc'!$B$2:$BR$700,69,FALSE) -> Starter | AK35: =IFERROR(VLOOKUP($B35,'ADP-Rank'!$A$2:$AZ$620,40,FALSE),TRUE) -> TRUE | AL35: 1
B36: Adam Jones | C36: OF | D36: =IFERROR(IF(VLOOKUP(B36,'Starter Calc'!$B$2:$E$700,4,FALSE)="","",VLOOKUP(B36,'Starter Calc'!$B$2:$E$700,4,FALSE)),"") -> ,, | E36: =IFERROR(VLOOKUP($B36,'ADP-Rank'!$A$2:$G$620,5,FALSE),"") -> BAL | F36: =IFERROR(VLOOKUP($B36,'ADP-Rank'!$A$2:$W$620,6,FALSE),"") -> 29 | G36: =IFERROR(CHOOSE(Personalize!$E$38,VLOOKUP($B36,'ADP-Rank'!$A$2:$CD$620,7,FALSE),VLOOKUP($B36,'ADP-Rank'!$A$2:$CD$620,10,FALSE),VLOOKUP($B36,'ADP-Rank'!$A$2:$CD$620,13,FALSE),VLOOKUP($B36,'ADP-Rank'!$A$2:$CD$620,16,FALSE),VLOOKUP($B36,'ADP-Rank'!$A$2:$CD$620,19,FALSE),VLOOKUP($B36,'ADP-Rank'!$A$2:$CD$620,22,FALSE),VLOOKUP($B36,'ADP-Rank'!$A$2:$CD$620,25,FALSE),VLOOKUP($B36,'ADP-Rank'!$A$2:$CD$620,28,FALSE),VLOOKUP($B36,'ADP-Rank'!$A$2:$CD$620,45,FALSE)),"") -> 35.82 | H36: =IFERROR(ROUNDDOWN(VLOOKUP($B36,'ADP-Rank'!$A$2:$BC$674,44,FALSE),0),"") -> 3 | I36: =VLOOKUP($B36,'ADP-Rank'!$A$2:$AP$674,42,FALSE) -> 44 | J36: =IFERROR(RANK($M36,$M$6:$M$745,0),"") -> 69 | K36: =IFERROR(IF((OR($C36="RP",$C36="SP")),VLOOKUP($B36,'Filtered-P'!$A$1:$AB$700,12,FALSE),(VLOOKUP($B36,Filtered!$A$1:$AB$700,18,FALSE))),"") -> 336.6591043 | L36: =IFERROR(IF((OR($C36="RP",$C36="SP")),VLOOKUP($C36,'Filtered-P'!$U$3:$X$4,4,FALSE), VLOOKUP($C36,Filtered!$U$3:$X$14,4,FALSE)),"") -> 287.0213782 | M36: =IFERROR(($K36-$L36)/IF(OR($C36="SP",$C36="RP"),VLOOKUP($C36,'Filtered-P'!$U$3:$AB$4,8,FALSE),VLOOKUP($C36,Filtered!$U$3:$AB$10,8,FALSE)),"") -> 0.8172878997 | N36: =IFERROR(IF((OR($C36="RP",$C36="SP")),"",(VLOOKUP($B36,Filtered!$A$1:$AB$700,18,FALSE)/VLOOKUP($B36,Filtered!$A$1:$AB$700,2,FALSE))),"") -> 0.5407280117 | O36: =IFERROR(IF((OR($C36="RP",$C36="SP")),VLOOKUP($B36,'Filtered-P'!$A$1:$AB$700,12,FALSE)/VLOOKUP($B36,'Filtered-P'!$A$1:$AB$700,4,FALSE),""),"") ->  | P36: =IFERROR(IF((OR($C36="RP",$C36="SP")),VLOOKUP($B36,'Filtered-P'!$A$1:$X$700,2,FALSE),""),"") ->  | Q36: =IFERROR(IF((OR($C36="RP",$C36="SP")),VLOOKUP($B36,'Filtered-P'!$A$1:$X$700,9,FALSE),""),"") ->  | R36: =IFERROR(IF((OR($C36="RP",$C36="SP")),VLOOKUP($B36,'Filtered-P'!$A$1:$X$700,7,FALSE),""),"") ->  | S36: =IFERROR(IF((OR($C36="RP",$C36="SP")),VLOOKUP($B36,'Filtered-P'!$A$1:$AD$700,13,FALSE),""),"") ->  | T36: =IFERROR(IF((OR($C36="RP",$C36="SP")),VLOOKUP($B36,'Filtered-P'!$A$1:$X$700,14,FALSE),""),"") ->  | U36: =IFERROR(IF((OR($C36="RP",$C36="SP")),"",VLOOKUP($B36,Filtered!$A$1:$AJ$700,20,FALSE)),"") -> 0.2696565153 | V36: =IFERROR(IF((OR($C36="RP",$C36="SP")),"",VLOOKUP($B36,Filtered!$A$1:$AJ$700,9,FALSE)),"") -> 26.89202562 | W36: =IFERROR(IF((OR($C36="RP",$C36="SP")),"",VLOOKUP($B36,Filtered!$A$1:$AJ$700,10,FALSE)),"") -> 87.44548852 | X36: =IFERROR(IF((OR($C36="RP",$C36="SP")),"",VLOOKUP($B36,Filtered!$A$1:$AJ$700,4,FALSE)),"") -> 78.35440624 | Y36: =IFERROR(IF((OR($C36="RP",$C36="SP")),"",VLOOKUP($B36,Filtered!$A$1:$AJ$700,11,FALSE)),"") -> 10.11350028 | Z36: =IFERROR(IF(ISTEXT($A36),"",(1-NORMDIST((COUNTA($A$6:$A$745)),($G36),((AE36-AD36)/6),TRUE))),"") -> 0.9999991059 | AA36: =IFERROR(IF(ISTEXT($A36),"",(1-NORMDIST((COUNTA($A$6:$A$745))+(Personalize!$E$18+1),$G36,((AE36-AD36)/6),TRUE))),"") -> 0.9999918126 | AB36: =IFERROR(IF(ISTEXT($A36),"",(1-NORMDIST((COUNTA($A$6:$A$745))+((Personalize!$E$18+1)*2),$G36,((AE36-AD36)/6),TRUE))),"") -> 0.9999391476 | AD36: =CHOOSE(Personalize!$E$38,VLOOKUP($B36,'ADP-Rank'!$A$2:$AJ$620,8,FALSE),VLOOKUP($B36,'ADP-Rank'!$A$2:$AJ$620,11,FALSE),VLOOKUP($B36,'ADP-Rank'!$A$2:$AO$620,14,FALSE),VLOOKUP($B36,'ADP-Rank'!$A$2:$BD$620,17,FALSE),VLOOKUP($B36,'ADP-Rank'!$A$2:$BD$620,20,FALSE),VLOOKUP($B36,'ADP-Rank'!$A$2:$BD$620,23,FALSE),VLOOKUP($B36,'ADP-Rank'!$A$2:$BD$620,26,FALSE),VLOOKUP($B36,'ADP-Rank'!$A$2:$BD$620,29,FALSE),VLOOKUP($B36,'ADP-Rank'!$A$2:$BD$620,46,FALSE)) -> 21 | AE36: =CHOOSE(Personalize!$E$38,VLOOKUP($B36,'ADP-Rank'!$A$2:$AJ$620,9,FALSE),VLOOKUP($B36,'ADP-Rank'!$A$2:$AJ$620,12,FALSE),VLOOKUP($B36,'ADP-Rank'!$A$2:$AO$620,15,FALSE),VLOOKUP($B36,'ADP-Rank'!$A$2:$BD$620,18,FALSE),VLOOKUP($B36,'ADP-Rank'!$A$2:$BD$620,21,FALSE),VLOOKUP($B36,'ADP-Rank'!$A$2:$BD$620,24,FALSE),VLOOKUP($B36,'ADP-Rank'!$A$2:$BD$620,27,FALSE),VLOOKUP($B36,'ADP-Rank'!$A$2:$BD$620,30,FALSE),VLOOKUP($B36,'ADP-Rank'!$A$2:$BD$620,47,FALSE)) -> 66 | AF36: =IF(ISBLANK(A36),0,1) -> 0 | AG36: =IF(K36="",0,1) -> 1 | AH36: =A36 -> 0 | AI36: =IF(C36="C",1,IF(C36="1B",2,IF(C36="2B",3,IF(C36="3B",4,IF(C36="SS",5,IF(C36="CI",6,IF(C36="MI",7,IF(C36="OF",11,IF(C36="LF",8,IF(C36="CF",9,IF(C36="RF",10,IF(C36="DH",12,IF(C36="SP",13,IF(C36="RP",14,IF(C36="P",15,16))))))))))))))) -> 11 | AJ36: =VLOOKUP(B36,'Starter Calc'!$B$2:$BR$700,69,FALSE) -> Bench | AK36: =IFERROR(VLOOKUP($B36,'ADP-Rank'!$A$2:$AZ$620,40,FALSE),TRUE) -> TRUE | AL36: 0
B37: Buster Posey | C37: C | D37: =IFERROR(IF(VLOOKUP(B37,'Starter Calc'!$B$2:$E$700,4,FALSE)="","",VLOOKUP(B37,'Starter Calc'!$B$2:$E$700,4,FALSE)),"") -> ,RF, | E37: =IFERROR(VLOOKUP($B37,'ADP-Rank'!$A$2:$G$620,5,FALSE),"") -> SF | F37: =IFERROR(VLOOKUP($B37,'ADP-Rank'!$A$2:$W$620,6,FALSE),"") -> 28 | G37: =IFERROR(CHOOSE(Personalize!$E$38,VLOOKUP($B37,'ADP-Rank'!$A$2:$CD$620,7,FALSE),VLOOKUP($B37,'ADP-Rank'!$A$2:$CD$620,10,FALSE),VLOOKUP($B37,'ADP-Rank'!$A$2:$CD$620,13,FALSE),VLOOKUP($B37,'ADP-Rank'!$A$2:$CD$620,16,FALSE),VLOOKUP($B37,'ADP-Rank'!$A$2:$CD$620,19,FALSE),VLOOKUP($B37,'ADP-Rank'!$A$2:$CD$620,22,FALSE),VLOOKUP($B37,'ADP-Rank'!$A$2:$CD$620,25,FALSE),VLOOKUP($B37,'ADP-Rank'!$A$2:$CD$620,28,FALSE),VLOOKUP($B37,'ADP-Rank'!$A$2:$CD$620,45,FALSE)),"") -> 37.43 | H37: =IFERROR(ROUNDDOWN(VLOOKUP($B37,'ADP-Rank'!$A$2:$BC$674,44,FALSE),0),"") -> 3 | I37: =VLOOKUP($B37,'ADP-Rank'!$A$2:$AP$674,42,FALSE) -> 18 | J37: =IFERROR(RANK($M37,$M$6:$M$745,0),"") -> 15 | K37: =IFERROR(IF((OR($C37="RP",$C37="SP")),VLOOKUP($B37,'Filtered-P'!$A$1:$AB$700,12,FALSE),(VLOOKUP($B37,Filtered!$A$1:$AB$700,18,FALSE))),"") -> 336.6485229 | L37: =IFERROR(IF((OR($C37="RP",$C37="SP")),VLOOKUP($C37,'Filtered-P'!$U$3:$X$4,4,FALSE), VLOOKUP($C37,Filtered!$U$3:$X$14,4,FALSE)),"") -> 240.9745911 | M37: =IFERROR(($K37-$L37)/IF(OR($C37="SP",$C37="RP"),VLOOKUP($C37,'Filtered-P'!$U$3:$AB$4,8,FALSE),VLOOKUP($C37,Filtered!$U$3:$AB$10,8,FALSE)),"") -> 1.998780919 | N37: =IFERROR(IF((OR($C37="RP",$C37="SP")),"",(VLOOKUP($B37,Filtered!$A$1:$AB$700,18,FALSE)/VLOOKUP($B37,Filtered!$A$1:$AB$700,2,FALSE))),"") -> 0.6072686138 | O37: =IFERROR(IF((OR($C37="RP",$C37="SP")),VLOOKUP($B37,'Filtered-P'!$A$1:$AB$700,12,FALSE)/VLOOKUP($B37,'Filtered-P'!$A$1:$AB$700,4,FALSE),""),"") ->  | P37: =IFERROR(IF((OR($C37="RP",$C37="SP")),VLOOKUP($B37,'Filtered-P'!$A$1:$X$700,2,FALSE),""),"") ->  | Q37: =IFERROR(IF((OR($C37="RP",$C37="SP")),VLOOKUP($B37,'Filtered-P'!$A$1:$X$700,9,FALSE),""),"") ->  | R37: =IFERROR(IF((OR($C37="RP",$C37="SP")),VLOOKUP($B37,'Filtered-P'!$A$1:$X$700,7,FALSE),""),"") ->  | S37: =IFERROR(IF((OR($C37="RP",$C37="SP")),VLOOKUP($B37,'Filtered-P'!$A$1:$AD$700,13,FALSE),""),"") ->  | T37: =IFERROR(IF((OR($C37="RP",$C37="SP")),VLOOKUP($B37,'Filtered-P'!$A$1:$X$700,14,FALSE),""),"") ->  | U37: =IFERROR(IF((OR($C37="RP",$C37="SP")),"",VLOOKUP($B37,Filtered!$A$1:$AJ$700,20,FALSE)),"") -> 0.2959409513 | V37: =IFERROR(IF((OR($C37="RP",$C37="SP")),"",VLOOKUP($B37,Filtered!$A$1:$AJ$700,9,FALSE)),"") -> 17.54502905 | W37: =IFERROR(IF((OR($C37="RP",$C37="SP")),"",VLOOKUP($B37,Filtered!$A$1:$AJ$700,10,FALSE)),"") -> 75.20543193 | X37: =IFERROR(IF((OR($C37="RP",$C37="SP")),"",VLOOKUP($B37,Filtered!$A$1:$AJ$700,4,FALSE)),"") -> 67.33028198 | Y37: =IFERROR(IF((OR($C37="RP",$C37="SP")),"",VLOOKUP($B37,Filtered!$A$1:$AJ$700,11,FALSE)),"") -> 1.41261531 | Z37: =IFERROR(IF(ISTEXT($A37),"",(1-NORMDIST((COUNTA($A$6:$A$745)),($G37),((AE37-AD37)/6),TRUE))),"") -> 0.9999994754 | AA37: =IFERROR(IF(ISTEXT($A37),"",(1-NORMDIST((COUNTA($A$6:$A$745))+(Personalize!$E$18+1),$G37,((AE37-AD37)/6),TRUE))),"") -> 0.9999951924 | AB37: =IFERROR(IF(ISTEXT($A37),"",(1-NORMDIST((COUNTA($A$6:$A$745))+((Personalize!$E$18+1)*2),$G37,((AE37-AD37)/6),TRUE))),"") -> 0.9999639323 | AD37: =CHOOSE(Personalize!$E$38,VLOOKUP($B37,'ADP-Rank'!$A$2:$AJ$620,8,FALSE),VLOOKUP($B37,'ADP-Rank'!$A$2:$AJ$620,11,FALSE),VLOOKUP($B37,'ADP-Rank'!$A$2:$AO$620,14,FALSE),VLOOKUP($B37,'ADP-Rank'!$A$2:$BD$620,17,FALSE),VLOOKUP($B37,'ADP-Rank'!$A$2:$BD$620,20,FALSE),VLOOKUP($B37,'ADP-Rank'!$A$2:$BD$620,23,FALSE),VLOOKUP($B37,'ADP-Rank'!$A$2:$BD$620,26,FALSE),VLOOKUP($B37,'ADP-Rank'!$A$2:$BD$620,29,FALSE),VLOOKUP($B37,'ADP-Rank'!$A$2:$BD$620,46,FALSE)) -> 19 | AE37: =CHOOSE(Personalize!$E$38,VLOOKUP($B37,'ADP-Rank'!$A$2:$AJ$620,9,FALSE),VLOOKUP($B37,'ADP-Rank'!$A$2:$AJ$620,12,FALSE),VLOOKUP($B37,'ADP-Rank'!$A$2:$AO$620,15,FALSE),VLOOKUP($B37,'ADP-Rank'!$A$2:$BD$620,18,FALSE),VLOOKUP($B37,'ADP-Rank'!$A$2:$BD$620,21,FALSE),VLOOKUP($B37,'ADP-Rank'!$A$2:$BD$620,24,FALSE),VLOOKUP($B37,'ADP-Rank'!$A$2:$BD$620,27,FALSE),VLOOKUP($B37,'ADP-Rank'!$A$2:$BD$620,30,FALSE),VLOOKUP($B37,'ADP-Rank'!$A$2:$BD$620,47,FALSE)) -> 65 | AF37: =IF(ISBLANK(A37),0,1) -> 0 | AG37: =IF(K37="",0,1) -> 1 | AH37: =A37 -> 0 | AI37: =IF(C37="C",1,IF(C37="1B",2,IF(C37="2B",3,IF(C37="3B",4,IF(C37="SS",5,IF(C37="CI",6,IF(C37="MI",7,IF(C37="OF",11,IF(C37="LF",8,IF(C37="CF",9,IF(C37="RF",10,IF(C37="DH",12,IF(C37="SP",13,IF(C37="RP",14,IF(C37="P",15,16))))))))))))))) -> 1 | AJ37: =VLOOKUP(B37,'Starter Calc'!$B$2:$BR$700,69,FALSE) -> Bench | AK37: =IFERROR(VLOOKUP($B37,'ADP-Rank'!$A$2:$AZ$620,40,FALSE),TRUE) -> TRUE | AL37: 0
B38: Zack Greinke | C38: SP | D38: =IFERROR(IF(VLOOKUP(B38,'Starter Calc'!$B$2:$E$700,4,FALSE)="","",VLOOKUP(B38,'Starter Calc'!$B$2:$E$700,4,FALSE)),"") -> LF,,CF | E38: =IFERROR(VLOOKUP($B38,'ADP-Rank'!$A$2:$G$620,5,FALSE),"") -> LAD | F38: =IFERROR(VLOOKUP($B38,'ADP-Rank'!$A$2:$W$620,6,FALSE),"") -> 31 | G38: =IFERROR(CHOOSE(Personalize!$E$38,VLOOKUP($B38,'ADP-Rank'!$A$2:$CD$620,7,FALSE),VLOOKUP($B38,'ADP-Rank'!$A$2:$CD$620,10,FALSE),VLOOKUP($B38,'ADP-Rank'!$A$2:$CD$620,13,FALSE),VLOOKUP($B38,'ADP-Rank'!$A$2:$CD$620,16,FALSE),VLOOKUP($B38,'ADP-Rank'!$A$2:$CD$620,19,FALSE),VLOOKUP($B38,'ADP-Rank'!$A$2:$CD$620,22,FALSE),VLOOKUP($B38,'ADP-Rank'!$A$2:$CD$620,25,FALSE),VLOOKUP($B38,'ADP-Rank'!$A$2:$CD$620,28,FALSE),VLOOKUP($B38,'ADP-Rank'!$A$2:$CD$620,45,FALSE)),"") -> 37.46 | H38: =IFERROR(ROUNDDOWN(VLOOKUP($B38,'ADP-Rank'!$A$2:$BC$674,44,FALSE),0),"") -> 3 | I38: =VLOOKUP($B38,'ADP-Rank'!$A$2:$AP$674,42,FALSE) -> 21 | J38: =IFERROR(RANK($M38,$M$6:$M$745,0),"") -> 29 | K38: =IFERROR(IF((OR($C38="RP",$C38="SP")),VLOOKUP($B38,'Filtered-P'!$A$1:$AB$700,12,FALSE),(VLOOKUP($B38,Filtered!$A$1:$AB$700,18,FALSE))),"") -> 398.0839928 | L38: =IFERROR(IF((OR($C38="RP",$C38="SP")),VLOOKUP($C38,'Filtered-P'!$U$3:$X$4,4,FALSE), VLOOKUP($C38,Filtered!$U$3:$X$14,4,FALSE)),"") -> 262.4844351 | M38: =IFERROR(($K38-$L38)/IF(OR($C38="SP",$C38="RP"),VLOOKUP($C38,'Filtered-P'!$U$3:$AB$4,8,FALSE),VLOOKUP($C38,Filtered!$U$3:$AB$10,8,FALSE)),"") -> 1.488074027 | N38: =IFERROR(IF((OR($C38="RP",$C38="SP")),"",(VLOOKUP($B38,Filtered!$A$1:$AB$700,18,FALSE)/VLOOKUP($B38,Filtered!$A$1:$AB$700,2,FALSE))),"") ->  | O38: =IFERROR(IF((OR($C38="RP",$C38="SP")),VLOOKUP($B38,'Filtered-P'!$A$1:$AB$700,12,FALSE)/VLOOKUP($B38,'Filtered-P'!$A$1:$AB$700,4,FALSE),""),"") -> 2.083247 | P38: =IFERROR(IF((OR($C38="RP",$C38="SP")),VLOOKUP($B38,'Filtered-P'!$A$1:$X$700,2,FALSE),""),"") -> 14.17195285 | Q38: =IFERROR(IF((OR($C38="RP",$C38="SP")),VLOOKUP($B38,'Filtered-P'!$A$1:$X$700,9,FALSE),""),"") -> 0 | R38: =IFERROR(IF((OR($C38="RP",$C38="SP")),VLOOKUP($B38,'Filtered-P'!$A$1:$X$700,7,FALSE),""),"") -> 182.6194871 | S38: =IFERROR(IF((OR($C38="RP",$C38="SP")),VLOOKUP($B38,'Filtered-P'!$A$1:$AD$700,13,FALSE),""),"") -> 3.040542111 | T38: =IFERROR(IF((OR($C38="RP",$C38="SP")),VLOOKUP($B38,'Filtered-P'!$A$1:$X$700,14,FALSE),""),"") -> 1.136912455 | U38: =IFERROR(IF((OR($C38="RP",$C38="SP")),"",VLOOKUP($B38,Filtered!$A$1:$AJ$700,20,FALSE)),"") ->  | V38: =IFERROR(IF((OR($C38="RP",$C38="SP")),"",VLOOKUP($B38,Filtered!$A$1:$AJ$700,9,FALSE)),"") ->  | W38: =IFERROR(IF((OR($C38="RP",$C38="SP")),"",VLOOKUP($B38,Filtered!$A$1:$AJ$700,10,FALSE)),"") ->  | X38: =IFERROR(IF((OR($C38="RP",$C38="SP")),"",VLOOKUP($B38,Filtered!$A$1:$AJ$700,4,FALSE)),"") ->  | Y38: =IFERROR(IF((OR($C38="RP",$C38="SP")),"",VLOOKUP($B38,Filtered!$A$1:$AJ$700,11,FALSE)),"") ->  | Z38: =IFERROR(IF(ISTEXT($A38),"",(1-NORMDIST((COUNTA($A$6:$A$745)),($G38),((AE38-AD38)/6),TRUE))),"") -> 0.9999999983 | AA38: =IFERROR(IF(ISTEXT($A38),"",(1-NORMDIST((COUNTA($A$6:$A$745))+(Personalize!$E$18+1),$G38,((AE38-AD38)/6),TRUE))),"") -> 0.9999999589 | AB38: =IFERROR(IF(ISTEXT($A38),"",(1-NORMDIST((COUNTA($A$6:$A$745))+((Personalize!$E$18+1)*2),$G38,((AE38-AD38)/6),TRUE))),"") -> 0.9999992434 | AD38: =CHOOSE(Personalize!$E$38,VLOOKUP($B38,'ADP-Rank'!$A$2:$AJ$620,8,FALSE),VLOOKUP($B38,'ADP-Rank'!$A$2:$AJ$620,11,FALSE),VLOOKUP($B38,'ADP-Rank'!$A$2:$AO$620,14,FALSE),VLOOKUP($B38,'ADP-Rank'!$A$2:$BD$620,17,FALSE),VLOOKUP($B38,'ADP-Rank'!$A$2:$BD$620,20,FALSE),VLOOKUP($B38,'ADP-Rank'!$A$2:$BD$620,23,FALSE),VLOOKUP($B38,'ADP-Rank'!$A$2:$BD$620,26,FALSE),VLOOKUP($B38,'ADP-Rank'!$A$2:$BD$620,29,FALSE),VLOOKUP($B38,'ADP-Rank'!$A$2:$BD$620,46,FALSE)) -> 24 | AE38: =CHOOSE(Personalize!$E$38,VLOOKUP($B38,'ADP-Rank'!$A$2:$AJ$620,9,FALSE),VLOOKUP($B38,'ADP-Rank'!$A$2:$AJ$620,12,FALSE),VLOOKUP($B38,'ADP-Rank'!$A$2:$AO$620,15,FALSE),VLOOKUP($B38,'ADP-Rank'!$A$2:$BD$620,18,FALSE),VLOOKUP($B38,'ADP-Rank'!$A$2:$BD$620,21,FALSE),VLOOKUP($B38,'ADP-Rank'!$A$2:$BD$620,24,FALSE),VLOOKUP($B38,'ADP-Rank'!$A$2:$BD$620,27,FALSE),VLOOKUP($B38,'ADP-Rank'!$A$2:$BD$620,30,FALSE),VLOOKUP($B38,'ADP-Rank'!$A$2:$BD$620,47,FALSE)) -> 62 | AF38: =IF(ISBLANK(A38),0,1) -> 0 | AG38: =IF(K38="",0,1) -> 1 | AH38: =A38 -> 0 | AI38: =IF(C38="C",1,IF(C38="1B",2,IF(C38="2B",3,IF(C38="3B",4,IF(C38="SS",5,IF(C38="CI",6,IF(C38="MI",7,IF(C38="OF",11,IF(C38="LF",8,IF(C38="CF",9,IF(C38="RF",10,IF(C38="DH",12,IF(C38="SP",13,IF(C38="RP",14,IF(C38="P",15,16))))))))))))))) -> 13 | AJ38: =VLOOKUP(B38,'Starter Calc'!$B$2:$BR$700,69,FALSE) -> Starter | AK38: =IFERROR(VLOOKUP($B38,'ADP-Rank'!$A$2:$AZ$620,40,FALSE),TRUE) -> TRUE | AL38: 1
B39: Matt Harvey | C39: SP | D39: =IFERROR(IF(VLOOKUP(B39,'Starter Calc'!$B$2:$E$700,4,FALSE)="","",VLOOKUP(B39,'Starter Calc'!$B$2:$E$700,4,FALSE)),"") -> ,, | E39: =IFERROR(VLOOKUP($B39,'ADP-Rank'!$A$2:$G$620,5,FALSE),"") -> NYM | F39: =IFERROR(VLOOKUP($B39,'ADP-Rank'!$A$2:$W$620,6,FALSE),"") -> 26 | G39: =IFERROR(CHOOSE(Personalize!$E$38,VLOOKUP($B39,'ADP-Rank'!$A$2:$CD$620,7,FALSE),VLOOKUP($B39,'ADP-Rank'!$A$2:$CD$620,10,FALSE),VLOOKUP($B39,'ADP-Rank'!$A$2:$CD$620,13,FALSE),VLOOKUP($B39,'ADP-Rank'!$A$2:$CD$620,16,FALSE),VLOOKUP($B39,'ADP-Rank'!$A$2:$CD$620,19,FALSE),VLOOKUP($B39,'ADP-Rank'!$A$2:$CD$620,22,FALSE),VLOOKUP($B39,'ADP-Rank'!$A$2:$CD$620,25,FALSE),VLOOKUP($B39,'ADP-Rank'!$A$2:$CD$620,28,FALSE),VLOOKUP($B39,'ADP-Rank'!$A$2:$CD$620,45,FALSE)),"") -> 38.08 | H39: =IFERROR(ROUNDDOWN(VLOOKUP($B39,'ADP-Rank'!$A$2:$BC$674,44,FALSE),0),"") -> 3 | I39: =VLOOKUP($B39,'ADP-Rank'!$A$2:$AP$674,42,FALSE) -> 63 | J39: =IFERROR(RANK($M39,$M$6:$M$745,0),"") ->  | K39: =IFERROR(IF((OR($C39="RP",$C39="SP")),VLOOKUP($B39,'Filtered-P'!$A$1:$AB$700,12,FALSE),(VLOOKUP($B39,Filtered!$A$1:$AB$700,18,FALSE))),"") ->  | L39: =IFERROR(IF((OR($C39="RP",$C39="SP")),VLOOKUP($C39,'Filtered-P'!$U$3:$X$4,4,FALSE), VLOOKUP($C39,Filtered!$U$3:$X$14,4,FALSE)),"") -> 262.4844351 | M39: =IFERROR(($K39-$L39)/IF(OR($C39="SP",$C39="RP"),VLOOKUP($C39,'Filtered-P'!$U$3:$AB$4,8,FALSE),VLOOKUP($C39,Filtered!$U$3:$AB$10,8,FALSE)),"") ->  | N39: =IFERROR(IF((OR($C39="RP",$C39="SP")),"",(VLOOKUP($B39,Filtered!$A$1:$AB$700,18,FALSE)/VLOOKUP($B39,Filtered!$A$1:$AB$700,2,FALSE))),"") ->  | O39: =IFERROR(IF((OR($C39="RP",$C39="SP")),VLOOKUP($B39,'Filtered-P'!$A$1:$AB$700,12,FALSE)/VLOOKUP($B39,'Filtered-P'!$A$1:$AB$700,4,FALSE),""),"") ->  | P39: =IFERROR(IF((OR($C39="RP",$C39="SP")),VLOOKUP($B39,'Filtered-P'!$A$1:$X$700,2,FALSE),""),"") ->  | Q39: =IFERROR(IF((OR($C39="RP",$C39="SP")),VLOOKUP($B39,'Filtered-P'!$A$1:$X$700,9,FALSE),""),"") ->  | R39: =IFERROR(IF((OR($C39="RP",$C39="SP")),VLOOKUP($B39,'Filtered-P'!$A$1:$X$700,7,FALSE),""),"") ->  | S39: =IFERROR(IF((OR($C39="RP",$C39="SP")),VLOOKUP($B39,'Filtered-P'!$A$1:$AD$700,13,FALSE),""),"") ->  | T39: =IFERROR(IF((OR($C39="RP",$C39="SP")),VLOOKUP($B39,'Filtered-P'!$A$1:$X$700,14,FALSE),""),"") ->  | U39: =IFERROR(IF((OR($C39="RP",$C39="SP")),"",VLOOKUP($B39,Filtered!$A$1:$AJ$700,20,FALSE)),"") ->  | V39: =IFERROR(IF((OR($C39="RP",$C39="SP")),"",VLOOKUP($B39,Filtered!$A$1:$AJ$700,9,FALSE)),"") ->  | W39: =IFERROR(IF((OR($C39="RP",$C39="SP")),"",VLOOKUP($B39,Filtered!$A$1:$AJ$700,10,FALSE)),"") ->  | X39: =IFERROR(IF((OR($C39="RP",$C39="SP")),"",VLOOKUP($B39,Filtered!$A$1:$AJ$700,4,FALSE)),"") ->  | Y39: =IFERROR(IF((OR($C39="RP",$C39="SP")),"",VLOOKUP($B39,Filtered!$A$1:$AJ$700,11,FALSE)),"") ->  | Z39: =IFERROR(IF(ISTEXT($A39),"",(1-NORMDIST((COUNTA($A$6:$A$745)),($G39),((AE39-AD39)/6),TRUE))),"") -> 0.9999999875 | AA39: =IFERROR(IF(ISTEXT($A39),"",(1-NORMDIST((COUNTA($A$6:$A$745))+(Personalize!$E$18+1),$G39,((AE39-AD39)/6),TRUE))),"") -> 0.9999997909 | AB39: =IFERROR(IF(ISTEXT($A39),"",(1-NORMDIST((COUNTA($A$6:$A$745))+((Personalize!$E$18+1)*2),$G39,((AE39-AD39)/6),TRUE))),"") -> 0.9999972959 | AD39: =CHOOSE(Personalize!$E$38,VLOOKUP($B39,'ADP-Rank'!$A$2:$AJ$620,8,FALSE),VLOOKUP($B39,'ADP-Rank'!$A$2:$AJ$620,11,FALSE),VLOOKUP($B39,'ADP-Rank'!$A$2:$AO$620,14,FALSE),VLOOKUP($B39,'ADP-Rank'!$A$2:$BD$620,17,FALSE),VLOOKUP($B39,'ADP-Rank'!$A$2:$BD$620,20,FALSE),VLOOKUP($B39,'ADP-Rank'!$A$2:$BD$620,23,FALSE),VLOOKUP($B39,'ADP-Rank'!$A$2:$BD$620,26,FALSE),VLOOKUP($B39,'ADP-Rank'!$A$2:$BD$620,29,FALSE),VLOOKUP($B39,'ADP-Rank'!$A$2:$BD$620,46,FALSE)) -> 21 | AE39: =CHOOSE(Personalize!$E$38,VLOOKUP($B39,'ADP-Rank'!$A$2:$AJ$620,9,FALSE),VLOOKUP($B39,'ADP-Rank'!$A$2:$AJ$620,12,FALSE),VLOOKUP($B39,'ADP-Rank'!$A$2:$AO$620,15,FALSE),VLOOKUP($B39,'ADP-Rank'!$A$2:$BD$620,18,FALSE),VLOOKUP($B39,'ADP-Rank'!$A$2:$BD$620,21,FALSE),VLOOKUP($B39,'ADP-Rank'!$A$2:$BD$620,24,FALSE),VLOOKUP($B39,'ADP-Rank'!$A$2:$BD$620,27,FALSE),VLOOKUP($B39,'ADP-Rank'!$A$2:$BD$620,30,FALSE),VLOOKUP($B39,'ADP-Rank'!$A$2:$BD$620,47,FALSE)) -> 62 | AF39: =IF(ISBLANK(A39),0,1) -> 0 | AG39: =IF(K39="",0,1) -> 0 | AH39: =A39 -> 0 | AI39: =IF(C39="C",1,IF(C39="1B",2,IF(C39="2B",3,IF(C39="3B",4,IF(C39="SS",5,IF(C39="CI",6,IF(C39="MI",7,IF(C39="OF",11,IF(C39="LF",8,IF(C39="CF",9,IF(C39="RF",10,IF(C39="DH",12,IF(C39="SP",13,IF(C39="RP",14,IF(C39="P",15,16))))))))))))))) -> 13 | AJ39: =VLOOKUP(B39,'Starter Calc'!$B$2:$BR$700,69,FALSE) -> Starter | AK39: =IFERROR(VLOOKUP($B39,'ADP-Rank'!$A$2:$AZ$620,40,FALSE),TRUE) -> TRUE | AL39: 0
B40: Carlos Gomez | C40: OF | D40: =IFERROR(IF(VLOOKUP(B40,'Starter Calc'!$B$2:$E$700,4,FALSE)="","",VLOOKUP(B40,'Starter Calc'!$B$2:$E$700,4,FALSE)),"") -> LF,RF,CF | E40: =IFERROR(VLOOKUP($B40,'ADP-Rank'!$A$2:$G$620,5,FALSE),"") -> MIL | F40: =IFERROR(VLOOKUP($B40,'ADP-Rank'!$A$2:$W$620,6,FALSE),"") -> 29 | G40: =IFERROR(CHOOSE(Personalize!$E$38,VLOOKUP($B40,'ADP-Rank'!$A$2:$CD$620,7,FALSE),VLOOKUP($B40,'ADP-Rank'!$A$2:$CD$620,10,FALSE),VLOOKUP($B40,'ADP-Rank'!$A$2:$CD$620,13,FALSE),VLOOKUP($B40,'ADP-Rank'!$A$2:$CD$620,16,FALSE),VLOOKUP($B40,'ADP-Rank'!$A$2:$CD$620,19,FALSE),VLOOKUP($B40,'ADP-Rank'!$A$2:$CD$620,22,FALSE),VLOOKUP($B40,'ADP-Rank'!$A$2:$CD$620,25,FALSE),VLOOKUP($B40,'ADP-Rank'!$A$2:$CD$620,28,FALSE),VLOOKUP($B40,'ADP-Rank'!$A$2:$CD$620,45,FALSE)),"") -> 38.33 | H40: =IFERROR(ROUNDDOWN(VLOOKUP($B40,'ADP-Rank'!$A$2:$BC$674,44,FALSE),0),"") -> 3 | I40: =VLOOKUP($B40,'ADP-Rank'!$A$2:$AP$674,42,FALSE) -> 32 | J40: =IFERROR(RANK($M40,$M$6:$M$745,0),"") -> 110 | K40: =IFERROR(IF((OR($C40="RP",$C40="SP")),VLOOKUP($B40,'Filtered-P'!$A$1:$AB$700,12,FALSE),(VLOOKUP($B40,Filtered!$A$1:$AB$700,18,FALSE))),"") -> 311.8389965 | L40: =IFERROR(IF((OR($C40="RP",$C40="SP")),VLOOKUP($C40,'Filtered-P'!$U$3:$X$4,4,FALSE), VLOOKUP($C40,Filtered!$U$3:$X$14,4,FALSE)),"") -> 287.0213782 | M40: =IFERROR(($K40-$L40)/IF(OR($C40="SP",$C40="RP"),VLOOKUP($C40,'Filtered-P'!$U$3:$AB$4,8,FALSE),VLOOKUP($C40,Filtered!$U$3:$AB$10,8,FALSE)),"") -> 0.4086234548 | N40: =IFERROR(IF((OR($C40="RP",$C40="SP")),"",(VLOOKUP($B40,Filtered!$A$1:$AB$700,18,FALSE)/VLOOKUP($B40,Filtered!$A$1:$AB$700,2,FALSE))),"") -> 0.5252174313 | O40: =IFERROR(IF((OR($C40="RP",$C40="SP")),VLOOKUP($B40,'Filtered-P'!$A$1:$AB$700,12,FALSE)/VLOOKUP($B40,'Filtered-P'!$A$1:$AB$700,4,FALSE),""),"") ->  | P40: =IFERROR(IF((OR($C40="RP",$C40="SP")),VLOOKUP($B40,'Filtered-P'!$A$1:$X$700,2,FALSE),""),"") ->  | Q40: =IFERROR(IF((OR($C40="RP",$C40="SP")),VLOOKUP($B40,'Filtered-P'!$A$1:$X$700,9,FALSE),""),"") ->  | R40: =IFERROR(IF((OR($C40="RP",$C40="SP")),VLOOKUP($B40,'Filtered-P'!$A$1:$X$700,7,FALSE),""),"") ->  | S40: =IFERROR(IF((OR($C40="RP",$C40="SP")),VLOOKUP($B40,'Filtered-P'!$A$1:$AD$700,13,FALSE),""),"") ->  | T40: =IFERROR(IF((OR($C40="RP",$C40="SP")),VLOOKUP($B40,'Filtered-P'!$A$1:$X$700,14,FALSE),""),"") ->  | U40: =IFERROR(IF((OR($C40="RP",$C40="SP")),"",VLOOKUP($B40,Filtered!$A$1:$AJ$700,20,FALSE)),"") -> 0.258456545 | V40: =IFERROR(IF((OR($C40="RP",$C40="SP")),"",VLOOKUP($B40,Filtered!$A$1:$AJ$700,9,FALSE)),"") -> 21.07858635 | W40: =IFERROR(IF((OR($C40="RP",$C40="SP")),"",VLOOKUP($B40,Filtered!$A$1:$AJ$700,10,FALSE)),"") -> 68.55051873 | X40: =IFERROR(IF((OR($C40="RP",$C40="SP")),"",VLOOKUP($B40,Filtered!$A$1:$AJ$700,4,FALSE)),"") -> 83.99589743 | Y40: =IFERROR(IF((OR($C40="RP",$C40="SP")),"",VLOOKUP($B40,Filtered!$A$1:$AJ$700,11,FALSE)),"") -> 31.98239724 | Z40: =IFERROR(IF(ISTEXT($A40),"",(1-NORMDIST((COUNTA($A$6:$A$745)),($G40),((AE40-AD40)/6),TRUE))),"") -> 0.9999951261 | AA40: =IFERROR(IF(ISTEXT($A40),"",(1-NORMDIST((COUNTA($A$6:$A$745))+(Personalize!$E$18+1),$G40,((AE40-AD40)/6),TRUE))),"") -> 0.9999707581 | AB40: =IFERROR(IF(ISTEXT($A40),"",(1-NORMDIST((COUNTA($A$6:$A$745))+((Personalize!$E$18+1)*2),$G40,((AE40-AD40)/6),TRUE))),"") -> 0.9998498262 | AD40: =CHOOSE(Personalize!$E$38,VLOOKUP($B40,'ADP-Rank'!$A$2:$AJ$620,8,FALSE),VLOOKUP($B40,'ADP-Rank'!$A$2:$AJ$620,11,FALSE),VLOOKUP($B40,'ADP-Rank'!$A$2:$AO$620,14,FALSE),VLOOKUP($B40,'ADP-Rank'!$A$2:$BD$620,17,FALSE),VLOOKUP($B40,'ADP-Rank'!$A$2:$BD$620,20,FALSE),VLOOKUP($B40,'ADP-Rank'!$A$2:$BD$620,23,FALSE),VLOOKUP($B40,'ADP-Rank'!$A$2:$BD$620,26,FALSE),VLOOKUP($B40,'ADP-Rank'!$A$2:$BD$620,29,FALSE),VLOOKUP($B40,'ADP-Rank'!$A$2:$BD$620,46,FALSE)) -> 18 | AE40: =CHOOSE(Personalize!$E$38,VLOOKUP($B40,'ADP-Rank'!$A$2:$AJ$620,9,FALSE),VLOOKUP($B40,'ADP-Rank'!$A$2:$AJ$620,12,FALSE),VLOOKUP($B40,'ADP-Rank'!$A$2:$AO$620,15,FALSE),VLOOKUP($B40,'ADP-Rank'!$A$2:$BD$620,18,FALSE),VLOOKUP($B40,'ADP-Rank'!$A$2:$BD$620,21,FALSE),VLOOKUP($B40,'ADP-Rank'!$A$2:$BD$620,24,FALSE),VLOOKUP($B40,'ADP-Rank'!$A$2:$BD$620,27,FALSE),VLOOKUP($B40,'ADP-Rank'!$A$2:$BD$620,30,FALSE),VLOOKUP($B40,'ADP-Rank'!$A$2:$BD$620,47,FALSE)) -> 70 | AF40: =IF(ISBLANK(A40),0,1) -> 0 | AG40: =IF(K40="",0,1) -> 1 | AH40: =A40 -> 0 | AI40: =IF(C40="C",1,IF(C40="1B",2,IF(C40="2B",3,IF(C40="3B",4,IF(C40="SS",5,IF(C40="CI",6,IF(C40="MI",7,IF(C40="OF",11,IF(C40="LF",8,IF(C40="CF",9,IF(C40="RF",10,IF(C40="DH",12,IF(C40="SP",13,IF(C40="RP",14,IF(C40="P",15,16))))))))))))))) -> 11 | AJ40: =VLOOKUP(B40,'Starter Calc'!$B$2:$BR$700,69,FALSE) -> Bench | AK40: =IFERROR(VLOOKUP($B40,'ADP-Rank'!$A$2:$AZ$620,40,FALSE),TRUE) -> TRUE | AL40: 0
B41: Michael Brantley | C41: OF | D41: =IFERROR(IF(VLOOKUP(B41,'Starter Calc'!$B$2:$E$700,4,FALSE)="","",VLOOKUP(B41,'Starter Calc'!$B$2:$E$700,4,FALSE)),"") -> LF,, | E41: =IFERROR(VLOOKUP($B41,'ADP-Rank'!$A$2:$G$620,5,FALSE),"") -> CLE | F41: =IFERROR(VLOOKUP($B41,'ADP-Rank'!$A$2:$W$620,6,FALSE),"") -> 27 | G41: =IFERROR(CHOOSE(Personalize!$E$38,VLOOKUP($B41,'ADP-Rank'!$A$2:$CD$620,7,FALSE),VLOOKUP($B41,'ADP-Rank'!$A$2:$CD$620,10,FALSE),VLOOKUP($B41,'ADP-Rank'!$A$2:$CD$620,13,FALSE),VLOOKUP($B41,'ADP-Rank'!$A$2:$CD$620,16,FALSE),VLOOKUP($B41,'ADP-Rank'!$A$2:$CD$620,19,FALSE),VLOOKUP($B41,'ADP-Rank'!$A$2:$CD$620,22,FALSE),VLOOKUP($B41,'ADP-Rank'!$A$2:$CD$620,25,FALSE),VLOOKUP($B41,'ADP-Rank'!$A$2:$CD$620,28,FALSE),VLOOKUP($B41,'ADP-Rank'!$A$2:$CD$620,45,FALSE)),"") -> 40.46 | H41: =IFERROR(ROUNDDOWN(VLOOKUP($B41,'ADP-Rank'!$A$2:$BC$674,44,FALSE),0),"") -> 3 | I41: =VLOOKUP($B41,'ADP-Rank'!$A$2:$AP$674,42,FALSE) -> 15 | J41: =IFERROR(RANK($M41,$M$6:$M$745,0),"") -> 20 | K41: =IFERROR(IF((OR($C41="RP",$C41="SP")),VLOOKUP($B41,'Filtered-P'!$A$1:$AB$700,12,FALSE),(VLOOKUP($B41,Filtered!$A$1:$AB$700,18,FALSE))),"") -> 387.0629266 | L41: =IFERROR(IF((OR($C41="RP",$C41="SP")),VLOOKUP($C41,'Filtered-P'!$U$3:$X$4,4,FALSE), VLOOKUP($C41,Filtered!$U$3:$X$14,4,FALSE)),"") -> 287.0213782 | M41: =IFERROR(($K41-$L41)/IF(OR($C41="SP",$C41="RP"),VLOOKUP($C41,'Filtered-P'!$U$3:$AB$4,8,FALSE),VLOOKUP($C41,Filtered!$U$3:$AB$10,8,FALSE)),"") -> 1.647189616 | N41: =IFERROR(IF((OR($C41="RP",$C41="SP")),"",(VLOOKUP($B41,Filtered!$A$1:$AB$700,18,FALSE)/VLOOKUP($B41,Filtered!$A$1:$AB$700,2,FALSE))),"") -> 0.6092914816 | O41: =IFERROR(IF((OR($C41="RP",$C41="SP")),VLOOKUP($B41,'Filtered-P'!$A$1:$AB$700,12,FALSE)/VLOOKUP($B41,'Filtered-P'!$A$1:$AB$700,4,FALSE),""),"") ->  | P41: =IFERROR(IF((OR($C41="RP",$C41="SP")),VLOOKUP($B41,'Filtered-P'!$A$1:$X$700,2,FALSE),""),"") ->  | Q41: =IFERROR(IF((OR($C41="RP",$C41="SP")),VLOOKUP($B41,'Filtered-P'!$A$1:$X$700,9,FALSE),""),"") ->  | R41: =IFERROR(IF((OR($C41="RP",$C41="SP")),VLOOKUP($B41,'Filtered-P'!$A$1:$X$700,7,FALSE),""),"") ->  | S41: =IFERROR(IF((OR($C41="RP",$C41="SP")),VLOOKUP($B41,'Filtered-P'!$A$1:$AD$700,13,FALSE),""),"") ->  | T41: =IFERROR(IF((OR($C41="RP",$C41="SP")),VLOOKUP($B41,'Filtered-P'!$A$1:$X$700,14,FALSE),""),"") ->  | U41: =IFERROR(IF((OR($C41="RP",$C41="SP")),"",VLOOKUP($B41,Filtered!$A$1:$AJ$700,20,FALSE)),"") -> 0.2879136444 | V41: =IFERROR(IF((OR($C41="RP",$C41="SP")),"",VLOOKUP($B41,Filtered!$A$1:$AJ$700,9,FALSE)),"") -> 14.02434685 | W41: =IFERROR(IF((OR($C41="RP",$C41="SP")),"",VLOOKUP($B41,Filtered!$A$1:$AJ$700,10,FALSE)),"") -> 75.60100477 | X41: =IFERROR(IF((OR($C41="RP",$C41="SP")),"",VLOOKUP($B41,Filtered!$A$1:$AJ$700,4,FALSE)),"") -> 76.35930832 | Y41: =IFERROR(IF((OR($C41="RP",$C41="SP")),"",VLOOKUP($B41,Filtered!$A$1:$AJ$700,11,FALSE)),"") -> 17.16172018 | Z41: =IFERROR(IF(ISTEXT($A41),"",(1-NORMDIST((COUNTA($A$6:$A$745)),($G41),((AE41-AD41)/6),TRUE))),"") -> 0.9999999963 | AA41: =IFERROR(IF(ISTEXT($A41),"",(1-NORMDIST((COUNTA($A$6:$A$745))+(Personalize!$E$18+1),$G41,((AE41-AD41)/6),TRUE))),"") -> 0.9999999354 | AB41: =IFERROR(IF(ISTEXT($A41),"",(1-NORMDIST((COUNTA($A$6:$A$745))+((Personalize!$E$18+1)*2),$G41,((AE41-AD41)/6),TRUE))),"") -> 0.9999991235 | AD41: =CHOOSE(Personalize!$E$38,VLOOKUP($B41,'ADP-Rank'!$A$2:$AJ$620,8,FALSE),VLOOKUP($B41,'ADP-Rank'!$A$2:$AJ$620,11,FALSE),VLOOKUP($B41,'ADP-Rank'!$A$2:$AO$620,14,FALSE),VLOOKUP($B41,'ADP-Rank'!$A$2:$BD$620,17,FALSE),VLOOKUP($B41,'ADP-Rank'!$A$2:$BD$620,20,FALSE),VLOOKUP($B41,'ADP-Rank'!$A$2:$BD$620,23,FALSE),VLOOKUP($B41,'ADP-Rank'!$A$2:$BD$620,26,FALSE),VLOOKUP($B41,'ADP-Rank'!$A$2:$BD$620,29,FALSE),VLOOKUP($B41,'ADP-Rank'!$A$2:$BD$620,46,FALSE)) -> 24 | AE41: =CHOOSE(Personalize!$E$38,VLOOKUP($B41,'ADP-Rank'!$A$2:$AJ$620,9,FALSE),VLOOKUP($B41,'ADP-Rank'!$A$2:$AJ$620,12,FALSE),VLOOKUP($B41,'ADP-Rank'!$A$2:$AO$620,15,FALSE),VLOOKUP($B41,'ADP-Rank'!$A$2:$BD$620,18,FALSE),VLOOKUP($B41,'ADP-Rank'!$A$2:$BD$620,21,FALSE),VLOOKUP($B41,'ADP-Rank'!$A$2:$BD$620,24,FALSE),VLOOKUP($B41,'ADP-Rank'!$A$2:$BD$620,27,FALSE),VLOOKUP($B41,'ADP-Rank'!$A$2:$BD$620,30,FALSE),VLOOKUP($B41,'ADP-Rank'!$A$2:$BD$620,47,FALSE)) -> 66 | AF41: =IF(ISBLANK(A41),0,1) -> 0 | AG41: =IF(K41="",0,1) -> 1 | AH41: =A41 -> 0 | AI41: =IF(C41="C",1,IF(C41="1B",2,IF(C41="2B",3,IF(C41="3B",4,IF(C41="SS",5,IF(C41="CI",6,IF(C41="MI",7,IF(C41="OF",11,IF(C41="LF",8,IF(C41="CF",9,IF(C41="RF",10,IF(C41="DH",12,IF(C41="SP",13,IF(C41="RP",14,IF(C41="P",15,16))))))))))))))) -> 11 | AJ41: =VLOOKUP(B41,'Starter Calc'!$B$2:$BR$700,69,FALSE) -> Bench | AK41: =IFERROR(VLOOKUP($B41,'ADP-Rank'!$A$2:$AZ$620,40,FALSE),TRUE) -> TRUE | AL41: 0
B42: Hanley Ramirez | C42: SS | D42: =IFERROR(IF(VLOOKUP(B42,'Starter Calc'!$B$2:$E$700,4,FALSE)="","",VLOOKUP(B42,'Starter Calc'!$B$2:$E$700,4,FALSE)),"") -> ,RF, | E42: =IFERROR(VLOOKUP($B42,'ADP-Rank'!$A$2:$G$620,5,FALSE),"") -> BOS | F42: =IFERROR(VLOOKUP($B42,'ADP-Rank'!$A$2:$W$620,6,FALSE),"") -> 31 | G42: =IFERROR(CHOOSE(Personalize!$E$38,VLOOKUP($B42,'ADP-Rank'!$A$2:$CD$620,7,FALSE),VLOOKUP($B42,'ADP-Rank'!$A$2:$CD$620,10,FALSE),VLOOKUP($B42,'ADP-Rank'!$A$2:$CD$620,13,FALSE),VLOOKUP($B42,'ADP-Rank'!$A$2:$CD$620,16,FALSE),VLOOKUP($B42,'ADP-Rank'!$A$2:$CD$620,19,FALSE),VLOOKUP($B42,'ADP-Rank'!$A$2:$CD$620,22,FALSE),VLOOKUP($B42,'ADP-Rank'!$A$2:$CD$620,25,FALSE),VLOOKUP($B42,'ADP-Rank'!$A$2:$CD$620,28,FALSE),VLOOKUP($B42,'ADP-Rank'!$A$2:$CD$620,45,FALSE)),"") -> 41.42 | H42: =IFERROR(ROUNDDOWN(VLOOKUP($B42,'ADP-Rank'!$A$2:$BC$674,44,FALSE),0),"") -> 3 | I42: =VLOOKUP($B42,'ADP-Rank'!$A$2:$AP$674,42,FALSE) -> 25 | J42: =IFERROR(RANK($M42,$M$6:$M$745,0),"") -> 4 | K42: =IFERROR(IF((OR($C42="RP",$C42="SP")),VLOOKUP($B42,'Filtered-P'!$A$1:$AB$700,12,FALSE),(VLOOKUP($B42,Filtered!$A$1:$AB$700,18,FALSE))),"") -> 310.9273026 | L42: =IFERROR(IF((OR($C42="RP",$C42="SP")),VLOOKUP($C42,'Filtered-P'!$U$3:$X$4,4,FALSE), VLOOKUP($C42,Filtered!$U$3:$X$14,4,FALSE)),"") -> 244.1329542 | M42: =IFERROR(($K42-$L42)/IF(OR($C42="SP",$C42="RP"),VLOOKUP($C42,'Filtered-P'!$U$3:$AB$4,8,FALSE),VLOOKUP($C42,Filtered!$U$3:$AB$10,8,FALSE)),"") -> 3.162301068 | N42: =IFERROR(IF((OR($C42="RP",$C42="SP")),"",(VLOOKUP($B42,Filtered!$A$1:$AB$700,18,FALSE)/VLOOKUP($B42,Filtered!$A$1:$AB$700,2,FALSE))),"") -> 0.5806563812 | O42: =IFERROR(IF((OR($C42="RP",$C42="SP")),VLOOKUP($B42,'Filtered-P'!$A$1:$AB$700,12,FALSE)/VLOOKUP($B42,'Filtered-P'!$A$1:$AB$700,4,FALSE),""),"") ->  | P42: =IFERROR(IF((OR($C42="RP",$C42="SP")),VLOOKUP($B42,'Filtered-P'!$A$1:$X$700,2,FALSE),""),"") ->  | Q42: =IFERROR(IF((OR($C42="RP",$C42="SP")),VLOOKUP($B42,'Filtered-P'!$A$1:$X$700,9,FALSE),""),"") ->  | R42: =IFERROR(IF((OR($C42="RP",$C42="SP")),VLOOKUP($B42,'Filtered-P'!$A$1:$X$700,7,FALSE),""),"") ->  | S42: =IFERROR(IF((OR($C42="RP",$C42="SP")),VLOOKUP($B42,'Filtered-P'!$A$1:$AD$700,13,FALSE),""),"") ->  | T42: =IFERROR(IF((OR($C42="RP",$C42="SP")),VLOOKUP($B42,'Filtered-P'!$A$1:$X$700,14,FALSE),""),"") ->  | U42: =IFERROR(IF((OR($C42="RP",$C42="SP")),"",VLOOKUP($B42,Filtered!$A$1:$AJ$700,20,FALSE)),"") -> 0.2785499724 | V42: =IFERROR(IF((OR($C42="RP",$C42="SP")),"",VLOOKUP($B42,Filtered!$A$1:$AJ$700,9,FALSE)),"") -> 17.46792525 | W42: =IFERROR(IF((OR($C42="RP",$C42="SP")),"",VLOOKUP($B42,Filtered!$A$1:$AJ$700,10,FALSE)),"") -> 72.86274303 | X42: =IFERROR(IF((OR($C42="RP",$C42="SP")),"",VLOOKUP($B42,Filtered!$A$1:$AJ$700,4,FALSE)),"") -> 72.3197574 | Y42: =IFERROR(IF((OR($C42="RP",$C42="SP")),"",VLOOKUP($B42,Filtered!$A$1:$AJ$700,11,FALSE)),"") -> 14.28195042 | Z42: =IFERROR(IF(ISTEXT($A42),"",(1-NORMDIST((COUNTA($A$6:$A$745)),($G42),((AE42-AD42)/6),TRUE))),"") -> 0.9999986277 | AA42: =IFERROR(IF(ISTEXT($A42),"",(1-NORMDIST((COUNTA($A$6:$A$745))+(Personalize!$E$18+1),$G42,((AE42-AD42)/6),TRUE))),"") -> 0.9999911795 | AB42: =IFERROR(IF(ISTEXT($A42),"",(1-NORMDIST((COUNTA($A$6:$A$745))+((Personalize!$E$18+1)*2),$G42,((AE42-AD42)/6),TRUE))),"") -> 0.9999512245 | AD42: =CHOOSE(Personalize!$E$38,VLOOKUP($B42,'ADP-Rank'!$A$2:$AJ$620,8,FALSE),VLOOKUP($B42,'ADP-Rank'!$A$2:$AJ$620,11,FALSE),VLOOKUP($B42,'ADP-Rank'!$A$2:$AO$620,14,FALSE),VLOOKUP($B42,'ADP-Rank'!$A$2:$BD$620,17,FALSE),VLOOKUP($B42,'ADP-Rank'!$A$2:$BD$620,20,FALSE),VLOOKUP($B42,'ADP-Rank'!$A$2:$BD$620,23,FALSE),VLOOKUP($B42,'ADP-Rank'!$A$2:$BD$620,26,FALSE),VLOOKUP($B42,'ADP-Rank'!$A$2:$BD$620,29,FALSE),VLOOKUP($B42,'ADP-Rank'!$A$2:$BD$620,46,FALSE)) -> 23 | AE42: =CHOOSE(Personalize!$E$38,VLOOKUP($B42,'ADP-Rank'!$A$2:$AJ$620,9,FALSE),VLOOKUP($B42,'ADP-Rank'!$A$2:$AJ$620,12,FALSE),VLOOKUP($B42,'ADP-Rank'!$A$2:$AO$620,15,FALSE),VLOOKUP($B42,'ADP-Rank'!$A$2:$BD$620,18,FALSE),VLOOKUP($B42,'ADP-Rank'!$A$2:$BD$620,21,FALSE),VLOOKUP($B42,'ADP-Rank'!$A$2:$BD$620,24,FALSE),VLOOKUP($B42,'ADP-Rank'!$A$2:$BD$620,27,FALSE),VLOOKUP($B42,'ADP-Rank'!$A$2:$BD$620,30,FALSE),VLOOKUP($B42,'ADP-Rank'!$A$2:$BD$620,47,FALSE)) -> 76 | AF42: =IF(ISBLANK(A42),0,1) -> 0 | AG42: =IF(K42="",0,1) -> 1 | AH42: =A42 -> 0 | AI42: =IF(C42="C",1,IF(C42="1B",2,IF(C42="2B",3,IF(C42="3B",4,IF(C42="SS",5,IF(C42="CI",6,IF(C42="MI",7,IF(C42="OF",11,IF(C42="LF",8,IF(C42="CF",9,IF(C42="RF",10,IF(C42="DH",12,IF(C42="SP",13,IF(C42="RP",14,IF(C42="P",15,16))))))))))))))) -> 5 | AJ42: =VLOOKUP(B42,'Starter Calc'!$B$2:$BR$700,69,FALSE) -> Bench | AK42: =IFERROR(VLOOKUP($B42,'ADP-Rank'!$A$2:$AZ$620,40,FALSE),TRUE) -> TRUE | AL42: 0
B43: Carlos Carrasco | C43: RP | D43: =IFERROR(IF(VLOOKUP(B43,'Starter Calc'!$B$2:$E$700,4,FALSE)="","",VLOOKUP(B43,'Starter Calc'!$B$2:$E$700,4,FALSE)),"") -> ,, | E43: =IFERROR(VLOOKUP($B43,'ADP-Rank'!$A$2:$G$620,5,FALSE),"") -> CLE | F43: =IFERROR(VLOOKUP($B43,'ADP-Rank'!$A$2:$W$620,6,FALSE),"") -> 28 | G43: =IFERROR(CHOOSE(Personalize!$E$38,VLOOKUP($B43,'ADP-Rank'!$A$2:$CD$620,7,FALSE),VLOOKUP($B43,'ADP-Rank'!$A$2:$CD$620,10,FALSE),VLOOKUP($B43,'ADP-Rank'!$A$2:$CD$620,13,FALSE),VLOOKUP($B43,'ADP-Rank'!$A$2:$CD$620,16,FALSE),VLOOKUP($B43,'ADP-Rank'!$A$2:$CD$620,19,FALSE),VLOOKUP($B43,'ADP-Rank'!$A$2:$CD$620,22,FALSE),VLOOKUP($B43,'ADP-Rank'!$A$2:$CD$620,25,FALSE),VLOOKUP($B43,'ADP-Rank'!$A$2:$CD$620,28,FALSE),VLOOKUP($B43,'ADP-Rank'!$A$2:$CD$620,45,FALSE)),"") -> 43.04 | H43: =IFERROR(ROUNDDOWN(VLOOKUP($B43,'ADP-Rank'!$A$2:$BC$674,44,FALSE),0),"") -> 3 | I43: =VLOOKUP($B43,'ADP-Rank'!$A$2:$AP$674,42,FALSE) -> 139 | J43: =IFERROR(RANK($M43,$M$6:$M$745,0),"") -> 170 | K43: =IFERROR(IF((OR($C43="RP",$C43="SP")),VLOOKUP($B43,'Filtered-P'!$A$1:$AB$700,12,FALSE),(VLOOKUP($B43,Filtered!$A$1:$AB$700,18,FALSE))),"") -> 315.938886 | L43: =IFERROR(IF((OR($C43="RP",$C43="SP")),VLOOKUP($C43,'Filtered-P'!$U$3:$X$4,4,FALSE), VLOOKUP($C43,Filtered!$U$3:$X$14,4,FALSE)),"") -> 338.0438298 | M43: =IFERROR(($K43-$L43)/IF(OR($C43="SP",$C43="RP"),VLOOKUP($C43,'Filtered-P'!$U$3:$AB$4,8,FALSE),VLOOKUP($C43,Filtered!$U$3:$AB$10,8,FALSE)),"") -> -0.1316955962 | N43: =IFERROR(IF((OR($C43="RP",$C43="SP")),"",(VLOOKUP($B43,Filtered!$A$1:$AB$700,18,FALSE)/VLOOKUP($B43,Filtered!$A$1:$AB$700,2,FALSE))),"") ->  | O43: =IFERROR(IF((OR($C43="RP",$C43="SP")),VLOOKUP($B43,'Filtered-P'!$A$1:$AB$700,12,FALSE)/VLOOKUP($B43,'Filtered-P'!$A$1:$AB$700,4,FALSE),""),"") -> 2.082655808 | P43: =IFERROR(IF((OR($C43="RP",$C43="SP")),VLOOKUP($B43,'Filtered-P'!$A$1:$X$700,2,FALSE),""),"") -> 9.387359857 | Q43: =IFERROR(IF((OR($C43="RP",$C43="SP")),VLOOKUP($B43,'Filtered-P'!$A$1:$X$700,9,FALSE),""),"") -> 0 | R43: =IFERROR(IF((OR($C43="RP",$C43="SP")),VLOOKUP($B43,'Filtered-P'!$A$1:$X$700,7,FALSE),""),"") -> 151.5281508 | S43: =IFERROR(IF((OR($C43="RP",$C43="SP")),VLOOKUP($B43,'Filtered-P'!$A$1:$AD$700,13,FALSE),""),"") -> 3.538765259 | T43: =IFERROR(IF((OR($C43="RP",$C43="SP")),VLOOKUP($B43,'Filtered-P'!$A$1:$X$700,14,FALSE),""),"") -> 1.131574105 | U43: =IFERROR(IF((OR($C43="RP",$C43="SP")),"",VLOOKUP($B43,Filtered!$A$1:$AJ$700,20,FALSE)),"") ->  | V43: =IFERROR(IF((OR($C43="RP",$C43="SP")),"",VLOOKUP($B43,Filtered!$A$1:$AJ$700,9,FALSE)),"") ->  | W43: =IFERROR(IF((OR($C43="RP",$C43="SP")),"",VLOOKUP($B43,Filtered!$A$1:$AJ$700,10,FALSE)),"") ->  | X43: =IFERROR(IF((OR($C43="RP",$C43="SP")),"",VLOOKUP($B43,Filtered!$A$1:$AJ$700,4,FALSE)),"") ->  | Y43: =IFERROR(IF((OR($C43="RP",$C43="SP")),"",VLOOKUP($B43,Filtered!$A$1:$AJ$700,11,FALSE)),"") ->  | Z43: =IFERROR(IF(ISTEXT($A43),"",(1-NORMDIST((COUNTA($A$6:$A$745)),($G43),((AE43-AD43)/6),TRUE))),"") -> 0.9999999319 | AA43: =IFERROR(IF(ISTEXT($A43),"",(1-NORMDIST((COUNTA($A$6:$A$745))+(Personalize!$E$18+1),$G43,((AE43-AD43)/6),TRUE))),"") -> 0.9999993561 | AB43: =IFERROR(IF(ISTEXT($A43),"",(1-NORMDIST((COUNTA($A$6:$A$745))+((Personalize!$E$18+1)*2),$G43,((AE43-AD43)/6),TRUE))),"") -> 0.999994904 | AC43: Potential Mr. Cheatsheet Sleeper | AD43: =CHOOSE(Personalize!$E$38,VLOOKUP($B43,'ADP-Rank'!$A$2:$AJ$620,8,FALSE),VLOOKUP($B43,'ADP-Rank'!$A$2:$AJ$620,11,FALSE),VLOOKUP($B43,'ADP-Rank'!$A$2:$AO$620,14,FALSE),VLOOKUP($B43,'ADP-Rank'!$A$2:$BD$620,17,FALSE),VLOOKUP($B43,'ADP-Rank'!$A$2:$BD$620,20,FALSE),VLOOKUP($B43,'ADP-Rank'!$A$2:$BD$620,23,FALSE),VLOOKUP($B43,'ADP-Rank'!$A$2:$BD$620,26,FALSE),VLOOKUP($B43,'ADP-Rank'!$A$2:$BD$620,29,FALSE),VLOOKUP($B43,'ADP-Rank'!$A$2:$BD$620,46,FALSE)) -> 25 | AE43: =CHOOSE(Personalize!$E$38,VLOOKUP($B43,'ADP-Rank'!$A$2:$AJ$620,9,FALSE),VLOOKUP($B43,'ADP-Rank'!$A$2:$AJ$620,12,FALSE),VLOOKUP($B43,'ADP-Rank'!$A$2:$AO$620,15,FALSE),VLOOKUP($B43,'ADP-Rank'!$A$2:$BD$620,18,FALSE),VLOOKUP($B43,'ADP-Rank'!$A$2:$BD$620,21,FALSE),VLOOKUP($B43,'ADP-Rank'!$A$2:$BD$620,24,FALSE),VLOOKUP($B43,'ADP-Rank'!$A$2:$BD$620,27,FALSE),VLOOKUP($B43,'ADP-Rank'!$A$2:$BD$620,30,FALSE),VLOOKUP($B43,'ADP-Rank'!$A$2:$BD$620,47,FALSE)) -> 74 | AF43: =IF(ISBLANK(A43),0,1) -> 0 | AG43: =IF(K43="",0,1) -> 1 | AH43: =A43 -> 0 | AI43: =IF(C43="C",1,IF(C43="1B",2,IF(C43="2B",3,IF(C43="3B",4,IF(C43="SS",5,IF(C43="CI",6,IF(C43="MI",7,IF(C43="OF",11,IF(C43="LF",8,IF(C43="CF",9,IF(C43="RF",10,IF(C43="DH",12,IF(C43="SP",13,IF(C43="RP",14,IF(C43="P",15,16))))))))))))))) -> 14 | AJ43: =VLOOKUP(B43,'Starter Calc'!$B$2:$BR$700,69,FALSE) -> Starter | AK43: =IFERROR(VLOOKUP($B43,'ADP-Rank'!$A$2:$AZ$620,40,FALSE),TRUE) -> TRUE | AL43: 1
B44: Julio Teheran | C44: SP | D44: =IFERROR(IF(VLOOKUP(B44,'Starter Calc'!$B$2:$E$700,4,FALSE)="","",VLOOKUP(B44,'Starter Calc'!$B$2:$E$700,4,FALSE)),"") -> ,, | E44: =IFERROR(VLOOKUP($B44,'ADP-Rank'!$A$2:$G$620,5,FALSE),"") -> ATL | F44: =IFERROR(VLOOKUP($B44,'ADP-Rank'!$A$2:$W$620,6,FALSE),"") -> 24 | G44: =IFERROR(CHOOSE(Personalize!$E$38,VLOOKUP($B44,'ADP-Rank'!$A$2:$CD$620,7,FALSE),VLOOKUP($B44,'ADP-Rank'!$A$2:$CD$620,10,FALSE),VLOOKUP($B44,'ADP-Rank'!$A$2:$CD$620,13,FALSE),VLOOKUP($B44,'ADP-Rank'!$A$2:$CD$620,16,FALSE),VLOOKUP($B44,'ADP-Rank'!$A$2:$CD$620,19,FALSE),VLOOKUP($B44,'ADP-Rank'!$A$2:$CD$620,22,FALSE),VLOOKUP($B44,'ADP-Rank'!$A$2:$CD$620,25,FALSE),VLOOKUP($B44,'ADP-Rank'!$A$2:$CD$620,28,FALSE),VLOOKUP($B44,'ADP-Rank'!$A$2:$CD$620,45,FALSE)),"") -> 43.65 | H44: =IFERROR(ROUNDDOWN(VLOOKUP($B44,'ADP-Rank'!$A$2:$BC$674,44,FALSE),0),"") -> 4 | I44: =VLOOKUP($B44,'ADP-Rank'!$A$2:$AP$674,42,FALSE) -> 73 | J44: =IFERROR(RANK($M44,$M$6:$M$745,0),"") -> 75 | K44: =IFERROR(IF((OR($C44="RP",$C44="SP")),VLOOKUP($B44,'Filtered-P'!$A$1:$AB$700,12,FALSE),(VLOOKUP($B44,Filtered!$A$1:$AB$700,18,FALSE))),"") -> 327.5194699 | L44: =IFERROR(IF((OR($C44="RP",$C44="SP")),VLOOKUP($C44,'Filtered-P'!$U$3:$X$4,4,FALSE), VLOOKUP($C44,Filtered!$U$3:$X$14,4,FALSE)),"") -> 262.4844351 | M44: =IFERROR(($K44-$L44)/IF(OR($C44="SP",$C44="RP"),VLOOKUP($C44,'Filtered-P'!$U$3:$AB$4,8,FALSE),VLOOKUP($C44,Filtered!$U$3:$AB$10,8,FALSE)),"") -> 0.7136966207 | N44: =IFERROR(IF((OR($C44="RP",$C44="SP")),"",(VLOOKUP($B44,Filtered!$A$1:$AB$700,18,FALSE)/VLOOKUP($B44,Filtered!$A$1:$AB$700,2,FALSE))),"") ->  | O44: =IFERROR(IF((OR($C44="RP",$C44="SP")),VLOOKUP($B44,'Filtered-P'!$A$1:$AB$700,12,FALSE)/VLOOKUP($B44,'Filtered-P'!$A$1:$AB$700,4,FALSE),""),"") -> 1.678827375 | P44: =IFERROR(IF((OR($C44="RP",$C44="SP")),VLOOKUP($B44,'Filtered-P'!$A$1:$X$700,2,FALSE),""),"") -> 12.12441947 | Q44: =IFERROR(IF((OR($C44="RP",$C44="SP")),VLOOKUP($B44,'Filtered-P'!$A$1:$X$700,9,FALSE),""),"") -> 0 | R44: =IFERROR(IF((OR($C44="RP",$C44="SP")),VLOOKUP($B44,'Filtered-P'!$A$1:$X$700,7,FALSE),""),"") -> 170.7336034 | S44: =IFERROR(IF((OR($C44="RP",$C44="SP")),VLOOKUP($B44,'Filtered-P'!$A$1:$AD$700,13,FALSE),""),"") -> 3.721089791 | T44: =IFERROR(IF((OR($C44="RP",$C44="SP")),VLOOKUP($B44,'Filtered-P'!$A$1:$X$700,14,FALSE),""),"") -> 1.182346519 | U44: =IFERROR(IF((OR($C44="RP",$C44="SP")),"",VLOOKUP($B44,Filtered!$A$1:$AJ$700,20,FALSE)),"") ->  | V44: =IFERROR(IF((OR($C44="RP",$C44="SP")),"",VLOOKUP($B44,Filtered!$A$1:$AJ$700,9,FALSE)),"") ->  | W44: =IFERROR(IF((OR($C44="RP",$C44="SP")),"",VLOOKUP($B44,Filtered!$A$1:$AJ$700,10,FALSE)),"") ->  | X44: =IFERROR(IF((OR($C44="RP",$C44="SP")),"",VLOOKUP($B44,Filtered!$A$1:$AJ$700,4,FALSE)),"") ->  | Y44: =IFERROR(IF((OR($C44="RP",$C44="SP")),"",VLOOKUP($B44,Filtered!$A$1:$AJ$700,11,FALSE)),"") ->  | Z44: =IFERROR(IF(ISTEXT($A44),"",(1-NORMDIST((COUNTA($A$6:$A$745)),($G44),((AE44-AD44)/6),TRUE))),"") -> 0.9999999987 | AA44: =IFERROR(IF(ISTEXT($A44),"",(1-NORMDIST((COUNTA($A$6:$A$745))+(Personalize!$E$18+1),$G44,((AE44-AD44)/6),TRUE))),"") -> 0.9999999781 | AB44: =IFERROR(IF(ISTEXT($A44),"",(1-NORMDIST((COUNTA($A$6:$A$745))+((Personalize!$E$18+1)*2),$G44,((AE44-AD44)/6),TRUE))),"") -> 0.99999971 | AD44: =CHOOSE(Personalize!$E$38,VLOOKUP($B44,'ADP-Rank'!$A$2:$AJ$620,8,FALSE),VLOOKUP($B44,'ADP-Rank'!$A$2:$AJ$620,11,FALSE),VLOOKUP($B44,'ADP-Rank'!$A$2:$AO$620,14,FALSE),VLOOKUP($B44,'ADP-Rank'!$A$2:$BD$620,17,FALSE),VLOOKUP($B44,'ADP-Rank'!$A$2:$BD$620,20,FALSE),VLOOKUP($B44,'ADP-Rank'!$A$2:$BD$620,23,FALSE),VLOOKUP($B44,'ADP-Rank'!$A$2:$BD$620,26,FALSE),VLOOKUP($B44,'ADP-Rank'!$A$2:$BD$620,29,FALSE),VLOOKUP($B44,'ADP-Rank'!$A$2:$BD$620,46,FALSE)) -> 26 | AE44: =CHOOSE(Personalize!$E$38,VLOOKUP($B44,'ADP-Rank'!$A$2:$AJ$620,9,FALSE),VLOOKUP($B44,'ADP-Rank'!$A$2:$AJ$620,12,FALSE),VLOOKUP($B44,'ADP-Rank'!$A$2:$AO$620,15,FALSE),VLOOKUP($B44,'ADP-Rank'!$A$2:$BD$620,18,FALSE),VLOOKUP($B44,'ADP-Rank'!$A$2:$BD$620,21,FALSE),VLOOKUP($B44,'ADP-Rank'!$A$2:$BD$620,24,FALSE),VLOOKUP($B44,'ADP-Rank'!$A$2:$BD$620,27,FALSE),VLOOKUP($B44,'ADP-Rank'!$A$2:$BD$620,30,FALSE),VLOOKUP($B44,'ADP-Rank'!$A$2:$BD$620,47,FALSE)) -> 70 | AF44: =IF(ISBLANK(A44),0,1) -> 0 | AG44: =IF(K44="",0,1) -> 1 | AH44: =A44 -> 0 | AI44: =IF(C44="C",1,IF(C44="1B",2,IF(C44="2B",3,IF(C44="3B",4,IF(C44="SS",5,IF(C44="CI",6,IF(C44="MI",7,IF(C44="OF",11,IF(C44="LF",8,IF(C44="CF",9,IF(C44="RF",10,IF(C44="DH",12,IF(C44="SP",13,IF(C44="RP",14,IF(C44="P",15,16))))))))))))))) -> 13 | AJ44: =VLOOKUP(B44,'Starter Calc'!$B$2:$BR$700,69,FALSE) -> Starter | AK44: =IFERROR(VLOOKUP($B44,'ADP-Rank'!$A$2:$AZ$620,40,FALSE),TRUE) -> TRUE | AL44: 1
B45: Cliff Lee | C45: SP | D45: =IFERROR(IF(VLOOKUP(B45,'Starter Calc'!$B$2:$E$700,4,FALSE)="","",VLOOKUP(B45,'Starter Calc'!$B$2:$E$700,4,FALSE)),"") -> ,, | E45: =IFERROR(VLOOKUP($B45,'ADP-Rank'!$A$2:$G$620,5,FALSE),"") -> PHI | F45: =IFERROR(VLOOKUP($B45,'ADP-Rank'!$A$2:$W$620,6,FALSE),"") -> 36 | G45: =IFERROR(CHOOSE(Personalize!$E$38,VLOOKUP($B45,'ADP-Rank'!$A$2:$CD$620,7,FALSE),VLOOKUP($B45,'ADP-Rank'!$A$2:$CD$620,10,FALSE),VLOOKUP($B45,'ADP-Rank'!$A$2:$CD$620,13,FALSE),VLOOKUP($B45,'ADP-Rank'!$A$2:$CD$620,16,FALSE),VLOOKUP($B45,'ADP-Rank'!$A$2:$CD$620,19,FALSE),VLOOKUP($B45,'ADP-Rank'!$A$2:$CD$620,22,FALSE),VLOOKUP($B45,'ADP-Rank'!$A$2:$CD$620,25,FALSE),VLOOKUP($B45,'ADP-Rank'!$A$2:$CD$620,28,FALSE),VLOOKUP($B45,'ADP-Rank'!$A$2:$CD$620,45,FALSE)),"") -> 44.42 | H45: =IFERROR(ROUNDDOWN(VLOOKUP($B45,'ADP-Rank'!$A$2:$BC$674,44,FALSE),0),"") -> 4 | I45: =VLOOKUP($B45,'ADP-Rank'!$A$2:$AP$674,42,FALSE) -> 126 | J45: =IFERROR(RANK($M45,$M$6:$M$745,0),"") -> 125 | K45: =IFERROR(IF((OR($C45="RP",$C45="SP")),VLOOKUP($B45,'Filtered-P'!$A$1:$AB$700,12,FALSE),(VLOOKUP($B45,Filtered!$A$1:$AB$700,18,FALSE))),"") -> 289.6116932 | L45: =IFERROR(IF((OR($C45="RP",$C45="SP")),VLOOKUP($C45,'Filtered-P'!$U$3:$X$4,4,FALSE), VLOOKUP($C45,Filtered!$U$3:$X$14,4,FALSE)),"") -> 262.4844351 | M45: =IFERROR(($K45-$L45)/IF(OR($C45="SP",$C45="RP"),VLOOKUP($C45,'Filtered-P'!$U$3:$AB$4,8,FALSE),VLOOKUP($C45,Filtered!$U$3:$AB$10,8,FALSE)),"") -> 0.2976954264 | N45: =IFERROR(IF((OR($C45="RP",$C45="SP")),"",(VLOOKUP($B45,Filtered!$A$1:$AB$700,18,FALSE)/VLOOKUP($B45,Filtered!$A$1:$AB$700,2,FALSE))),"") ->  | O45: =IFERROR(IF((OR($C45="RP",$C45="SP")),VLOOKUP($B45,'Filtered-P'!$A$1:$AB$700,12,FALSE)/VLOOKUP($B45,'Filtered-P'!$A$1:$AB$700,4,FALSE),""),"") -> 1.829222758 | P45: =IFERROR(IF((OR($C45="RP",$C45="SP")),VLOOKUP($B45,'Filtered-P'!$A$1:$X$700,2,FALSE),""),"") -> 9.144233425 | Q45: =IFERROR(IF((OR($C45="RP",$C45="SP")),VLOOKUP($B45,'Filtered-P'!$A$1:$X$700,9,FALSE),""),"") -> 0 | R45: =IFERROR(IF((OR($C45="RP",$C45="SP")),VLOOKUP($B45,'Filtered-P'!$A$1:$X$700,7,FALSE),""),"") -> 142.6271193 | S45: =IFERROR(IF((OR($C45="RP",$C45="SP")),VLOOKUP($B45,'Filtered-P'!$A$1:$AD$700,13,FALSE),""),"") -> 3.355058636 | T45: =IFERROR(IF((OR($C45="RP",$C45="SP")),VLOOKUP($B45,'Filtered-P'!$A$1:$X$700,14,FALSE),""),"") -> 1.127258785 | U45: =IFERROR(IF((OR($C45="RP",$C45="SP")),"",VLOOKUP($B45,Filtered!$A$1:$AJ$700,20,FALSE)),"") ->  | V45: =IFERROR(IF((OR($C45="RP",$C45="SP")),"",VLOOKUP($B45,Filtered!$A$1:$AJ$700,9,FALSE)),"") ->  | W45: =IFERROR(IF((OR($C45="RP",$C45="SP")),"",VLOOKUP($B45,Filtered!$A$1:$AJ$700,10,FALSE)),"") ->  | X45: =IFERROR(IF((OR($C45="RP",$C45="SP")),"",VLOOKUP($B45,Filtered!$A$1:$AJ$700,4,FALSE)),"") ->  | Y45: =IFERROR(IF((OR($C45="RP",$C45="SP")),"",VLOOKUP($B45,Filtered!$A$1:$AJ$700,11,FALSE)),"") ->  | Z45: =IFERROR(IF(ISTEXT($A45),"",(1-NORMDIST((COUNTA($A$6:$A$745)),($G45),((AE45-AD45)/6),TRUE))),"") -> 0.9999968682 | AA45: =IFERROR(IF(ISTEXT($A45),"",(1-NORMDIST((COUNTA($A$6:$A$745))+(Personalize!$E$18+1),$G45,((AE45-AD45)/6),TRUE))),"") -> 0.9999841818 | AB45: =IFERROR(IF(ISTEXT($A45),"",(1-NORMDIST((COUNTA($A$6:$A$745))+((Personalize!$E$18+1)*2),$G45,((AE45-AD45)/6),TRUE))),"") -> 0.9999292192 | AD45: =CHOOSE(Personalize!$E$38,VLOOKUP($B45,'ADP-Rank'!$A$2:$AJ$620,8,FALSE),VLOOKUP($B45,'ADP-Rank'!$A$2:$AJ$620,11,FALSE),VLOOKUP($B45,'ADP-Rank'!$A$2:$AO$620,14,FALSE),VLOOKUP($B45,'ADP-Rank'!$A$2:$BD$620,17,FALSE),VLOOKUP($B45,'ADP-Rank'!$A$2:$BD$620,20,FALSE),VLOOKUP($B45,'ADP-Rank'!$A$2:$BD$620,23,FALSE),VLOOKUP($B45,'ADP-Rank'!$A$2:$BD$620,26,FALSE),VLOOKUP($B45,'ADP-Rank'!$A$2:$BD$620,29,FALSE),VLOOKUP($B45,'ADP-Rank'!$A$2:$BD$620,46,FALSE)) -> 23 | AE45: =CHOOSE(Personalize!$E$38,VLOOKUP($B45,'ADP-Rank'!$A$2:$AJ$620,9,FALSE),VLOOKUP($B45,'ADP-Rank'!$A$2:$AJ$620,12,FALSE),VLOOKUP($B45,'ADP-Rank'!$A$2:$AO$620,15,FALSE),VLOOKUP($B45,'ADP-Rank'!$A$2:$BD$620,18,FALSE),VLOOKUP($B45,'ADP-Rank'!$A$2:$BD$620,21,FALSE),VLOOKUP($B45,'ADP-Rank'!$A$2:$BD$620,24,FALSE),VLOOKUP($B45,'ADP-Rank'!$A$2:$BD$620,27,FALSE),VLOOKUP($B45,'ADP-Rank'!$A$2:$BD$620,30,FALSE),VLOOKUP($B45,'ADP-Rank'!$A$2:$BD$620,47,FALSE)) -> 82 | AF45: =IF(ISBLANK(A45),0,1) -> 0 | AG45: =IF(K45="",0,1) -> 1 | AH45: =A45 -> 0 | AI45: =IF(C45="C",1,IF(C45="1B",2,IF(C45="2B",3,IF(C45="3B",4,IF(C45="SS",5,IF(C45="CI",6,IF(C45="MI",7,IF(C45="OF",11,IF(C45="LF",8,IF(C45="CF",9,IF(C45="RF",10,IF(C45="DH",12,IF(C45="SP",13,IF(C45="RP",14,IF(C45="P",15,16))))))))))))))) -> 13 | AJ45: =VLOOKUP(B45,'Starter Calc'!$B$2:$BR$700,69,FALSE) -> Starter | AK45: =IFERROR(VLOOKUP($B45,'ADP-Rank'!$A$2:$AZ$620,40,FALSE),TRUE) -> TRUE | AL45: 1
B46: Jake Arrieta | C46: SP | D46: =IFERROR(IF(VLOOKUP(B46,'Starter Calc'!$B$2:$E$700,4,FALSE)="","",VLOOKUP(B46,'Starter Calc'!$B$2:$E$700,4,FALSE)),"") -> ,, | E46: =IFERROR(VLOOKUP($B46,'ADP-Rank'!$A$2:$G$620,5,FALSE),"") -> CHC | F46: =IFERROR(VLOOKUP($B46,'ADP-Rank'!$A$2:$W$620,6,FALSE),"") -> 29 | G46: =IFERROR(CHOOSE(Personalize!$E$38,VLOOKUP($B46,'ADP-Rank'!$A$2:$CD$620,7,FALSE),VLOOKUP($B46,'ADP-Rank'!$A$2:$CD$620,10,FALSE),VLOOKUP($B46,'ADP-Rank'!$A$2:$CD$620,13,FALSE),VLOOKUP($B46,'ADP-Rank'!$A$2:$CD$620,16,FALSE),VLOOKUP($B46,'ADP-Rank'!$A$2:$CD$620,19,FALSE),VLOOKUP($B46,'ADP-Rank'!$A$2:$CD$620,22,FALSE),VLOOKUP($B46,'ADP-Rank'!$A$2:$CD$620,25,FALSE),VLOOKUP($B46,'ADP-Rank'!$A$2:$CD$620,28,FALSE),VLOOKUP($B46,'ADP-Rank'!$A$2:$CD$620,45,FALSE)),"") -> 46.06 | H46: =IFERROR(ROUNDDOWN(VLOOKUP($B46,'ADP-Rank'!$A$2:$BC$674,44,FALSE),0),"") -> 4 | I46: =VLOOKUP($B46,'ADP-Rank'!$A$2:$AP$674,42,FALSE) -> 128 | J46: =IFERROR(RANK($M46,$M$6:$M$745,0),"") -> 80 | K46: =IFERROR(IF((OR($C46="RP",$C46="SP")),VLOOKUP($B46,'Filtered-P'!$A$1:$AB$700,12,FALSE),(VLOOKUP($B46,Filtered!$A$1:$AB$700,18,FALSE))),"") -> 322.5396253 | L46: =IFERROR(IF((OR($C46="RP",$C46="SP")),VLOOKUP($C46,'Filtered-P'!$U$3:$X$4,4,FALSE), VLOOKUP($C46,Filtered!$U$3:$X$14,4,FALSE)),"") -> 262.4844351 | M46: =IFERROR(($K46-$L46)/IF(OR($C46="SP",$C46="RP"),VLOOKUP($C46,'Filtered-P'!$U$3:$AB$4,8,FALSE),VLOOKUP($C46,Filtered!$U$3:$AB$10,8,FALSE)),"") -> 0.6590476415 | N46: =IFERROR(IF((OR($C46="RP",$C46="SP")),"",(VLOOKUP($B46,Filtered!$A$1:$AB$700,18,FALSE)/VLOOKUP($B46,Filtered!$A$1:$AB$700,2,FALSE))),"") ->  | O46: =IFERROR(IF((OR($C46="RP",$C46="SP")),VLOOKUP($B46,'Filtered-P'!$A$1:$AB$700,12,FALSE)/VLOOKUP($B46,'Filtered-P'!$A$1:$AB$700,4,FALSE),""),"") -> 1.958451158 | P46: =IFERROR(IF((OR($C46="RP",$C46="SP")),VLOOKUP($B46,'Filtered-P'!$A$1:$X$700,2,FALSE),""),"") -> 10.08871618 | Q46: =IFERROR(IF((OR($C46="RP",$C46="SP")),VLOOKUP($B46,'Filtered-P'!$A$1:$X$700,9,FALSE),""),"") -> 0 | R46: =IFERROR(IF((OR($C46="RP",$C46="SP")),VLOOKUP($B46,'Filtered-P'!$A$1:$X$700,7,FALSE),""),"") -> 161.5081725 | S46: =IFERROR(IF((OR($C46="RP",$C46="SP")),VLOOKUP($B46,'Filtered-P'!$A$1:$AD$700,13,FALSE),""),"") -> 3.636583791 | T46: =IFERROR(IF((OR($C46="RP",$C46="SP")),VLOOKUP($B46,'Filtered-P'!$A$1:$X$700,14,FALSE),""),"") -> 1.190262261 | U46: =IFERROR(IF((OR($C46="RP",$C46="SP")),"",VLOOKUP($B46,Filtered!$A$1:$AJ$700,20,FALSE)),"") ->  | V46: =IFERROR(IF((OR($C46="RP",$C46="SP")),"",VLOOKUP($B46,Filtered!$A$1:$AJ$700,9,FALSE)),"") ->  | W46: =IFERROR(IF((OR($C46="RP",$C46="SP")),"",VLOOKUP($B46,Filtered!$A$1:$AJ$700,10,FALSE)),"") ->  | X46: =IFERROR(IF((OR($C46="RP",$C46="SP")),"",VLOOKUP($B46,Filtered!$A$1:$AJ$700,4,FALSE)),"") ->  | Y46: =IFERROR(IF((OR($C46="RP",$C46="SP")),"",VLOOKUP($B46,Filtered!$A$1:$AJ$700,11,FALSE)),"") ->  | Z46: =IFERROR(IF(ISTEXT($A46),"",(1-NORMDIST((COUNTA($A$6:$A$745)),($G46),((AE46-AD46)/6),TRUE))),"") -> 0.9999995992 | AA46: =IFERROR(IF(ISTEXT($A46),"",(1-NORMDIST((COUNTA($A$6:$A$745))+(Personalize!$E$18+1),$G46,((AE46-AD46)/6),TRUE))),"") -> 0.9999974423 | AB46: =IFERROR(IF(ISTEXT($A46),"",(1-NORMDIST((COUNTA($A$6:$A$745))+((Personalize!$E$18+1)*2),$G46,((AE46-AD46)/6),TRUE))),"") -> 0.9999857417 | AC46: Potential Mr. Cheatsheet Sleeper | AD46: =CHOOSE(Personalize!$E$38,VLOOKUP($B46,'ADP-Rank'!$A$2:$AJ$620,8,FALSE),VLOOKUP($B46,'ADP-Rank'!$A$2:$AJ$620,11,FALSE),VLOOKUP($B46,'ADP-Rank'!$A$2:$AO$620,14,FALSE),VLOOKUP($B46,'ADP-Rank'!$A$2:$BD$620,17,FALSE),VLOOKUP($B46,'ADP-Rank'!$A$2:$BD$620,20,FALSE),VLOOKUP($B46,'ADP-Rank'!$A$2:$BD$620,23,FALSE),VLOOKUP($B46,'ADP-Rank'!$A$2:$BD$620,26,FALSE),VLOOKUP($B46,'ADP-Rank'!$A$2:$BD$620,29,FALSE),VLOOKUP($B46,'ADP-Rank'!$A$2:$BD$620,46,FALSE)) -> 23 | AE46: =CHOOSE(Personalize!$E$38,VLOOKUP($B46,'ADP-Rank'!$A$2:$AJ$620,9,FALSE),VLOOKUP($B46,'ADP-Rank'!$A$2:$AJ$620,12,FALSE),VLOOKUP($B46,'ADP-Rank'!$A$2:$AO$620,15,FALSE),VLOOKUP($B46,'ADP-Rank'!$A$2:$BD$620,18,FALSE),VLOOKUP($B46,'ADP-Rank'!$A$2:$BD$620,21,FALSE),VLOOKUP($B46,'ADP-Rank'!$A$2:$BD$620,24,FALSE),VLOOKUP($B46,'ADP-Rank'!$A$2:$BD$620,27,FALSE),VLOOKUP($B46,'ADP-Rank'!$A$2:$BD$620,30,FALSE),VLOOKUP($B46,'ADP-Rank'!$A$2:$BD$620,47,FALSE)) -> 79 | AF46: =IF(ISBLANK(A46),0,1) -> 0 | AG46: =IF(K46="",0,1) -> 1 | AH46: =A46 -> 0 | AI46: =IF(C46="C",1,IF(C46="1B",2,IF(C46="2B",3,IF(C46="3B",4,IF(C46="SS",5,IF(C46="CI",6,IF(C46="MI",7,IF(C46="OF",11,IF(C46="LF",8,IF(C46="CF",9,IF(C46="RF",10,IF(C46="DH",12,IF(C46="SP",13,IF(C46="RP",14,IF(C46="P",15,16))))))))))))))) -> 13 | AJ46: =VLOOKUP(B46,'Starter Calc'!$B$2:$BR$700,69,FALSE) -> Starter | AK46: =IFERROR(VLOOKUP($B46,'ADP-Rank'!$A$2:$AZ$620,40,FALSE),TRUE) -> TRUE | AL46: 1
B47: Jacoby Ellsbury | C47: OF | D47: =IFERROR(IF(VLOOKUP(B47,'Starter Calc'!$B$2:$E$700,4,FALSE)="","",VLOOKUP(B47,'Starter Calc'!$B$2:$E$700,4,FALSE)),"") -> ,, | E47: =IFERROR(VLOOKUP($B47,'ADP-Rank'!$A$2:$G$620,5,FALSE),"") -> NYY | F47: =IFERROR(VLOOKUP($B47,'ADP-Rank'!$A$2:$W$620,6,FALSE),"") -> 31 | G47: =IFERROR(CHOOSE(Personalize!$E$38,VLOOKUP($B47,'ADP-Rank'!$A$2:$CD$620,7,FALSE),VLOOKUP($B47,'ADP-Rank'!$A$2:$CD$620,10,FALSE),VLOOKUP($B47,'ADP-Rank'!$A$2:$CD$620,13,FALSE),VLOOKUP($B47,'ADP-Rank'!$A$2:$CD$620,16,FALSE),VLOOKUP($B47,'ADP-Rank'!$A$2:$CD$620,19,FALSE),VLOOKUP($B47,'ADP-Rank'!$A$2:$CD$620,22,FALSE),VLOOKUP($B47,'ADP-Rank'!$A$2:$CD$620,25,FALSE),VLOOKUP($B47,'ADP-Rank'!$A$2:$CD$620,28,FALSE),VLOOKUP($B47,'ADP-Rank'!$A$2:$CD$620,45,FALSE)),"") -> 48.27 | H47: =IFERROR(ROUNDDOWN(VLOOKUP($B47,'ADP-Rank'!$A$2:$BC$674,44,FALSE),0),"") -> 4 | I47: =VLOOKUP($B47,'ADP-Rank'!$A$2:$AP$674,42,FALSE) -> 31 | J47: =IFERROR(RANK($M47,$M$6:$M$745,0),"") -> 74 | K47: =IFERROR(IF((OR($C47="RP",$C47="SP")),VLOOKUP($B47,'Filtered-P'!$A$1:$AB$700,12,FALSE),(VLOOKUP($B47,Filtered!$A$1:$AB$700,18,FALSE))),"") -> 332.9906465 | L47: =IFERROR(IF((OR($C47="RP",$C47="SP")),VLOOKUP($C47,'Filtered-P'!$U$3:$X$4,4,FALSE), VLOOKUP($C47,Filtered!$U$3:$X$14,4,FALSE)),"") -> 287.0213782 | M47: =IFERROR(($K47-$L47)/IF(OR($C47="SP",$C47="RP"),VLOOKUP($C47,'Filtered-P'!$U$3:$AB$4,8,FALSE),VLOOKUP($C47,Filtered!$U$3:$AB$10,8,FALSE)),"") -> 0.7568865391 | N47: =IFERROR(IF((OR($C47="RP",$C47="SP")),"",(VLOOKUP($B47,Filtered!$A$1:$AB$700,18,FALSE)/VLOOKUP($B47,Filtered!$A$1:$AB$700,2,FALSE))),"") -> 0.5589175948 | O47: =IFERROR(IF((OR($C47="RP",$C47="SP")),VLOOKUP($B47,'Filtered-P'!$A$1:$AB$700,12,FALSE)/VLOOKUP($B47,'Filtered-P'!$A$1:$AB$700,4,FALSE),""),"") ->  | P47: =IFERROR(IF((OR($C47="RP",$C47="SP")),VLOOKUP($B47,'Filtered-P'!$A$1:$X$700,2,FALSE),""),"") ->  | Q47: =IFERROR(IF((OR($C47="RP",$C47="SP")),VLOOKUP($B47,'Filtered-P'!$A$1:$X$700,9,FALSE),""),"") ->  | R47: =IFERROR(IF((OR($C47="RP",$C47="SP")),VLOOKUP($B47,'Filtered-P'!$A$1:$X$700,7,FALSE),""),"") ->  | S47: =IFERROR(IF((OR($C47="RP",$C47="SP")),VLOOKUP($B47,'Filtered-P'!$A$1:$AD$700,13,FALSE),""),"") ->  | T47: =IFERROR(IF((OR($C47="RP",$C47="SP")),VLOOKUP($B47,'Filtered-P'!$A$1:$X$700,14,FALSE),""),"") ->  | U47: =IFERROR(IF((OR($C47="RP",$C47="SP")),"",VLOOKUP($B47,Filtered!$A$1:$AJ$700,20,FALSE)),"") -> 0.2705591139 | V47: =IFERROR(IF((OR($C47="RP",$C47="SP")),"",VLOOKUP($B47,Filtered!$A$1:$AJ$700,9,FALSE)),"") -> 14.0585658 | W47: =IFERROR(IF((OR($C47="RP",$C47="SP")),"",VLOOKUP($B47,Filtered!$A$1:$AJ$700,10,FALSE)),"") -> 59.37214384 | X47: =IFERROR(IF((OR($C47="RP",$C47="SP")),"",VLOOKUP($B47,Filtered!$A$1:$AJ$700,4,FALSE)),"") -> 77.02718208 | Y47: =IFERROR(IF((OR($C47="RP",$C47="SP")),"",VLOOKUP($B47,Filtered!$A$1:$AJ$700,11,FALSE)),"") -> 32.90846612 | Z47: =IFERROR(IF(ISTEXT($A47),"",(1-NORMDIST((COUNTA($A$6:$A$745)),($G47),((AE47-AD47)/6),TRUE))),"") -> 1 | AA47: =IFERROR(IF(ISTEXT($A47),"",(1-NORMDIST((COUNTA($A$6:$A$745))+(Personalize!$E$18+1),$G47,((AE47-AD47)/6),TRUE))),"") -> 1 | AB47: =IFERROR(IF(ISTEXT($A47),"",(1-NORMDIST((COUNTA($A$6:$A$745))+((Personalize!$E$18+1)*2),$G47,((AE47-AD47)/6),TRUE))),"") -> 1 | AD47: =CHOOSE(Personalize!$E$38,VLOOKUP($B47,'ADP-Rank'!$A$2:$AJ$620,8,FALSE),VLOOKUP($B47,'ADP-Rank'!$A$2:$AJ$620,11,FALSE),VLOOKUP($B47,'ADP-Rank'!$A$2:$AO$620,14,FALSE),VLOOKUP($B47,'ADP-Rank'!$A$2:$BD$620,17,FALSE),VLOOKUP($B47,'ADP-Rank'!$A$2:$BD$620,20,FALSE),VLOOKUP($B47,'ADP-Rank'!$A$2:$BD$620,23,FALSE),VLOOKUP($B47,'ADP-Rank'!$A$2:$BD$620,26,FALSE),VLOOKUP($B47,'ADP-Rank'!$A$2:$BD$620,29,FALSE),VLOOKUP($B47,'ADP-Rank'!$A$2:$BD$620,46,FALSE)) -> 33 | AE47: =CHOOSE(Personalize!$E$38,VLOOKUP($B47,'ADP-Rank'!$A$2:$AJ$620,9,FALSE),VLOOKUP($B47,'ADP-Rank'!$A$2:$AJ$620,12,FALSE),VLOOKUP($B47,'ADP-Rank'!$A$2:$AO$620,15,FALSE),VLOOKUP($B47,'ADP-Rank'!$A$2:$BD$620,18,FALSE),VLOOKUP($B47,'ADP-Rank'!$A$2:$BD$620,21,FALSE),VLOOKUP($B47,'ADP-Rank'!$A$2:$BD$620,24,FALSE),VLOOKUP($B47,'ADP-Rank'!$A$2:$BD$620,27,FALSE),VLOOKUP($B47,'ADP-Rank'!$A$2:$BD$620,30,FALSE),VLOOKUP($B47,'ADP-Rank'!$A$2:$BD$620,47,FALSE)) -> 68 | AF47: =IF(ISBLANK(A47),0,1) -> 0 | AG47: =IF(K47="",0,1) -> 1 | AH47: =A47 -> 0 | AI47: =IF(C47="C",1,IF(C47="1B",2,IF(C47="2B",3,IF(C47="3B",4,IF(C47="SS",5,IF(C47="CI",6,IF(C47="MI",7,IF(C47="OF",11,IF(C47="LF",8,IF(C47="CF",9,IF(C47="RF",10,IF(C47="DH",12,IF(C47="SP",13,IF(C47="RP",14,IF(C47="P",15,16))))))))))))))) -> 11 | AJ47: =VLOOKUP(B47,'Starter Calc'!$B$2:$BR$700,69,FALSE) -> Bench | AK47: =IFERROR(VLOOKUP($B47,'ADP-Rank'!$A$2:$AZ$620,40,FALSE),TRUE) -> TRUE | AL47: 0
B48: Jacob deGrom | C48: SP | D48: =IFERROR(IF(VLOOKUP(B48,'Starter Calc'!$B$2:$E$700,4,FALSE)="","",VLOOKUP(B48,'Starter Calc'!$B$2:$E$700,4,FALSE)),"") -> ,, | E48: =IFERROR(VLOOKUP($B48,'ADP-Rank'!$A$2:$G$620,5,FALSE),"") -> NYM | F48: =IFERROR(VLOOKUP($B48,'ADP-Rank'!$A$2:$W$620,6,FALSE),"") -> 26 | G48: =IFERROR(CHOOSE(Personalize!$E$38,VLOOKUP($B48,'ADP-Rank'!$A$2:$CD$620,7,FALSE),VLOOKUP($B48,'ADP-Rank'!$A$2:$CD$620,10,FALSE),VLOOKUP($B48,'ADP-Rank'!$A$2:$CD$620,13,FALSE),VLOOKUP($B48,'ADP-Rank'!$A$2:$CD$620,16,FALSE),VLOOKUP($B48,'ADP-Rank'!$A$2:$CD$620,19,FALSE),VLOOKUP($B48,'ADP-Rank'!$A$2:$CD$620,22,FALSE),VLOOKUP($B48,'ADP-Rank'!$A$2:$CD$620,25,FALSE),VLOOKUP($B48,'ADP-Rank'!$A$2:$CD$620,28,FALSE),VLOOKUP($B48,'ADP-Rank'!$A$2:$CD$620,45,FALSE)),"") -> 48.28 | H48: =IFERROR(ROUNDDOWN(VLOOKUP($B48,'ADP-Rank'!$A$2:$BC$674,44,FALSE),0),"") -> 4 | I48: =VLOOKUP($B48,'ADP-Rank'!$A$2:$AP$674,42,FALSE) -> 119 | J48: =IFERROR(RANK($M48,$M$6:$M$745,0),"") -> 115 | K48: =IFERROR(IF((OR($C48="RP",$C48="SP")),VLOOKUP($B48,'Filtered-P'!$A$1:$AB$700,12,FALSE),(VLOOKUP($B48,Filtered!$A$1:$AB$700,18,FALSE))),"") -> 294.8267926 | L48: =IFERROR(IF((OR($C48="RP",$C48="SP")),VLOOKUP($C48,'Filtered-P'!$U$3:$X$4,4,FALSE), VLOOKUP($C48,Filtered!$U$3:$X$14,4,FALSE)),"") -> 262.4844351 | M48: =IFERROR(($K48-$L48)/IF(OR($C48="SP",$C48="RP"),VLOOKUP($C48,'Filtered-P'!$U$3:$AB$4,8,FALSE),VLOOKUP($C48,Filtered!$U$3:$AB$10,8,FALSE)),"") -> 0.3549260995 | N48: =IFERROR(IF((OR($C48="RP",$C48="SP")),"",(VLOOKUP($B48,Filtered!$A$1:$AB$700,18,FALSE)/VLOOKUP($B48,Filtered!$A$1:$AB$700,2,FALSE))),"") ->  | O48: =IFERROR(IF((OR($C48="RP",$C48="SP")),VLOOKUP($B48,'Filtered-P'!$A$1:$AB$700,12,FALSE)/VLOOKUP($B48,'Filtered-P'!$A$1:$AB$700,4,FALSE),""),"") -> 1.809546294 | P48: =IFERROR(IF((OR($C48="RP",$C48="SP")),VLOOKUP($B48,'Filtered-P'!$A$1:$X$700,2,FALSE),""),"") -> 9.999362152 | Q48: =IFERROR(IF((OR($C48="RP",$C48="SP")),VLOOKUP($B48,'Filtered-P'!$A$1:$X$700,9,FALSE),""),"") -> 0 | R48: =IFERROR(IF((OR($C48="RP",$C48="SP")),VLOOKUP($B48,'Filtered-P'!$A$1:$X$700,7,FALSE),""),"") -> 151.3999587 | S48: =IFERROR(IF((OR($C48="RP",$C48="SP")),VLOOKUP($B48,'Filtered-P'!$A$1:$AD$700,13,FALSE),""),"") -> 3.67676669 | T48: =IFERROR(IF((OR($C48="RP",$C48="SP")),VLOOKUP($B48,'Filtered-P'!$A$1:$X$700,14,FALSE),""),"") -> 1.197354523 | U48: =IFERROR(IF((OR($C48="RP",$C48="SP")),"",VLOOKUP($B48,Filtered!$A$1:$AJ$700,20,FALSE)),"") ->  | V48: =IFERROR(IF((OR($C48="RP",$C48="SP")),"",VLOOKUP($B48,Filtered!$A$1:$AJ$700,9,FALSE)),"") ->  | W48: =IFERROR(IF((OR($C48="RP",$C48="SP")),"",VLOOKUP($B48,Filtered!$A$1:$AJ$700,10,FALSE)),"") ->  | X48: =IFERROR(IF((OR($C48="RP",$C48="SP")),"",VLOOKUP($B48,Filtered!$A$1:$AJ$700,4,FALSE)),"") ->  | Y48: =IFERROR(IF((OR($C48="RP",$C48="SP")),"",VLOOKUP($B48,Filtered!$A$1:$AJ$700,11,FALSE)),"") ->  | Z48: =IFERROR(IF(ISTEXT($A48),"",(1-NORMDIST((COUNTA($A$6:$A$745)),($G48),((AE48-AD48)/6),TRUE))),"") -> 0.9999998847 | AA48: =IFERROR(IF(ISTEXT($A48),"",(1-NORMDIST((COUNTA($A$6:$A$745))+(Personalize!$E$18+1),$G48,((AE48-AD48)/6),TRUE))),"") -> 0.9999991981 | AB48: =IFERROR(IF(ISTEXT($A48),"",(1-NORMDIST((COUNTA($A$6:$A$745))+((Personalize!$E$18+1)*2),$G48,((AE48-AD48)/6),TRUE))),"") -> 0.9999951298 | AC48: Potential Mr. Cheatsheet Sleeper | AD48: =CHOOSE(Personalize!$E$38,VLOOKUP($B48,'ADP-Rank'!$A$2:$AJ$620,8,FALSE),VLOOKUP($B48,'ADP-Rank'!$A$2:$AJ$620,11,FALSE),VLOOKUP($B48,'ADP-Rank'!$A$2:$AO$620,14,FALSE),VLOOKUP($B48,'ADP-Rank'!$A$2:$BD$620,17,FALSE),VLOOKUP($B48,'ADP-Rank'!$A$2:$BD$620,20,FALSE),VLOOKUP($B48,'ADP-Rank'!$A$2:$BD$620,23,FALSE),VLOOKUP($B48,'ADP-Rank'!$A$2:$BD$620,26,FALSE),VLOOKUP($B48,'ADP-Rank'!$A$2:$BD$620,29,FALSE),VLOOKUP($B48,'ADP-Rank'!$A$2:$BD$620,46,FALSE)) -> 24 | AE48: =CHOOSE(Personalize!$E$38,VLOOKUP($B48,'ADP-Rank'!$A$2:$AJ$620,9,FALSE),VLOOKUP($B48,'ADP-Rank'!$A$2:$AJ$620,12,FALSE),VLOOKUP($B48,'ADP-Rank'!$A$2:$AO$620,15,FALSE),VLOOKUP($B48,'ADP-Rank'!$A$2:$BD$620,18,FALSE),VLOOKUP($B48,'ADP-Rank'!$A$2:$BD$620,21,FALSE),VLOOKUP($B48,'ADP-Rank'!$A$2:$BD$620,24,FALSE),VLOOKUP($B48,'ADP-Rank'!$A$2:$BD$620,27,FALSE),VLOOKUP($B48,'ADP-Rank'!$A$2:$BD$620,30,FALSE),VLOOKUP($B48,'ADP-Rank'!$A$2:$BD$620,47,FALSE)) -> 80 | AF48: =IF(ISBLANK(A48),0,1) -> 0 | AG48: =IF(K48="",0,1) -> 1 | AH48: =A48 -> 0 | AI48: =IF(C48="C",1,IF(C48="1B",2,IF(C48="2B",3,IF(C48="3B",4,IF(C48="SS",5,IF(C48="CI",6,IF(C48="MI",7,IF(C48="OF",11,IF(C48="LF",8,IF(C48="CF",9,IF(C48="RF",10,IF(C48="DH",12,IF(C48="SP",13,IF(C48="RP",14,IF(C48="P",15,16))))))))))))))) -> 13 | AJ48: =VLOOKUP(B48,'Starter Calc'!$B$2:$BR$700,69,FALSE) -> Starter | AK48: =IFERROR(VLOOKUP($B48,'ADP-Rank'!$A$2:$AZ$620,40,FALSE),TRUE) -> TRUE | AL48: 1
B49: Alex Wood | C49: SP | D49: =IFERROR(IF(VLOOKUP(B49,'Starter Calc'!$B$2:$E$700,4,FALSE)="","",VLOOKUP(B49,'Starter Calc'!$B$2:$E$700,4,FALSE)),"") -> ,, | E49: =IFERROR(VLOOKUP($B49,'ADP-Rank'!$A$2:$G$620,5,FALSE),"") -> ATL | F49: =IFERROR(VLOOKUP($B49,'ADP-Rank'!$A$2:$W$620,6,FALSE),"") -> 24 | G49: =IFERROR(CHOOSE(Personalize!$E$38,VLOOKUP($B49,'ADP-Rank'!$A$2:$CD$620,7,FALSE),VLOOKUP($B49,'ADP-Rank'!$A$2:$CD$620,10,FALSE),VLOOKUP($B49,'ADP-Rank'!$A$2:$CD$620,13,FALSE),VLOOKUP($B49,'ADP-Rank'!$A$2:$CD$620,16,FALSE),VLOOKUP($B49,'ADP-Rank'!$A$2:$CD$620,19,FALSE),VLOOKUP($B49,'ADP-Rank'!$A$2:$CD$620,22,FALSE),VLOOKUP($B49,'ADP-Rank'!$A$2:$CD$620,25,FALSE),VLOOKUP($B49,'ADP-Rank'!$A$2:$CD$620,28,FALSE),VLOOKUP($B49,'ADP-Rank'!$A$2:$CD$620,45,FALSE)),"") -> 48.93 | H49: =IFERROR(ROUNDDOWN(VLOOKUP($B49,'ADP-Rank'!$A$2:$BC$674,44,FALSE),0),"") -> 4 | I49: =VLOOKUP($B49,'ADP-Rank'!$A$2:$AP$674,42,FALSE) -> 188 | J49: =IFERROR(RANK($M49,$M$6:$M$745,0),"") -> 78 | K49: =IFERROR(IF((OR($C49="RP",$C49="SP")),VLOOKUP($B49,'Filtered-P'!$A$1:$AB$700,12,FALSE),(VLOOKUP($B49,Filtered!$A$1:$AB$700,18,FALSE))),"") -> 324.8668641 | L49: =IFERROR(IF((OR($C49="RP",$C49="SP")),VLOOKUP($C49,'Filtered-P'!$U$3:$X$4,4,FALSE), VLOOKUP($C49,Filtered!$U$3:$X$14,4,FALSE)),"") -> 262.4844351 | M49: =IFERROR(($K49-$L49)/IF(OR($C49="SP",$C49="RP"),VLOOKUP($C49,'Filtered-P'!$U$3:$AB$4,8,FALSE),VLOOKUP($C49,Filtered!$U$3:$AB$10,8,FALSE)),"") -> 0.6845868365 | N49: =IFERROR(IF((OR($C49="RP",$C49="SP")),"",(VLOOKUP($B49,Filtered!$A$1:$AB$700,18,FALSE)/VLOOKUP($B49,Filtered!$A$1:$AB$700,2,FALSE))),"") ->  | O49: =IFERROR(IF((OR($C49="RP",$C49="SP")),VLOOKUP($B49,'Filtered-P'!$A$1:$AB$700,12,FALSE)/VLOOKUP($B49,'Filtered-P'!$A$1:$AB$700,4,FALSE),""),"") -> 1.896795436 | P49: =IFERROR(IF((OR($C49="RP",$C49="SP")),VLOOKUP($B49,'Filtered-P'!$A$1:$X$700,2,FALSE),""),"") -> 10.51255958 | Q49: =IFERROR(IF((OR($C49="RP",$C49="SP")),VLOOKUP($B49,'Filtered-P'!$A$1:$X$700,9,FALSE),""),"") -> 0 | R49: =IFERROR(IF((OR($C49="RP",$C49="SP")),VLOOKUP($B49,'Filtered-P'!$A$1:$X$700,7,FALSE),""),"") -> 164.8169969 | S49: =IFERROR(IF((OR($C49="RP",$C49="SP")),VLOOKUP($B49,'Filtered-P'!$A$1:$AD$700,13,FALSE),""),"") -> 3.577691508 | T49: =IFERROR(IF((OR($C49="RP",$C49="SP")),VLOOKUP($B49,'Filtered-P'!$A$1:$X$700,14,FALSE),""),"") -> 1.201595003 | U49: =IFERROR(IF((OR($C49="RP",$C49="SP")),"",VLOOKUP($B49,Filtered!$A$1:$AJ$700,20,FALSE)),"") ->  | V49: =IFERROR(IF((OR($C49="RP",$C49="SP")),"",VLOOKUP($B49,Filtered!$A$1:$AJ$700,9,FALSE)),"") ->  | W49: =IFERROR(IF((OR($C49="RP",$C49="SP")),"",VLOOKUP($B49,Filtered!$A$1:$AJ$700,10,FALSE)),"") ->  | X49: =IFERROR(IF((OR($C49="RP",$C49="SP")),"",VLOOKUP($B49,Filtered!$A$1:$AJ$700,4,FALSE)),"") ->  | Y49: =IFERROR(IF((OR($C49="RP",$C49="SP")),"",VLOOKUP($B49,Filtered!$A$1:$AJ$700,11,FALSE)),"") ->  | Z49: =IFERROR(IF(ISTEXT($A49),"",(1-NORMDIST((COUNTA($A$6:$A$745)),($G49),((AE49-AD49)/6),TRUE))),"") -> 0.9999999999 | AA49: =IFERROR(IF(ISTEXT($A49),"",(1-NORMDIST((COUNTA($A$6:$A$745))+(Personalize!$E$18+1),$G49,((AE49-AD49)/6),TRUE))),"") -> 0.9999999984 | AB49: =IFERROR(IF(ISTEXT($A49),"",(1-NORMDIST((COUNTA($A$6:$A$745))+((Personalize!$E$18+1)*2),$G49,((AE49-AD49)/6),TRUE))),"") -> 0.9999999774 | AC49: Potential Mr. Cheatsheet Sleeper | AD49: =CHOOSE(Personalize!$E$38,VLOOKUP($B49,'ADP-Rank'!$A$2:$AJ$620,8,FALSE),VLOOKUP($B49,'ADP-Rank'!$A$2:$AJ$620,11,FALSE),VLOOKUP($B49,'ADP-Rank'!$A$2:$AO$620,14,FALSE),VLOOKUP($B49,'ADP-Rank'!$A$2:$BD$620,17,FALSE),VLOOKUP($B49,'ADP-Rank'!$A$2:$BD$620,20,FALSE),VLOOKUP($B49,'ADP-Rank'!$A$2:$BD$620,23,FALSE),VLOOKUP($B49,'ADP-Rank'!$A$2:$BD$620,26,FALSE),VLOOKUP($B49,'ADP-Rank'!$A$2:$BD$620,29,FALSE),VLOOKUP($B49,'ADP-Rank'!$A$2:$BD$620,46,FALSE)) -> 32 | AE49: =CHOOSE(Personalize!$E$38,VLOOKUP($B49,'ADP-Rank'!$A$2:$AJ$620,9,FALSE),VLOOKUP($B49,'ADP-Rank'!$A$2:$AJ$620,12,FALSE),VLOOKUP($B49,'ADP-Rank'!$A$2:$AO$620,15,FALSE),VLOOKUP($B49,'ADP-Rank'!$A$2:$BD$620,18,FALSE),VLOOKUP($B49,'ADP-Rank'!$A$2:$BD$620,21,FALSE),VLOOKUP($B49,'ADP-Rank'!$A$2:$BD$620,24,FALSE),VLOOKUP($B49,'ADP-Rank'!$A$2:$BD$620,27,FALSE),VLOOKUP($B49,'ADP-Rank'!$A$2:$BD$620,30,FALSE),VLOOKUP($B49,'ADP-Rank'!$A$2:$BD$620,47,FALSE)) -> 78 | AF49: =IF(ISBLANK(A49),0,1) -> 0 | AG49: =IF(K49="",0,1) -> 1 | AH49: =A49 -> 0 | AI49: =IF(C49="C",1,IF(C49="1B",2,IF(C49="2B",3,IF(C49="3B",4,IF(C49="SS",5,IF(C49="CI",6,IF(C49="MI",7,IF(C49="OF",11,IF(C49="LF",8,IF(C49="CF",9,IF(C49="RF",10,IF(C49="DH",12,IF(C49="SP",13,IF(C49="RP",14,IF(C49="P",15,16))))))))))))))) -> 13 | AJ49: =VLOOKUP(B49,'Starter Calc'!$B$2:$BR$700,69,FALSE) -> Starter | AK49: =IFERROR(VLOOKUP($B49,'ADP-Rank'!$A$2:$AZ$620,40,FALSE),TRUE) -> TRUE | AL49: 1
B50: Freddie Freeman | C50: 1B | D50: =IFERROR(IF(VLOOKUP(B50,'Starter Calc'!$B$2:$E$700,4,FALSE)="","",VLOOKUP(B50,'Starter Calc'!$B$2:$E$700,4,FALSE)),"") -> ,, | E50: =IFERROR(VLOOKUP($B50,'ADP-Rank'!$A$2:$G$620,5,FALSE),"") -> ATL | F50: =IFERROR(VLOOKUP($B50,'ADP-Rank'!$A$2:$W$620,6,FALSE),"") -> 25 | G50: =IFERROR(CHOOSE(Personalize!$E$38,VLOOKUP($B50,'ADP-Rank'!$A$2:$CD$620,7,FALSE),VLOOKUP($B50,'ADP-Rank'!$A$2:$CD$620,10,FALSE),VLOOKUP($B50,'ADP-Rank'!$A$2:$CD$620,13,FALSE),VLOOKUP($B50,'ADP-Rank'!$A$2:$CD$620,16,FALSE),VLOOKUP($B50,'ADP-Rank'!$A$2:$CD$620,19,FALSE),VLOOKUP($B50,'ADP-Rank'!$A$2:$CD$620,22,FALSE),VLOOKUP($B50,'ADP-Rank'!$A$2:$CD$620,25,FALSE),VLOOKUP($B50,'ADP-Rank'!$A$2:$CD$620,28,FALSE),VLOOKUP($B50,'ADP-Rank'!$A$2:$CD$620,45,FALSE)),"") -> 49.18 | H50: =IFERROR(ROUNDDOWN(VLOOKUP($B50,'ADP-Rank'!$A$2:$BC$674,44,FALSE),0),"") -> 4 | I50: =VLOOKUP($B50,'ADP-Rank'!$A$2:$AP$674,42,FALSE) -> 47 | J50: =IFERROR(RANK($M50,$M$6:$M$745,0),"") -> 116 | K50: =IFERROR(IF((OR($C50="RP",$C50="SP")),VLOOKUP($B50,'Filtered-P'!$A$1:$AB$700,12,FALSE),(VLOOKUP($B50,Filtered!$A$1:$AB$700,18,FALSE))),"") -> 359.0476574 | L50: =IFERROR(IF((OR($C50="RP",$C50="SP")),VLOOKUP($C50,'Filtered-P'!$U$3:$X$4,4,FALSE), VLOOKUP($C50,Filtered!$U$3:$X$14,4,FALSE)),"") -> 341.0043912 | M50: =IFERROR(($K50-$L50)/IF(OR($C50="SP",$C50="RP"),VLOOKUP($C50,'Filtered-P'!$U$3:$AB$4,8,FALSE),VLOOKUP($C50,Filtered!$U$3:$AB$10,8,FALSE)),"") -> 0.3442595724 | N50: =IFERROR(IF((OR($C50="RP",$C50="SP")),"",(VLOOKUP($B50,Filtered!$A$1:$AB$700,18,FALSE)/VLOOKUP($B50,Filtered!$A$1:$AB$700,2,FALSE))),"") -> 0.5604045358 | O50: =IFERROR(IF((OR($C50="RP",$C50="SP")),VLOOKUP($B50,'Filtered-P'!$A$1:$AB$700,12,FALSE)/VLOOKUP($B50,'Filtered-P'!$A$1:$AB$700,4,FALSE),""),"") ->  | P50: =IFERROR(IF((OR($C50="RP",$C50="SP")),VLOOKUP($B50,'Filtered-P'!$A$1:$X$700,2,FALSE),""),"") ->  | Q50: =IFERROR(IF((OR($C50="RP",$C50="SP")),VLOOKUP($B50,'Filtered-P'!$A$1:$X$700,9,FALSE),""),"") ->  | R50: =IFERROR(IF((OR($C50="RP",$C50="SP")),VLOOKUP($B50,'Filtered-P'!$A$1:$X$700,7,FALSE),""),"") ->  | S50: =IFERROR(IF((OR($C50="RP",$C50="SP")),VLOOKUP($B50,'Filtered-P'!$A$1:$AD$700,13,FALSE),""),"") ->  | T50: =IFERROR(IF((OR($C50="RP",$C50="SP")),VLOOKUP($B50,'Filtered-P'!$A$1:$X$700,14,FALSE),""),"") ->  | U50: =IFERROR(IF((OR($C50="RP",$C50="SP")),"",VLOOKUP($B50,Filtered!$A$1:$AJ$700,20,FALSE)),"") -> 0.2798455439 | V50: =IFERROR(IF((OR($C50="RP",$C50="SP")),"",VLOOKUP($B50,Filtered!$A$1:$AJ$700,9,FALSE)),"") -> 22.42140205 | W50: =IFERROR(IF((OR($C50="RP",$C50="SP")),"",VLOOKUP($B50,Filtered!$A$1:$AJ$700,10,FALSE)),"") -> 83.77278122 | X50: =IFERROR(IF((OR($C50="RP",$C50="SP")),"",VLOOKUP($B50,Filtered!$A$1:$AJ$700,4,FALSE)),"") -> 81.82987148 | Y50: =IFERROR(IF((OR($C50="RP",$C50="SP")),"",VLOOKUP($B50,Filtered!$A$1:$AJ$700,11,FALSE)),"") -> 2.971425467 | Z50: =IFERROR(IF(ISTEXT($A50),"",(1-NORMDIST((COUNTA($A$6:$A$745)),($G50),((AE50-AD50)/6),TRUE))),"") -> 1 | AA50: =IFERROR(IF(ISTEXT($A50),"",(1-NORMDIST((COUNTA($A$6:$A$745))+(Personalize!$E$18+1),$G50,((AE50-AD50)/6),TRUE))),"") -> 1 | AB50: =IFERROR(IF(ISTEXT($A50),"",(1-NORMDIST((COUNTA($A$6:$A$745))+((Personalize!$E$18+1)*2),$G50,((AE50-AD50)/6),TRUE))),"") -> 0.9999999992 | AD50: =CHOOSE(Personalize!$E$38,VLOOKUP($B50,'ADP-Rank'!$A$2:$AJ$620,8,FALSE),VLOOKUP($B50,'ADP-Rank'!$A$2:$AJ$620,11,FALSE),VLOOKUP($B50,'ADP-Rank'!$A$2:$AO$620,14,FALSE),VLOOKUP($B50,'ADP-Rank'!$A$2:$BD$620,17,FALSE),VLOOKUP($B50,'ADP-Rank'!$A$2:$BD$620,20,FALSE),VLOOKUP($B50,'ADP-Rank'!$A$2:$BD$620,23,FALSE),VLOOKUP($B50,'ADP-Rank'!$A$2:$BD$620,26,FALSE),VLOOKUP($B50,'ADP-Rank'!$A$2:$BD$620,29,FALSE),VLOOKUP($B50,'ADP-Rank'!$A$2:$BD$620,46,FALSE)) -> 31 | AE50: =CHOOSE(Personalize!$E$38,VLOOKUP($B50,'ADP-Rank'!$A$2:$AJ$620,9,FALSE),VLOOKUP($B50,'ADP-Rank'!$A$2:$AJ$620,12,FALSE),VLOOKUP($B50,'ADP-Rank'!$A$2:$AO$620,15,FALSE),VLOOKUP($B50,'ADP-Rank'!$A$2:$BD$620,18,FALSE),VLOOKUP($B50,'ADP-Rank'!$A$2:$BD$620,21,FALSE),VLOOKUP($B50,'ADP-Rank'!$A$2:$BD$620,24,FALSE),VLOOKUP($B50,'ADP-Rank'!$A$2:$BD$620,27,FALSE),VLOOKUP($B50,'ADP-Rank'!$A$2:$BD$620,30,FALSE),VLOOKUP($B50,'ADP-Rank'!$A$2:$BD$620,47,FALSE)) -> 73 | AF50: =IF(ISBLANK(A50),0,1) -> 0 | AG50: =IF(K50="",0,1) -> 1 | AH50: =A50 -> 0 | AI50: =IF(C50="C",1,IF(C50="1B",2,IF(C50="2B",3,IF(C50="3B",4,IF(C50="SS",5,IF(C50="CI",6,IF(C50="MI",7,IF(C50="OF",11,IF(C50="LF",8,IF(C50="CF",9,IF(C50="RF",10,IF(C50="DH",12,IF(C50="SP",13,IF(C50="RP",14,IF(C50="P",15,16))))))))))))))) -> 2 | AJ50: =VLOOKUP(B50,'Starter Calc'!$B$2:$BR$700,69,FALSE) -> Bench | AK50: =IFERROR(VLOOKUP($B50,'ADP-Rank'!$A$2:$AZ$620,40,FALSE),TRUE) -> TRUE | AL50: 0
B51: Ryan Braun | C51: OF | D51: =IFERROR(IF(VLOOKUP(B51,'Starter Calc'!$B$2:$E$700,4,FALSE)="","",VLOOKUP(B51,'Starter Calc'!$B$2:$E$700,4,FALSE)),"") -> ,,CF | E51: =IFERROR(VLOOKUP($B51,'ADP-Rank'!$A$2:$G$620,5,FALSE),"") -> MIL | F51: =IFERROR(VLOOKUP($B51,'ADP-Rank'!$A$2:$W$620,6,FALSE),"") -> 31 | G51: =IFERROR(CHOOSE(Personalize!$E$38,VLOOKUP($B51,'ADP-Rank'!$A$2:$CD$620,7,FALSE),VLOOKUP($B51,'ADP-Rank'!$A$2:$CD$620,10,FALSE),VLOOKUP($B51,'ADP-Rank'!$A$2:$CD$620,13,FALSE),VLOOKUP($B51,'ADP-Rank'!$A$2:$CD$620,16,FALSE),VLOOKUP($B51,'ADP-Rank'!$A$2:$CD$620,19,FALSE),VLOOKUP($B51,'ADP-Rank'!$A$2:$CD$620,22,FALSE),VLOOKUP($B51,'ADP-Rank'!$A$2:$CD$620,25,FALSE),VLOOKUP($B51,'ADP-Rank'!$A$2:$CD$620,28,FALSE),VLOOKUP($B51,'ADP-Rank'!$A$2:$CD$620,45,FALSE)),"") -> 50.37 | H51: =IFERROR(ROUNDDOWN(VLOOKUP($B51,'ADP-Rank'!$A$2:$BC$674,44,FALSE),0),"") -> 4 | I51: =VLOOKUP($B51,'ADP-Rank'!$A$2:$AP$674,42,FALSE) -> 38 | J51: =IFERROR(RANK($M51,$M$6:$M$745,0),"") -> 81 | K51: =IFERROR(IF((OR($C51="RP",$C51="SP")),VLOOKUP($B51,'Filtered-P'!$A$1:$AB$700,12,FALSE),(VLOOKUP($B51,Filtered!$A$1:$AB$700,18,FALSE))),"") -> 326.7591759 | L51: =IFERROR(IF((OR($C51="RP",$C51="SP")),VLOOKUP($C51,'Filtered-P'!$U$3:$X$4,4,FALSE), VLOOKUP($C51,Filtered!$U$3:$X$14,4,FALSE)),"") -> 287.0213782 | M51: =IFERROR(($K51-$L51)/IF(OR($C51="SP",$C51="RP"),VLOOKUP($C51,'Filtered-P'!$U$3:$AB$4,8,FALSE),VLOOKUP($C51,Filtered!$U$3:$AB$10,8,FALSE)),"") -> 0.654285032 | N51: =IFERROR(IF((OR($C51="RP",$C51="SP")),"",(VLOOKUP($B51,Filtered!$A$1:$AB$700,18,FALSE)/VLOOKUP($B51,Filtered!$A$1:$AB$700,2,FALSE))),"") -> 0.5768163112 | O51: =IFERROR(IF((OR($C51="RP",$C51="SP")),VLOOKUP($B51,'Filtered-P'!$A$1:$AB$700,12,FALSE)/VLOOKUP($B51,'Filtered-P'!$A$1:$AB$700,4,FALSE),""),"") ->  | P51: =IFERROR(IF((OR($C51="RP",$C51="SP")),VLOOKUP($B51,'Filtered-P'!$A$1:$X$700,2,FALSE),""),"") ->  | Q51: =IFERROR(IF((OR($C51="RP",$C51="SP")),VLOOKUP($B51,'Filtered-P'!$A$1:$X$700,9,FALSE),""),"") ->  | R51: =IFERROR(IF((OR($C51="RP",$C51="SP")),VLOOKUP($B51,'Filtered-P'!$A$1:$X$700,7,FALSE),""),"") ->  | S51: =IFERROR(IF((OR($C51="RP",$C51="SP")),VLOOKUP($B51,'Filtered-P'!$A$1:$AD$700,13,FALSE),""),"") ->  | T51: =IFERROR(IF((OR($C51="RP",$C51="SP")),VLOOKUP($B51,'Filtered-P'!$A$1:$X$700,14,FALSE),""),"") ->  | U51: =IFERROR(IF((OR($C51="RP",$C51="SP")),"",VLOOKUP($B51,Filtered!$A$1:$AJ$700,20,FALSE)),"") -> 0.2745695752 | V51: =IFERROR(IF((OR($C51="RP",$C51="SP")),"",VLOOKUP($B51,Filtered!$A$1:$AJ$700,9,FALSE)),"") -> 22.26201047 | W51: =IFERROR(IF((OR($C51="RP",$C51="SP")),"",VLOOKUP($B51,Filtered!$A$1:$AJ$700,10,FALSE)),"") -> 79.4003037 | X51: =IFERROR(IF((OR($C51="RP",$C51="SP")),"",VLOOKUP($B51,Filtered!$A$1:$AJ$700,4,FALSE)),"") -> 75.0308207 | Y51: =IFERROR(IF((OR($C51="RP",$C51="SP")),"",VLOOKUP($B51,Filtered!$A$1:$AJ$700,11,FALSE)),"") -> 13.63700062 | Z51: =IFERROR(IF(ISTEXT($A51),"",(1-NORMDIST((COUNTA($A$6:$A$745)),($G51),((AE51-AD51)/6),TRUE))),"") -> 0.9999999059 | AA51: =IFERROR(IF(ISTEXT($A51),"",(1-NORMDIST((COUNTA($A$6:$A$745))+(Personalize!$E$18+1),$G51,((AE51-AD51)/6),TRUE))),"") -> 0.9999993784 | AB51: =IFERROR(IF(ISTEXT($A51),"",(1-NORMDIST((COUNTA($A$6:$A$745))+((Personalize!$E$18+1)*2),$G51,((AE51-AD51)/6),TRUE))),"") -> 0.9999963807 | AD51: =CHOOSE(Personalize!$E$38,VLOOKUP($B51,'ADP-Rank'!$A$2:$AJ$620,8,FALSE),VLOOKUP($B51,'ADP-Rank'!$A$2:$AJ$620,11,FALSE),VLOOKUP($B51,'ADP-Rank'!$A$2:$AO$620,14,FALSE),VLOOKUP($B51,'ADP-Rank'!$A$2:$BD$620,17,FALSE),VLOOKUP($B51,'ADP-Rank'!$A$2:$BD$620,20,FALSE),VLOOKUP($B51,'ADP-Rank'!$A$2:$BD$620,23,FALSE),VLOOKUP($B51,'ADP-Rank'!$A$2:$BD$620,26,FALSE),VLOOKUP($B51,'ADP-Rank'!$A$2:$BD$620,29,FALSE),VLOOKUP($B51,'ADP-Rank'!$A$2:$BD$620,46,FALSE)) -> 29 | AE51: =CHOOSE(Personalize!$E$38,VLOOKUP($B51,'ADP-Rank'!$A$2:$AJ$620,9,FALSE),VLOOKUP($B51,'ADP-Rank'!$A$2:$AJ$620,12,FALSE),VLOOKUP($B51,'ADP-Rank'!$A$2:$AO$620,15,FALSE),VLOOKUP($B51,'ADP-Rank'!$A$2:$BD$620,18,FALSE),VLOOKUP($B51,'ADP-Rank'!$A$2:$BD$620,21,FALSE),VLOOKUP($B51,'ADP-Rank'!$A$2:$BD$620,24,FALSE),VLOOKUP($B51,'ADP-Rank'!$A$2:$BD$620,27,FALSE),VLOOKUP($B51,'ADP-Rank'!$A$2:$BD$620,30,FALSE),VLOOKUP($B51,'ADP-Rank'!$A$2:$BD$620,47,FALSE)) -> 87 | AF51: =IF(ISBLANK(A51),0,1) -> 0 | AG51: =IF(K51="",0,1) -> 1 | AH51: =A51 -> 0 | AI51: =IF(C51="C",1,IF(C51="1B",2,IF(C51="2B",3,IF(C51="3B",4,IF(C51="SS",5,IF(C51="CI",6,IF(C51="MI",7,IF(C51="OF",11,IF(C51="LF",8,IF(C51="CF",9,IF(C51="RF",10,IF(C51="DH",12,IF(C51="SP",13,IF(C51="RP",14,IF(C51="P",15,16))))))))))))))) -> 11 | AJ51: =VLOOKUP(B51,'Starter Calc'!$B$2:$BR$700,69,FALSE) -> Bench | AK51: =IFERROR(VLOOKUP($B51,'ADP-Rank'!$A$2:$AZ$620,40,FALSE),TRUE) -> TRUE | AL51: 0
B52: Masahiro Tanaka | C52: SP | D52: =IFERROR(IF(VLOOKUP(B52,'Starter Calc'!$B$2:$E$700,4,FALSE)="","",VLOOKUP(B52,'Starter Calc'!$B$2:$E$700,4,FALSE)),"") -> ,, | E52: =IFERROR(VLOOKUP($B52,'ADP-Rank'!$A$2:$G$620,5,FALSE),"") -> NYY | F52: =IFERROR(VLOOKUP($B52,'ADP-Rank'!$A$2:$W$620,6,FALSE),"") -> 26 | G52: =IFERROR(CHOOSE(Personalize!$E$38,VLOOKUP($B52,'ADP-Rank'!$A$2:$CD$620,7,FALSE),VLOOKUP($B52,'ADP-Rank'!$A$2:$CD$620,10,FALSE),VLOOKUP($B52,'ADP-Rank'!$A$2:$CD$620,13,FALSE),VLOOKUP($B52,'ADP-Rank'!$A$2:$CD$620,16,FALSE),VLOOKUP($B52,'ADP-Rank'!$A$2:$CD$620,19,FALSE),VLOOKUP($B52,'ADP-Rank'!$A$2:$CD$620,22,FALSE),VLOOKUP($B52,'ADP-Rank'!$A$2:$CD$620,25,FALSE),VLOOKUP($B52,'ADP-Rank'!$A$2:$CD$620,28,FALSE),VLOOKUP($B52,'ADP-Rank'!$A$2:$CD$620,45,FALSE)),"") -> 50.42 | H52: =IFERROR(ROUNDDOWN(VLOOKUP($B52,'ADP-Rank'!$A$2:$BC$674,44,FALSE),0),"") -> 4 | I52: =VLOOKUP($B52,'ADP-Rank'!$A$2:$AP$674,42,FALSE) -> 86 | J52: =IFERROR(RANK($M52,$M$6:$M$745,0),"") -> 62 | K52: =IFERROR(IF((OR($C52="RP",$C52="SP")),VLOOKUP($B52,'Filtered-P'!$A$1:$AB$700,12,FALSE),(VLOOKUP($B52,Filtered!$A$1:$AB$700,18,FALSE))),"") -> 344.0409035 | L52: =IFERROR(IF((OR($C52="RP",$C52="SP")),VLOOKUP($C52,'Filtered-P'!$U$3:$X$4,4,FALSE), VLOOKUP($C52,Filtered!$U$3:$X$14,4,FALSE)),"") -> 262.4844351 | M52: =IFERROR(($K52-$L52)/IF(OR($C52="SP",$C52="RP"),VLOOKUP($C52,'Filtered-P'!$U$3:$AB$4,8,FALSE),VLOOKUP($C52,Filtered!$U$3:$AB$10,8,FALSE)),"") -> 0.8950033792 | N52: =IFERROR(IF((OR($C52="RP",$C52="SP")),"",(VLOOKUP($B52,Filtered!$A$1:$AB$700,18,FALSE)/VLOOKUP($B52,Filtered!$A$1:$AB$700,2,FALSE))),"") ->  | O52: =IFERROR(IF((OR($C52="RP",$C52="SP")),VLOOKUP($B52,'Filtered-P'!$A$1:$AB$700,12,FALSE)/VLOOKUP($B52,'Filtered-P'!$A$1:$AB$700,4,FALSE),""),"") -> 2.184040016 | P52: =IFERROR(IF((OR($C52="RP",$C52="SP")),VLOOKUP($B52,'Filtered-P'!$A$1:$X$700,2,FALSE),""),"") -> 11.79939041 | Q52: =IFERROR(IF((OR($C52="RP",$C52="SP")),VLOOKUP($B52,'Filtered-P'!$A$1:$X$700,9,FALSE),""),"") -> 0 | R52: =IFERROR(IF((OR($C52="RP",$C52="SP")),VLOOKUP($B52,'Filtered-P'!$A$1:$X$700,7,FALSE),""),"") -> 153.1230762 | S52: =IFERROR(IF((OR($C52="RP",$C52="SP")),VLOOKUP($B52,'Filtered-P'!$A$1:$AD$700,13,FALSE),""),"") -> 3.069457774 | T52: =IFERROR(IF((OR($C52="RP",$C52="SP")),VLOOKUP($B52,'Filtered-P'!$A$1:$X$700,14,FALSE),""),"") -> 1.085730539 | U52: =IFERROR(IF((OR($C52="RP",$C52="SP")),"",VLOOKUP($B52,Filtered!$A$1:$AJ$700,20,FALSE)),"") ->  | V52: =IFERROR(IF((OR($C52="RP",$C52="SP")),"",VLOOKUP($B52,Filtered!$A$1:$AJ$700,9,FALSE)),"") ->  | W52: =IFERROR(IF((OR($C52="RP",$C52="SP")),"",VLOOKUP($B52,Filtered!$A$1:$AJ$700,10,FALSE)),"") ->  | X52: =IFERROR(IF((OR($C52="RP",$C52="SP")),"",VLOOKUP($B52,Filtered!$A$1:$AJ$700,4,FALSE)),"") ->  | Y52: =IFERROR(IF((OR($C52="RP",$C52="SP")),"",VLOOKUP($B52,Filtered!$A$1:$AJ$700,11,FALSE)),"") ->  | Z52: =IFERROR(IF(ISTEXT($A52),"",(1-NORMDIST((COUNTA($A$6:$A$745)),($G52),((AE52-AD52)/6),TRUE))),"") -> 0.9999999997 | AA52: =IFERROR(IF(ISTEXT($A52),"",(1-NORMDIST((COUNTA($A$6:$A$745))+(Personalize!$E$18+1),$G52,((AE52-AD52)/6),TRUE))),"") -> 0.9999999954 | AB52: =IFERROR(IF(ISTEXT($A52),"",(1-NORMDIST((COUNTA($A$6:$A$745))+((Personalize!$E$18+1)*2),$G52,((AE52-AD52)/6),TRUE))),"") -> 0.9999999472 | AD52: =CHOOSE(Personalize!$E$38,VLOOKUP($B52,'ADP-Rank'!$A$2:$AJ$620,8,FALSE),VLOOKUP($B52,'ADP-Rank'!$A$2:$AJ$620,11,FALSE),VLOOKUP($B52,'ADP-Rank'!$A$2:$AO$620,14,FALSE),VLOOKUP($B52,'ADP-Rank'!$A$2:$BD$620,17,FALSE),VLOOKUP($B52,'ADP-Rank'!$A$2:$BD$620,20,FALSE),VLOOKUP($B52,'ADP-Rank'!$A$2:$BD$620,23,FALSE),VLOOKUP($B52,'ADP-Rank'!$A$2:$BD$620,26,FALSE),VLOOKUP($B52,'ADP-Rank'!$A$2:$BD$620,29,FALSE),VLOOKUP($B52,'ADP-Rank'!$A$2:$BD$620,46,FALSE)) -> 29 | AE52: =CHOOSE(Personalize!$E$38,VLOOKUP($B52,'ADP-Rank'!$A$2:$AJ$620,9,FALSE),VLOOKUP($B52,'ADP-Rank'!$A$2:$AJ$620,12,FALSE),VLOOKUP($B52,'ADP-Rank'!$A$2:$AO$620,15,FALSE),VLOOKUP($B52,'ADP-Rank'!$A$2:$BD$620,18,FALSE),VLOOKUP($B52,'ADP-Rank'!$A$2:$BD$620,21,FALSE),VLOOKUP($B52,'ADP-Rank'!$A$2:$BD$620,24,FALSE),VLOOKUP($B52,'ADP-Rank'!$A$2:$BD$620,27,FALSE),VLOOKUP($B52,'ADP-Rank'!$A$2:$BD$620,30,FALSE),VLOOKUP($B52,'ADP-Rank'!$A$2:$BD$620,47,FALSE)) -> 78 | AF52: =IF(ISBLANK(A52),0,1) -> 0 | AG52: =IF(K52="",0,1) -> 1 | AH52: =A52 -> 0 | AI52: =IF(C52="C",1,IF(C52="1B",2,IF(C52="2B",3,IF(C52="3B",4,IF(C52="SS",5,IF(C52="CI",6,IF(C52="MI",7,IF(C52="OF",11,IF(C52="LF",8,IF(C52="CF",9,IF(C52="RF",10,IF(C52="DH",12,IF(C52="SP",13,IF(C52="RP",14,IF(C52="P",15,16))))))))))))))) -> 13 | AJ52: =VLOOKUP(B52,'Starter Calc'!$B$2:$BR$700,69,FALSE) -> Starter | AK52: =IFERROR(VLOOKUP($B52,'ADP-Rank'!$A$2:$AZ$620,40,FALSE),TRUE) -> TRUE | AL52: 1
B53: Jose Reyes | C53: SS | D53: =IFERROR(IF(VLOOKUP(B53,'Starter Calc'!$B$2:$E$700,4,FALSE)="","",VLOOKUP(B53,'Starter Calc'!$B$2:$E$700,4,FALSE)),"") -> ,, | E53: =IFERROR(VLOOKUP($B53,'ADP-Rank'!$A$2:$G$620,5,FALSE),"") -> TOR | F53: =IFERROR(VLOOKUP($B53,'ADP-Rank'!$A$2:$W$620,6,FALSE),"") -> 31 | G53: =IFERROR(CHOOSE(Personalize!$E$38,VLOOKUP($B53,'ADP-Rank'!$A$2:$CD$620,7,FALSE),VLOOKUP($B53,'ADP-Rank'!$A$2:$CD$620,10,FALSE),VLOOKUP($B53,'ADP-Rank'!$A$2:$CD$620,13,FALSE),VLOOKUP($B53,'ADP-Rank'!$A$2:$CD$620,16,FALSE),VLOOKUP($B53,'ADP-Rank'!$A$2:$CD$620,19,FALSE),VLOOKUP($B53,'ADP-Rank'!$A$2:$CD$620,22,FALSE),VLOOKUP($B53,'ADP-Rank'!$A$2:$CD$620,25,FALSE),VLOOKUP($B53,'ADP-Rank'!$A$2:$CD$620,28,FALSE),VLOOKUP($B53,'ADP-Rank'!$A$2:$CD$620,45,FALSE)),"") -> 51.44 | H53: =IFERROR(ROUNDDOWN(VLOOKUP($B53,'ADP-Rank'!$A$2:$BC$674,44,FALSE),0),"") -> 4 | I53: =VLOOKUP($B53,'ADP-Rank'!$A$2:$AP$674,42,FALSE) -> 22 | J53: =IFERROR(RANK($M53,$M$6:$M$745,0),"") -> 2 | K53: =IFERROR(IF((OR($C53="RP",$C53="SP")),VLOOKUP($B53,'Filtered-P'!$A$1:$AB$700,12,FALSE),(VLOOKUP($B53,Filtered!$A$1:$AB$700,18,FALSE))),"") -> 325.3407419 | L53: =IFERROR(IF((OR($C53="RP",$C53="SP")),VLOOKUP($C53,'Filtered-P'!$U$3:$X$4,4,FALSE), VLOOKUP($C53,Filtered!$U$3:$X$14,4,FALSE)),"") -> 244.1329542 | M53: =IFERROR(($K53-$L53)/IF(OR($C53="SP",$C53="RP"),VLOOKUP($C53,'Filtered-P'!$U$3:$AB$4,8,FALSE),VLOOKUP($C53,Filtered!$U$3:$AB$10,8,FALSE)),"") -> 3.844688661 | N53: =IFERROR(IF((OR($C53="RP",$C53="SP")),"",(VLOOKUP($B53,Filtered!$A$1:$AB$700,18,FALSE)/VLOOKUP($B53,Filtered!$A$1:$AB$700,2,FALSE))),"") -> 0.5403045466 | O53: =IFERROR(IF((OR($C53="RP",$C53="SP")),VLOOKUP($B53,'Filtered-P'!$A$1:$AB$700,12,FALSE)/VLOOKUP($B53,'Filtered-P'!$A$1:$AB$700,4,FALSE),""),"") ->  | P53: =IFERROR(IF((OR($C53="RP",$C53="SP")),VLOOKUP($B53,'Filtered-P'!$A$1:$X$700,2,FALSE),""),"") ->  | Q53: =IFERROR(IF((OR($C53="RP",$C53="SP")),VLOOKUP($B53,'Filtered-P'!$A$1:$X$700,9,FALSE),""),"") ->  | R53: =IFERROR(IF((OR($C53="RP",$C53="SP")),VLOOKUP($B53,'Filtered-P'!$A$1:$X$700,7,FALSE),""),"") ->  | S53: =IFERROR(IF((OR($C53="RP",$C53="SP")),VLOOKUP($B53,'Filtered-P'!$A$1:$AD$700,13,FALSE),""),"") ->  | T53: =IFERROR(IF((OR($C53="RP",$C53="SP")),VLOOKUP($B53,'Filtered-P'!$A$1:$X$700,14,FALSE),""),"") ->  | U53: =IFERROR(IF((OR($C53="RP",$C53="SP")),"",VLOOKUP($B53,Filtered!$A$1:$AJ$700,20,FALSE)),"") -> 0.2787445487 | V53: =IFERROR(IF((OR($C53="RP",$C53="SP")),"",VLOOKUP($B53,Filtered!$A$1:$AJ$700,9,FALSE)),"") -> 9.499709682 | W53: =IFERROR(IF((OR($C53="RP",$C53="SP")),"",VLOOKUP($B53,Filtered!$A$1:$AJ$700,10,FALSE)),"") -> 51.79163826 | X53: =IFERROR(IF((OR($C53="RP",$C53="SP")),"",VLOOKUP($B53,Filtered!$A$1:$AJ$700,4,FALSE)),"") -> 79.32709391 | Y53: =IFERROR(IF((OR($C53="RP",$C53="SP")),"",VLOOKUP($B53,Filtered!$A$1:$AJ$700,11,FALSE)),"") -> 24.94855787 | Z53: =IFERROR(IF(ISTEXT($A53),"",(1-NORMDIST((COUNTA($A$6:$A$745)),($G53),((AE53-AD53)/6),TRUE))),"") -> 1 | AA53: =IFERROR(IF(ISTEXT($A53),"",(1-NORMDIST((COUNTA($A$6:$A$745))+(Personalize!$E$18+1),$G53,((AE53-AD53)/6),TRUE))),"") -> 0.9999999995 | AB53: =IFERROR(IF(ISTEXT($A53),"",(1-NORMDIST((COUNTA($A$6:$A$745))+((Personalize!$E$18+1)*2),$G53,((AE53-AD53)/6),TRUE))),"") -> 0.999999993 | AD53: =CHOOSE(Personalize!$E$38,VLOOKUP($B53,'ADP-Rank'!$A$2:$AJ$620,8,FALSE),VLOOKUP($B53,'ADP-Rank'!$A$2:$AJ$620,11,FALSE),VLOOKUP($B53,'ADP-Rank'!$A$2:$AO$620,14,FALSE),VLOOKUP($B53,'ADP-Rank'!$A$2:$BD$620,17,FALSE),VLOOKUP($B53,'ADP-Rank'!$A$2:$BD$620,20,FALSE),VLOOKUP($B53,'ADP-Rank'!$A$2:$BD$620,23,FALSE),VLOOKUP($B53,'ADP-Rank'!$A$2:$BD$620,26,FALSE),VLOOKUP($B53,'ADP-Rank'!$A$2:$BD$620,29,FALSE),VLOOKUP($B53,'ADP-Rank'!$A$2:$BD$620,46,FALSE)) -> 29 | AE53: =CHOOSE(Personalize!$E$38,VLOOKUP($B53,'ADP-Rank'!$A$2:$AJ$620,9,FALSE),VLOOKUP($B53,'ADP-Rank'!$A$2:$AJ$620,12,FALSE),VLOOKUP($B53,'ADP-Rank'!$A$2:$AO$620,15,FALSE),VLOOKUP($B53,'ADP-Rank'!$A$2:$BD$620,18,FALSE),VLOOKUP($B53,'ADP-Rank'!$A$2:$BD$620,21,FALSE),VLOOKUP($B53,'ADP-Rank'!$A$2:$BD$620,24,FALSE),VLOOKUP($B53,'ADP-Rank'!$A$2:$BD$620,27,FALSE),VLOOKUP($B53,'ADP-Rank'!$A$2:$BD$620,30,FALSE),VLOOKUP($B53,'ADP-Rank'!$A$2:$BD$620,47,FALSE)) -> 76 | AF53: =IF(ISBLANK(A53),0,1) -> 0 | AG53: =IF(K53="",0,1) -> 1 | AH53: =A53 -> 0 | AI53: =IF(C53="C",1,IF(C53="1B",2,IF(C53="2B",3,IF(C53="3B",4,IF(C53="SS",5,IF(C53="CI",6,IF(C53="MI",7,IF(C53="OF",11,IF(C53="LF",8,IF(C53="CF",9,IF(C53="RF",10,IF(C53="DH",12,IF(C53="SP",13,IF(C53="RP",14,IF(C53="P",15,16))))))))))))))) -> 5 | AJ53: =VLOOKUP(B53,'Starter Calc'!$B$2:$BR$700,69,FALSE) -> Bench | AK53: =IFERROR(VLOOKUP($B53,'ADP-Rank'!$A$2:$AZ$620,40,FALSE),TRUE) -> TRUE | AL53: 0
B54: James Shields | C54: SP | D54: =IFERROR(IF(VLOOKUP(B54,'Starter Calc'!$B$2:$E$700,4,FALSE)="","",VLOOKUP(B54,'Starter Calc'!$B$2:$E$700,4,FALSE)),"") -> ,, | E54: =IFERROR(VLOOKUP($B54,'ADP-Rank'!$A$2:$G$620,5,FALSE),"") -> SD | F54: =IFERROR(VLOOKUP($B54,'ADP-Rank'!$A$2:$W$620,6,FALSE),"") -> 33 | G54: =IFERROR(CHOOSE(Personalize!$E$38,VLOOKUP($B54,'ADP-Rank'!$A$2:$CD$620,7,FALSE),VLOOKUP($B54,'ADP-Rank'!$A$2:$CD$620,10,FALSE),VLOOKUP($B54,'ADP-Rank'!$A$2:$CD$620,13,FALSE),VLOOKUP($B54,'ADP-Rank'!$A$2:$CD$620,16,FALSE),VLOOKUP($B54,'ADP-Rank'!$A$2:$CD$620,19,FALSE),VLOOKUP($B54,'ADP-Rank'!$A$2:$CD$620,22,FALSE),VLOOKUP($B54,'ADP-Rank'!$A$2:$CD$620,25,FALSE),VLOOKUP($B54,'ADP-Rank'!$A$2:$CD$620,28,FALSE),VLOOKUP($B54,'ADP-Rank'!$A$2:$CD$620,45,FALSE)),"") -> 54.1 | H54: =IFERROR(ROUNDDOWN(VLOOKUP($B54,'ADP-Rank'!$A$2:$BC$674,44,FALSE),0),"") -> 4 | I54: =VLOOKUP($B54,'ADP-Rank'!$A$2:$AP$674,42,FALSE) -> 61 | J54: =IFERROR(RANK($M54,$M$6:$M$745,0),"") -> 46 | K54: =IFERROR(IF((OR($C54="RP",$C54="SP")),VLOOKUP($B54,'Filtered-P'!$A$1:$AB$700,12,FALSE),(VLOOKUP($B54,Filtered!$A$1:$AB$700,18,FALSE))),"") -> 358.5300997 | L54: =IFERROR(IF((OR($C54="RP",$C54="SP")),VLOOKUP($C54,'Filtered-P'!$U$3:$X$4,4,FALSE), VLOOKUP($C54,Filtered!$U$3:$X$14,4,FALSE)),"") -> 262.4844351 | M54: =IFERROR(($K54-$L54)/IF(OR($C54="SP",$C54="RP"),VLOOKUP($C54,'Filtered-P'!$U$3:$AB$4,8,FALSE),VLOOKUP($C54,Filtered!$U$3:$AB$10,8,FALSE)),"") -> 1.054008297 | N54: =IFERROR(IF((OR($C54="RP",$C54="SP")),"",(VLOOKUP($B54,Filtered!$A$1:$AB$700,18,FALSE)/VLOOKUP($B54,Filtered!$A$1:$AB$700,2,FALSE))),"") ->  | O54: =IFERROR(IF((OR($C54="RP",$C54="SP")),VLOOKUP($B54,'Filtered-P'!$A$1:$AB$700,12,FALSE)/VLOOKUP($B54,'Filtered-P'!$A$1:$AB$700,4,FALSE),""),"") -> 1.723324694 | P54: =IFERROR(IF((OR($C54="RP",$C54="SP")),VLOOKUP($B54,'Filtered-P'!$A$1:$X$700,2,FALSE),""),"") -> 12.19148767 | Q54: =IFERROR(IF((OR($C54="RP",$C54="SP")),VLOOKUP($B54,'Filtered-P'!$A$1:$X$700,9,FALSE),""),"") -> 0 | R54: =IFERROR(IF((OR($C54="RP",$C54="SP")),VLOOKUP($B54,'Filtered-P'!$A$1:$X$700,7,FALSE),""),"") -> 178.985255 | S54: =IFERROR(IF((OR($C54="RP",$C54="SP")),VLOOKUP($B54,'Filtered-P'!$A$1:$AD$700,13,FALSE),""),"") -> 3.209029378 | T54: =IFERROR(IF((OR($C54="RP",$C54="SP")),VLOOKUP($B54,'Filtered-P'!$A$1:$X$700,14,FALSE),""),"") -> 1.163366749 | U54: =IFERROR(IF((OR($C54="RP",$C54="SP")),"",VLOOKUP($B54,Filtered!$A$1:$AJ$700,20,FALSE)),"") ->  | V54: =IFERROR(IF((OR($C54="RP",$C54="SP")),"",VLOOKUP($B54,Filtered!$A$1:$AJ$700,9,FALSE)),"") ->  | W54: =IFERROR(IF((OR($C54="RP",$C54="SP")),"",VLOOKUP($B54,Filtered!$A$1:$AJ$700,10,FALSE)),"") ->  | X54: =IFERROR(IF((OR($C54="RP",$C54="SP")),"",VLOOKUP($B54,Filtered!$A$1:$AJ$700,4,FALSE)),"") ->  | Y54: =IFERROR(IF((OR($C54="RP",$C54="SP")),"",VLOOKUP($B54,Filtered!$A$1:$AJ$700,11,FALSE)),"") ->  | Z54: =IFERROR(IF(ISTEXT($A54),"",(1-NORMDIST((COUNTA($A$6:$A$745)),($G54),((AE54-AD54)/6),TRUE))),"") -> 0.9999987266 | AA54: =IFERROR(IF(ISTEXT($A54),"",(1-NORMDIST((COUNTA($A$6:$A$745))+(Personalize!$E$18+1),$G54,((AE54-AD54)/6),TRUE))),"") -> 0.9999945875 | AB54: =IFERROR(IF(ISTEXT($A54),"",(1-NORMDIST((COUNTA($A$6:$A$745))+((Personalize!$E$18+1)*2),$G54,((AE54-AD54)/6),TRUE))),"") -> 0.9999789509 | AD54: =CHOOSE(Personalize!$E$38,VLOOKUP($B54,'ADP-Rank'!$A$2:$AJ$620,8,FALSE),VLOOKUP($B54,'ADP-Rank'!$A$2:$AJ$620,11,FALSE),VLOOKUP($B54,'ADP-Rank'!$A$2:$AO$620,14,FALSE),VLOOKUP($B54,'ADP-Rank'!$A$2:$BD$620,17,FALSE),VLOOKUP($B54,'ADP-Rank'!$A$2:$BD$620,20,FALSE),VLOOKUP($B54,'ADP-Rank'!$A$2:$BD$620,23,FALSE),VLOOKUP($B54,'ADP-Rank'!$A$2:$BD$620,26,FALSE),VLOOKUP($B54,'ADP-Rank'!$A$2:$BD$620,29,FALSE),VLOOKUP($B54,'ADP-Rank'!$A$2:$BD$620,46,FALSE)) -> 30 | AE54: =CHOOSE(Personalize!$E$38,VLOOKUP($B54,'ADP-Rank'!$A$2:$AJ$620,9,FALSE),VLOOKUP($B54,'ADP-Rank'!$A$2:$AJ$620,12,FALSE),VLOOKUP($B54,'ADP-Rank'!$A$2:$AO$620,15,FALSE),VLOOKUP($B54,'ADP-Rank'!$A$2:$BD$620,18,FALSE),VLOOKUP($B54,'ADP-Rank'!$A$2:$BD$620,21,FALSE),VLOOKUP($B54,'ADP-Rank'!$A$2:$BD$620,24,FALSE),VLOOKUP($B54,'ADP-Rank'!$A$2:$BD$620,27,FALSE),VLOOKUP($B54,'ADP-Rank'!$A$2:$BD$620,30,FALSE),VLOOKUP($B54,'ADP-Rank'!$A$2:$BD$620,47,FALSE)) -> 99 | AF54: =IF(ISBLANK(A54),0,1) -> 0 | AG54: =IF(K54="",0,1) -> 1 | AH54: =A54 -> 0 | AI54: =IF(C54="C",1,IF(C54="1B",2,IF(C54="2B",3,IF(C54="3B",4,IF(C54="SS",5,IF(C54="CI",6,IF(C54="MI",7,IF(C54="OF",11,IF(C54="LF",8,IF(C54="CF",9,IF(C54="RF",10,IF(C54="DH",12,IF(C54="SP",13,IF(C54="RP",14,IF(C54="P",15,16))))))))))))))) -> 13 | AJ54: =VLOOKUP(B54,'Starter Calc'!$B$2:$BR$700,69,FALSE) -> Starter | AK54: =IFERROR(VLOOKUP($B54,'ADP-Rank'!$A$2:$AZ$620,40,FALSE),TRUE) -> TRUE | AL54: 1
B55: Nolan Arenado | C55: 3B | D55: =IFERROR(IF(VLOOKUP(B55,'Starter Calc'!$B$2:$E$700,4,FALSE)="","",VLOOKUP(B55,'Starter Calc'!$B$2:$E$700,4,FALSE)),"") -> ,, | E55: =IFERROR(VLOOKUP($B55,'ADP-Rank'!$A$2:$G$620,5,FALSE),"") -> COL | F55: =IFERROR(VLOOKUP($B55,'ADP-Rank'!$A$2:$W$620,6,FALSE),"") -> 23 | G55: =IFERROR(CHOOSE(Personalize!$E$38,VLOOKUP($B55,'ADP-Rank'!$A$2:$CD$620,7,FALSE),VLOOKUP($B55,'ADP-Rank'!$A$2:$CD$620,10,FALSE),VLOOKUP($B55,'ADP-Rank'!$A$2:$CD$620,13,FALSE),VLOOKUP($B55,'ADP-Rank'!$A$2:$CD$620,16,FALSE),VLOOKUP($B55,'ADP-Rank'!$A$2:$CD$620,19,FALSE),VLOOKUP($B55,'ADP-Rank'!$A$2:$CD$620,22,FALSE),VLOOKUP($B55,'ADP-Rank'!$A$2:$CD$620,25,FALSE),VLOOKUP($B55,'ADP-Rank'!$A$2:$CD$620,28,FALSE),VLOOKUP($B55,'ADP-Rank'!$A$2:$CD$620,45,FALSE)),"") -> 54.52 | H55: =IFERROR(ROUNDDOWN(VLOOKUP($B55,'ADP-Rank'!$A$2:$BC$674,44,FALSE),0),"") -> 4 | I55: =VLOOKUP($B55,'ADP-Rank'!$A$2:$AP$674,42,FALSE) -> 66 | J55: =IFERROR(RANK($M55,$M$6:$M$745,0),"") -> 114 | K55: =IFERROR(IF((OR($C55="RP",$C55="SP")),VLOOKUP($B55,'Filtered-P'!$A$1:$AB$700,12,FALSE),(VLOOKUP($B55,Filtered!$A$1:$AB$700,18,FALSE))),"") -> 313.9193344 | L55: =IFERROR(IF((OR($C55="RP",$C55="SP")),VLOOKUP($C55,'Filtered-P'!$U$3:$X$4,4,FALSE), VLOOKUP($C55,Filtered!$U$3:$X$14,4,FALSE)),"") -> 297.570217 | M55: =IFERROR(($K55-$L55)/IF(OR($C55="SP",$C55="RP"),VLOOKUP($C55,'Filtered-P'!$U$3:$AB$4,8,FALSE),VLOOKUP($C55,Filtered!$U$3:$AB$10,8,FALSE)),"") -> 0.3719739274 | N55: =IFERROR(IF((OR($C55="RP",$C55="SP")),"",(VLOOKUP($B55,Filtered!$A$1:$AB$700,18,FALSE)/VLOOKUP($B55,Filtered!$A$1:$AB$700,2,FALSE))),"") -> 0.548683098 | O55: =IFERROR(IF((OR($C55="RP",$C55="SP")),VLOOKUP($B55,'Filtered-P'!$A$1:$AB$700,12,FALSE)/VLOOKUP($B55,'Filtered-P'!$A$1:$AB$700,4,FALSE),""),"") ->  | P55: =IFERROR(IF((OR($C55="RP",$C55="SP")),VLOOKUP($B55,'Filtered-P'!$A$1:$X$700,2,FALSE),""),"") ->  | Q55: =IFERROR(IF((OR($C55="RP",$C55="SP")),VLOOKUP($B55,'Filtered-P'!$A$1:$X$700,9,FALSE),""),"") ->  | R55: =IFERROR(IF((OR($C55="RP",$C55="SP")),VLOOKUP($B55,'Filtered-P'!$A$1:$X$700,7,FALSE),""),"") ->  | S55: =IFERROR(IF((OR($C55="RP",$C55="SP")),VLOOKUP($B55,'Filtered-P'!$A$1:$AD$700,13,FALSE),""),"") ->  | T55: =IFERROR(IF((OR($C55="RP",$C55="SP")),VLOOKUP($B55,'Filtered-P'!$A$1:$X$700,14,FALSE),""),"") ->  | U55: =IFERROR(IF((OR($C55="RP",$C55="SP")),"",VLOOKUP($B55,Filtered!$A$1:$AJ$700,20,FALSE)),"") -> 0.2811234687 | V55: =IFERROR(IF((OR($C55="RP",$C55="SP")),"",VLOOKUP($B55,Filtered!$A$1:$AJ$700,9,FALSE)),"") -> 19.02548033 | W55: =IFERROR(IF((OR($C55="RP",$C55="SP")),"",VLOOKUP($B55,Filtered!$A$1:$AJ$700,10,FALSE)),"") -> 71.7566725 | X55: =IFERROR(IF((OR($C55="RP",$C55="SP")),"",VLOOKUP($B55,Filtered!$A$1:$AJ$700,4,FALSE)),"") -> 65.95064112 | Y55: =IFERROR(IF((OR($C55="RP",$C55="SP")),"",VLOOKUP($B55,Filtered!$A$1:$AJ$700,11,FALSE)),"") -> 3.073637697 | Z55: =IFERROR(IF(ISTEXT($A55),"",(1-NORMDIST((COUNTA($A$6:$A$745)),($G55),((AE55-AD55)/6),TRUE))),"") -> 1 | AA55: =IFERROR(IF(ISTEXT($A55),"",(1-NORMDIST((COUNTA($A$6:$A$745))+(Personalize!$E$18+1),$G55,((AE55-AD55)/6),TRUE))),"") -> 1 | AB55: =IFERROR(IF(ISTEXT($A55),"",(1-NORMDIST((COUNTA($A$6:$A$745))+((Personalize!$E$18+1)*2),$G55,((AE55-AD55)/6),TRUE))),"") -> 1 | AD55: =CHOOSE(Personalize!$E$38,VLOOKUP($B55,'ADP-Rank'!$A$2:$AJ$620,8,FALSE),VLOOKUP($B55,'ADP-Rank'!$A$2:$AJ$620,11,FALSE),VLOOKUP($B55,'ADP-Rank'!$A$2:$AO$620,14,FALSE),VLOOKUP($B55,'ADP-Rank'!$A$2:$BD$620,17,FALSE),VLOOKUP($B55,'ADP-Rank'!$A$2:$BD$620,20,FALSE),VLOOKUP($B55,'ADP-Rank'!$A$2:$BD$620,23,FALSE),VLOOKUP($B55,'ADP-Rank'!$A$2:$BD$620,26,FALSE),VLOOKUP($B55,'ADP-Rank'!$A$2:$BD$620,29,FALSE),VLOOKUP($B55,'ADP-Rank'!$A$2:$BD$620,46,FALSE)) -> 32 | AE55: =CHOOSE(Personalize!$E$38,VLOOKUP($B55,'ADP-Rank'!$A$2:$AJ$620,9,FALSE),VLOOKUP($B55,'ADP-Rank'!$A$2:$AJ$620,12,FALSE),VLOOKUP($B55,'ADP-Rank'!$A$2:$AO$620,15,FALSE),VLOOKUP($B55,'ADP-Rank'!$A$2:$BD$620,18,FALSE),VLOOKUP($B55,'ADP-Rank'!$A$2:$BD$620,21,FALSE),VLOOKUP($B55,'ADP-Rank'!$A$2:$BD$620,24,FALSE),VLOOKUP($B55,'ADP-Rank'!$A$2:$BD$620,27,FALSE),VLOOKUP($B55,'ADP-Rank'!$A$2:$BD$620,30,FALSE),VLOOKUP($B55,'ADP-Rank'!$A$2:$BD$620,47,FALSE)) -> 76 | AF55: =IF(ISBLANK(A55),0,1) -> 0 | AG55: =IF(K55="",0,1) -> 1 | AH55: =A55 -> 0 | AI55: =IF(C55="C",1,IF(C55="1B",2,IF(C55="2B",3,IF(C55="3B",4,IF(C55="SS",5,IF(C55="CI",6,IF(C55="MI",7,IF(C55="OF",11,IF(C55="LF",8,IF(C55="CF",9,IF(C55="RF",10,IF(C55="DH",12,IF(C55="SP",13,IF(C55="RP",14,IF(C55="P",15,16))))))))))))))) -> 4 | AJ55: =VLOOKUP(B55,'Starter Calc'!$B$2:$BR$700,69,FALSE) -> Starter | AK55: =IFERROR(VLOOKUP($B55,'ADP-Rank'!$A$2:$AZ$620,40,FALSE),TRUE) -> TRUE | AL55: 0
B56: Adrian Beltre | C56: 3B | D56: =IFERROR(IF(VLOOKUP(B56,'Starter Calc'!$B$2:$E$700,4,FALSE)="","",VLOOKUP(B56,'Starter Calc'!$B$2:$E$700,4,FALSE)),"") -> LF,, | E56: =IFERROR(VLOOKUP($B56,'ADP-Rank'!$A$2:$G$620,5,FALSE),"") -> TEX | F56: =IFERROR(VLOOKUP($B56,'ADP-Rank'!$A$2:$W$620,6,FALSE),"") -> 36 | G56: =IFERROR(CHOOSE(Personalize!$E$38,VLOOKUP($B56,'ADP-Rank'!$A$2:$CD$620,7,FALSE),VLOOKUP($B56,'ADP-Rank'!$A$2:$CD$620,10,FALSE),VLOOKUP($B56,'ADP-Rank'!$A$2:$CD$620,13,FALSE),VLOOKUP($B56,'ADP-Rank'!$A$2:$CD$620,16,FALSE),VLOOKUP($B56,'ADP-Rank'!$A$2:$CD$620,19,FALSE),VLOOKUP($B56,'ADP-Rank'!$A$2:$CD$620,22,FALSE),VLOOKUP($B56,'ADP-Rank'!$A$2:$CD$620,25,FALSE),VLOOKUP($B56,'ADP-Rank'!$A$2:$CD$620,28,FALSE),VLOOKUP($B56,'ADP-Rank'!$A$2:$CD$620,45,FALSE)),"") -> 56.26 | H56: =IFERROR(ROUNDDOWN(VLOOKUP($B56,'ADP-Rank'!$A$2:$BC$674,44,FALSE),0),"") -> 4 | I56: =VLOOKUP($B56,'ADP-Rank'!$A$2:$AP$674,42,FALSE) -> 39 | J56: =IFERROR(RANK($M56,$M$6:$M$745,0),"") -> 33 | K56: =IFERROR(IF((OR($C56="RP",$C56="SP")),VLOOKUP($B56,'Filtered-P'!$A$1:$AB$700,12,FALSE),(VLOOKUP($B56,Filtered!$A$1:$AB$700,18,FALSE))),"") -> 356.6323516 | L56: =IFERROR(IF((OR($C56="RP",$C56="SP")),VLOOKUP($C56,'Filtered-P'!$U$3:$X$4,4,FALSE), VLOOKUP($C56,Filtered!$U$3:$X$14,4,FALSE)),"") -> 297.570217 | M56: =IFERROR(($K56-$L56)/IF(OR($C56="SP",$C56="RP"),VLOOKUP($C56,'Filtered-P'!$U$3:$AB$4,8,FALSE),VLOOKUP($C56,Filtered!$U$3:$AB$10,8,FALSE)),"") -> 1.343777383 | N56: =IFERROR(IF((OR($C56="RP",$C56="SP")),"",(VLOOKUP($B56,Filtered!$A$1:$AB$700,18,FALSE)/VLOOKUP($B56,Filtered!$A$1:$AB$700,2,FALSE))),"") -> 0.5973322814 | O56: =IFERROR(IF((OR($C56="RP",$C56="SP")),VLOOKUP($B56,'Filtered-P'!$A$1:$AB$700,12,FALSE)/VLOOKUP($B56,'Filtered-P'!$A$1:$AB$700,4,FALSE),""),"") ->  | P56: =IFERROR(IF((OR($C56="RP",$C56="SP")),VLOOKUP($B56,'Filtered-P'!$A$1:$X$700,2,FALSE),""),"") ->  | Q56: =IFERROR(IF((OR($C56="RP",$C56="SP")),VLOOKUP($B56,'Filtered-P'!$A$1:$X$700,9,FALSE),""),"") ->  | R56: =IFERROR(IF((OR($C56="RP",$C56="SP")),VLOOKUP($B56,'Filtered-P'!$A$1:$X$700,7,FALSE),""),"") ->  | S56: =IFERROR(IF((OR($C56="RP",$C56="SP")),VLOOKUP($B56,'Filtered-P'!$A$1:$AD$700,13,FALSE),""),"") ->  | T56: =IFERROR(IF((OR($C56="RP",$C56="SP")),VLOOKUP($B56,'Filtered-P'!$A$1:$X$700,14,FALSE),""),"") ->  | U56: =IFERROR(IF((OR($C56="RP",$C56="SP")),"",VLOOKUP($B56,Filtered!$A$1:$AJ$700,20,FALSE)),"") -> 0.2885305784 | V56: =IFERROR(IF((OR($C56="RP",$C56="SP")),"",VLOOKUP($B56,Filtered!$A$1:$AJ$700,9,FALSE)),"") -> 21.16546744 | W56: =IFERROR(IF((OR($C56="RP",$C56="SP")),"",VLOOKUP($B56,Filtered!$A$1:$AJ$700,10,FALSE)),"") -> 82.8762881 | X56: =IFERROR(IF((OR($C56="RP",$C56="SP")),"",VLOOKUP($B56,Filtered!$A$1:$AJ$700,4,FALSE)),"") -> 73.58903765 | Y56: =IFERROR(IF((OR($C56="RP",$C56="SP")),"",VLOOKUP($B56,Filtered!$A$1:$AJ$700,11,FALSE)),"") -> 1.296757309 | Z56: =IFERROR(IF(ISTEXT($A56),"",(1-NORMDIST((COUNTA($A$6:$A$745)),($G56),((AE56-AD56)/6),TRUE))),"") -> 0.9999999843 | AA56: =IFERROR(IF(ISTEXT($A56),"",(1-NORMDIST((COUNTA($A$6:$A$745))+(Personalize!$E$18+1),$G56,((AE56-AD56)/6),TRUE))),"") -> 0.9999998946 | AB56: =IFERROR(IF(ISTEXT($A56),"",(1-NORMDIST((COUNTA($A$6:$A$745))+((Personalize!$E$18+1)*2),$G56,((AE56-AD56)/6),TRUE))),"") -> 0.9999993677 | AD56: =CHOOSE(Personalize!$E$38,VLOOKUP($B56,'ADP-Rank'!$A$2:$AJ$620,8,FALSE),VLOOKUP($B56,'ADP-Rank'!$A$2:$AJ$620,11,FALSE),VLOOKUP($B56,'ADP-Rank'!$A$2:$AO$620,14,FALSE),VLOOKUP($B56,'ADP-Rank'!$A$2:$BD$620,17,FALSE),VLOOKUP($B56,'ADP-Rank'!$A$2:$BD$620,20,FALSE),VLOOKUP($B56,'ADP-Rank'!$A$2:$BD$620,23,FALSE),VLOOKUP($B56,'ADP-Rank'!$A$2:$BD$620,26,FALSE),VLOOKUP($B56,'ADP-Rank'!$A$2:$BD$620,29,FALSE),VLOOKUP($B56,'ADP-Rank'!$A$2:$BD$620,46,FALSE)) -> 34 | AE56: =CHOOSE(Personalize!$E$38,VLOOKUP($B56,'ADP-Rank'!$A$2:$AJ$620,9,FALSE),VLOOKUP($B56,'ADP-Rank'!$A$2:$AJ$620,12,FALSE),VLOOKUP($B56,'ADP-Rank'!$A$2:$AO$620,15,FALSE),VLOOKUP($B56,'ADP-Rank'!$A$2:$BD$620,18,FALSE),VLOOKUP($B56,'ADP-Rank'!$A$2:$BD$620,21,FALSE),VLOOKUP($B56,'ADP-Rank'!$A$2:$BD$620,24,FALSE),VLOOKUP($B56,'ADP-Rank'!$A$2:$BD$620,27,FALSE),VLOOKUP($B56,'ADP-Rank'!$A$2:$BD$620,30,FALSE),VLOOKUP($B56,'ADP-Rank'!$A$2:$BD$620,47,FALSE)) -> 95 | AF56: =IF(ISBLANK(A56),0,1) -> 0 | AG56: =IF(K56="",0,1) -> 1 | AH56: =A56 -> 0 | AI56: =IF(C56="C",1,IF(C56="1B",2,IF(C56="2B",3,IF(C56="3B",4,IF(C56="SS",5,IF(C56="CI",6,IF(C56="MI",7,IF(C56="OF",11,IF(C56="LF",8,IF(C56="CF",9,IF(C56="RF",10,IF(C56="DH",12,IF(C56="SP",13,IF(C56="RP",14,IF(C56="P",15,16))))))))))))))) -> 4 | AJ56: =VLOOKUP(B56,'Starter Calc'!$B$2:$BR$700,69,FALSE) -> Bench | AK56: =IFERROR(VLOOKUP($B56,'ADP-Rank'!$A$2:$AZ$620,40,FALSE),TRUE) -> TRUE | AL56: 0
B57: Bryce Harper | C57: OF | D57: =IFERROR(IF(VLOOKUP(B57,'Starter Calc'!$B$2:$E$700,4,FALSE)="","",VLOOKUP(B57,'Starter Calc'!$B$2:$E$700,4,FALSE)),"") -> ,,CF | E57: =IFERROR(VLOOKUP($B57,'ADP-Rank'!$A$2:$G$620,5,FALSE),"") -> WSH | F57: =IFERROR(VLOOKUP($B57,'ADP-Rank'!$A$2:$W$620,6,FALSE),"") -> 22 | G57: =IFERROR(CHOOSE(Personalize!$E$38,VLOOKUP($B57,'ADP-Rank'!$A$2:$CD$620,7,FALSE),VLOOKUP($B57,'ADP-Rank'!$A$2:$CD$620,10,FALSE),VLOOKUP($B57,'ADP-Rank'!$A$2:$CD$620,13,FALSE),VLOOKUP($B57,'ADP-Rank'!$A$2:$CD$620,16,FALSE),VLOOKUP($B57,'ADP-Rank'!$A$2:$CD$620,19,FALSE),VLOOKUP($B57,'ADP-Rank'!$A$2:$CD$620,22,FALSE),VLOOKUP($B57,'ADP-Rank'!$A$2:$CD$620,25,FALSE),VLOOKUP($B57,'ADP-Rank'!$A$2:$CD$620,28,FALSE),VLOOKUP($B57,'ADP-Rank'!$A$2:$CD$620,45,FALSE)),"") -> 56.7 | H57: =IFERROR(ROUNDDOWN(VLOOKUP($B57,'ADP-Rank'!$A$2:$BC$674,44,FALSE),0),"") -> 5 | I57: =VLOOKUP($B57,'ADP-Rank'!$A$2:$AP$674,42,FALSE) -> 70 | J57: =IFERROR(RANK($M57,$M$6:$M$745,0),"") -> 109 | K57: =IFERROR(IF((OR($C57="RP",$C57="SP")),VLOOKUP($B57,'Filtered-P'!$A$1:$AB$700,12,FALSE),(VLOOKUP($B57,Filtered!$A$1:$AB$700,18,FALSE))),"") -> 312.8440083 | L57: =IFERROR(IF((OR($C57="RP",$C57="SP")),VLOOKUP($C57,'Filtered-P'!$U$3:$X$4,4,FALSE), VLOOKUP($C57,Filtered!$U$3:$X$14,4,FALSE)),"") -> 287.0213782 | M57: =IFERROR(($K57-$L57)/IF(OR($C57="SP",$C57="RP"),VLOOKUP($C57,'Filtered-P'!$U$3:$AB$4,8,FALSE),VLOOKUP($C57,Filtered!$U$3:$AB$10,8,FALSE)),"") -> 0.42517103 | N57: =IFERROR(IF((OR($C57="RP",$C57="SP")),"",(VLOOKUP($B57,Filtered!$A$1:$AB$700,18,FALSE)/VLOOKUP($B57,Filtered!$A$1:$AB$700,2,FALSE))),"") -> 0.5681871557 | O57: =IFERROR(IF((OR($C57="RP",$C57="SP")),VLOOKUP($B57,'Filtered-P'!$A$1:$AB$700,12,FALSE)/VLOOKUP($B57,'Filtered-P'!$A$1:$AB$700,4,FALSE),""),"") ->  | P57: =IFERROR(IF((OR($C57="RP",$C57="SP")),VLOOKUP($B57,'Filtered-P'!$A$1:$X$700,2,FALSE),""),"") ->  | Q57: =IFERROR(IF((OR($C57="RP",$C57="SP")),VLOOKUP($B57,'Filtered-P'!$A$1:$X$700,9,FALSE),""),"") ->  | R57: =IFERROR(IF((OR($C57="RP",$C57="SP")),VLOOKUP($B57,'Filtered-P'!$A$1:$X$700,7,FALSE),""),"") ->  | S57: =IFERROR(IF((OR($C57="RP",$C57="SP")),VLOOKUP($B57,'Filtered-P'!$A$1:$AD$700,13,FALSE),""),"") ->  | T57: =IFERROR(IF((OR($C57="RP",$C57="SP")),VLOOKUP($B57,'Filtered-P'!$A$1:$X$700,14,FALSE),""),"") ->  | U57: =IFERROR(IF((OR($C57="RP",$C57="SP")),"",VLOOKUP($B57,Filtered!$A$1:$AJ$700,20,FALSE)),"") -> 0.2750309984 | V57: =IFERROR(IF((OR($C57="RP",$C57="SP")),"",VLOOKUP($B57,Filtered!$A$1:$AJ$700,9,FALSE)),"") -> 23.74055402 | W57: =IFERROR(IF((OR($C57="RP",$C57="SP")),"",VLOOKUP($B57,Filtered!$A$1:$AJ$700,10,FALSE)),"") -> 67.98878855 | X57: =IFERROR(IF((OR($C57="RP",$C57="SP")),"",VLOOKUP($B57,Filtered!$A$1:$AJ$700,4,FALSE)),"") -> 72.88379414 | Y57: =IFERROR(IF((OR($C57="RP",$C57="SP")),"",VLOOKUP($B57,Filtered!$A$1:$AJ$700,11,FALSE)),"") -> 9.696897033 | Z57: =IFERROR(IF(ISTEXT($A57),"",(1-NORMDIST((COUNTA($A$6:$A$745)),($G57),((AE57-AD57)/6),TRUE))),"") -> 0.9999999796 | AA57: =IFERROR(IF(ISTEXT($A57),"",(1-NORMDIST((COUNTA($A$6:$A$745))+(Personalize!$E$18+1),$G57,((AE57-AD57)/6),TRUE))),"") -> 0.9999998686 | AB57: =IFERROR(IF(ISTEXT($A57),"",(1-NORMDIST((COUNTA($A$6:$A$745))+((Personalize!$E$18+1)*2),$G57,((AE57-AD57)/6),TRUE))),"") -> 0.9999992441 | AD57: =CHOOSE(Personalize!$E$38,VLOOKUP($B57,'ADP-Rank'!$A$2:$AJ$620,8,FALSE),VLOOKUP($B57,'ADP-Rank'!$A$2:$AJ$620,11,FALSE),VLOOKUP($B57,'ADP-Rank'!$A$2:$AO$620,14,FALSE),VLOOKUP($B57,'ADP-Rank'!$A$2:$BD$620,17,FALSE),VLOOKUP($B57,'ADP-Rank'!$A$2:$BD$620,20,FALSE),VLOOKUP($B57,'ADP-Rank'!$A$2:$BD$620,23,FALSE),VLOOKUP($B57,'ADP-Rank'!$A$2:$BD$620,26,FALSE),VLOOKUP($B57,'ADP-Rank'!$A$2:$BD$620,29,FALSE),VLOOKUP($B57,'ADP-Rank'!$A$2:$BD$620,46,FALSE)) -> 31 | AE57: =CHOOSE(Personalize!$E$38,VLOOKUP($B57,'ADP-Rank'!$A$2:$AJ$620,9,FALSE),VLOOKUP($B57,'ADP-Rank'!$A$2:$AJ$620,12,FALSE),VLOOKUP($B57,'ADP-Rank'!$A$2:$AO$620,15,FALSE),VLOOKUP($B57,'ADP-Rank'!$A$2:$BD$620,18,FALSE),VLOOKUP($B57,'ADP-Rank'!$A$2:$BD$620,21,FALSE),VLOOKUP($B57,'ADP-Rank'!$A$2:$BD$620,24,FALSE),VLOOKUP($B57,'ADP-Rank'!$A$2:$BD$620,27,FALSE),VLOOKUP($B57,'ADP-Rank'!$A$2:$BD$620,30,FALSE),VLOOKUP($B57,'ADP-Rank'!$A$2:$BD$620,47,FALSE)) -> 93 | AF57: =IF(ISBLANK(A57),0,1) -> 0 | AG57: =IF(K57="",0,1) -> 1 | AH57: =A57 -> 0 | AI57: =IF(C57="C",1,IF(C57="1B",2,IF(C57="2B",3,IF(C57="3B",4,IF(C57="SS",5,IF(C57="CI",6,IF(C57="MI",7,IF(C57="OF",11,IF(C57="LF",8,IF(C57="CF",9,IF(C57="RF",10,IF(C57="DH",12,IF(C57="SP",13,IF(C57="RP",14,IF(C57="P",15,16))))))))))))))) -> 11 | AJ57: =VLOOKUP(B57,'Starter Calc'!$B$2:$BR$700,69,FALSE) -> Bench | AK57: =IFERROR(VLOOKUP($B57,'ADP-Rank'!$A$2:$AZ$620,40,FALSE),TRUE) -> TRUE | AL57: 0
B58: Hisashi Iwakuma | C58: SP | D58: =IFERROR(IF(VLOOKUP(B58,'Starter Calc'!$B$2:$E$700,4,FALSE)="","",VLOOKUP(B58,'Starter Calc'!$B$2:$E$700,4,FALSE)),"") -> ,, | E58: =IFERROR(VLOOKUP($B58,'ADP-Rank'!$A$2:$G$620,5,FALSE),"") -> SEA | F58: =IFERROR(VLOOKUP($B58,'ADP-Rank'!$A$2:$W$620,6,FALSE),"") -> 33 | G58: =IFERROR(CHOOSE(Personalize!$E$38,VLOOKUP($B58,'ADP-Rank'!$A$2:$CD$620,7,FALSE),VLOOKUP($B58,'ADP-Rank'!$A$2:$CD$620,10,FALSE),VLOOKUP($B58,'ADP-Rank'!$A$2:$CD$620,13,FALSE),VLOOKUP($B58,'ADP-Rank'!$A$2:$CD$620,16,FALSE),VLOOKUP($B58,'ADP-Rank'!$A$2:$CD$620,19,FALSE),VLOOKUP($B58,'ADP-Rank'!$A$2:$CD$620,22,FALSE),VLOOKUP($B58,'ADP-Rank'!$A$2:$CD$620,25,FALSE),VLOOKUP($B58,'ADP-Rank'!$A$2:$CD$620,28,FALSE),VLOOKUP($B58,'ADP-Rank'!$A$2:$CD$620,45,FALSE)),"") -> 57.15 | H58: =IFERROR(ROUNDDOWN(VLOOKUP($B58,'ADP-Rank'!$A$2:$BC$674,44,FALSE),0),"") -> 5 | I58: =VLOOKUP($B58,'ADP-Rank'!$A$2:$AP$674,42,FALSE) -> 179 | J58: =IFERROR(RANK($M58,$M$6:$M$745,0),"") -> 83 | K58: =IFERROR(IF((OR($C58="RP",$C58="SP")),VLOOKUP($B58,'Filtered-P'!$A$1:$AB$700,12,FALSE),(VLOOKUP($B58,Filtered!$A$1:$AB$700,18,FALSE))),"") -> 320.8000874 | L58: =IFERROR(IF((OR($C58="RP",$C58="SP")),VLOOKUP($C58,'Filtered-P'!$U$3:$X$4,4,FALSE), VLOOKUP($C58,Filtered!$U$3:$X$14,4,FALSE)),"") -> 262.4844351 | M58: =IFERROR(($K58-$L58)/IF(OR($C58="SP",$C58="RP"),VLOOKUP($C58,'Filtered-P'!$U$3:$AB$4,8,FALSE),VLOOKUP($C58,Filtered!$U$3:$AB$10,8,FALSE)),"") -> 0.639957895 | N58: =IFERROR(IF((OR($C58="RP",$C58="SP")),"",(VLOOKUP($B58,Filtered!$A$1:$AB$700,18,FALSE)/VLOOKUP($B58,Filtered!$A$1:$AB$700,2,FALSE))),"") ->  | O58: =IFERROR(IF((OR($C58="RP",$C58="SP")),VLOOKUP($B58,'Filtered-P'!$A$1:$AB$700,12,FALSE)/VLOOKUP($B58,'Filtered-P'!$A$1:$AB$700,4,FALSE),""),"") -> 1.737900218 | P58: =IFERROR(IF((OR($C58="RP",$C58="SP")),VLOOKUP($B58,'Filtered-P'!$A$1:$X$700,2,FALSE),""),"") -> 12.59432064 | Q58: =IFERROR(IF((OR($C58="RP",$C58="SP")),VLOOKUP($B58,'Filtered-P'!$A$1:$X$700,9,FALSE),""),"") -> 0 | R58: =IFERROR(IF((OR($C58="RP",$C58="SP")),VLOOKUP($B58,'Filtered-P'!$A$1:$X$700,7,FALSE),""),"") -> 152.5832488 | S58: =IFERROR(IF((OR($C58="RP",$C58="SP")),VLOOKUP($B58,'Filtered-P'!$A$1:$AD$700,13,FALSE),""),"") -> 3.169957822 | T58: =IFERROR(IF((OR($C58="RP",$C58="SP")),VLOOKUP($B58,'Filtered-P'!$A$1:$X$700,14,FALSE),""),"") -> 1.122699074 | U58: =IFERROR(IF((OR($C58="RP",$C58="SP")),"",VLOOKUP($B58,Filtered!$A$1:$AJ$700,20,FALSE)),"") ->  | V58: =IFERROR(IF((OR($C58="RP",$C58="SP")),"",VLOOKUP($B58,Filtered!$A$1:$AJ$700,9,FALSE)),"") ->  | W58: =IFERROR(IF((OR($C58="RP",$C58="SP")),"",VLOOKUP($B58,Filtered!$A$1:$AJ$700,10,FALSE)),"") ->  | X58: =IFERROR(IF((OR($C58="RP",$C58="SP")),"",VLOOKUP($B58,Filtered!$A$1:$AJ$700,4,FALSE)),"") ->  | Y58: =IFERROR(IF((OR($C58="RP",$C58="SP")),"",VLOOKUP($B58,Filtered!$A$1:$AJ$700,11,FALSE)),"") ->  | Z58: =IFERROR(IF(ISTEXT($A58),"",(1-NORMDIST((COUNTA($A$6:$A$745)),($G58),((AE58-AD58)/6),TRUE))),"") -> 0.9999999579 | AA58: =IFERROR(IF(ISTEXT($A58),"",(1-NORMDIST((COUNTA($A$6:$A$745))+(Personalize!$E$18+1),$G58,((AE58-AD58)/6),TRUE))),"") -> 0.9999997544 | AB58: =IFERROR(IF(ISTEXT($A58),"",(1-NORMDIST((COUNTA($A$6:$A$745))+((Personalize!$E$18+1)*2),$G58,((AE58-AD58)/6),TRUE))),"") -> 0.9999987091 | AD58: =CHOOSE(Personalize!$E$38,VLOOKUP($B58,'ADP-Rank'!$A$2:$AJ$620,8,FALSE),VLOOKUP($B58,'ADP-Rank'!$A$2:$AJ$620,11,FALSE),VLOOKUP($B58,'ADP-Rank'!$A$2:$AO$620,14,FALSE),VLOOKUP($B58,'ADP-Rank'!$A$2:$BD$620,17,FALSE),VLOOKUP($B58,'ADP-Rank'!$A$2:$BD$620,20,FALSE),VLOOKUP($B58,'ADP-Rank'!$A$2:$BD$620,23,FALSE),VLOOKUP($B58,'ADP-Rank'!$A$2:$BD$620,26,FALSE),VLOOKUP($B58,'ADP-Rank'!$A$2:$BD$620,29,FALSE),VLOOKUP($B58,'ADP-Rank'!$A$2:$BD$620,46,FALSE)) -> 31 | AE58: =CHOOSE(Personalize!$E$38,VLOOKUP($B58,'ADP-Rank'!$A$2:$AJ$620,9,FALSE),VLOOKUP($B58,'ADP-Rank'!$A$2:$AJ$620,12,FALSE),VLOOKUP($B58,'ADP-Rank'!$A$2:$AO$620,15,FALSE),VLOOKUP($B58,'ADP-Rank'!$A$2:$BD$620,18,FALSE),VLOOKUP($B58,'ADP-Rank'!$A$2:$BD$620,21,FALSE),VLOOKUP($B58,'ADP-Rank'!$A$2:$BD$620,24,FALSE),VLOOKUP($B58,'ADP-Rank'!$A$2:$BD$620,27,FALSE),VLOOKUP($B58,'ADP-Rank'!$A$2:$BD$620,30,FALSE),VLOOKUP($B58,'ADP-Rank'!$A$2:$BD$620,47,FALSE)) -> 95 | AF58: =IF(ISBLANK(A58),0,1) -> 0 | AG58: =IF(K58="",0,1) -> 1 | AH58: =A58 -> 0 | AI58: =IF(C58="C",1,IF(C58="1B",2,IF(C58="2B",3,IF(C58="3B",4,IF(C58="SS",5,IF(C58="CI",6,IF(C58="MI",7,IF(C58="OF",11,IF(C58="LF",8,IF(C58="CF",9,IF(C58="RF",10,IF(C58="DH",12,IF(C58="SP",13,IF(C58="RP",14,IF(C58="P",15,16))))))))))))))) -> 13 | AJ58: =VLOOKUP(B58,'Starter Calc'!$B$2:$BR$700,69,FALSE) -> Starter | AK58: =IFERROR(VLOOKUP($B58,'ADP-Rank'!$A$2:$AZ$620,40,FALSE),TRUE) -> TRUE | AL58: 1
B59: Albert Pujols | C59: 1B | D59: =IFERROR(IF(VLOOKUP(B59,'Starter Calc'!$B$2:$E$700,4,FALSE)="","",VLOOKUP(B59,'Starter Calc'!$B$2:$E$700,4,FALSE)),"") -> ,,CF | E59: =IFERROR(VLOOKUP($B59,'ADP-Rank'!$A$2:$G$620,5,FALSE),"") -> LAA | F59: =IFERROR(VLOOKUP($B59,'ADP-Rank'!$A$2:$W$620,6,FALSE),"") -> 35 | G59: =IFERROR(CHOOSE(Personalize!$E$38,VLOOKUP($B59,'ADP-Rank'!$A$2:$CD$620,7,FALSE),VLOOKUP($B59,'ADP-Rank'!$A$2:$CD$620,10,FALSE),VLOOKUP($B59,'ADP-Rank'!$A$2:$CD$620,13,FALSE),VLOOKUP($B59,'ADP-Rank'!$A$2:$CD$620,16,FALSE),VLOOKUP($B59,'ADP-Rank'!$A$2:$CD$620,19,FALSE),VLOOKUP($B59,'ADP-Rank'!$A$2:$CD$620,22,FALSE),VLOOKUP($B59,'ADP-Rank'!$A$2:$CD$620,25,FALSE),VLOOKUP($B59,'ADP-Rank'!$A$2:$CD$620,28,FALSE),VLOOKUP($B59,'ADP-Rank'!$A$2:$CD$620,45,FALSE)),"") -> 57.42 | H59: =IFERROR(ROUNDDOWN(VLOOKUP($B59,'ADP-Rank'!$A$2:$BC$674,44,FALSE),0),"") -> 5 | I59: =VLOOKUP($B59,'ADP-Rank'!$A$2:$AP$674,42,FALSE) -> 40 | J59: =IFERROR(RANK($M59,$M$6:$M$745,0),"") -> 98 | K59: =IFERROR(IF((OR($C59="RP",$C59="SP")),VLOOKUP($B59,'Filtered-P'!$A$1:$AB$700,12,FALSE),(VLOOKUP($B59,Filtered!$A$1:$AB$700,18,FALSE))),"") -> 368.2731996 | L59: =IFERROR(IF((OR($C59="RP",$C59="SP")),VLOOKUP($C59,'Filtered-P'!$U$3:$X$4,4,FALSE), VLOOKUP($C59,Filtered!$U$3:$X$14,4,FALSE)),"") -> 341.0043912 | M59: =IFERROR(($K59-$L59)/IF(OR($C59="SP",$C59="RP"),VLOOKUP($C59,'Filtered-P'!$U$3:$AB$4,8,FALSE),VLOOKUP($C59,Filtered!$U$3:$AB$10,8,FALSE)),"") -> 0.5202798757 | N59: =IFERROR(IF((OR($C59="RP",$C59="SP")),"",(VLOOKUP($B59,Filtered!$A$1:$AB$700,18,FALSE)/VLOOKUP($B59,Filtered!$A$1:$AB$700,2,FALSE))),"") -> 0.6062899417 | O59: =IFERROR(IF((OR($C59="RP",$C59="SP")),VLOOKUP($B59,'Filtered-P'!$A$1:$AB$700,12,FALSE)/VLOOKUP($B59,'Filtered-P'!$A$1:$AB$700,4,FALSE),""),"") ->  | P59: =IFERROR(IF((OR($C59="RP",$C59="SP")),VLOOKUP($B59,'Filtered-P'!$A$1:$X$700,2,FALSE),""),"") ->  | Q59: =IFERROR(IF((OR($C59="RP",$C59="SP")),VLOOKUP($B59,'Filtered-P'!$A$1:$X$700,9,FALSE),""),"") ->  | R59: =IFERROR(IF((OR($C59="RP",$C59="SP")),VLOOKUP($B59,'Filtered-P'!$A$1:$X$700,7,FALSE),""),"") ->  | S59: =IFERROR(IF((OR($C59="RP",$C59="SP")),VLOOKUP($B59,'Filtered-P'!$A$1:$AD$700,13,FALSE),""),"") ->  | T59: =IFERROR(IF((OR($C59="RP",$C59="SP")),VLOOKUP($B59,'Filtered-P'!$A$1:$X$700,14,FALSE),""),"") ->  | U59: =IFERROR(IF((OR($C59="RP",$C59="SP")),"",VLOOKUP($B59,Filtered!$A$1:$AJ$700,20,FALSE)),"") -> 0.2672884455 | V59: =IFERROR(IF((OR($C59="RP",$C59="SP")),"",VLOOKUP($B59,Filtered!$A$1:$AJ$700,9,FALSE)),"") -> 24.49125381 | W59: =IFERROR(IF((OR($C59="RP",$C59="SP")),"",VLOOKUP($B59,Filtered!$A$1:$AJ$700,10,FALSE)),"") -> 86.82974723 | X59: =IFERROR(IF((OR($C59="RP",$C59="SP")),"",VLOOKUP($B59,Filtered!$A$1:$AJ$700,4,FALSE)),"") -> 73.69352475 | Y59: =IFERROR(IF((OR($C59="RP",$C59="SP")),"",VLOOKUP($B59,Filtered!$A$1:$AJ$700,11,FALSE)),"") -> 4.785887335 | Z59: =IFERROR(IF(ISTEXT($A59),"",(1-NORMDIST((COUNTA($A$6:$A$745)),($G59),((AE59-AD59)/6),TRUE))),"") -> 1 | AA59: =IFERROR(IF(ISTEXT($A59),"",(1-NORMDIST((COUNTA($A$6:$A$745))+(Personalize!$E$18+1),$G59,((AE59-AD59)/6),TRUE))),"") -> 0.9999999999 | AB59: =IFERROR(IF(ISTEXT($A59),"",(1-NORMDIST((COUNTA($A$6:$A$745))+((Personalize!$E$18+1)*2),$G59,((AE59-AD59)/6),TRUE))),"") -> 0.9999999985 | AD59: =CHOOSE(Personalize!$E$38,VLOOKUP($B59,'ADP-Rank'!$A$2:$AJ$620,8,FALSE),VLOOKUP($B59,'ADP-Rank'!$A$2:$AJ$620,11,FALSE),VLOOKUP($B59,'ADP-Rank'!$A$2:$AO$620,14,FALSE),VLOOKUP($B59,'ADP-Rank'!$A$2:$BD$620,17,FALSE),VLOOKUP($B59,'ADP-Rank'!$A$2:$BD$620,20,FALSE),VLOOKUP($B59,'ADP-Rank'!$A$2:$BD$620,23,FALSE),VLOOKUP($B59,'ADP-Rank'!$A$2:$BD$620,26,FALSE),VLOOKUP($B59,'ADP-Rank'!$A$2:$BD$620,29,FALSE),VLOOKUP($B59,'ADP-Rank'!$A$2:$BD$620,46,FALSE)) -> 30 | AE59: =CHOOSE(Personalize!$E$38,VLOOKUP($B59,'ADP-Rank'!$A$2:$AJ$620,9,FALSE),VLOOKUP($B59,'ADP-Rank'!$A$2:$AJ$620,12,FALSE),VLOOKUP($B59,'ADP-Rank'!$A$2:$AO$620,15,FALSE),VLOOKUP($B59,'ADP-Rank'!$A$2:$BD$620,18,FALSE),VLOOKUP($B59,'ADP-Rank'!$A$2:$BD$620,21,FALSE),VLOOKUP($B59,'ADP-Rank'!$A$2:$BD$620,24,FALSE),VLOOKUP($B59,'ADP-Rank'!$A$2:$BD$620,27,FALSE),VLOOKUP($B59,'ADP-Rank'!$A$2:$BD$620,30,FALSE),VLOOKUP($B59,'ADP-Rank'!$A$2:$BD$620,47,FALSE)) -> 81 | AF59: =IF(ISBLANK(A59),0,1) -> 0 | AG59: =IF(K59="",0,1) -> 1 | AH59: =A59 -> 0 | AI59: =IF(C59="C",1,IF(C59="1B",2,IF(C59="2B",3,IF(C59="3B",4,IF(C59="SS",5,IF(C59="CI",6,IF(C59="MI",7,IF(C59="OF",11,IF(C59="LF",8,IF(C59="CF",9,IF(C59="RF",10,IF(C59="DH",12,IF(C59="SP",13,IF(C59="RP",14,IF(C59="P",15,16))))))))))))))) -> 2 | AJ59: =VLOOKUP(B59,'Starter Calc'!$B$2:$BR$700,69,FALSE) -> Starter | AK59: =IFERROR(VLOOKUP($B59,'ADP-Rank'!$A$2:$AZ$620,40,FALSE),TRUE) -> TRUE | AL59: 0
B60: Adrian Gonzalez | C60: 1B | D60: =IFERROR(IF(VLOOKUP(B60,'Starter Calc'!$B$2:$E$700,4,FALSE)="","",VLOOKUP(B60,'Starter Calc'!$B$2:$E$700,4,FALSE)),"") -> ,, | E60: =IFERROR(VLOOKUP($B60,'ADP-Rank'!$A$2:$G$620,5,FALSE),"") -> LAD | F60: =IFERROR(VLOOKUP($B60,'ADP-Rank'!$A$2:$W$620,6,FALSE),"") -> 32 | G60: =IFERROR(CHOOSE(Personalize!$E$38,VLOOKUP($B60,'ADP-Rank'!$A$2:$CD$620,7,FALSE),VLOOKUP($B60,'ADP-Rank'!$A$2:$CD$620,10,FALSE),VLOOKUP($B60,'ADP-Rank'!$A$2:$CD$620,13,FALSE),VLOOKUP($B60,'ADP-Rank'!$A$2:$CD$620,16,FALSE),VLOOKUP($B60,'ADP-Rank'!$A$2:$CD$620,19,FALSE),VLOOKUP($B60,'ADP-Rank'!$A$2:$CD$620,22,FALSE),VLOOKUP($B60,'ADP-Rank'!$A$2:$CD$620,25,FALSE),VLOOKUP($B60,'ADP-Rank'!$A$2:$CD$620,28,FALSE),VLOOKUP($B60,'ADP-Rank'!$A$2:$CD$620,45,FALSE)),"") -> 57.85 | H60: =IFERROR(ROUNDDOWN(VLOOKUP($B60,'ADP-Rank'!$A$2:$BC$674,44,FALSE),0),"") -> 5 | I60: =VLOOKUP($B60,'ADP-Rank'!$A$2:$AP$674,42,FALSE) -> 78 | J60: =IFERROR(RANK($M60,$M$6:$M$745,0),"") -> 149 | K60: =IFERROR(IF((OR($C60="RP",$C60="SP")),VLOOKUP($B60,'Filtered-P'!$A$1:$AB$700,12,FALSE),(VLOOKUP($B60,Filtered!$A$1:$AB$700,18,FALSE))),"") -> 346.6205642 | L60: =IFERROR(IF((OR($C60="RP",$C60="SP")),VLOOKUP($C60,'Filtered-P'!$U$3:$X$4,4,FALSE), VLOOKUP($C60,Filtered!$U$3:$X$14,4,FALSE)),"") -> 341.0043912 | M60: =IFERROR(($K60-$L60)/IF(OR($C60="SP",$C60="RP"),VLOOKUP($C60,'Filtered-P'!$U$3:$AB$4,8,FALSE),VLOOKUP($C60,Filtered!$U$3:$AB$10,8,FALSE)),"") -> 0.1071547297 | N60: =IFERROR(IF((OR($C60="RP",$C60="SP")),"",(VLOOKUP($B60,Filtered!$A$1:$AB$700,18,FALSE)/VLOOKUP($B60,Filtered!$A$1:$AB$700,2,FALSE))),"") -> 0.5536990376 | O60: =IFERROR(IF((OR($C60="RP",$C60="SP")),VLOOKUP($B60,'Filtered-P'!$A$1:$AB$700,12,FALSE)/VLOOKUP($B60,'Filtered-P'!$A$1:$AB$700,4,FALSE),""),"") ->  | P60: =IFERROR(IF((OR($C60="RP",$C60="SP")),VLOOKUP($B60,'Filtered-P'!$A$1:$X$700,2,FALSE),""),"") ->  | Q60: =IFERROR(IF((OR($C60="RP",$C60="SP")),VLOOKUP($B60,'Filtered-P'!$A$1:$X$700,9,FALSE),""),"") ->  | R60: =IFERROR(IF((OR($C60="RP",$C60="SP")),VLOOKUP($B60,'Filtered-P'!$A$1:$X$700,7,FALSE),""),"") ->  | S60: =IFERROR(IF((OR($C60="RP",$C60="SP")),VLOOKUP($B60,'Filtered-P'!$A$1:$AD$700,13,FALSE),""),"") ->  | T60: =IFERROR(IF((OR($C60="RP",$C60="SP")),VLOOKUP($B60,'Filtered-P'!$A$1:$X$700,14,FALSE),""),"") ->  | U60: =IFERROR(IF((OR($C60="RP",$C60="SP")),"",VLOOKUP($B60,Filtered!$A$1:$AJ$700,20,FALSE)),"") -> 0.2713297895 | V60: =IFERROR(IF((OR($C60="RP",$C60="SP")),"",VLOOKUP($B60,Filtered!$A$1:$AJ$700,9,FALSE)),"") -> 22.00785589 | W60: =IFERROR(IF((OR($C60="RP",$C60="SP")),"",VLOOKUP($B60,Filtered!$A$1:$AJ$700,10,FALSE)),"") -> 93.58615257 | X60: =IFERROR(IF((OR($C60="RP",$C60="SP")),"",VLOOKUP($B60,Filtered!$A$1:$AJ$700,4,FALSE)),"") -> 73.18991544 | Y60: =IFERROR(IF((OR($C60="RP",$C60="SP")),"",VLOOKUP($B60,Filtered!$A$1:$AJ$700,11,FALSE)),"") -> 1.257993548 | Z60: =IFERROR(IF(ISTEXT($A60),"",(1-NORMDIST((COUNTA($A$6:$A$745)),($G60),((AE60-AD60)/6),TRUE))),"") -> 1 | AA60: =IFERROR(IF(ISTEXT($A60),"",(1-NORMDIST((COUNTA($A$6:$A$745))+(Personalize!$E$18+1),$G60,((AE60-AD60)/6),TRUE))),"") -> 1 | AB60: =IFERROR(IF(ISTEXT($A60),"",(1-NORMDIST((COUNTA($A$6:$A$745))+((Personalize!$E$18+1)*2),$G60,((AE60-AD60)/6),TRUE))),"") -> 0.9999999995 | AD60: =CHOOSE(Personalize!$E$38,VLOOKUP($B60,'ADP-Rank'!$A$2:$AJ$620,8,FALSE),VLOOKUP($B60,'ADP-Rank'!$A$2:$AJ$620,11,FALSE),VLOOKUP($B60,'ADP-Rank'!$A$2:$AO$620,14,FALSE),VLOOKUP($B60,'ADP-Rank'!$A$2:$BD$620,17,FALSE),VLOOKUP($B60,'ADP-Rank'!$A$2:$BD$620,20,FALSE),VLOOKUP($B60,'ADP-Rank'!$A$2:$BD$620,23,FALSE),VLOOKUP($B60,'ADP-Rank'!$A$2:$BD$620,26,FALSE),VLOOKUP($B60,'ADP-Rank'!$A$2:$BD$620,29,FALSE),VLOOKUP($B60,'ADP-Rank'!$A$2:$BD$620,46,FALSE)) -> 32 | AE60: =CHOOSE(Personalize!$E$38,VLOOKUP($B60,'ADP-Rank'!$A$2:$AJ$620,9,FALSE),VLOOKUP($B60,'ADP-Rank'!$A$2:$AJ$620,12,FALSE),VLOOKUP($B60,'ADP-Rank'!$A$2:$AO$620,15,FALSE),VLOOKUP($B60,'ADP-Rank'!$A$2:$BD$620,18,FALSE),VLOOKUP($B60,'ADP-Rank'!$A$2:$BD$620,21,FALSE),VLOOKUP($B60,'ADP-Rank'!$A$2:$BD$620,24,FALSE),VLOOKUP($B60,'ADP-Rank'!$A$2:$BD$620,27,FALSE),VLOOKUP($B60,'ADP-Rank'!$A$2:$BD$620,30,FALSE),VLOOKUP($B60,'ADP-Rank'!$A$2:$BD$620,47,FALSE)) -> 82 | AF60: =IF(ISBLANK(A60),0,1) -> 0 | AG60: =IF(K60="",0,1) -> 1 | AH60: =A60 -> 0 | AI60: =IF(C60="C",1,IF(C60="1B",2,IF(C60="2B",3,IF(C60="3B",4,IF(C60="SS",5,IF(C60="CI",6,IF(C60="MI",7,IF(C60="OF",11,IF(C60="LF",8,IF(C60="CF",9,IF(C60="RF",10,IF(C60="DH",12,IF(C60="SP",13,IF(C60="RP",14,IF(C60="P",15,16))))))))))))))) -> 2 | AJ60: =VLOOKUP(B60,'Starter Calc'!$B$2:$BR$700,69,FALSE) -> Bench | AK60: =IFERROR(VLOOKUP($B60,'ADP-Rank'!$A$2:$AZ$620,40,FALSE),TRUE) -> TRUE | AL60: 0
B61: Greg Holland | C61: RP | D61: =IFERROR(IF(VLOOKUP(B61,'Starter Calc'!$B$2:$E$700,4,FALSE)="","",VLOOKUP(B61,'Starter Calc'!$B$2:$E$700,4,FALSE)),"") -> ,, | E61: =IFERROR(VLOOKUP($B61,'ADP-Rank'!$A$2:$G$620,5,FALSE),"") -> KC | F61: =IFERROR(VLOOKUP($B61,'ADP-Rank'!$A$2:$W$620,6,FALSE),"") -> 29 | G61: =IFERROR(CHOOSE(Personalize!$E$38,VLOOKUP($B61,'ADP-Rank'!$A$2:$CD$620,7,FALSE),VLOOKUP($B61,'ADP-Rank'!$A$2:$CD$620,10,FALSE),VLOOKUP($B61,'ADP-Rank'!$A$2:$CD$620,13,FALSE),VLOOKUP($B61,'ADP-Rank'!$A$2:$CD$620,16,FALSE),VLOOKUP($B61,'ADP-Rank'!$A$2:$CD$620,19,FALSE),VLOOKUP($B61,'ADP-Rank'!$A$2:$CD$620,22,FALSE),VLOOKUP($B61,'ADP-Rank'!$A$2:$CD$620,25,FALSE),VLOOKUP($B61,'ADP-Rank'!$A$2:$CD$620,28,FALSE),VLOOKUP($B61,'ADP-Rank'!$A$2:$CD$620,45,FALSE)),"") -> 58.77 | H61: =IFERROR(ROUNDDOWN(VLOOKUP($B61,'ADP-Rank'!$A$2:$BC$674,44,FALSE),0),"") -> 5 | I61: =VLOOKUP($B61,'ADP-Rank'!$A$2:$AP$674,42,FALSE) -> 30 | J61: =IFERROR(RANK($M61,$M$6:$M$745,0),"") -> 26 | K61: =IFERROR(IF((OR($C61="RP",$C61="SP")),VLOOKUP($B61,'Filtered-P'!$A$1:$AB$700,12,FALSE),(VLOOKUP($B61,Filtered!$A$1:$AB$700,18,FALSE))),"") -> 594.1883596 | L61: =IFERROR(IF((OR($C61="RP",$C61="SP")),VLOOKUP($C61,'Filtered-P'!$U$3:$X$4,4,FALSE), VLOOKUP($C61,Filtered!$U$3:$X$14,4,FALSE)),"") -> 338.0438298 | M61: =IFERROR(($K61-$L61)/IF(OR($C61="SP",$C61="RP"),VLOOKUP($C61,'Filtered-P'!$U$3:$AB$4,8,FALSE),VLOOKUP($C61,Filtered!$U$3:$AB$10,8,FALSE)),"") -> 1.526043537 | N61: =IFERROR(IF((OR($C61="RP",$C61="SP")),"",(VLOOKUP($B61,Filtered!$A$1:$AB$700,18,FALSE)/VLOOKUP($B61,Filtered!$A$1:$AB$700,2,FALSE))),"") ->  | O61: =IFERROR(IF((OR($C61="RP",$C61="SP")),VLOOKUP($B61,'Filtered-P'!$A$1:$AB$700,12,FALSE)/VLOOKUP($B61,'Filtered-P'!$A$1:$AB$700,4,FALSE),""),"") -> 9.071170683 | P61: =IFERROR(IF((OR($C61="RP",$C61="SP")),VLOOKUP($B61,'Filtered-P'!$A$1:$X$700,2,FALSE),""),"") -> 3.391479501 | Q61: =IFERROR(IF((OR($C61="RP",$C61="SP")),VLOOKUP($B61,'Filtered-P'!$A$1:$X$700,9,FALSE),""),"") -> 38.01306609 | R61: =IFERROR(IF((OR($C61="RP",$C61="SP")),VLOOKUP($B61,'Filtered-P'!$A$1:$X$700,7,FALSE),""),"") -> 89.93734481 | S61: =IFERROR(IF((OR($C61="RP",$C61="SP")),VLOOKUP($B61,'Filtered-P'!$A$1:$AD$700,13,FALSE),""),"") -> 2.420496197 | T61: =IFERROR(IF((OR($C61="RP",$C61="SP")),VLOOKUP($B61,'Filtered-P'!$A$1:$X$700,14,FALSE),""),"") -> 1.015442642 | U61: =IFERROR(IF((OR($C61="RP",$C61="SP")),"",VLOOKUP($B61,Filtered!$A$1:$AJ$700,20,FALSE)),"") ->  | V61: =IFERROR(IF((OR($C61="RP",$C61="SP")),"",VLOOKUP($B61,Filtered!$A$1:$AJ$700,9,FALSE)),"") ->  | W61: =IFERROR(IF((OR($C61="RP",$C61="SP")),"",VLOOKUP($B61,Filtered!$A$1:$AJ$700,10,FALSE)),"") ->  | X61: =IFERROR(IF((OR($C61="RP",$C61="SP")),"",VLOOKUP($B61,Filtered!$A$1:$AJ$700,4,FALSE)),"") ->  | Y61: =IFERROR(IF((OR($C61="RP",$C61="SP")),"",VLOOKUP($B61,Filtered!$A$1:$AJ$700,11,FALSE)),"") ->  | Z61: =IFERROR(IF(ISTEXT($A61),"",(1-NORMDIST((COUNTA($A$6:$A$745)),($G61),((AE61-AD61)/6),TRUE))),"") -> 1 | AA61: =IFERROR(IF(ISTEXT($A61),"",(1-NORMDIST((COUNTA($A$6:$A$745))+(Personalize!$E$18+1),$G61,((AE61-AD61)/6),TRUE))),"") -> 0.9999999999 | AB61: =IFERROR(IF(ISTEXT($A61),"",(1-NORMDIST((COUNTA($A$6:$A$745))+((Personalize!$E$18+1)*2),$G61,((AE61-AD61)/6),TRUE))),"") -> 0.9999999988 | AD61: =CHOOSE(Personalize!$E$38,VLOOKUP($B61,'ADP-Rank'!$A$2:$AJ$620,8,FALSE),VLOOKUP($B61,'ADP-Rank'!$A$2:$AJ$620,11,FALSE),VLOOKUP($B61,'ADP-Rank'!$A$2:$AO$620,14,FALSE),VLOOKUP($B61,'ADP-Rank'!$A$2:$BD$620,17,FALSE),VLOOKUP($B61,'ADP-Rank'!$A$2:$BD$620,20,FALSE),VLOOKUP($B61,'ADP-Rank'!$A$2:$BD$620,23,FALSE),VLOOKUP($B61,'ADP-Rank'!$A$2:$BD$620,26,FALSE),VLOOKUP($B61,'ADP-Rank'!$A$2:$BD$620,29,FALSE),VLOOKUP($B61,'ADP-Rank'!$A$2:$BD$620,46,FALSE)) -> 35 | AE61: =CHOOSE(Personalize!$E$38,VLOOKUP($B61,'ADP-Rank'!$A$2:$AJ$620,9,FALSE),VLOOKUP($B61,'ADP-Rank'!$A$2:$AJ$620,12,FALSE),VLOOKUP($B61,'ADP-Rank'!$A$2:$AO$620,15,FALSE),VLOOKUP($B61,'ADP-Rank'!$A$2:$BD$620,18,FALSE),VLOOKUP($B61,'ADP-Rank'!$A$2:$BD$620,21,FALSE),VLOOKUP($B61,'ADP-Rank'!$A$2:$BD$620,24,FALSE),VLOOKUP($B61,'ADP-Rank'!$A$2:$BD$620,27,FALSE),VLOOKUP($B61,'ADP-Rank'!$A$2:$BD$620,30,FALSE),VLOOKUP($B61,'ADP-Rank'!$A$2:$BD$620,47,FALSE)) -> 87 | AF61: =IF(ISBLANK(A61),0,1) -> 0 | AG61: =IF(K61="",0,1) -> 1 | AH61: =A61 -> 0 | AI61: =IF(C61="C",1,IF(C61="1B",2,IF(C61="2B",3,IF(C61="3B",4,IF(C61="SS",5,IF(C61="CI",6,IF(C61="MI",7,IF(C61="OF",11,IF(C61="LF",8,IF(C61="CF",9,IF(C61="RF",10,IF(C61="DH",12,IF(C61="SP",13,IF(C61="RP",14,IF(C61="P",15,16))))))))))))))) -> 14 | AJ61: =VLOOKUP(B61,'Starter Calc'!$B$2:$BR$700,69,FALSE) -> Starter | AK61: =IFERROR(VLOOKUP($B61,'ADP-Rank'!$A$2:$AZ$620,40,FALSE),TRUE) -> TRUE | AL61: 1
B62: Justin Verlander | C62: SP | D62: =IFERROR(IF(VLOOKUP(B62,'Starter Calc'!$B$2:$E$700,4,FALSE)="","",VLOOKUP(B62,'Starter Calc'!$B$2:$E$700,4,FALSE)),"") -> ,, | E62: =IFERROR(VLOOKUP($B62,'ADP-Rank'!$A$2:$G$620,5,FALSE),"") -> DET | F62: =IFERROR(VLOOKUP($B62,'ADP-Rank'!$A$2:$W$620,6,FALSE),"") -> 32 | G62: =IFERROR(CHOOSE(Personalize!$E$38,VLOOKUP($B62,'ADP-Rank'!$A$2:$CD$620,7,FALSE),VLOOKUP($B62,'ADP-Rank'!$A$2:$CD$620,10,FALSE),VLOOKUP($B62,'ADP-Rank'!$A$2:$CD$620,13,FALSE),VLOOKUP($B62,'ADP-Rank'!$A$2:$CD$620,16,FALSE),VLOOKUP($B62,'ADP-Rank'!$A$2:$CD$620,19,FALSE),VLOOKUP($B62,'ADP-Rank'!$A$2:$CD$620,22,FALSE),VLOOKUP($B62,'ADP-Rank'!$A$2:$CD$620,25,FALSE),VLOOKUP($B62,'ADP-Rank'!$A$2:$CD$620,28,FALSE),VLOOKUP($B62,'ADP-Rank'!$A$2:$CD$620,45,FALSE)),"") -> 58.85 | H62: =IFERROR(ROUNDDOWN(VLOOKUP($B62,'ADP-Rank'!$A$2:$BC$674,44,FALSE),0),"") -> 5 | I62: =VLOOKUP($B62,'ADP-Rank'!$A$2:$AP$674,42,FALSE) -> 166 | J62: =IFERROR(RANK($M62,$M$6:$M$745,0),"") -> 85 | K62: =IFERROR(IF((OR($C62="RP",$C62="SP")),VLOOKUP($B62,'Filtered-P'!$A$1:$AB$700,12,FALSE),(VLOOKUP($B62,Filtered!$A$1:$AB$700,18,FALSE))),"") -> 318.6024093 | L62: =IFERROR(IF((OR($C62="RP",$C62="SP")),VLOOKUP($C62,'Filtered-P'!$U$3:$X$4,4,FALSE), VLOOKUP($C62,Filtered!$U$3:$X$14,4,FALSE)),"") -> 262.4844351 | M62: =IFERROR(($K62-$L62)/IF(OR($C62="SP",$C62="RP"),VLOOKUP($C62,'Filtered-P'!$U$3:$AB$4,8,FALSE),VLOOKUP($C62,Filtered!$U$3:$AB$10,8,FALSE)),"") -> 0.6158405027 | N62: =IFERROR(IF((OR($C62="RP",$C62="SP")),"",(VLOOKUP($B62,Filtered!$A$1:$AB$700,18,FALSE)/VLOOKUP($B62,Filtered!$A$1:$AB$700,2,FALSE))),"") ->  | O62: =IFERROR(IF((OR($C62="RP",$C62="SP")),VLOOKUP($B62,'Filtered-P'!$A$1:$AB$700,12,FALSE)/VLOOKUP($B62,'Filtered-P'!$A$1:$AB$700,4,FALSE),""),"") -> 1.570357333 | P62: =IFERROR(IF((OR($C62="RP",$C62="SP")),VLOOKUP($B62,'Filtered-P'!$A$1:$X$700,2,FALSE),""),"") -> 14.14290557 | Q62: =IFERROR(IF((OR($C62="RP",$C62="SP")),VLOOKUP($B62,'Filtered-P'!$A$1:$X$700,9,FALSE),""),"") -> 0 | R62: =IFERROR(IF((OR($C62="RP",$C62="SP")),VLOOKUP($B62,'Filtered-P'!$A$1:$X$700,7,FALSE),""),"") -> 171.584053 | S62: =IFERROR(IF((OR($C62="RP",$C62="SP")),VLOOKUP($B62,'Filtered-P'!$A$1:$AD$700,13,FALSE),""),"") -> 3.876611547 | T62: =IFERROR(IF((OR($C62="RP",$C62="SP")),VLOOKUP($B62,'Filtered-P'!$A$1:$X$700,14,FALSE),""),"") -> 1.240578859 | U62: =IFERROR(IF((OR($C62="RP",$C62="SP")),"",VLOOKUP($B62,Filtered!$A$1:$AJ$700,20,FALSE)),"") ->  | V62: =IFERROR(IF((OR($C62="RP",$C62="SP")),"",VLOOKUP($B62,Filtered!$A$1:$AJ$700,9,FALSE)),"") ->  | W62: =IFERROR(IF((OR($C62="RP",$C62="SP")),"",VLOOKUP($B62,Filtered!$A$1:$AJ$700,10,FALSE)),"") ->  | X62: =IFERROR(IF((OR($C62="RP",$C62="SP")),"",VLOOKUP($B62,Filtered!$A$1:$AJ$700,4,FALSE)),"") ->  | Y62: =IFERROR(IF((OR($C62="RP",$C62="SP")),"",VLOOKUP($B62,Filtered!$A$1:$AJ$700,11,FALSE)),"") ->  | Z62: =IFERROR(IF(ISTEXT($A62),"",(1-NORMDIST((COUNTA($A$6:$A$745)),($G62),((AE62-AD62)/6),TRUE))),"") -> 0.9999895109 | AA62: =IFERROR(IF(ISTEXT($A62),"",(1-NORMDIST((COUNTA($A$6:$A$745))+(Personalize!$E$18+1),$G62,((AE62-AD62)/6),TRUE))),"") -> 0.9999684896 | AB62: =IFERROR(IF(ISTEXT($A62),"",(1-NORMDIST((COUNTA($A$6:$A$745))+((Personalize!$E$18+1)*2),$G62,((AE62-AD62)/6),TRUE))),"") -> 0.9999109433 | AD62: =CHOOSE(Personalize!$E$38,VLOOKUP($B62,'ADP-Rank'!$A$2:$AJ$620,8,FALSE),VLOOKUP($B62,'ADP-Rank'!$A$2:$AJ$620,11,FALSE),VLOOKUP($B62,'ADP-Rank'!$A$2:$AO$620,14,FALSE),VLOOKUP($B62,'ADP-Rank'!$A$2:$BD$620,17,FALSE),VLOOKUP($B62,'ADP-Rank'!$A$2:$BD$620,20,FALSE),VLOOKUP($B62,'ADP-Rank'!$A$2:$BD$620,23,FALSE),VLOOKUP($B62,'ADP-Rank'!$A$2:$BD$620,26,FALSE),VLOOKUP($B62,'ADP-Rank'!$A$2:$BD$620,29,FALSE),VLOOKUP($B62,'ADP-Rank'!$A$2:$BD$620,46,FALSE)) -> 12 | AE62: =CHOOSE(Personalize!$E$38,VLOOKUP($B62,'ADP-Rank'!$A$2:$AJ$620,9,FALSE),VLOOKUP($B62,'ADP-Rank'!$A$2:$AJ$620,12,FALSE),VLOOKUP($B62,'ADP-Rank'!$A$2:$AO$620,15,FALSE),VLOOKUP($B62,'ADP-Rank'!$A$2:$BD$620,18,FALSE),VLOOKUP($B62,'ADP-Rank'!$A$2:$BD$620,21,FALSE),VLOOKUP($B62,'ADP-Rank'!$A$2:$BD$620,24,FALSE),VLOOKUP($B62,'ADP-Rank'!$A$2:$BD$620,27,FALSE),VLOOKUP($B62,'ADP-Rank'!$A$2:$BD$620,30,FALSE),VLOOKUP($B62,'ADP-Rank'!$A$2:$BD$620,47,FALSE)) -> 95 | AF62: =IF(ISBLANK(A62),0,1) -> 0 | AG62: =IF(K62="",0,1) -> 1 | AH62: =A62 -> 0 | AI62: =IF(C62="C",1,IF(C62="1B",2,IF(C62="2B",3,IF(C62="3B",4,IF(C62="SS",5,IF(C62="CI",6,IF(C62="MI",7,IF(C62="OF",11,IF(C62="LF",8,IF(C62="CF",9,IF(C62="RF",10,IF(C62="DH",12,IF(C62="SP",13,IF(C62="RP",14,IF(C62="P",15,16))))))))))))))) -> 13 | AJ62: =VLOOKUP(B62,'Starter Calc'!$B$2:$BR$700,69,FALSE) -> Starter | AK62: =IFERROR(VLOOKUP($B62,'ADP-Rank'!$A$2:$AZ$620,40,FALSE),TRUE) -> TRUE | AL62: 1
B63: Phil Hughes | C63: SP | D63: =IFERROR(IF(VLOOKUP(B63,'Starter Calc'!$B$2:$E$700,4,FALSE)="","",VLOOKUP(B63,'Starter Calc'!$B$2:$E$700,4,FALSE)),"") -> ,, | E63: =IFERROR(VLOOKUP($B63,'ADP-Rank'!$A$2:$G$620,5,FALSE),"") -> MIN | F63: =IFERROR(VLOOKUP($B63,'ADP-Rank'!$A$2:$W$620,6,FALSE),"") -> 28 | G63: =IFERROR(CHOOSE(Personalize!$E$38,VLOOKUP($B63,'ADP-Rank'!$A$2:$CD$620,7,FALSE),VLOOKUP($B63,'ADP-Rank'!$A$2:$CD$620,10,FALSE),VLOOKUP($B63,'ADP-Rank'!$A$2:$CD$620,13,FALSE),VLOOKUP($B63,'ADP-Rank'!$A$2:$CD$620,16,FALSE),VLOOKUP($B63,'ADP-Rank'!$A$2:$CD$620,19,FALSE),VLOOKUP($B63,'ADP-Rank'!$A$2:$CD$620,22,FALSE),VLOOKUP($B63,'ADP-Rank'!$A$2:$CD$620,25,FALSE),VLOOKUP($B63,'ADP-Rank'!$A$2:$CD$620,28,FALSE),VLOOKUP($B63,'ADP-Rank'!$A$2:$CD$620,45,FALSE)),"") -> 59.02 | H63: =IFERROR(ROUNDDOWN(VLOOKUP($B63,'ADP-Rank'!$A$2:$BC$674,44,FALSE),0),"") -> 5 | I63: =VLOOKUP($B63,'ADP-Rank'!$A$2:$AP$674,42,FALSE) -> 212 | J63: =IFERROR(RANK($M63,$M$6:$M$745,0),"") -> 100 | K63: =IFERROR(IF((OR($C63="RP",$C63="SP")),VLOOKUP($B63,'Filtered-P'!$A$1:$AB$700,12,FALSE),(VLOOKUP($B63,Filtered!$A$1:$AB$700,18,FALSE))),"") -> 308.3368086 | L63: =IFERROR(IF((OR($C63="RP",$C63="SP")),VLOOKUP($C63,'Filtered-P'!$U$3:$X$4,4,FALSE), VLOOKUP($C63,Filtered!$U$3:$X$14,4,FALSE)),"") -> 262.4844351 | M63: =IFERROR(($K63-$L63)/IF(OR($C63="SP",$C63="RP"),VLOOKUP($C63,'Filtered-P'!$U$3:$AB$4,8,FALSE),VLOOKUP($C63,Filtered!$U$3:$AB$10,8,FALSE)),"") -> 0.5031854618 | N63: =IFERROR(IF((OR($C63="RP",$C63="SP")),"",(VLOOKUP($B63,Filtered!$A$1:$AB$700,18,FALSE)/VLOOKUP($B63,Filtered!$A$1:$AB$700,2,FALSE))),"") ->  | O63: =IFERROR(IF((OR($C63="RP",$C63="SP")),VLOOKUP($B63,'Filtered-P'!$A$1:$AB$700,12,FALSE)/VLOOKUP($B63,'Filtered-P'!$A$1:$AB$700,4,FALSE),""),"") -> 1.635228746 | P63: =IFERROR(IF((OR($C63="RP",$C63="SP")),VLOOKUP($B63,'Filtered-P'!$A$1:$X$700,2,FALSE),""),"") -> 12.17464791 | Q63: =IFERROR(IF((OR($C63="RP",$C63="SP")),VLOOKUP($B63,'Filtered-P'!$A$1:$X$700,9,FALSE),""),"") -> 0 | R63: =IFERROR(IF((OR($C63="RP",$C63="SP")),VLOOKUP($B63,'Filtered-P'!$A$1:$X$700,7,FALSE),""),"") -> 157.8917209 | S63: =IFERROR(IF((OR($C63="RP",$C63="SP")),VLOOKUP($B63,'Filtered-P'!$A$1:$AD$700,13,FALSE),""),"") -> 3.640192654 | T63: =IFERROR(IF((OR($C63="RP",$C63="SP")),VLOOKUP($B63,'Filtered-P'!$A$1:$X$700,14,FALSE),""),"") -> 1.165292824 | U63: =IFERROR(IF((OR($C63="RP",$C63="SP")),"",VLOOKUP($B63,Filtered!$A$1:$AJ$700,20,FALSE)),"") ->  | V63: =IFERROR(IF((OR($C63="RP",$C63="SP")),"",VLOOKUP($B63,Filtered!$A$1:$AJ$700,9,FALSE)),"") ->  | W63: =IFERROR(IF((OR($C63="RP",$C63="SP")),"",VLOOKUP($B63,Filtered!$A$1:$AJ$700,10,FALSE)),"") ->  | X63: =IFERROR(IF((OR($C63="RP",$C63="SP")),"",VLOOKUP($B63,Filtered!$A$1:$AJ$700,4,FALSE)),"") ->  | Y63: =IFERROR(IF((OR($C63="RP",$C63="SP")),"",VLOOKUP($B63,Filtered!$A$1:$AJ$700,11,FALSE)),"") ->  | Z63: =IFERROR(IF(ISTEXT($A63),"",(1-NORMDIST((COUNTA($A$6:$A$745)),($G63),((AE63-AD63)/6),TRUE))),"") -> 0.9999997891 | AA63: =IFERROR(IF(ISTEXT($A63),"",(1-NORMDIST((COUNTA($A$6:$A$745))+(Personalize!$E$18+1),$G63,((AE63-AD63)/6),TRUE))),"") -> 0.9999990265 | AB63: =IFERROR(IF(ISTEXT($A63),"",(1-NORMDIST((COUNTA($A$6:$A$745))+((Personalize!$E$18+1)*2),$G63,((AE63-AD63)/6),TRUE))),"") -> 0.9999958801 | AD63: =CHOOSE(Personalize!$E$38,VLOOKUP($B63,'ADP-Rank'!$A$2:$AJ$620,8,FALSE),VLOOKUP($B63,'ADP-Rank'!$A$2:$AJ$620,11,FALSE),VLOOKUP($B63,'ADP-Rank'!$A$2:$AO$620,14,FALSE),VLOOKUP($B63,'ADP-Rank'!$A$2:$BD$620,17,FALSE),VLOOKUP($B63,'ADP-Rank'!$A$2:$BD$620,20,FALSE),VLOOKUP($B63,'ADP-Rank'!$A$2:$BD$620,23,FALSE),VLOOKUP($B63,'ADP-Rank'!$A$2:$BD$620,26,FALSE),VLOOKUP($B63,'ADP-Rank'!$A$2:$BD$620,29,FALSE),VLOOKUP($B63,'ADP-Rank'!$A$2:$BD$620,46,FALSE)) -> 29 | AE63: =CHOOSE(Personalize!$E$38,VLOOKUP($B63,'ADP-Rank'!$A$2:$AJ$620,9,FALSE),VLOOKUP($B63,'ADP-Rank'!$A$2:$AJ$620,12,FALSE),VLOOKUP($B63,'ADP-Rank'!$A$2:$AO$620,15,FALSE),VLOOKUP($B63,'ADP-Rank'!$A$2:$BD$620,18,FALSE),VLOOKUP($B63,'ADP-Rank'!$A$2:$BD$620,21,FALSE),VLOOKUP($B63,'ADP-Rank'!$A$2:$BD$620,24,FALSE),VLOOKUP($B63,'ADP-Rank'!$A$2:$BD$620,27,FALSE),VLOOKUP($B63,'ADP-Rank'!$A$2:$BD$620,30,FALSE),VLOOKUP($B63,'ADP-Rank'!$A$2:$BD$620,47,FALSE)) -> 99 | AF63: =IF(ISBLANK(A63),0,1) -> 0 | AG63: =IF(K63="",0,1) -> 1 | AH63: =A63 -> 0 | AI63: =IF(C63="C",1,IF(C63="1B",2,IF(C63="2B",3,IF(C63="3B",4,IF(C63="SS",5,IF(C63="CI",6,IF(C63="MI",7,IF(C63="OF",11,IF(C63="LF",8,IF(C63="CF",9,IF(C63="RF",10,IF(C63="DH",12,IF(C63="SP",13,IF(C63="RP",14,IF(C63="P",15,16))))))))))))))) -> 13 | AJ63: =VLOOKUP(B63,'Starter Calc'!$B$2:$BR$700,69,FALSE) -> Starter | AK63: =IFERROR(VLOOKUP($B63,'ADP-Rank'!$A$2:$AZ$620,40,FALSE),TRUE) -> TRUE | AL63: 1
B64: Alex Cobb | C64: SP | D64: =IFERROR(IF(VLOOKUP(B64,'Starter Calc'!$B$2:$E$700,4,FALSE)="","",VLOOKUP(B64,'Starter Calc'!$B$2:$E$700,4,FALSE)),"") -> LF,, | E64: =IFERROR(VLOOKUP($B64,'ADP-Rank'!$A$2:$G$620,5,FALSE),"") -> TB | F64: =IFERROR(VLOOKUP($B64,'ADP-Rank'!$A$2:$W$620,6,FALSE),"") -> 27 | G64: =IFERROR(CHOOSE(Personalize!$E$38,VLOOKUP($B64,'ADP-Rank'!$A$2:$CD$620,7,FALSE),VLOOKUP($B64,'ADP-Rank'!$A$2:$CD$620,10,FALSE),VLOOKUP($B64,'ADP-Rank'!$A$2:$CD$620,13,FALSE),VLOOKUP($B64,'ADP-Rank'!$A$2:$CD$620,16,FALSE),VLOOKUP($B64,'ADP-Rank'!$A$2:$CD$620,19,FALSE),VLOOKUP($B64,'ADP-Rank'!$A$2:$CD$620,22,FALSE),VLOOKUP($B64,'ADP-Rank'!$A$2:$CD$620,25,FALSE),VLOOKUP($B64,'ADP-Rank'!$A$2:$CD$620,28,FALSE),VLOOKUP($B64,'ADP-Rank'!$A$2:$CD$620,45,FALSE)),"") -> 59.15 | H64: =IFERROR(ROUNDDOWN(VLOOKUP($B64,'ADP-Rank'!$A$2:$BC$674,44,FALSE),0),"") -> 5 | I64: =VLOOKUP($B64,'ADP-Rank'!$A$2:$AP$674,42,FALSE) -> 88 | J64: =IFERROR(RANK($M64,$M$6:$M$745,0),"") -> 77 | K64: =IFERROR(IF((OR($C64="RP",$C64="SP")),VLOOKUP($B64,'Filtered-P'!$A$1:$AB$700,12,FALSE),(VLOOKUP($B64,Filtered!$A$1:$AB$700,18,FALSE))),"") -> 325.0893382 | L64: =IFERROR(IF((OR($C64="RP",$C64="SP")),VLOOKUP($C64,'Filtered-P'!$U$3:$X$4,4,FALSE), VLOOKUP($C64,Filtered!$U$3:$X$14,4,FALSE)),"") -> 262.4844351 | M64: =IFERROR(($K64-$L64)/IF(OR($C64="SP",$C64="RP"),VLOOKUP($C64,'Filtered-P'!$U$3:$AB$4,8,FALSE),VLOOKUP($C64,Filtered!$U$3:$AB$10,8,FALSE)),"") -> 0.6870282753 | N64: =IFERROR(IF((OR($C64="RP",$C64="SP")),"",(VLOOKUP($B64,Filtered!$A$1:$AB$700,18,FALSE)/VLOOKUP($B64,Filtered!$A$1:$AB$700,2,FALSE))),"") ->  | O64: =IFERROR(IF((OR($C64="RP",$C64="SP")),VLOOKUP($B64,'Filtered-P'!$A$1:$AB$700,12,FALSE)/VLOOKUP($B64,'Filtered-P'!$A$1:$AB$700,4,FALSE),""),"") -> 1.83831246 | P64: =IFERROR(IF((OR($C64="RP",$C64="SP")),VLOOKUP($B64,'Filtered-P'!$A$1:$X$700,2,FALSE),""),"") -> 11.84135636 | Q64: =IFERROR(IF((OR($C64="RP",$C64="SP")),VLOOKUP($B64,'Filtered-P'!$A$1:$X$700,9,FALSE),""),"") -> 0 | R64: =IFERROR(IF((OR($C64="RP",$C64="SP")),VLOOKUP($B64,'Filtered-P'!$A$1:$X$700,7,FALSE),""),"") -> 161.5805153 | S64: =IFERROR(IF((OR($C64="RP",$C64="SP")),VLOOKUP($B64,'Filtered-P'!$A$1:$AD$700,13,FALSE),""),"") -> 3.485949127 | T64: =IFERROR(IF((OR($C64="RP",$C64="SP")),VLOOKUP($B64,'Filtered-P'!$A$1:$X$700,14,FALSE),""),"") -> 1.181894328 | U64: =IFERROR(IF((OR($C64="RP",$C64="SP")),"",VLOOKUP($B64,Filtered!$A$1:$AJ$700,20,FALSE)),"") ->  | V64: =IFERROR(IF((OR($C64="RP",$C64="SP")),"",VLOOKUP($B64,Filtered!$A$1:$AJ$700,9,FALSE)),"") ->  | W64: =IFERROR(IF((OR($C64="RP",$C64="SP")),"",VLOOKUP($B64,Filtered!$A$1:$AJ$700,10,FALSE)),"") ->  | X64: =IFERROR(IF((OR($C64="RP",$C64="SP")),"",VLOOKUP($B64,Filtered!$A$1:$AJ$700,4,FALSE)),"") ->  | Y64: =IFERROR(IF((OR($C64="RP",$C64="SP")),"",VLOOKUP($B64,Filtered!$A$1:$AJ$700,11,FALSE)),"") ->  | Z64: =IFERROR(IF(ISTEXT($A64),"",(1-NORMDIST((COUNTA($A$6:$A$745)),($G64),((AE64-AD64)/6),TRUE))),"") -> 0.9999999991 | AA64: =IFERROR(IF(ISTEXT($A64),"",(1-NORMDIST((COUNTA($A$6:$A$745))+(Personalize!$E$18+1),$G64,((AE64-AD64)/6),TRUE))),"") -> 0.9999999924 | AB64: =IFERROR(IF(ISTEXT($A64),"",(1-NORMDIST((COUNTA($A$6:$A$745))+((Personalize!$E$18+1)*2),$G64,((AE64-AD64)/6),TRUE))),"") -> 0.9999999432 | AD64: =CHOOSE(Personalize!$E$38,VLOOKUP($B64,'ADP-Rank'!$A$2:$AJ$620,8,FALSE),VLOOKUP($B64,'ADP-Rank'!$A$2:$AJ$620,11,FALSE),VLOOKUP($B64,'ADP-Rank'!$A$2:$AO$620,14,FALSE),VLOOKUP($B64,'ADP-Rank'!$A$2:$BD$620,17,FALSE),VLOOKUP($B64,'ADP-Rank'!$A$2:$BD$620,20,FALSE),VLOOKUP($B64,'ADP-Rank'!$A$2:$BD$620,23,FALSE),VLOOKUP($B64,'ADP-Rank'!$A$2:$BD$620,26,FALSE),VLOOKUP($B64,'ADP-Rank'!$A$2:$BD$620,29,FALSE),VLOOKUP($B64,'ADP-Rank'!$A$2:$BD$620,46,FALSE)) -> 32 | AE64: =CHOOSE(Personalize!$E$38,VLOOKUP($B64,'ADP-Rank'!$A$2:$AJ$620,9,FALSE),VLOOKUP($B64,'ADP-Rank'!$A$2:$AJ$620,12,FALSE),VLOOKUP($B64,'ADP-Rank'!$A$2:$AO$620,15,FALSE),VLOOKUP($B64,'ADP-Rank'!$A$2:$BD$620,18,FALSE),VLOOKUP($B64,'ADP-Rank'!$A$2:$BD$620,21,FALSE),VLOOKUP($B64,'ADP-Rank'!$A$2:$BD$620,24,FALSE),VLOOKUP($B64,'ADP-Rank'!$A$2:$BD$620,27,FALSE),VLOOKUP($B64,'ADP-Rank'!$A$2:$BD$620,30,FALSE),VLOOKUP($B64,'ADP-Rank'!$A$2:$BD$620,47,FALSE)) -> 91 | AF64: =IF(ISBLANK(A64),0,1) -> 0 | AG64: =IF(K64="",0,1) -> 1 | AH64: =A64 -> 0 | AI64: =IF(C64="C",1,IF(C64="1B",2,IF(C64="2B",3,IF(C64="3B",4,IF(C64="SS",5,IF(C64="CI",6,IF(C64="MI",7,IF(C64="OF",11,IF(C64="LF",8,IF(C64="CF",9,IF(C64="RF",10,IF(C64="DH",12,IF(C64="SP",13,IF(C64="RP",14,IF(C64="P",15,16))))))))))))))) -> 13 | AJ64: =VLOOKUP(B64,'Starter Calc'!$B$2:$BR$700,69,FALSE) -> Starter | AK64: =IFERROR(VLOOKUP($B64,'ADP-Rank'!$A$2:$AZ$620,40,FALSE),TRUE) -> TRUE | AL64: 1
B65: Matt Kemp | C65: OF | D65: =IFERROR(IF(VLOOKUP(B65,'Starter Calc'!$B$2:$E$700,4,FALSE)="","",VLOOKUP(B65,'Starter Calc'!$B$2:$E$700,4,FALSE)),"") -> LF,RF, | E65: =IFERROR(VLOOKUP($B65,'ADP-Rank'!$A$2:$G$620,5,FALSE),"") -> SD | F65: =IFERROR(VLOOKUP($B65,'ADP-Rank'!$A$2:$W$620,6,FALSE),"") -> 30 | G65: =IFERROR(CHOOSE(Personalize!$E$38,VLOOKUP($B65,'ADP-Rank'!$A$2:$CD$620,7,FALSE),VLOOKUP($B65,'ADP-Rank'!$A$2:$CD$620,10,FALSE),VLOOKUP($B65,'ADP-Rank'!$A$2:$CD$620,13,FALSE),VLOOKUP($B65,'ADP-Rank'!$A$2:$CD$620,16,FALSE),VLOOKUP($B65,'ADP-Rank'!$A$2:$CD$620,19,FALSE),VLOOKUP($B65,'ADP-Rank'!$A$2:$CD$620,22,FALSE),VLOOKUP($B65,'ADP-Rank'!$A$2:$CD$620,25,FALSE),VLOOKUP($B65,'ADP-Rank'!$A$2:$CD$620,28,FALSE),VLOOKUP($B65,'ADP-Rank'!$A$2:$CD$620,45,FALSE)),"") -> 60.05 | H65: =IFERROR(ROUNDDOWN(VLOOKUP($B65,'ADP-Rank'!$A$2:$BC$674,44,FALSE),0),"") -> 5 | I65: =VLOOKUP($B65,'ADP-Rank'!$A$2:$AP$674,42,FALSE) -> 118 | J65: =IFERROR(RANK($M65,$M$6:$M$745,0),"") -> 220 | K65: =IFERROR(IF((OR($C65="RP",$C65="SP")),VLOOKUP($B65,'Filtered-P'!$A$1:$AB$700,12,FALSE),(VLOOKUP($B65,Filtered!$A$1:$AB$700,18,FALSE))),"") -> 255.3199724 | L65: =IFERROR(IF((OR($C65="RP",$C65="SP")),VLOOKUP($C65,'Filtered-P'!$U$3:$X$4,4,FALSE), VLOOKUP($C65,Filtered!$U$3:$X$14,4,FALSE)),"") -> 287.0213782 | M65: =IFERROR(($K65-$L65)/IF(OR($C65="SP",$C65="RP"),VLOOKUP($C65,'Filtered-P'!$U$3:$AB$4,8,FALSE),VLOOKUP($C65,Filtered!$U$3:$AB$10,8,FALSE)),"") -> -0.5219653961 | N65: =IFERROR(IF((OR($C65="RP",$C65="SP")),"",(VLOOKUP($B65,Filtered!$A$1:$AB$700,18,FALSE)/VLOOKUP($B65,Filtered!$A$1:$AB$700,2,FALSE))),"") -> 0.4675740046 | O65: =IFERROR(IF((OR($C65="RP",$C65="SP")),VLOOKUP($B65,'Filtered-P'!$A$1:$AB$700,12,FALSE)/VLOOKUP($B65,'Filtered-P'!$A$1:$AB$700,4,FALSE),""),"") ->  | P65: =IFERROR(IF((OR($C65="RP",$C65="SP")),VLOOKUP($B65,'Filtered-P'!$A$1:$X$700,2,FALSE),""),"") ->  | Q65: =IFERROR(IF((OR($C65="RP",$C65="SP")),VLOOKUP($B65,'Filtered-P'!$A$1:$X$700,9,FALSE),""),"") ->  | R65: =IFERROR(IF((OR($C65="RP",$C65="SP")),VLOOKUP($B65,'Filtered-P'!$A$1:$X$700,7,FALSE),""),"") ->  | S65: =IFERROR(IF((OR($C65="RP",$C65="SP")),VLOOKUP($B65,'Filtered-P'!$A$1:$AD$700,13,FALSE),""),"") ->  | T65: =IFERROR(IF((OR($C65="RP",$C65="SP")),VLOOKUP($B65,'Filtered-P'!$A$1:$X$700,14,FALSE),""),"") ->  | U65: =IFERROR(IF((OR($C65="RP",$C65="SP")),"",VLOOKUP($B65,Filtered!$A$1:$AJ$700,20,FALSE)),"") -> 0.2650963754 | V65: =IFERROR(IF((OR($C65="RP",$C65="SP")),"",VLOOKUP($B65,Filtered!$A$1:$AJ$700,9,FALSE)),"") -> 19.3226978 | W65: =IFERROR(IF((OR($C65="RP",$C65="SP")),"",VLOOKUP($B65,Filtered!$A$1:$AJ$700,10,FALSE)),"") -> 69.3287634 | X65: =IFERROR(IF((OR($C65="RP",$C65="SP")),"",VLOOKUP($B65,Filtered!$A$1:$AJ$700,4,FALSE)),"") -> 66.19781853 | Y65: =IFERROR(IF((OR($C65="RP",$C65="SP")),"",VLOOKUP($B65,Filtered!$A$1:$AJ$700,11,FALSE)),"") -> 11.14477743 | Z65: =IFERROR(IF(ISTEXT($A65),"",(1-NORMDIST((COUNTA($A$6:$A$745)),($G65),((AE65-AD65)/6),TRUE))),"") -> 1 | AA65: =IFERROR(IF(ISTEXT($A65),"",(1-NORMDIST((COUNTA($A$6:$A$745))+(Personalize!$E$18+1),$G65,((AE65-AD65)/6),TRUE))),"") -> 1 | AB65: =IFERROR(IF(ISTEXT($A65),"",(1-NORMDIST((COUNTA($A$6:$A$745))+((Personalize!$E$18+1)*2),$G65,((AE65-AD65)/6),TRUE))),"") -> 1 | AD65: =CHOOSE(Personalize!$E$38,VLOOKUP($B65,'ADP-Rank'!$A$2:$AJ$620,8,FALSE),VLOOKUP($B65,'ADP-Rank'!$A$2:$AJ$620,11,FALSE),VLOOKUP($B65,'ADP-Rank'!$A$2:$AO$620,14,FALSE),VLOOKUP($B65,'ADP-Rank'!$A$2:$BD$620,17,FALSE),VLOOKUP($B65,'ADP-Rank'!$A$2:$BD$620,20,FALSE),VLOOKUP($B65,'ADP-Rank'!$A$2:$BD$620,23,FALSE),VLOOKUP($B65,'ADP-Rank'!$A$2:$BD$620,26,FALSE),VLOOKUP($B65,'ADP-Rank'!$A$2:$BD$620,29,FALSE),VLOOKUP($B65,'ADP-Rank'!$A$2:$BD$620,46,FALSE)) -> 34 | AE65: =CHOOSE(Personalize!$E$38,VLOOKUP($B65,'ADP-Rank'!$A$2:$AJ$620,9,FALSE),VLOOKUP($B65,'ADP-Rank'!$A$2:$AJ$620,12,FALSE),VLOOKUP($B65,'ADP-Rank'!$A$2:$AO$620,15,FALSE),VLOOKUP($B65,'ADP-Rank'!$A$2:$BD$620,18,FALSE),VLOOKUP($B65,'ADP-Rank'!$A$2:$BD$620,21,FALSE),VLOOKUP($B65,'ADP-Rank'!$A$2:$BD$620,24,FALSE),VLOOKUP($B65,'ADP-Rank'!$A$2:$BD$620,27,FALSE),VLOOKUP($B65,'ADP-Rank'!$A$2:$BD$620,30,FALSE),VLOOKUP($B65,'ADP-Rank'!$A$2:$BD$620,47,FALSE)) -> 81 | AF65: =IF(ISBLANK(A65),0,1) -> 0 | AG65: =IF(K65="",0,1) -> 1 | AH65: =A65 -> 0 | AI65: =IF(C65="C",1,IF(C65="1B",2,IF(C65="2B",3,IF(C65="3B",4,IF(C65="SS",5,IF(C65="CI",6,IF(C65="MI",7,IF(C65="OF",11,IF(C65="LF",8,IF(C65="CF",9,IF(C65="RF",10,IF(C65="DH",12,IF(C65="SP",13,IF(C65="RP",14,IF(C65="P",15,16))))))))))))))) -> 11 | AJ65: =VLOOKUP(B65,'Starter Calc'!$B$2:$BR$700,69,FALSE) -> Starter | AK65: =IFERROR(VLOOKUP($B65,'ADP-Rank'!$A$2:$AZ$620,40,FALSE),TRUE) -> TRUE | AL65: 0
B66: Craig Kimbrel | C66: RP | D66: =IFERROR(IF(VLOOKUP(B66,'Starter Calc'!$B$2:$E$700,4,FALSE)="","",VLOOKUP(B66,'Starter Calc'!$B$2:$E$700,4,FALSE)),"") -> ,, | E66: =IFERROR(VLOOKUP($B66,'ADP-Rank'!$A$2:$G$620,5,FALSE),"") -> ATL | F66: =IFERROR(VLOOKUP($B66,'ADP-Rank'!$A$2:$W$620,6,FALSE),"") -> 26 | G66: =IFERROR(CHOOSE(Personalize!$E$38,VLOOKUP($B66,'ADP-Rank'!$A$2:$CD$620,7,FALSE),VLOOKUP($B66,'ADP-Rank'!$A$2:$CD$620,10,FALSE),VLOOKUP($B66,'ADP-Rank'!$A$2:$CD$620,13,FALSE),VLOOKUP($B66,'ADP-Rank'!$A$2:$CD$620,16,FALSE),VLOOKUP($B66,'ADP-Rank'!$A$2:$CD$620,19,FALSE),VLOOKUP($B66,'ADP-Rank'!$A$2:$CD$620,22,FALSE),VLOOKUP($B66,'ADP-Rank'!$A$2:$CD$620,25,FALSE),VLOOKUP($B66,'ADP-Rank'!$A$2:$CD$620,28,FALSE),VLOOKUP($B66,'ADP-Rank'!$A$2:$CD$620,45,FALSE)),"") -> 60.1 | H66: =IFERROR(ROUNDDOWN(VLOOKUP($B66,'ADP-Rank'!$A$2:$BC$674,44,FALSE),0),"") -> 5 | I66: =VLOOKUP($B66,'ADP-Rank'!$A$2:$AP$674,42,FALSE) -> 37 | J66: =IFERROR(RANK($M66,$M$6:$M$745,0),"") -> 24 | K66: =IFERROR(IF((OR($C66="RP",$C66="SP")),VLOOKUP($B66,'Filtered-P'!$A$1:$AB$700,12,FALSE),(VLOOKUP($B66,Filtered!$A$1:$AB$700,18,FALSE))),"") -> 599.8264061 | L66: =IFERROR(IF((OR($C66="RP",$C66="SP")),VLOOKUP($C66,'Filtered-P'!$U$3:$X$4,4,FALSE), VLOOKUP($C66,Filtered!$U$3:$X$14,4,FALSE)),"") -> 338.0438298 | M66: =IFERROR(($K66-$L66)/IF(OR($C66="SP",$C66="RP"),VLOOKUP($C66,'Filtered-P'!$U$3:$AB$4,8,FALSE),VLOOKUP($C66,Filtered!$U$3:$AB$10,8,FALSE)),"") -> 1.559633575 | N66: =IFERROR(IF((OR($C66="RP",$C66="SP")),"",(VLOOKUP($B66,Filtered!$A$1:$AB$700,18,FALSE)/VLOOKUP($B66,Filtered!$A$1:$AB$700,2,FALSE))),"") ->  | O66: =IFERROR(IF((OR($C66="RP",$C66="SP")),VLOOKUP($B66,'Filtered-P'!$A$1:$AB$700,12,FALSE)/VLOOKUP($B66,'Filtered-P'!$A$1:$AB$700,4,FALSE),""),"") -> 9.213298913 | P66: =IFERROR(IF((OR($C66="RP",$C66="SP")),VLOOKUP($B66,'Filtered-P'!$A$1:$X$700,2,FALSE),""),"") -> 2.907532963 | Q66: =IFERROR(IF((OR($C66="RP",$C66="SP")),VLOOKUP($B66,'Filtered-P'!$A$1:$X$700,9,FALSE),""),"") -> 36.96151528 | R66: =IFERROR(IF((OR($C66="RP",$C66="SP")),VLOOKUP($B66,'Filtered-P'!$A$1:$X$700,7,FALSE),""),"") -> 97.08532156 | S66: =IFERROR(IF((OR($C66="RP",$C66="SP")),VLOOKUP($B66,'Filtered-P'!$A$1:$AD$700,13,FALSE),""),"") -> 2.404637468 | T66: =IFERROR(IF((OR($C66="RP",$C66="SP")),VLOOKUP($B66,'Filtered-P'!$A$1:$X$700,14,FALSE),""),"") -> 0.9840169649 | U66: =IFERROR(IF((OR($C66="RP",$C66="SP")),"",VLOOKUP($B66,Filtered!$A$1:$AJ$700,20,FALSE)),"") ->  | V66: =IFERROR(IF((OR($C66="RP",$C66="SP")),"",VLOOKUP($B66,Filtered!$A$1:$AJ$700,9,FALSE)),"") ->  | W66: =IFERROR(IF((OR($C66="RP",$C66="SP")),"",VLOOKUP($B66,Filtered!$A$1:$AJ$700,10,FALSE)),"") ->  | X66: =IFERROR(IF((OR($C66="RP",$C66="SP")),"",VLOOKUP($B66,Filtered!$A$1:$AJ$700,4,FALSE)),"") ->  | Y66: =IFERROR(IF((OR($C66="RP",$C66="SP")),"",VLOOKUP($B66,Filtered!$A$1:$AJ$700,11,FALSE)),"") ->  | Z66: =IFERROR(IF(ISTEXT($A66),"",(1-NORMDIST((COUNTA($A$6:$A$745)),($G66),((AE66-AD66)/6),TRUE))),"") -> 1 | AA66: =IFERROR(IF(ISTEXT($A66),"",(1-NORMDIST((COUNTA($A$6:$A$745))+(Personalize!$E$18+1),$G66,((AE66-AD66)/6),TRUE))),"") -> 1 | AB66: =IFERROR(IF(ISTEXT($A66),"",(1-NORMDIST((COUNTA($A$6:$A$745))+((Personalize!$E$18+1)*2),$G66,((AE66-AD66)/6),TRUE))),"") -> 1 | AD66: =CHOOSE(Personalize!$E$38,VLOOKUP($B66,'ADP-Rank'!$A$2:$AJ$620,8,FALSE),VLOOKUP($B66,'ADP-Rank'!$A$2:$AJ$620,11,FALSE),VLOOKUP($B66,'ADP-Rank'!$A$2:$AO$620,14,FALSE),VLOOKUP($B66,'ADP-Rank'!$A$2:$BD$620,17,FALSE),VLOOKUP($B66,'ADP-Rank'!$A$2:$BD$620,20,FALSE),VLOOKUP($B66,'ADP-Rank'!$A$2:$BD$620,23,FALSE),VLOOKUP($B66,'ADP-Rank'!$A$2:$BD$620,26,FALSE),VLOOKUP($B66,'ADP-Rank'!$A$2:$BD$620,29,FALSE),VLOOKUP($B66,'ADP-Rank'!$A$2:$BD$620,46,FALSE)) -> 34 | AE66: =CHOOSE(Personalize!$E$38,VLOOKUP($B66,'ADP-Rank'!$A$2:$AJ$620,9,FALSE),VLOOKUP($B66,'ADP-Rank'!$A$2:$AJ$620,12,FALSE),VLOOKUP($B66,'ADP-Rank'!$A$2:$AO$620,15,FALSE),VLOOKUP($B66,'ADP-Rank'!$A$2:$BD$620,18,FALSE),VLOOKUP($B66,'ADP-Rank'!$A$2:$BD$620,21,FALSE),VLOOKUP($B66,'ADP-Rank'!$A$2:$BD$620,24,FALSE),VLOOKUP($B66,'ADP-Rank'!$A$2:$BD$620,27,FALSE),VLOOKUP($B66,'ADP-Rank'!$A$2:$BD$620,30,FALSE),VLOOKUP($B66,'ADP-Rank'!$A$2:$BD$620,47,FALSE)) -> 83 | AF66: =IF(ISBLANK(A66),0,1) -> 0 | AG66: =IF(K66="",0,1) -> 1 | AH66: =A66 -> 0 | AI66: =IF(C66="C",1,IF(C66="1B",2,IF(C66="2B",3,IF(C66="3B",4,IF(C66="SS",5,IF(C66="CI",6,IF(C66="MI",7,IF(C66="OF",11,IF(C66="LF",8,IF(C66="CF",9,IF(C66="RF",10,IF(C66="DH",12,IF(C66="SP",13,IF(C66="RP",14,IF(C66="P",15,16))))))))))))))) -> 14 | AJ66: =VLOOKUP(B66,'Starter Calc'!$B$2:$BR$700,69,FALSE) -> Starter | AK66: =IFERROR(VLOOKUP($B66,'ADP-Rank'!$A$2:$AZ$620,40,FALSE),TRUE) -> TRUE | AL66: 1
B67: Brian Dozier | C67: 2B | D67: =IFERROR(IF(VLOOKUP(B67,'Starter Calc'!$B$2:$E$700,4,FALSE)="","",VLOOKUP(B67,'Starter Calc'!$B$2:$E$700,4,FALSE)),"") -> ,, | E67: =IFERROR(VLOOKUP($B67,'ADP-Rank'!$A$2:$G$620,5,FALSE),"") -> MIN | F67: =IFERROR(VLOOKUP($B67,'ADP-Rank'!$A$2:$W$620,6,FALSE),"") -> 27 | G67: =IFERROR(CHOOSE(Personalize!$E$38,VLOOKUP($B67,'ADP-Rank'!$A$2:$CD$620,7,FALSE),VLOOKUP($B67,'ADP-Rank'!$A$2:$CD$620,10,FALSE),VLOOKUP($B67,'ADP-Rank'!$A$2:$CD$620,13,FALSE),VLOOKUP($B67,'ADP-Rank'!$A$2:$CD$620,16,FALSE),VLOOKUP($B67,'ADP-Rank'!$A$2:$CD$620,19,FALSE),VLOOKUP($B67,'ADP-Rank'!$A$2:$CD$620,22,FALSE),VLOOKUP($B67,'ADP-Rank'!$A$2:$CD$620,25,FALSE),VLOOKUP($B67,'ADP-Rank'!$A$2:$CD$620,28,FALSE),VLOOKUP($B67,'ADP-Rank'!$A$2:$CD$620,45,FALSE)),"") -> 62.07 | H67: =IFERROR(ROUNDDOWN(VLOOKUP($B67,'ADP-Rank'!$A$2:$BC$674,44,FALSE),0),"") -> 5 | I67: =VLOOKUP($B67,'ADP-Rank'!$A$2:$AP$674,42,FALSE) -> 56 | J67: =IFERROR(RANK($M67,$M$6:$M$745,0),"") -> 103 | K67: =IFERROR(IF((OR($C67="RP",$C67="SP")),VLOOKUP($B67,'Filtered-P'!$A$1:$AB$700,12,FALSE),(VLOOKUP($B67,Filtered!$A$1:$AB$700,18,FALSE))),"") -> 304.9856698 | L67: =IFERROR(IF((OR($C67="RP",$C67="SP")),VLOOKUP($C67,'Filtered-P'!$U$3:$X$4,4,FALSE), VLOOKUP($C67,Filtered!$U$3:$X$14,4,FALSE)),"") -> 275.8634602 | M67: =IFERROR(($K67-$L67)/IF(OR($C67="SP",$C67="RP"),VLOOKUP($C67,'Filtered-P'!$U$3:$AB$4,8,FALSE),VLOOKUP($C67,Filtered!$U$3:$AB$10,8,FALSE)),"") -> 0.4694248191 | N67: =IFERROR(IF((OR($C67="RP",$C67="SP")),"",(VLOOKUP($B67,Filtered!$A$1:$AB$700,18,FALSE)/VLOOKUP($B67,Filtered!$A$1:$AB$700,2,FALSE))),"") -> 0.4730820723 | O67: =IFERROR(IF((OR($C67="RP",$C67="SP")),VLOOKUP($B67,'Filtered-P'!$A$1:$AB$700,12,FALSE)/VLOOKUP($B67,'Filtered-P'!$A$1:$AB$700,4,FALSE),""),"") ->  | P67: =IFERROR(IF((OR($C67="RP",$C67="SP")),VLOOKUP($B67,'Filtered-P'!$A$1:$X$700,2,FALSE),""),"") ->  | Q67: =IFERROR(IF((OR($C67="RP",$C67="SP")),VLOOKUP($B67,'Filtered-P'!$A$1:$X$700,9,FALSE),""),"") ->  | R67: =IFERROR(IF((OR($C67="RP",$C67="SP")),VLOOKUP($B67,'Filtered-P'!$A$1:$X$700,7,FALSE),""),"") ->  | S67: =IFERROR(IF((OR($C67="RP",$C67="SP")),VLOOKUP($B67,'Filtered-P'!$A$1:$AD$700,13,FALSE),""),"") ->  | T67: =IFERROR(IF((OR($C67="RP",$C67="SP")),VLOOKUP($B67,'Filtered-P'!$A$1:$X$700,14,FALSE),""),"") ->  | U67: =IFERROR(IF((OR($C67="RP",$C67="SP")),"",VLOOKUP($B67,Filtered!$A$1:$AJ$700,20,FALSE)),"") -> 0.240911216 | V67: =IFERROR(IF((OR($C67="RP",$C67="SP")),"",VLOOKUP($B67,Filtered!$A$1:$AJ$700,9,FALSE)),"") -> 17.3273615 | W67: =IFERROR(IF((OR($C67="RP",$C67="SP")),"",VLOOKUP($B67,Filtered!$A$1:$AJ$700,10,FALSE)),"") -> 63.70989282 | X67: =IFERROR(IF((OR($C67="RP",$C67="SP")),"",VLOOKUP($B67,Filtered!$A$1:$AJ$700,4,FALSE)),"") -> 81.25932275 | Y67: =IFERROR(IF((OR($C67="RP",$C67="SP")),"",VLOOKUP($B67,Filtered!$A$1:$AJ$700,11,FALSE)),"") -> 16.53911042 | Z67: =IFERROR(IF(ISTEXT($A67),"",(1-NORMDIST((COUNTA($A$6:$A$745)),($G67),((AE67-AD67)/6),TRUE))),"") -> 1 | AA67: =IFERROR(IF(ISTEXT($A67),"",(1-NORMDIST((COUNTA($A$6:$A$745))+(Personalize!$E$18+1),$G67,((AE67-AD67)/6),TRUE))),"") -> 1 | AB67: =IFERROR(IF(ISTEXT($A67),"",(1-NORMDIST((COUNTA($A$6:$A$745))+((Personalize!$E$18+1)*2),$G67,((AE67-AD67)/6),TRUE))),"") -> 1 | AD67: =CHOOSE(Personalize!$E$38,VLOOKUP($B67,'ADP-Rank'!$A$2:$AJ$620,8,FALSE),VLOOKUP($B67,'ADP-Rank'!$A$2:$AJ$620,11,FALSE),VLOOKUP($B67,'ADP-Rank'!$A$2:$AO$620,14,FALSE),VLOOKUP($B67,'ADP-Rank'!$A$2:$BD$620,17,FALSE),VLOOKUP($B67,'ADP-Rank'!$A$2:$BD$620,20,FALSE),VLOOKUP($B67,'ADP-Rank'!$A$2:$BD$620,23,FALSE),VLOOKUP($B67,'ADP-Rank'!$A$2:$BD$620,26,FALSE),VLOOKUP($B67,'ADP-Rank'!$A$2:$BD$620,29,FALSE),VLOOKUP($B67,'ADP-Rank'!$A$2:$BD$620,46,FALSE)) -> 35 | AE67: =CHOOSE(Personalize!$E$38,VLOOKUP($B67,'ADP-Rank'!$A$2:$AJ$620,9,FALSE),VLOOKUP($B67,'ADP-Rank'!$A$2:$AJ$620,12,FALSE),VLOOKUP($B67,'ADP-Rank'!$A$2:$AO$620,15,FALSE),VLOOKUP($B67,'ADP-Rank'!$A$2:$BD$620,18,FALSE),VLOOKUP($B67,'ADP-Rank'!$A$2:$BD$620,21,FALSE),VLOOKUP($B67,'ADP-Rank'!$A$2:$BD$620,24,FALSE),VLOOKUP($B67,'ADP-Rank'!$A$2:$BD$620,27,FALSE),VLOOKUP($B67,'ADP-Rank'!$A$2:$BD$620,30,FALSE),VLOOKUP($B67,'ADP-Rank'!$A$2:$BD$620,47,FALSE)) -> 86 | AF67: =IF(ISBLANK(A67),0,1) -> 0 | AG67: =IF(K67="",0,1) -> 1 | AH67: =A67 -> 0 | AI67: =IF(C67="C",1,IF(C67="1B",2,IF(C67="2B",3,IF(C67="3B",4,IF(C67="SS",5,IF(C67="CI",6,IF(C67="MI",7,IF(C67="OF",11,IF(C67="LF",8,IF(C67="CF",9,IF(C67="RF",10,IF(C67="DH",12,IF(C67="SP",13,IF(C67="RP",14,IF(C67="P",15,16))))))))))))))) -> 3 | AJ67: =VLOOKUP(B67,'Starter Calc'!$B$2:$BR$700,69,FALSE) -> Bench | AK67: =IFERROR(VLOOKUP($B67,'ADP-Rank'!$A$2:$AZ$620,40,FALSE),TRUE) -> TRUE | AL67: 0
B68: Joey Votto | C68: 1B | D68: =IFERROR(IF(VLOOKUP(B68,'Starter Calc'!$B$2:$E$700,4,FALSE)="","",VLOOKUP(B68,'Starter Calc'!$B$2:$E$700,4,FALSE)),"") -> ,RF, | E68: =IFERROR(VLOOKUP($B68,'ADP-Rank'!$A$2:$G$620,5,FALSE),"") -> CIN | F68: =IFERROR(VLOOKUP($B68,'ADP-Rank'!$A$2:$W$620,6,FALSE),"") -> 31 | G68: =IFERROR(CHOOSE(Personalize!$E$38,VLOOKUP($B68,'ADP-Rank'!$A$2:$CD$620,7,FALSE),VLOOKUP($B68,'ADP-Rank'!$A$2:$CD$620,10,FALSE),VLOOKUP($B68,'ADP-Rank'!$A$2:$CD$620,13,FALSE),VLOOKUP($B68,'ADP-Rank'!$A$2:$CD$620,16,FALSE),VLOOKUP($B68,'ADP-Rank'!$A$2:$CD$620,19,FALSE),VLOOKUP($B68,'ADP-Rank'!$A$2:$CD$620,22,FALSE),VLOOKUP($B68,'ADP-Rank'!$A$2:$CD$620,25,FALSE),VLOOKUP($B68,'ADP-Rank'!$A$2:$CD$620,28,FALSE),VLOOKUP($B68,'ADP-Rank'!$A$2:$CD$620,45,FALSE)),"") -> 62.22 | H68: =IFERROR(ROUNDDOWN(VLOOKUP($B68,'ADP-Rank'!$A$2:$BC$674,44,FALSE),0),"") -> 5 | I68: =VLOOKUP($B68,'ADP-Rank'!$A$2:$AP$674,42,FALSE) -> 62 | J68: =IFERROR(RANK($M68,$M$6:$M$745,0),"") -> 236 | K68: =IFERROR(IF((OR($C68="RP",$C68="SP")),VLOOKUP($B68,'Filtered-P'!$A$1:$AB$700,12,FALSE),(VLOOKUP($B68,Filtered!$A$1:$AB$700,18,FALSE))),"") -> 308.0912341 | L68: =IFERROR(IF((OR($C68="RP",$C68="SP")),VLOOKUP($C68,'Filtered-P'!$U$3:$X$4,4,FALSE), VLOOKUP($C68,Filtered!$U$3:$X$14,4,FALSE)),"") -> 341.0043912 | M68: =IFERROR(($K68-$L68)/IF(OR($C68="SP",$C68="RP"),VLOOKUP($C68,'Filtered-P'!$U$3:$AB$4,8,FALSE),VLOOKUP($C68,Filtered!$U$3:$AB$10,8,FALSE)),"") -> -0.6279721875 | N68: =IFERROR(IF((OR($C68="RP",$C68="SP")),"",(VLOOKUP($B68,Filtered!$A$1:$AB$700,18,FALSE)/VLOOKUP($B68,Filtered!$A$1:$AB$700,2,FALSE))),"") -> 0.5716842216 | O68: =IFERROR(IF((OR($C68="RP",$C68="SP")),VLOOKUP($B68,'Filtered-P'!$A$1:$AB$700,12,FALSE)/VLOOKUP($B68,'Filtered-P'!$A$1:$AB$700,4,FALSE),""),"") ->  | P68: =IFERROR(IF((OR($C68="RP",$C68="SP")),VLOOKUP($B68,'Filtered-P'!$A$1:$X$700,2,FALSE),""),"") ->  | Q68: =IFERROR(IF((OR($C68="RP",$C68="SP")),VLOOKUP($B68,'Filtered-P'!$A$1:$X$700,9,FALSE),""),"") ->  | R68: =IFERROR(IF((OR($C68="RP",$C68="SP")),VLOOKUP($B68,'Filtered-P'!$A$1:$X$700,7,FALSE),""),"") ->  | S68: =IFERROR(IF((OR($C68="RP",$C68="SP")),VLOOKUP($B68,'Filtered-P'!$A$1:$AD$700,13,FALSE),""),"") ->  | T68: =IFERROR(IF((OR($C68="RP",$C68="SP")),VLOOKUP($B68,'Filtered-P'!$A$1:$X$700,14,FALSE),""),"") ->  | U68: =IFERROR(IF((OR($C68="RP",$C68="SP")),"",VLOOKUP($B68,Filtered!$A$1:$AJ$700,20,FALSE)),"") -> 0.2768395787 | V68: =IFERROR(IF((OR($C68="RP",$C68="SP")),"",VLOOKUP($B68,Filtered!$A$1:$AJ$700,9,FALSE)),"") -> 17.16454142 | W68: =IFERROR(IF((OR($C68="RP",$C68="SP")),"",VLOOKUP($B68,Filtered!$A$1:$AJ$700,10,FALSE)),"") -> 60.29715912 | X68: =IFERROR(IF((OR($C68="RP",$C68="SP")),"",VLOOKUP($B68,Filtered!$A$1:$AJ$700,4,FALSE)),"") -> 70.24944703 | Y68: =IFERROR(IF((OR($C68="RP",$C68="SP")),"",VLOOKUP($B68,Filtered!$A$1:$AJ$700,11,FALSE)),"") -> 4.123759866 | Z68: =IFERROR(IF(ISTEXT($A68),"",(1-NORMDIST((COUNTA($A$6:$A$745)),($G68),((AE68-AD68)/6),TRUE))),"") -> 1 | AA68: =IFERROR(IF(ISTEXT($A68),"",(1-NORMDIST((COUNTA($A$6:$A$745))+(Personalize!$E$18+1),$G68,((AE68-AD68)/6),TRUE))),"") -> 1 | AB68: =IFERROR(IF(ISTEXT($A68),"",(1-NORMDIST((COUNTA($A$6:$A$745))+((Personalize!$E$18+1)*2),$G68,((AE68-AD68)/6),TRUE))),"") -> 0.9999999996 | AD68: =CHOOSE(Personalize!$E$38,VLOOKUP($B68,'ADP-Rank'!$A$2:$AJ$620,8,FALSE),VLOOKUP($B68,'ADP-Rank'!$A$2:$AJ$620,11,FALSE),VLOOKUP($B68,'ADP-Rank'!$A$2:$AO$620,14,FALSE),VLOOKUP($B68,'ADP-Rank'!$A$2:$BD$620,17,FALSE),VLOOKUP($B68,'ADP-Rank'!$A$2:$BD$620,20,FALSE),VLOOKUP($B68,'ADP-Rank'!$A$2:$BD$620,23,FALSE),VLOOKUP($B68,'ADP-Rank'!$A$2:$BD$620,26,FALSE),VLOOKUP($B68,'ADP-Rank'!$A$2:$BD$620,29,FALSE),VLOOKUP($B68,'ADP-Rank'!$A$2:$BD$620,46,FALSE)) -> 35 | AE68: =CHOOSE(Personalize!$E$38,VLOOKUP($B68,'ADP-Rank'!$A$2:$AJ$620,9,FALSE),VLOOKUP($B68,'ADP-Rank'!$A$2:$AJ$620,12,FALSE),VLOOKUP($B68,'ADP-Rank'!$A$2:$AO$620,15,FALSE),VLOOKUP($B68,'ADP-Rank'!$A$2:$BD$620,18,FALSE),VLOOKUP($B68,'ADP-Rank'!$A$2:$BD$620,21,FALSE),VLOOKUP($B68,'ADP-Rank'!$A$2:$BD$620,24,FALSE),VLOOKUP($B68,'ADP-Rank'!$A$2:$BD$620,27,FALSE),VLOOKUP($B68,'ADP-Rank'!$A$2:$BD$620,30,FALSE),VLOOKUP($B68,'ADP-Rank'!$A$2:$BD$620,47,FALSE)) -> 89 | AF68: =IF(ISBLANK(A68),0,1) -> 0 | AG68: =IF(K68="",0,1) -> 1 | AH68: =A68 -> 0 | AI68: =IF(C68="C",1,IF(C68="1B",2,IF(C68="2B",3,IF(C68="3B",4,IF(C68="SS",5,IF(C68="CI",6,IF(C68="MI",7,IF(C68="OF",11,IF(C68="LF",8,IF(C68="CF",9,IF(C68="RF",10,IF(C68="DH",12,IF(C68="SP",13,IF(C68="RP",14,IF(C68="P",15,16))))))))))))))) -> 2 | AJ68: =VLOOKUP(B68,'Starter Calc'!$B$2:$BR$700,69,FALSE) -> Bench | AK68: =IFERROR(VLOOKUP($B68,'ADP-Rank'!$A$2:$AZ$620,40,FALSE),TRUE) -> TRUE | AL68: 0
